Workbook

Sheet Baca dulu
A1: aph | B1: AKTIVASI DAN SETUP AWAL
A2: Cara mem-fungsikan tombol-tombol perintah (Office 2016 ke atas):
B3: Langkah:
B4: a. | C4: Tutup dulu file aplikasi ini
B5: b. | C5: Klik kanan nama file lalu pilih properties
B6: c. | C6: Kemudian di bagian kanan bawah beri check list pada unblock Security, lalu klik apply dan OK
A8: Cara mem-fungsikan tombol-tombol perintah (Office 2013):
B9: Langkah:
B10: a. | C10: Buka program Excell
B11: b. | C11: Klik Menu File (sebelah kiri atas) dan klik “options”
B12: c. | C12: Selanjutnya pada sub menu “trust center” pilih dan klik “trust center setting”, kemudian klik sub menu “macro setting” dan pilih “enable all macro (not recomended, potentially dangerous code can run)” serta pilih “trust access to the VBA project object model”
B13: d. | C13: Apabila masih belum jalan juga, lihat apakah ada peringatan "Security Warning" diatas baris rumus
C14: Jika ada, maka klik "options" dan pilih "enable" lalu tekan Enter
A16: Cara mem-fungsikan tombol-tombol perintah (Office 2010):
B17: Langkah:
B18: a. | C18: Buka program Excell
B19: b. | C19: Klik Menu File (sebelah kiri atas) dan klik “options”
B20: c. | C20: Selanjutnya pada sub menu “trust center” pilih dan klik “trust center setting”, kemudian klik sub menu “macro setting” dan pilih “enable all macro (not recomended, potentially dangerous code can run)” serta pilih “trust access to the VBA project object model”
B21: d. | C21: Apabila masih belum jalan juga, lihat apakah ada peringatan "Security Warning" diatas baris rumus
C22: Jika ada, maka klik "options" dan pilih "enable" lalu tekan Enter
A24: Cara mem-fungsikan tombol-tombol perintah (Office 2007):
B25: Langkah:
B26: a. | C26: Buka program Excell
B27: b. | C27: Klik “office button” (lingkaran sebelah kiri atas) dan klik “Excel options”
B28: c. | C28: Selanjutnya pada sub menu “trust center” pilih dan klik “trust center setting”, kemudian klik sub menu “macro setting” dan pilih “enable all macro (not recomended, potentially dangerous code can run)” serta pilih “trust access to the VBA project object model”
B29: d. | C29: Apabila masih belum jalan juga, lihat apakah ada peringatan "Security Warning" diatas baris rumus
C30: Jika ada, maka klik "options" dan pilih "enable" lalu tekan Enter
A33: Cara melakukan Setup Awal Aplikasi dan menjalankan Aplikasi:
A34: A. | B34: Langkah Setup Awal:
B35: 1. | C35: Buka Sheet Home
C36: a. | D36: Pada sheet home lakukan kustomisasi identitas Badan Usaha Milik Desa./BUM Desa bersama
C37: b. | D37: Kemudian Isikan Identitas Petugas Akuntansi dan Pejabat Penandatangan Laporan Keuangan.
B38: 2. | C38: Buka Sheet COA
C39: a. | D39: Sesuaikan Kode dan Nama Akun dengan Kode dan Nama Akun yang terdapat pada Pedoman Akuntansi Keuangan Badan Usaha Milik Desa masing-masing. Jika sudah ada datanya dalam format Excel, copy paste special value kan data tersebut dalam kolom Kode dan Nama Akun dan Saldo Normal
C40: b. | D40: Lakukan penginputan data Anggaran BUMDes di kolom Anggaran (jika ada)
C41: c. | D41: Penambahan baris data pada kolom ini akan mempengaruhi sheet Neraca Saldo, sehingga data yang dibaca dari sheet COA di Sheet Neraca Saldo harus di-melarkan juga.
A42: B. | B42: Langkah Penginputan Transaksi:
B43: 1. | C43: Buka Sheet Jurnal
C44: a. | D44: Analisis setiap transaksi dan lakukan peng-input-an transaksi dengan menuliskan kata kunci di baris jurnal kolom kode dan nama akun dan mengklik dropdown untuk memilih akun yang sesuai. Selanjutnya input jumlah penambahan dan pengurangan atau pendebitan dan pengkreditan. Lengkapi dengan TANGGAL, no bukti dan keterangan transaksi. Untuk transaksi yang sama, isikan setiap baris data tanggal, no bukti dan keterangan transaksi, sehingga masing masing baris akun memiliki atribut yang lengkap.
D46: Penjurnalan menggunakan mekanisme double entry yaitu minimal satu akun di debit dan satu akun di kredit dengan mengacu persamaan dasar akuntansi.
D48: Pemahaman Persamaan Dasar Akuntansi (dasar melakukan penjurnalan)
D49: ASET | G49: = | H49: UTANG | I49: + | J49: MODAL
D50: sisi kiri | H50: sisi kanan
D53: ASET | G53: = | H53: UTANG | I53: + | J53: MODAL
D54: Aset | H54: Utang | I54: + | J54: Modal Awal | K54: + | L54: Pendapatan | M54: - | N54: Beban
D55: Aset | E55: + | F55: Beban | H55: Utang | I55: + | J55: Modal Awal | K55: + | L55: Pendapatan | O55: <-- saldo normal
D56: sisi kiri | H56: sisi kanan
D58: Contoh kejadian
D59: No | E59: Kejadian | H59: sisi kiri | I59: sisi kanan
D60: 1 | E60: aset bertambah | H60: ü
D61: 2 | E61: Beban bertambah | H61: ü
D62: 3 | E62: utang bertambah | I62: ü
D63: 4 | E63: Modal bertambah | I63: ü
D64: 5 | E64: Pendapatan bertambah | I64: ü
D65: *) apabila kejadiannya sebaliknya (berkurang), maka sisi yang dituliskan angkanya adalah SEBALIKNYA
E67: Penjelasan
E68: a. Jika terjadi penambahan aset, maka dituliskan angkanya di sisi/kolom kiri
E69: b. Jika terjadi penambahan utang/modal, maka dituliskan angkanya di sisi/kolom kanan
E70: c. Jika terjadi pengurangan aset, maka dituliskan angkanya di sisi/kolom kanan
E71: d. Jika terjadi pengurangan utang karena pembayaran, maka dituliskan angkanya di sisi/kolom kiri
C73: b. | D73: Untuk penginputan Komponen Laporan Arus Kas dan Sub Komponennya, diisikan pada baris akun Kas baik tunai maupun bank. Dengan cara kklik dropdown kemudian pilih arus kas yang sesuai, kemudian enter dan diklik lagi di tempat yang sama untuk memilih riinciannya.
C74: c. | D74: Untuk penginputan Komponen Buku Pembantu dan Sub Komponennya, diisikan pada baris akun Piutang atau Utang. Dengan cara kklik dropdown kemudian pilih komponen yang sesuai, kemudian enter dan diklik lagi di tempat yang sama untuk memilih riinciannya.
C75: d. | D75: Dalam mengisikan/menginput transaksi tahun berjalan di sheet Jurnal, TIDAK DIPERKENANKAN meng-insert atau men-delete row atau kolom. Sebenarnya ini boleh dilakukan tapi sheet Buku Besar harus disesuaikan juga dengan memastikan jumlah baris yang dibaca Sheet Buku Besar harus SAMA PERSIS dengan jumlah baris data di sheet Jurnal.
B76: 2. | C76: Jangan khawatir, jika ada kesalahan atau error atau tidak terbaca, maka hal itu adalah sistemik dan Insya Allah sangat mudah untuk dibetulkan (lihat formula/function-nya dan tinggal diperbaiki)
A78: Catatan:
A79: 1 | B79: Aplikasi ini dapat digunakan baik oleh BUM Desa maupun BUM Desa bersama yang memiliki berbagai kegiatan usaha jasa, dagang dan manufaktur sekaligus.
A80: 2 | B80: Aplikasi ini sangat mudah digunakan dan disesuaikan dengan kondisi dan kegiatan usaha BUM Desa/BUM Desa bersama
A81: 3 | B81: Format Laporan disusun menurut sistematika Daftar Akun.
A82: 4 | B82: Untuk Daftar Akun (COA) dapat disesuaikan dengan menambah akun (level 4) yang dibutuhkan jika belum tersedia.
A83: 5 | B83: Untuk kepentingan melindungi sheet laporan passwordnya adalah: andy, dan untuk COA passwordnya : admin
A84: 6 | B84: Apabila terdapat kesulitan dalam menjalankan atau mengembangkan aplikasi ini, Insya Allah dapat menghubungi:
C85: Andy P Hamzah, SST., M.Si., Ak, CA, CGAA
C86: Dosen PKN STAN
C87: WA : 0812.3000.3690
C88: email : andyphamzah.ak@gmail.com
A90: 7 | B90: Aplikasi ini bersifat Freware, dapat digunakan secara gratis dan tidak untuk dikomersilkan

Sheet Home
A1: Sebaik baik manusia adalah yang paling bermanfaat bagi manusia lainnya
B2: Identitas BUMDesa | I2: Version 3.7
B3: Nama Pemda | D3: (isikan nama pemda) | I3: 2023-01-01
B4: Nama Kecamatan | D4: (isikan nama Kecamatan) | G4: Direktur BUMDesa
B5: Nama Desa | D5: (isikan nama Desa) | G5: Nama
B6: Nama BUMDesa | D6: (isikan nama BUMDesa) | G6: NIK
B7: Alamat | D7: (isikan alamat BUMDesa)
B8: KP/Unit Usaha | D8: (isikan nama Unit Usaha BUMDesa) | G8: Petugas Akuntansi
B9: Awal Tahun Buku | D9: (contoh: 01/01/2023) | G9: Nama
B10: Akhir Tahun Buku | D10: (contoh: 31/12/2023) | G10: NIK
A12: Aplikasi Sederhana
B13: Pencatatan dan Pelaporan Akuntansi Keuangan (PPAK)
B14: Badan Usaha Milik Desa bersama LKD
A15: aph
A16: Aplikasi bersifat Freeware (Gratis) dan Tidak Untuk Dikomersilkan | H16: RINGKASAN INFORMASI EKSEKUTIF
H23: andyphamzah.ak@gmail.com

Sheet COA
A1: aph | B1: Kd | C1: Kode dan Nama Akun | D1: Saldo Normal | E1: Anggaran | F1: Realisasi | G1: % | I1: Level 3 | J1: Daftar Kemungkinan Akun yang Dicari | L1: Cari | M1: Rumus
A2: =ROW()-1 -> 1 | B2: =IF(ISNUMBER(SEARCH($L$2,C2)),MAX(B$1:$B1)+1,0) -> 1 | C2: 1.1.01.01 Kas Tunai | D2: Debit | E2: 0 | F2: =SUMIF('neraca saldo'!C:C,COA!C2,'neraca saldo'!H:H) -> 0 | G2: =IF(E2=0,"",F2/E2) ->  | I2: =LEFT(C2,7) -> 1.1.01. | J2: =IFERROR(VLOOKUP(ROWS($J$2:J2),$B$2:$C$361,2,0),"") -> 1.1.01.01 Kas Tunai | L2: =CELL("contents") -> 0 | M2: =OFFSET(COA!$J$2,,,COUNTIF(COA!$J$2:$J$361,"?*")) -> 1.1.01.01 Kas Tunai
A3: =ROW()-1 -> 2 | B3: =IF(ISNUMBER(SEARCH($L$2,C3)),MAX(B$1:$B2)+1,0) -> 2 | C3: 1.1.01.02 Kas di Bank BRI | D3: Debit | E3: 0 | F3: =SUMIF('neraca saldo'!C:C,COA!C3,'neraca saldo'!H:H) -> 0 | G3: =IF(E3=0,"",F3/E3) ->  | I3: =LEFT(C3,7) -> 1.1.01. | J3: =IFERROR(VLOOKUP(ROWS($J$2:J3),$B$2:$C$361,2,0),"") -> 1.1.01.02 Kas di Bank BRI
A4: 3 | B4: =IF(ISNUMBER(SEARCH($L$2,C4)),MAX(B$1:$B3)+1,0) -> 3 | C4: 1.1.01.03 Kas di Bank Mandiri | D4: Debit | E4: 0 | F4: =SUMIF('neraca saldo'!C:C,COA!C4,'neraca saldo'!H:H) -> 0 | I4: 1.1.01. | J4: =IFERROR(VLOOKUP(ROWS($J$2:J4),$B$2:$C$361,2,0),"") -> 1.1.01.03 Kas di Bank Mandiri
A5: 4 | B5: =IF(ISNUMBER(SEARCH($L$2,C5)),MAX(B$1:$B4)+1,0) -> 4 | C5: 1.1.01.04 Kas di Bank BNI | D5: Debit | E5: 0 | F5: =SUMIF('neraca saldo'!C:C,COA!C5,'neraca saldo'!H:H) -> 0 | I5: 1.1.01. | J5: =IFERROR(VLOOKUP(ROWS($J$2:J5),$B$2:$C$361,2,0),"") -> 1.1.01.04 Kas di Bank BNI
A6: 5 | B6: =IF(ISNUMBER(SEARCH($L$2,C6)),MAX(B$1:$B5)+1,0) -> 5 | C6: 1.1.01.05 Kas di Bank BPD | D6: Debit | E6: 0 | F6: =SUMIF('neraca saldo'!C:C,COA!C6,'neraca saldo'!H:H) -> 0 | G6: =IF(E6=0,"",F6/E6) ->  | I6: =LEFT(C6,7) -> 1.1.01. | J6: =IFERROR(VLOOKUP(ROWS($J$2:J6),$B$2:$C$361,2,0),"") -> 1.1.01.05 Kas di Bank BPD
A7: 6 | B7: =IF(ISNUMBER(SEARCH($L$2,C7)),MAX(B$1:$B6)+1,0) -> 6 | C7: 1.1.01.98 Kas Kecil (Petty Cash) | D7: Debit | E7: 0 | F7: =SUMIF('neraca saldo'!C:C,COA!C7,'neraca saldo'!H:H) -> 0 | G7: =IF(E7=0,"",F7/E7) ->  | I7: =LEFT(C7,7) -> 1.1.01. | J7: =IFERROR(VLOOKUP(ROWS($J$2:J7),$B$2:$C$361,2,0),"") -> 1.1.01.98 Kas Kecil (Petty Cash)
A8: 7 | B8: =IF(ISNUMBER(SEARCH($L$2,C8)),MAX(B$1:$B5)+1,0) -> 5 | C8: 1.1.02.01 Deposito <= 3 bulan | D8: Debit | E8: 0 | F8: =SUMIF('neraca saldo'!C:C,COA!C8,'neraca saldo'!H:H) -> 0 | I8: 1.1.02. | J8: =IFERROR(VLOOKUP(ROWS($J$2:J8),$B$2:$C$361,2,0),"") -> 1.1.03.02 Piutang kepada Pegawai
A9: 8 | B9: =IF(ISNUMBER(SEARCH($L$2,C9)),MAX(B$1:$B6)+1,0) -> 6 | C9: 1.1.02.99 Setara Kas Lainnya | D9: Debit | E9: 0 | F9: =SUMIF('neraca saldo'!C:C,COA!C9,'neraca saldo'!H:H) -> 0 | G9: =IF(E9=0,"",F9/E9) ->  | I9: 1.1.02. | J9: =IFERROR(VLOOKUP(ROWS($J$2:J9),$B$2:$C$361,2,0),"") -> 1.1.03.03 Piutang Jasa SPP
A10: 9 | B10: =IF(ISNUMBER(SEARCH($L$2,C10)),MAX(B$1:$B5)+1,0) -> 5 | C10: 1.1.03.01 Piutang Usaha | D10: Debit | E10: 0 | F10: =SUMIF('neraca saldo'!C:C,COA!C10,'neraca saldo'!H:H) -> 0 | I10: 1.1.03. | J10: =IFERROR(VLOOKUP(ROWS($J$2:J10),$B$2:$C$361,2,0),"") -> 1.1.03.04 Piutang Jasa UEP
A11: 10 | B11: =IF(ISNUMBER(SEARCH($L$2,C11)),MAX(B$1:$B10)+1,0) -> 7 | C11: 1.1.03.02 Piutang kepada Pegawai | D11: Debit | E11: 0 | F11: =SUMIF('neraca saldo'!C:C,COA!C11,'neraca saldo'!H:H) -> 0 | I11: 1.1.03. | J11: =IFERROR(VLOOKUP(ROWS($J$2:J11),$B$2:$C$361,2,0),"") -> 1.1.03.99 Piutang Lainnya
A12: 11 | B12: =IF(ISNUMBER(SEARCH($L$2,C12)),MAX(B$1:$B11)+1,0) -> 8 | C12: 1.1.03.03 Piutang Jasa SPP | D12: Debit | E12: 0 | F12: =SUMIF('neraca saldo'!C:C,COA!C12,'neraca saldo'!H:H) -> 0 | I12: 1.1.03. | J12: =IFERROR(VLOOKUP(ROWS($J$2:J12),$B$2:$C$361,2,0),"") -> 1.1.04.01 Penyisihan Piutang Usaha Tak Tertagih
A13: 12 | B13: =IF(ISNUMBER(SEARCH($L$2,C13)),MAX(B$1:$B12)+1,0) -> 9 | C13: 1.1.03.04 Piutang Jasa UEP | D13: Debit | E13: 0 | F13: =SUMIF('neraca saldo'!C:C,COA!C13,'neraca saldo'!H:H) -> 0 | I13: 1.1.03. | J13: =IFERROR(VLOOKUP(ROWS($J$2:J13),$B$2:$C$361,2,0),"") -> 1.1.04.02 Penyisihan Piutang Kepada Pegawai Tak Tertagih
A14: 13 | B14: =IF(ISNUMBER(SEARCH($L$2,C14)),MAX(B$1:$B13)+1,0) -> 10 | C14: 1.1.03.99 Piutang Lainnya | D14: Debit | E14: 0 | F14: =SUMIF('neraca saldo'!C:C,COA!C14,'neraca saldo'!H:H) -> 0 | I14: 1.1.03. | J14: =IFERROR(VLOOKUP(ROWS($J$2:J14),$B$2:$C$361,2,0),"") -> 1.1.04.03 Penyisihan Piutang Jasa SPP Tak Tertagih
A15: 14 | B15: =IF(ISNUMBER(SEARCH($L$2,C15)),MAX(B$1:$B14)+1,0) -> 11 | C15: 1.1.04.01 Penyisihan Piutang Usaha Tak Tertagih | D15: Kredit | E15: 0 | F15: =SUMIF('neraca saldo'!C:C,COA!C15,'neraca saldo'!H:H) -> 0 | I15: 1.1.04. | J15: =IFERROR(VLOOKUP(ROWS($J$2:J15),$B$2:$C$361,2,0),"") -> 1.1.04.04 Penyisihan Piutang Jasa UEP Tak Tertagih
A16: 15 | B16: =IF(ISNUMBER(SEARCH($L$2,C16)),MAX(B$1:$B15)+1,0) -> 12 | C16: 1.1.04.02 Penyisihan Piutang Kepada Pegawai Tak Tertagih | D16: Kredit | E16: 0 | F16: =SUMIF('neraca saldo'!C:C,COA!C16,'neraca saldo'!H:H) -> 0 | I16: 1.1.04. | J16: =IFERROR(VLOOKUP(ROWS($J$2:J16),$B$2:$C$361,2,0),"") -> 1.1.05.01 Persediaan Barang Dagangan
A17: 16 | B17: =IF(ISNUMBER(SEARCH($L$2,C17)),MAX(B$1:$B16)+1,0) -> 13 | C17: 1.1.04.03 Penyisihan Piutang Jasa SPP Tak Tertagih | D17: Kredit | E17: 0 | F17: =SUMIF('neraca saldo'!C:C,COA!C17,'neraca saldo'!H:H) -> 0 | G17: =IF(E17=0,"",F17/E17) ->  | I17: =LEFT(C17,7) -> 1.1.04. | J17: =IFERROR(VLOOKUP(ROWS($J$2:J17),$B$2:$C$361,2,0),"") -> 1.1.05.02 Persediaan Bahan Baku
A18: 17 | B18: =IF(ISNUMBER(SEARCH($L$2,C18)),MAX(B$1:$B17)+1,0) -> 14 | C18: 1.1.04.04 Penyisihan Piutang Jasa UEP Tak Tertagih | D18: Kredit | E18: 0 | F18: =SUMIF('neraca saldo'!C:C,COA!C18,'neraca saldo'!H:H) -> 0 | G18: =IF(E18=0,"",F18/E18) ->  | I18: =LEFT(C18,7) -> 1.1.04. | J18: =IFERROR(VLOOKUP(ROWS($J$2:J18),$B$2:$C$361,2,0),"") -> 1.1.05.03 Persediaan Barang Dalam Proses
A19: 18 | B19: =IF(ISNUMBER(SEARCH($L$2,C19)),MAX(B$1:$B16)+1,0) -> 13 | C19: 1.1.04.99 Penyisihan Piutang Lainnya Tak Tertagih | D19: Kredit | E19: 0 | F19: =SUMIF('neraca saldo'!C:C,COA!C19,'neraca saldo'!H:H) -> 0 | I19: 1.1.04. | J19: =IFERROR(VLOOKUP(ROWS($J$2:J19),$B$2:$C$361,2,0),"") -> 1.1.05.04 Persediaan Barang Jadi
A20: 19 | B20: =IF(ISNUMBER(SEARCH($L$2,C20)),MAX(B$1:$B19)+1,0) -> 15 | C20: 1.1.05.01 Persediaan Barang Dagangan | D20: Debit | E20: 0 | F20: =SUMIF('neraca saldo'!C:C,COA!C20,'neraca saldo'!H:H) -> 0 | I20: 1.1.05. | J20: =IFERROR(VLOOKUP(ROWS($J$2:J20),$B$2:$C$361,2,0),"") -> 1.1.06.01 Alat Tulis Kantor (ATK)
A21: 20 | B21: =IF(ISNUMBER(SEARCH($L$2,C21)),MAX(B$1:$B20)+1,0) -> 16 | C21: 1.1.05.02 Persediaan Bahan Baku | D21: Debit | E21: 0 | F21: =SUMIF('neraca saldo'!C:C,COA!C21,'neraca saldo'!H:H) -> 0 | I21: 1.1.05. | J21: =IFERROR(VLOOKUP(ROWS($J$2:J21),$B$2:$C$361,2,0),"") -> 1.1.07.01 Sewa Dibayar Dimuka
A22: 21 | B22: =IF(ISNUMBER(SEARCH($L$2,C22)),MAX(B$1:$B21)+1,0) -> 17 | C22: 1.1.05.03 Persediaan Barang Dalam Proses | D22: Debit | E22: 0 | F22: =SUMIF('neraca saldo'!C:C,COA!C22,'neraca saldo'!H:H) -> 0 | I22: 1.1.05. | J22: =IFERROR(VLOOKUP(ROWS($J$2:J22),$B$2:$C$361,2,0),"") -> 1.1.07.02 Asuransi Dibayar Dimuka
A23: 22 | B23: =IF(ISNUMBER(SEARCH($L$2,C23)),MAX(B$1:$B22)+1,0) -> 18 | C23: 1.1.05.04 Persediaan Barang Jadi | D23: Debit | E23: 0 | F23: =SUMIF('neraca saldo'!C:C,COA!C23,'neraca saldo'!H:H) -> 0 | I23: 1.1.05. | J23: =IFERROR(VLOOKUP(ROWS($J$2:J23),$B$2:$C$361,2,0),"") -> 1.1.07.03 PPh 25
A24: 23 | B24: =IF(ISNUMBER(SEARCH($L$2,C24)),MAX(B$1:$B23)+1,0) -> 19 | C24: 1.1.06.01 Alat Tulis Kantor (ATK) | D24: Debit | E24: 0 | F24: =SUMIF('neraca saldo'!C:C,COA!C24,'neraca saldo'!H:H) -> 0 | I24: 1.1.06. | J24: =IFERROR(VLOOKUP(ROWS($J$2:J24),$B$2:$C$361,2,0),"") -> 1.1.07.04 PPN Masukan
A25: 24 | B25: =IF(ISNUMBER(SEARCH($L$2,C25)),MAX(B$1:$B24)+1,0) -> 20 | C25: 1.1.07.01 Sewa Dibayar Dimuka | D25: Debit | E25: 0 | F25: =SUMIF('neraca saldo'!C:C,COA!C25,'neraca saldo'!H:H) -> 0 | I25: 1.1.07. | J25: =IFERROR(VLOOKUP(ROWS($J$2:J25),$B$2:$C$361,2,0),"") -> 1.1.99.01 RK Unit Wisata
A26: 25 | B26: =IF(ISNUMBER(SEARCH($L$2,C26)),MAX(B$1:$B25)+1,0) -> 21 | C26: 1.1.07.02 Asuransi Dibayar Dimuka | D26: Debit | E26: 0 | F26: =SUMIF('neraca saldo'!C:C,COA!C26,'neraca saldo'!H:H) -> 0 | I26: 1.1.07. | J26: =IFERROR(VLOOKUP(ROWS($J$2:J26),$B$2:$C$361,2,0),"") -> 1.1.99.02 RK Unit Restoran
A27: 26 | B27: =IF(ISNUMBER(SEARCH($L$2,C27)),MAX(B$1:$B26)+1,0) -> 22 | C27: 1.1.07.03 PPh 25 | D27: Debit | E27: 0 | F27: =SUMIF('neraca saldo'!C:C,COA!C27,'neraca saldo'!H:H) -> 0 | I27: 1.1.07. | J27: =IFERROR(VLOOKUP(ROWS($J$2:J27),$B$2:$C$361,2,0),"") -> 1.1.99.03 RK Unit Minimart Desa
A28: 27 | B28: =IF(ISNUMBER(SEARCH($L$2,C28)),MAX(B$1:$B27)+1,0) -> 23 | C28: 1.1.07.04 PPN Masukan | D28: Debit | E28: 0 | F28: =SUMIF('neraca saldo'!C:C,COA!C28,'neraca saldo'!H:H) -> 0 | I28: 1.1.07. | J28: =IFERROR(VLOOKUP(ROWS($J$2:J28),$B$2:$C$361,2,0),"") -> 1.1.99.04 RK Unit Gedung Serbaguna
A29: 28 | B29: =IF(ISNUMBER(SEARCH($L$2,C29)),MAX(B$1:$B28)+1,0) -> 0 | C29: 1.1.98.99 Aset Lancar Lainnya | D29: Debit | E29: 0 | F29: =SUMIF('neraca saldo'!C:C,COA!C29,'neraca saldo'!H:H) -> 0 | I29: 1.1.98. | J29: =IFERROR(VLOOKUP(ROWS($J$2:J29),$B$2:$C$361,2,0),"") -> 1.1.99.05 RK Unit Simpan Pinjam
A30: 29 | B30: =IF(ISNUMBER(SEARCH($L$2,C30)),MAX(B$1:$B29)+1,0) -> 24 | C30: 1.1.99.01 RK Unit Wisata | D30: Debit | E30: 0 | F30: =SUMIF('neraca saldo'!C:C,COA!C30,'neraca saldo'!H:H) -> 0 | I30: 1.1.99. | J30: =IFERROR(VLOOKUP(ROWS($J$2:J30),$B$2:$C$361,2,0),"") -> 1.1.99.06 RK Unit Pengelolaan Air Bersih
A31: 30 | B31: =IF(ISNUMBER(SEARCH($L$2,C31)),MAX(B$1:$B30)+1,0) -> 25 | C31: 1.1.99.02 RK Unit Restoran | D31: Debit | E31: 0 | F31: =SUMIF('neraca saldo'!C:C,COA!C31,'neraca saldo'!H:H) -> 0 | I31: 1.1.99. | J31: =IFERROR(VLOOKUP(ROWS($J$2:J31),$B$2:$C$361,2,0),"") -> 1.1.99.07 RK Unit Pengelolaan Sampah
A32: 31 | B32: =IF(ISNUMBER(SEARCH($L$2,C32)),MAX(B$1:$B31)+1,0) -> 26 | C32: 1.1.99.03 RK Unit Minimart Desa | D32: Debit | E32: 0 | F32: =SUMIF('neraca saldo'!C:C,COA!C32,'neraca saldo'!H:H) -> 0 | I32: 1.1.99. | J32: =IFERROR(VLOOKUP(ROWS($J$2:J32),$B$2:$C$361,2,0),"") -> 1.2.01.01 Deposito > 3 bulan
A33: 32 | B33: =IF(ISNUMBER(SEARCH($L$2,C33)),MAX(B$1:$B32)+1,0) -> 27 | C33: 1.1.99.04 RK Unit Gedung Serbaguna | D33: Debit | E33: 0 | F33: =SUMIF('neraca saldo'!C:C,COA!C33,'neraca saldo'!H:H) -> 0 | I33: 1.1.99. | J33: =IFERROR(VLOOKUP(ROWS($J$2:J33),$B$2:$C$361,2,0),"") -> 1.2.01.99 Investasi Lainnya
A34: 33 | B34: =IF(ISNUMBER(SEARCH($L$2,C34)),MAX(B$1:$B33)+1,0) -> 28 | C34: 1.1.99.05 RK Unit Simpan Pinjam | D34: Debit | E34: 0 | F34: =SUMIF('neraca saldo'!C:C,COA!C34,'neraca saldo'!H:H) -> 0 | I34: 1.1.99. | J34: =IFERROR(VLOOKUP(ROWS($J$2:J34),$B$2:$C$361,2,0),"") -> 1.3.01.01 Tanah
A35: 34 | B35: =IF(ISNUMBER(SEARCH($L$2,C35)),MAX(B$1:$B34)+1,0) -> 29 | C35: 1.1.99.06 RK Unit Pengelolaan Air Bersih | D35: Debit | E35: 0 | F35: =SUMIF('neraca saldo'!C:C,COA!C35,'neraca saldo'!H:H) -> 0 | I35: 1.1.99. | J35: =IFERROR(VLOOKUP(ROWS($J$2:J35),$B$2:$C$361,2,0),"") -> 1.3.02.01 Kendaraan
A36: 35 | B36: =IF(ISNUMBER(SEARCH($L$2,C36)),MAX(B$1:$B35)+1,0) -> 30 | C36: 1.1.99.07 RK Unit Pengelolaan Sampah | D36: Debit | E36: 0 | F36: =SUMIF('neraca saldo'!C:C,COA!C36,'neraca saldo'!H:H) -> 0 | I36: 1.1.99. | J36: =IFERROR(VLOOKUP(ROWS($J$2:J36),$B$2:$C$361,2,0),"") -> 1.3.03.01 Peralatan dan Mesin
A37: 36 | B37: =IF(ISNUMBER(SEARCH($L$2,C37)),MAX(B$1:$B36)+1,0) -> 31 | C37: 1.2.01.01 Deposito > 3 bulan | D37: Debit | E37: 0 | F37: =SUMIF('neraca saldo'!C:C,COA!C37,'neraca saldo'!H:H) -> 0 | I37: 1.2.01. | J37: =IFERROR(VLOOKUP(ROWS($J$2:J37),$B$2:$C$361,2,0),"") -> 1.3.04.01 Meubelair
A38: 37 | B38: =IF(ISNUMBER(SEARCH($L$2,C38)),MAX(B$1:$B37)+1,0) -> 32 | C38: 1.2.01.99 Investasi Lainnya | D38: Debit | E38: 0 | F38: =SUMIF('neraca saldo'!C:C,COA!C38,'neraca saldo'!H:H) -> 0 | G38: =IF(E38=0,"",F38/E38) ->  | I38: =LEFT(C38,7) -> 1.2.01. | J38: =IFERROR(VLOOKUP(ROWS($J$2:J38),$B$2:$C$361,2,0),"") -> 1.3.05.01 Gedung dan Bangunan
A39: 38 | B39: =IF(ISNUMBER(SEARCH($L$2,C39)),MAX(B$1:$B38)+1,0) -> 33 | C39: 1.3.01.01 Tanah | D39: Debit | E39: 0 | F39: =SUMIF('neraca saldo'!C:C,COA!C39,'neraca saldo'!H:H) -> 0 | I39: 1.3.01. | J39: =IFERROR(VLOOKUP(ROWS($J$2:J39),$B$2:$C$361,2,0),"") -> 1.3.06.01 Konstruksi Dalam Pengerjaan
A40: 39 | B40: =IF(ISNUMBER(SEARCH($L$2,C40)),MAX(B$1:$B39)+1,0) -> 34 | C40: 1.3.02.01 Kendaraan | D40: Debit | E40: 0 | F40: =SUMIF('neraca saldo'!C:C,COA!C40,'neraca saldo'!H:H) -> 0 | I40: 1.3.02. | J40: =IFERROR(VLOOKUP(ROWS($J$2:J40),$B$2:$C$361,2,0),"") -> 1.3.07.01 Akumulasi Penyusutan Kendaraan
A41: 40 | B41: =IF(ISNUMBER(SEARCH($L$2,C41)),MAX(B$1:$B40)+1,0) -> 35 | C41: 1.3.03.01 Peralatan dan Mesin | D41: Debit | E41: 0 | F41: =SUMIF('neraca saldo'!C:C,COA!C41,'neraca saldo'!H:H) -> 0 | I41: 1.3.03. | J41: =IFERROR(VLOOKUP(ROWS($J$2:J41),$B$2:$C$361,2,0),"") -> 1.3.07.02 Akumulasi Penyusutan Peralatan dan Mesin
A42: 41 | B42: =IF(ISNUMBER(SEARCH($L$2,C42)),MAX(B$1:$B41)+1,0) -> 36 | C42: 1.3.04.01 Meubelair | D42: Debit | E42: 0 | F42: =SUMIF('neraca saldo'!C:C,COA!C42,'neraca saldo'!H:H) -> 0 | I42: 1.3.04. | J42: =IFERROR(VLOOKUP(ROWS($J$2:J42),$B$2:$C$361,2,0),"") -> 1.3.07.03 Akumulasi Penyusutan Meubelair
A43: 42 | B43: =IF(ISNUMBER(SEARCH($L$2,C43)),MAX(B$1:$B42)+1,0) -> 37 | C43: 1.3.05.01 Gedung dan Bangunan | D43: Debit | E43: 0 | F43: =SUMIF('neraca saldo'!C:C,COA!C43,'neraca saldo'!H:H) -> 0 | I43: 1.3.05. | J43: =IFERROR(VLOOKUP(ROWS($J$2:J43),$B$2:$C$361,2,0),"") -> 1.3.07.04 Akumulasi Penyusutan Gedung dan Bangunan
A44: 43 | B44: =IF(ISNUMBER(SEARCH($L$2,C44)),MAX(B$1:$B43)+1,0) -> 38 | C44: 1.3.06.01 Konstruksi Dalam Pengerjaan | D44: Debit | E44: 0 | F44: =SUMIF('neraca saldo'!C:C,COA!C44,'neraca saldo'!H:H) -> 0 | I44: 1.3.06. | J44: =IFERROR(VLOOKUP(ROWS($J$2:J44),$B$2:$C$361,2,0),"") -> 1.4.01.01 Software
A45: 44 | B45: =IF(ISNUMBER(SEARCH($L$2,C45)),MAX(B$1:$B44)+1,0) -> 39 | C45: 1.3.07.01 Akumulasi Penyusutan Kendaraan | D45: Kredit | E45: 0 | F45: =SUMIF('neraca saldo'!C:C,COA!C45,'neraca saldo'!H:H) -> 0 | I45: 1.3.07. | J45: =IFERROR(VLOOKUP(ROWS($J$2:J45),$B$2:$C$361,2,0),"") -> 1.4.01.02 Patent
A46: 45 | B46: =IF(ISNUMBER(SEARCH($L$2,C46)),MAX(B$1:$B45)+1,0) -> 40 | C46: 1.3.07.02 Akumulasi Penyusutan Peralatan dan Mesin | D46: Kredit | E46: 0 | F46: =SUMIF('neraca saldo'!C:C,COA!C46,'neraca saldo'!H:H) -> 0 | I46: 1.3.07. | J46: =IFERROR(VLOOKUP(ROWS($J$2:J46),$B$2:$C$361,2,0),"") -> 1.4.01.03 Trademark
A47: 46 | B47: =IF(ISNUMBER(SEARCH($L$2,C47)),MAX(B$1:$B46)+1,0) -> 41 | C47: 1.3.07.03 Akumulasi Penyusutan Meubelair | D47: Kredit | E47: 0 | F47: =SUMIF('neraca saldo'!C:C,COA!C47,'neraca saldo'!H:H) -> 0 | I47: 1.3.07. | J47: =IFERROR(VLOOKUP(ROWS($J$2:J47),$B$2:$C$361,2,0),"") -> 1.4.02.01 Amortisasi Aset tak berwujud
A48: 47 | B48: =IF(ISNUMBER(SEARCH($L$2,C48)),MAX(B$1:$B47)+1,0) -> 42 | C48: 1.3.07.04 Akumulasi Penyusutan Gedung dan Bangunan | D48: Kredit | E48: 0 | F48: =SUMIF('neraca saldo'!C:C,COA!C48,'neraca saldo'!H:H) -> 0 | I48: 1.3.07. | J48: =IFERROR(VLOOKUP(ROWS($J$2:J48),$B$2:$C$361,2,0),"") -> 1.9.01.01 Aset Lain-lain
A49: 48 | B49: =IF(ISNUMBER(SEARCH($L$2,C49)),MAX(B$1:$B48)+1,0) -> 0 | C49: 1.3.99.99 Aset Tetap Lainnya | D49: Debit | E49: 0 | F49: =SUMIF('neraca saldo'!C:C,COA!C49,'neraca saldo'!H:H) -> 0 | I49: 1.3.99. | J49: =IFERROR(VLOOKUP(ROWS($J$2:J49),$B$2:$C$361,2,0),"") -> 1.9.01.02 Akumulasi Penyusutan Aset Lain-lain
A50: 49 | B50: =IF(ISNUMBER(SEARCH($L$2,C50)),MAX(B$1:$B49)+1,0) -> 43 | C50: 1.4.01.01 Software | D50: Debit | E50: 0 | F50: =SUMIF('neraca saldo'!C:C,COA!C50,'neraca saldo'!H:H) -> 0 | I50: 1.4.01. | J50: =IFERROR(VLOOKUP(ROWS($J$2:J50),$B$2:$C$361,2,0),"") -> 2.1.01.01 Utang Usaha
A51: 50 | B51: =IF(ISNUMBER(SEARCH($L$2,C51)),MAX(B$1:$B50)+1,0) -> 44 | C51: 1.4.01.02 Patent | D51: Debit | E51: 0 | F51: =SUMIF('neraca saldo'!C:C,COA!C51,'neraca saldo'!H:H) -> 0 | I51: 1.4.01. | J51: =IFERROR(VLOOKUP(ROWS($J$2:J51),$B$2:$C$361,2,0),"") -> 2.1.02.01 PPN Keluaran
A52: 51 | B52: =IF(ISNUMBER(SEARCH($L$2,C52)),MAX(B$1:$B51)+1,0) -> 45 | C52: 1.4.01.03 Trademark | D52: Debit | E52: 0 | F52: =SUMIF('neraca saldo'!C:C,COA!C52,'neraca saldo'!H:H) -> 0 | I52: 1.4.01. | J52: =IFERROR(VLOOKUP(ROWS($J$2:J52),$B$2:$C$361,2,0),"") -> 2.1.02.02 PPh 21
A53: 52 | B53: =IF(ISNUMBER(SEARCH($L$2,C53)),MAX(B$1:$B52)+1,0) -> 46 | C53: 1.4.02.01 Amortisasi Aset tak berwujud | D53: Kredit | E53: 0 | F53: =SUMIF('neraca saldo'!C:C,COA!C53,'neraca saldo'!H:H) -> 0 | I53: 1.4.02. | J53: =IFERROR(VLOOKUP(ROWS($J$2:J53),$B$2:$C$361,2,0),"") -> 2.1.02.03 PPh 23
A54: 53 | B54: =IF(ISNUMBER(SEARCH($L$2,C54)),MAX(B$1:$B53)+1,0) -> 47 | C54: 1.9.01.01 Aset Lain-lain | D54: Debit | E54: 0 | F54: =SUMIF('neraca saldo'!C:C,COA!C54,'neraca saldo'!H:H) -> 0 | I54: 1.9.01. | J54: =IFERROR(VLOOKUP(ROWS($J$2:J54),$B$2:$C$361,2,0),"") -> 2.1.02.04 PPh 29
A55: 54 | B55: =IF(ISNUMBER(SEARCH($L$2,C55)),MAX(B$1:$B54)+1,0) -> 48 | C55: 1.9.01.02 Akumulasi Penyusutan Aset Lain-lain | D55: Kredit | E55: 0 | F55: =SUMIF('neraca saldo'!C:C,COA!C55,'neraca saldo'!H:H) -> 0 | I55: 1.9.01. | J55: =IFERROR(VLOOKUP(ROWS($J$2:J55),$B$2:$C$361,2,0),"") -> 2.1.03.01 Utang Gaji dan Tunjangan
A56: 55 | B56: =IF(ISNUMBER(SEARCH($L$2,C56)),MAX(B$1:$B55)+1,0) -> 49 | C56: 2.1.01.01 Utang Usaha | D56: Kredit | E56: 0 | F56: =SUMIF('neraca saldo'!C:C,COA!C56,'neraca saldo'!H:H) -> 0 | I56: 2.1.01. | J56: =IFERROR(VLOOKUP(ROWS($J$2:J56),$B$2:$C$361,2,0),"") -> 2.1.03.02 Utang Gaji/Upah Karyawan
A57: 56 | B57: =IF(ISNUMBER(SEARCH($L$2,C57)),MAX(B$1:$B56)+1,0) -> 50 | C57: 2.1.02.01 PPN Keluaran | D57: Kredit | E57: 0 | F57: =SUMIF('neraca saldo'!C:C,COA!C57,'neraca saldo'!H:H) -> 0 | I57: 2.1.02. | J57: =IFERROR(VLOOKUP(ROWS($J$2:J57),$B$2:$C$361,2,0),"") -> 2.1.04.01 Utang Listrik
A58: 57 | B58: =IF(ISNUMBER(SEARCH($L$2,C58)),MAX(B$1:$B57)+1,0) -> 51 | C58: 2.1.02.02 PPh 21 | D58: Kredit | E58: 0 | F58: =SUMIF('neraca saldo'!C:C,COA!C58,'neraca saldo'!H:H) -> 0 | I58: 2.1.02. | J58: =IFERROR(VLOOKUP(ROWS($J$2:J58),$B$2:$C$361,2,0),"") -> 2.1.04.02 Utang Telepon/Internet
A59: 58 | B59: =IF(ISNUMBER(SEARCH($L$2,C59)),MAX(B$1:$B58)+1,0) -> 52 | C59: 2.1.02.03 PPh 23 | D59: Kredit | E59: 0 | F59: =SUMIF('neraca saldo'!C:C,COA!C59,'neraca saldo'!H:H) -> 0 | I59: 2.1.02. | J59: =IFERROR(VLOOKUP(ROWS($J$2:J59),$B$2:$C$361,2,0),"") -> 2.1.04.93 Utang Utilitas Lainnya
A60: 59 | B60: =IF(ISNUMBER(SEARCH($L$2,C60)),MAX(B$1:$B59)+1,0) -> 53 | C60: 2.1.02.04 PPh 29 | D60: Kredit | E60: 0 | F60: =SUMIF('neraca saldo'!C:C,COA!C60,'neraca saldo'!H:H) -> 0 | I60: 2.1.02. | J60: =IFERROR(VLOOKUP(ROWS($J$2:J60),$B$2:$C$361,2,0),"") -> 2.1.05.01 Utang kepada Pihak Ketiga Jk. Pendek
A61: 60 | B61: =IF(ISNUMBER(SEARCH($L$2,C61)),MAX(B$1:$B60)+1,0) -> 54 | C61: 2.1.03.01 Utang Gaji dan Tunjangan | D61: Kredit | E61: 0 | F61: =SUMIF('neraca saldo'!C:C,COA!C61,'neraca saldo'!H:H) -> 0 | I61: 2.1.03. | J61: =IFERROR(VLOOKUP(ROWS($J$2:J61),$B$2:$C$361,2,0),"") -> 2.1.05.99 Utang kepada Pihak Ketiga Jk. Pendek Lainnya
A62: 61 | B62: =IF(ISNUMBER(SEARCH($L$2,C62)),MAX(B$1:$B61)+1,0) -> 55 | C62: 2.1.03.02 Utang Gaji/Upah Karyawan | D62: Kredit | E62: 0 | F62: =SUMIF('neraca saldo'!C:C,COA!C62,'neraca saldo'!H:H) -> 0 | I62: 2.1.03. | J62: =IFERROR(VLOOKUP(ROWS($J$2:J62),$B$2:$C$361,2,0),"") -> 2.1.09.99 Utang Jangka Pendek Lainnya
A63: 62 | B63: =IF(ISNUMBER(SEARCH($L$2,C63)),MAX(B$1:$B62)+1,0) -> 56 | C63: 2.1.04.01 Utang Listrik | D63: Kredit | E63: 0 | F63: =SUMIF('neraca saldo'!C:C,COA!C63,'neraca saldo'!H:H) -> 0 | I63: 2.1.04. | J63: =IFERROR(VLOOKUP(ROWS($J$2:J63),$B$2:$C$361,2,0),"") -> 2.2.01.01 Utang Ke Bank
A64: 63 | B64: =IF(ISNUMBER(SEARCH($L$2,C64)),MAX(B$1:$B63)+1,0) -> 57 | C64: 2.1.04.02 Utang Telepon/Internet | D64: Kredit | E64: 0 | F64: =SUMIF('neraca saldo'!C:C,COA!C64,'neraca saldo'!H:H) -> 0 | I64: 2.1.04. | J64: =IFERROR(VLOOKUP(ROWS($J$2:J64),$B$2:$C$361,2,0),"") -> 2.2.02.01 Utang kepada Pihak Ketiga Jk. Panjang
A65: 64 | B65: =IF(ISNUMBER(SEARCH($L$2,C65)),MAX(B$1:$B64)+1,0) -> 58 | C65: 2.1.04.93 Utang Utilitas Lainnya | D65: Kredit | E65: 0 | F65: =SUMIF('neraca saldo'!C:C,COA!C65,'neraca saldo'!H:H) -> 0 | I65: 2.1.04. | J65: =IFERROR(VLOOKUP(ROWS($J$2:J65),$B$2:$C$361,2,0),"") -> 3.1.01.01 Penyertaan Modal Desa
A66: 65 | B66: =IF(ISNUMBER(SEARCH($L$2,C66)),MAX(B$1:$B65)+1,0) -> 59 | C66: 2.1.05.01 Utang kepada Pihak Ketiga Jk. Pendek | D66: Kredit | E66: 0 | F66: =SUMIF('neraca saldo'!C:C,COA!C66,'neraca saldo'!H:H) -> 0 | I66: 2.1.05. | J66: =IFERROR(VLOOKUP(ROWS($J$2:J66),$B$2:$C$361,2,0),"") -> 3.1.01.02 Penyertaan Modal Desa A
A67: 66 | B67: =IF(ISNUMBER(SEARCH($L$2,C67)),MAX(B$1:$B66)+1,0) -> 60 | C67: 2.1.05.99 Utang kepada Pihak Ketiga Jk. Pendek Lainnya | D67: Kredit | E67: 0 | F67: =SUMIF('neraca saldo'!C:C,COA!C67,'neraca saldo'!H:H) -> 0 | I67: 2.1.05. | J67: =IFERROR(VLOOKUP(ROWS($J$2:J67),$B$2:$C$361,2,0),"") -> 3.1.01.03 Penyertaan Modal Desa B
A68: 67 | B68: =IF(ISNUMBER(SEARCH($L$2,C68)),MAX(B$1:$B67)+1,0) -> 61 | C68: 2.1.09.99 Utang Jangka Pendek Lainnya | D68: Kredit | E68: 0 | F68: =SUMIF('neraca saldo'!C:C,COA!C68,'neraca saldo'!H:H) -> 0 | I68: 2.1.09. | J68: =IFERROR(VLOOKUP(ROWS($J$2:J68),$B$2:$C$361,2,0),"") -> 3.1.01.04 Penyertaan Modal Desa C
A69: 68 | B69: =IF(ISNUMBER(SEARCH($L$2,C69)),MAX(B$1:$B68)+1,0) -> 62 | C69: 2.2.01.01 Utang Ke Bank | D69: Kredit | E69: 0 | F69: =SUMIF('neraca saldo'!C:C,COA!C69,'neraca saldo'!H:H) -> 0 | I69: 2.2.01. | J69: =IFERROR(VLOOKUP(ROWS($J$2:J69),$B$2:$C$361,2,0),"") -> 3.1.01.05 Penyertaan Modal Desa D
A70: 69 | B70: =IF(ISNUMBER(SEARCH($L$2,C70)),MAX(B$1:$B69)+1,0) -> 63 | C70: 2.2.02.01 Utang kepada Pihak Ketiga Jk. Panjang | D70: Kredit | E70: 0 | F70: =SUMIF('neraca saldo'!C:C,COA!C70,'neraca saldo'!H:H) -> 0 | I70: 2.2.02. | J70: =IFERROR(VLOOKUP(ROWS($J$2:J70),$B$2:$C$361,2,0),"") -> 3.1.01.06 Penyertaan Modal Desa E
A71: 70 | B71: =IF(ISNUMBER(SEARCH($L$2,C71)),MAX(B$1:$B70)+1,0) -> 0 | C71: 2.2.99.99 Utang Jangka Panjang Lainnya | D71: Kredit | E71: 0 | F71: =SUMIF('neraca saldo'!C:C,COA!C71,'neraca saldo'!H:H) -> 0 | I71: =LEFT(C71,7) -> 2.2.99. | J71: =IFERROR(VLOOKUP(ROWS($J$2:J71),$B$2:$C$361,2,0),"") -> 3.1.01.07 Penyertaan Modal Desa F
A72: 71 | B72: =IF(ISNUMBER(SEARCH($L$2,C72)),MAX(B$1:$B71)+1,0) -> 64 | C72: 3.1.01.01 Penyertaan Modal Desa | D72: Kredit | E72: 0 | F72: =SUMIF('neraca saldo'!C:C,COA!C72,'neraca saldo'!H:H) -> 0 | I72: 3.1.01. | J72: =IFERROR(VLOOKUP(ROWS($J$2:J72),$B$2:$C$361,2,0),"") -> 3.1.01.08 Penyertaan Modal Desa G
A73: 72 | B73: =IF(ISNUMBER(SEARCH($L$2,C73)),MAX(B$1:$B72)+1,0) -> 65 | C73: 3.1.01.02 Penyertaan Modal Desa A | D73: Kredit | E73: 0 | F73: =SUMIF('neraca saldo'!C:C,COA!C73,'neraca saldo'!H:H) -> 0 | I73: 3.1.01. | J73: =IFERROR(VLOOKUP(ROWS($J$2:J73),$B$2:$C$361,2,0),"") -> 3.1.01.09 Penyertaan Modal Desa H
A74: =ROW()-1 -> 73 | B74: =IF(ISNUMBER(SEARCH($L$2,C74)),MAX(B$1:$B73)+1,0) -> 66 | C74: 3.1.01.03 Penyertaan Modal Desa B | D74: Kredit | E74: 0 | F74: =SUMIF('neraca saldo'!C:C,COA!C74,'neraca saldo'!H:H) -> 0 | G74: =IF(E74=0,"",F74/E74) ->  | I74: 3.1.01. | J74: =IFERROR(VLOOKUP(ROWS($J$2:J74),$B$2:$C$361,2,0),"") -> 3.1.01.10 Penyertaan Modal Desa I
A75: 74 | B75: =IF(ISNUMBER(SEARCH($L$2,C75)),MAX(B$1:$B74)+1,0) -> 67 | C75: 3.1.01.04 Penyertaan Modal Desa C | D75: Kredit | E75: 0 | F75: =SUMIF('neraca saldo'!C:C,COA!C75,'neraca saldo'!H:H) -> 0 | I75: 3.1.01. | J75: =IFERROR(VLOOKUP(ROWS($J$2:J75),$B$2:$C$361,2,0),"") -> 3.1.01.11 Penyertaan Modal Desa J
A76: 75 | B76: =IF(ISNUMBER(SEARCH($L$2,C76)),MAX(B$1:$B75)+1,0) -> 68 | C76: 3.1.01.05 Penyertaan Modal Desa D | D76: Kredit | E76: 0 | F76: =SUMIF('neraca saldo'!C:C,COA!C76,'neraca saldo'!H:H) -> 0 | I76: 3.1.01. | J76: =IFERROR(VLOOKUP(ROWS($J$2:J76),$B$2:$C$361,2,0),"") -> 3.1.02.01 Penyertaan Modal Masyarakat
A77: 76 | B77: =IF(ISNUMBER(SEARCH($L$2,C77)),MAX(B$1:$B76)+1,0) -> 69 | C77: 3.1.01.06 Penyertaan Modal Desa E | D77: Kredit | E77: 0 | F77: =SUMIF('neraca saldo'!C:C,COA!C77,'neraca saldo'!H:H) -> 0 | I77: 3.1.01. | J77: =IFERROR(VLOOKUP(ROWS($J$2:J77),$B$2:$C$361,2,0),"") -> 3.1.02.02 Penyertaan Modal Masyarakat Desa A
A78: 77 | B78: =IF(ISNUMBER(SEARCH($L$2,C78)),MAX(B$1:$B77)+1,0) -> 70 | C78: 3.1.01.07 Penyertaan Modal Desa F | D78: Kredit | E78: 0 | F78: =SUMIF('neraca saldo'!C:C,COA!C78,'neraca saldo'!H:H) -> 0 | I78: 3.1.01. | J78: =IFERROR(VLOOKUP(ROWS($J$2:J78),$B$2:$C$361,2,0),"") -> 3.1.02.03 Penyertaan Modal Masyarakat Desa B
A79: 78 | B79: =IF(ISNUMBER(SEARCH($L$2,C79)),MAX(B$1:$B78)+1,0) -> 71 | C79: 3.1.01.08 Penyertaan Modal Desa G | D79: Kredit | E79: 0 | F79: =SUMIF('neraca saldo'!C:C,COA!C79,'neraca saldo'!H:H) -> 0 | I79: 3.1.01. | J79: =IFERROR(VLOOKUP(ROWS($J$2:J79),$B$2:$C$361,2,0),"") -> 3.1.02.04 Penyertaan Modal Masyarakat Desa C
A80: 79 | B80: =IF(ISNUMBER(SEARCH($L$2,C80)),MAX(B$1:$B79)+1,0) -> 72 | C80: 3.1.01.09 Penyertaan Modal Desa H | D80: Kredit | E80: 0 | F80: =SUMIF('neraca saldo'!C:C,COA!C80,'neraca saldo'!H:H) -> 0 | I80: 3.1.01. | J80: =IFERROR(VLOOKUP(ROWS($J$2:J80),$B$2:$C$361,2,0),"") -> 3.1.02.05 Penyertaan Modal Masyarakat Desa D
A81: 80 | B81: =IF(ISNUMBER(SEARCH($L$2,C81)),MAX(B$1:$B80)+1,0) -> 73 | C81: 3.1.01.10 Penyertaan Modal Desa I | D81: Kredit | E81: 0 | F81: =SUMIF('neraca saldo'!C:C,COA!C81,'neraca saldo'!H:H) -> 0 | I81: 3.1.01. | J81: =IFERROR(VLOOKUP(ROWS($J$2:J81),$B$2:$C$361,2,0),"") -> 3.1.02.06 Penyertaan Modal Masyarakat Desa E
A82: 81 | B82: =IF(ISNUMBER(SEARCH($L$2,C82)),MAX(B$1:$B81)+1,0) -> 74 | C82: 3.1.01.11 Penyertaan Modal Desa J | D82: Kredit | E82: 0 | F82: =SUMIF('neraca saldo'!C:C,COA!C82,'neraca saldo'!H:H) -> 0 | I82: 3.1.01. | J82: =IFERROR(VLOOKUP(ROWS($J$2:J82),$B$2:$C$361,2,0),"") -> 3.1.02.07 Penyertaan Modal Masyarakat Desa F
A83: 82 | B83: =IF(ISNUMBER(SEARCH($L$2,C83)),MAX(B$1:$B82)+1,0) -> 75 | C83: 3.1.02.01 Penyertaan Modal Masyarakat | D83: Kredit | E83: 0 | F83: =SUMIF('neraca saldo'!C:C,COA!C83,'neraca saldo'!H:H) -> 0 | I83: 3.1.02. | J83: =IFERROR(VLOOKUP(ROWS($J$2:J83),$B$2:$C$361,2,0),"") -> 3.1.02.08 Penyertaan Modal Masyarakat Desa G
A84: 83 | B84: =IF(ISNUMBER(SEARCH($L$2,C84)),MAX(B$1:$B83)+1,0) -> 76 | C84: 3.1.02.02 Penyertaan Modal Masyarakat Desa A | D84: Kredit | E84: 0 | F84: =SUMIF('neraca saldo'!C:C,COA!C84,'neraca saldo'!H:H) -> 0 | I84: 3.1.02. | J84: =IFERROR(VLOOKUP(ROWS($J$2:J84),$B$2:$C$361,2,0),"") -> 3.1.02.09 Penyertaan Modal Masyarakat Desa H
A85: 84 | B85: =IF(ISNUMBER(SEARCH($L$2,C85)),MAX(B$1:$B84)+1,0) -> 77 | C85: 3.1.02.03 Penyertaan Modal Masyarakat Desa B | D85: Kredit | E85: 0 | F85: =SUMIF('neraca saldo'!C:C,COA!C85,'neraca saldo'!H:H) -> 0 | I85: 3.1.02. | J85: =IFERROR(VLOOKUP(ROWS($J$2:J85),$B$2:$C$361,2,0),"") -> 3.1.02.10 Penyertaan Modal Masyarakat Desa I
A86: 85 | B86: =IF(ISNUMBER(SEARCH($L$2,C86)),MAX(B$1:$B85)+1,0) -> 78 | C86: 3.1.02.04 Penyertaan Modal Masyarakat Desa C | D86: Kredit | E86: 0 | F86: =SUMIF('neraca saldo'!C:C,COA!C86,'neraca saldo'!H:H) -> 0 | I86: 3.1.02. | J86: =IFERROR(VLOOKUP(ROWS($J$2:J86),$B$2:$C$361,2,0),"") -> 3.1.02.11 Penyertaan Modal Masyarakat Desa J
A87: 86 | B87: =IF(ISNUMBER(SEARCH($L$2,C87)),MAX(B$1:$B86)+1,0) -> 79 | C87: 3.1.02.05 Penyertaan Modal Masyarakat Desa D | D87: Kredit | E87: 0 | F87: =SUMIF('neraca saldo'!C:C,COA!C87,'neraca saldo'!H:H) -> 0 | I87: 3.1.02. | J87: =IFERROR(VLOOKUP(ROWS($J$2:J87),$B$2:$C$361,2,0),"") -> 3.1.02.12 Penyertaan Modal Masyarakat Desa (Eks PNPM)
A88: 87 | B88: =IF(ISNUMBER(SEARCH($L$2,C88)),MAX(B$1:$B87)+1,0) -> 80 | C88: 3.1.02.06 Penyertaan Modal Masyarakat Desa E | D88: Kredit | E88: 0 | F88: =SUMIF('neraca saldo'!C:C,COA!C88,'neraca saldo'!H:H) -> 0 | I88: 3.1.02. | J88: =IFERROR(VLOOKUP(ROWS($J$2:J88),$B$2:$C$361,2,0),"") -> 3.2.01.01 Bagi Hasil Penyertaan Modal Desa
A89: 88 | B89: =IF(ISNUMBER(SEARCH($L$2,C89)),MAX(B$1:$B88)+1,0) -> 81 | C89: 3.1.02.07 Penyertaan Modal Masyarakat Desa F | D89: Kredit | E89: 0 | F89: =SUMIF('neraca saldo'!C:C,COA!C89,'neraca saldo'!H:H) -> 0 | I89: 3.1.02. | J89: =IFERROR(VLOOKUP(ROWS($J$2:J89),$B$2:$C$361,2,0),"") -> 3.2.01.02 Bagi Hasil Penyertaan Modal Desa A
A90: 89 | B90: =IF(ISNUMBER(SEARCH($L$2,C90)),MAX(B$1:$B89)+1,0) -> 82 | C90: 3.1.02.08 Penyertaan Modal Masyarakat Desa G | D90: Kredit | E90: 0 | F90: =SUMIF('neraca saldo'!C:C,COA!C90,'neraca saldo'!H:H) -> 0 | I90: 3.1.02. | J90: =IFERROR(VLOOKUP(ROWS($J$2:J90),$B$2:$C$361,2,0),"") -> 3.2.01.03 Bagi Hasil Penyertaan Modal Desa B
A91: 90 | B91: =IF(ISNUMBER(SEARCH($L$2,C91)),MAX(B$1:$B90)+1,0) -> 83 | C91: 3.1.02.09 Penyertaan Modal Masyarakat Desa H | D91: Kredit | E91: 0 | F91: =SUMIF('neraca saldo'!C:C,COA!C91,'neraca saldo'!H:H) -> 0 | I91: 3.1.02. | J91: =IFERROR(VLOOKUP(ROWS($J$2:J91),$B$2:$C$361,2,0),"") -> 3.2.01.04 Bagi Hasil Penyertaan Modal Desa C
A92: 91 | B92: =IF(ISNUMBER(SEARCH($L$2,C92)),MAX(B$1:$B91)+1,0) -> 84 | C92: 3.1.02.10 Penyertaan Modal Masyarakat Desa I | D92: Kredit | E92: 0 | F92: =SUMIF('neraca saldo'!C:C,COA!C92,'neraca saldo'!H:H) -> 0 | I92: 3.1.02. | J92: =IFERROR(VLOOKUP(ROWS($J$2:J92),$B$2:$C$361,2,0),"") -> 3.2.01.05 Bagi Hasil Penyertaan Modal Desa D
A93: 92 | B93: =IF(ISNUMBER(SEARCH($L$2,C93)),MAX(B$1:$B92)+1,0) -> 85 | C93: 3.1.02.11 Penyertaan Modal Masyarakat Desa J | D93: Kredit | E93: 0 | F93: =SUMIF('neraca saldo'!C:C,COA!C93,'neraca saldo'!H:H) -> 0 | I93: 3.1.02. | J93: =IFERROR(VLOOKUP(ROWS($J$2:J93),$B$2:$C$361,2,0),"") -> 3.2.01.06 Bagi Hasil Penyertaan Modal Desa E
A94: 93 | B94: =IF(ISNUMBER(SEARCH($L$2,C94)),MAX(B$1:$B93)+1,0) -> 86 | C94: 3.1.02.12 Penyertaan Modal Masyarakat Desa (Eks PNPM) | D94: Kredit | E94: 0 | F94: =SUMIF('neraca saldo'!C:C,COA!C94,'neraca saldo'!H:H) -> 0 | I94: 3.1.02. | J94: =IFERROR(VLOOKUP(ROWS($J$2:J94),$B$2:$C$361,2,0),"") -> 3.2.01.07 Bagi Hasil Penyertaan Modal Desa F
A95: 94 | B95: =IF(ISNUMBER(SEARCH($L$2,C95)),MAX(B$1:$B94)+1,0) -> 87 | C95: 3.2.01.01 Bagi Hasil Penyertaan Modal Desa | D95: Debit | E95: 0 | F95: =SUMIF('neraca saldo'!C:C,COA!C95,'neraca saldo'!H:H) -> 0 | I95: 3.2.01. | J95: =IFERROR(VLOOKUP(ROWS($J$2:J95),$B$2:$C$361,2,0),"") -> 3.2.01.08 Bagi Hasil Penyertaan Modal Desa G
A96: 95 | B96: =IF(ISNUMBER(SEARCH($L$2,C96)),MAX(B$1:$B95)+1,0) -> 88 | C96: 3.2.01.02 Bagi Hasil Penyertaan Modal Desa A | D96: Debit | E96: 0 | F96: =SUMIF('neraca saldo'!C:C,COA!C96,'neraca saldo'!H:H) -> 0 | I96: 3.2.01. | J96: =IFERROR(VLOOKUP(ROWS($J$2:J96),$B$2:$C$361,2,0),"") -> 3.2.01.09 Bagi Hasil Penyertaan Modal Desa H
A97: 96 | B97: =IF(ISNUMBER(SEARCH($L$2,C97)),MAX(B$1:$B96)+1,0) -> 89 | C97: 3.2.01.03 Bagi Hasil Penyertaan Modal Desa B | D97: Debit | E97: 0 | F97: =SUMIF('neraca saldo'!C:C,COA!C97,'neraca saldo'!H:H) -> 0 | I97: 3.2.01. | J97: =IFERROR(VLOOKUP(ROWS($J$2:J97),$B$2:$C$361,2,0),"") -> 3.2.01.10 Bagi Hasil Penyertaan Modal Desa I
A98: 97 | B98: =IF(ISNUMBER(SEARCH($L$2,C98)),MAX(B$1:$B97)+1,0) -> 90 | C98: 3.2.01.04 Bagi Hasil Penyertaan Modal Desa C | D98: Debit | E98: 0 | F98: =SUMIF('neraca saldo'!C:C,COA!C98,'neraca saldo'!H:H) -> 0 | I98: 3.2.01. | J98: =IFERROR(VLOOKUP(ROWS($J$2:J98),$B$2:$C$361,2,0),"") -> 3.2.01.11 Bagi Hasil Penyertaan Modal Desa J
A99: 98 | B99: =IF(ISNUMBER(SEARCH($L$2,C99)),MAX(B$1:$B98)+1,0) -> 91 | C99: 3.2.01.05 Bagi Hasil Penyertaan Modal Desa D | D99: Debit | E99: 0 | F99: =SUMIF('neraca saldo'!C:C,COA!C99,'neraca saldo'!H:H) -> 0 | I99: 3.2.01. | J99: =IFERROR(VLOOKUP(ROWS($J$2:J99),$B$2:$C$361,2,0),"") -> 3.2.02.01 Bagi Hasil Penyertaan Modal Masyarakat
A100: 99 | B100: =IF(ISNUMBER(SEARCH($L$2,C100)),MAX(B$1:$B99)+1,0) -> 92 | C100: 3.2.01.06 Bagi Hasil Penyertaan Modal Desa E | D100: Debit | E100: 0 | F100: =SUMIF('neraca saldo'!C:C,COA!C100,'neraca saldo'!H:H) -> 0 | I100: 3.2.01. | J100: =IFERROR(VLOOKUP(ROWS($J$2:J100),$B$2:$C$361,2,0),"") -> 3.2.02.02 Bagi Hasil Penyertaan Modal Masyarakat Desa A
A101: 100 | B101: =IF(ISNUMBER(SEARCH($L$2,C101)),MAX(B$1:$B100)+1,0) -> 93 | C101: 3.2.01.07 Bagi Hasil Penyertaan Modal Desa F | D101: Debit | E101: 0 | F101: =SUMIF('neraca saldo'!C:C,COA!C101,'neraca saldo'!H:H) -> 0 | I101: 3.2.01. | J101: =IFERROR(VLOOKUP(ROWS($J$2:J101),$B$2:$C$361,2,0),"") -> 3.2.02.03 Bagi Hasil Penyertaan Modal Masyarakat Desa B
A102: 101 | B102: =IF(ISNUMBER(SEARCH($L$2,C102)),MAX(B$1:$B101)+1,0) -> 94 | C102: 3.2.01.08 Bagi Hasil Penyertaan Modal Desa G | D102: Debit | E102: 0 | F102: =SUMIF('neraca saldo'!C:C,COA!C102,'neraca saldo'!H:H) -> 0 | I102: =LEFT(C102,7) -> 3.2.01. | J102: =IFERROR(VLOOKUP(ROWS($J$2:J102),$B$2:$C$361,2,0),"") -> 3.2.02.04 Bagi Hasil Penyertaan Modal Masyarakat Desa C
A103: 102 | B103: =IF(ISNUMBER(SEARCH($L$2,C103)),MAX(B$1:$B102)+1,0) -> 95 | C103: 3.2.01.09 Bagi Hasil Penyertaan Modal Desa H | D103: Debit | E103: 0 | F103: =SUMIF('neraca saldo'!C:C,COA!C103,'neraca saldo'!H:H) -> 0 | I103: 3.2.01. | J103: =IFERROR(VLOOKUP(ROWS($J$2:J103),$B$2:$C$361,2,0),"") -> 3.2.02.05 Bagi Hasil Penyertaan Modal Masyarakat Desa D
A104: 103 | B104: =IF(ISNUMBER(SEARCH($L$2,C104)),MAX(B$1:$B103)+1,0) -> 96 | C104: 3.2.01.10 Bagi Hasil Penyertaan Modal Desa I | D104: Debit | E104: 0 | F104: =SUMIF('neraca saldo'!C:C,COA!C104,'neraca saldo'!H:H) -> 0 | I104: 3.2.01. | J104: =IFERROR(VLOOKUP(ROWS($J$2:J104),$B$2:$C$361,2,0),"") -> 3.2.02.06 Bagi Hasil Penyertaan Modal Masyarakat Desa E
A105: 104 | B105: =IF(ISNUMBER(SEARCH($L$2,C105)),MAX(B$1:$B104)+1,0) -> 97 | C105: 3.2.01.11 Bagi Hasil Penyertaan Modal Desa J | D105: Debit | E105: 0 | F105: =SUMIF('neraca saldo'!C:C,COA!C105,'neraca saldo'!H:H) -> 0 | I105: 3.2.01. | J105: =IFERROR(VLOOKUP(ROWS($J$2:J105),$B$2:$C$361,2,0),"") -> 3.2.02.07 Bagi Hasil Penyertaan Modal Masyarakat Desa F
A106: 105 | B106: =IF(ISNUMBER(SEARCH($L$2,C106)),MAX(B$1:$B105)+1,0) -> 98 | C106: 3.2.02.01 Bagi Hasil Penyertaan Modal Masyarakat | D106: Debit | E106: 0 | F106: =SUMIF('neraca saldo'!C:C,COA!C106,'neraca saldo'!H:H) -> 0 | I106: 3.2.02. | J106: =IFERROR(VLOOKUP(ROWS($J$2:J106),$B$2:$C$361,2,0),"") -> 3.2.02.08 Bagi Hasil Penyertaan Modal Masyarakat Desa G
A107: 106 | B107: =IF(ISNUMBER(SEARCH($L$2,C107)),MAX(B$1:$B106)+1,0) -> 99 | C107: 3.2.02.02 Bagi Hasil Penyertaan Modal Masyarakat Desa A | D107: Debit | E107: 0 | F107: =SUMIF('neraca saldo'!C:C,COA!C107,'neraca saldo'!H:H) -> 0 | I107: 3.2.02. | J107: =IFERROR(VLOOKUP(ROWS($J$2:J107),$B$2:$C$361,2,0),"") -> 3.2.02.09 Bagi Hasil Penyertaan Modal Masyarakat Desa H
A108: 107 | B108: =IF(ISNUMBER(SEARCH($L$2,C108)),MAX(B$1:$B107)+1,0) -> 100 | C108: 3.2.02.03 Bagi Hasil Penyertaan Modal Masyarakat Desa B | D108: Debit | E108: 0 | F108: =SUMIF('neraca saldo'!C:C,COA!C108,'neraca saldo'!H:H) -> 0 | I108: 3.2.02. | J108: =IFERROR(VLOOKUP(ROWS($J$2:J108),$B$2:$C$361,2,0),"") -> 3.2.02.10 Bagi Hasil Penyertaan Modal Masyarakat Desa I
A109: 108 | B109: =IF(ISNUMBER(SEARCH($L$2,C109)),MAX(B$1:$B108)+1,0) -> 101 | C109: 3.2.02.04 Bagi Hasil Penyertaan Modal Masyarakat Desa C | D109: Debit | E109: 0 | F109: =SUMIF('neraca saldo'!C:C,COA!C109,'neraca saldo'!H:H) -> 0 | I109: 3.2.02. | J109: =IFERROR(VLOOKUP(ROWS($J$2:J109),$B$2:$C$361,2,0),"") -> 3.2.02.11 Bagi Hasil Penyertaan Modal Masyarakat Desa J
A110: 109 | B110: =IF(ISNUMBER(SEARCH($L$2,C110)),MAX(B$1:$B109)+1,0) -> 102 | C110: 3.2.02.05 Bagi Hasil Penyertaan Modal Masyarakat Desa D | D110: Debit | E110: 0 | F110: =SUMIF('neraca saldo'!C:C,COA!C110,'neraca saldo'!H:H) -> 0 | I110: 3.2.02. | J110: =IFERROR(VLOOKUP(ROWS($J$2:J110),$B$2:$C$361,2,0),"") -> 3.2.02.12 Bagi Hasil Penyertaan Modal Masyarakat Desa (Eks PNPM)
A111: 110 | B111: =IF(ISNUMBER(SEARCH($L$2,C111)),MAX(B$1:$B110)+1,0) -> 103 | C111: 3.2.02.06 Bagi Hasil Penyertaan Modal Masyarakat Desa E | D111: Debit | E111: 0 | F111: =SUMIF('neraca saldo'!C:C,COA!C111,'neraca saldo'!H:H) -> 0 | I111: 3.2.02. | J111: =IFERROR(VLOOKUP(ROWS($J$2:J111),$B$2:$C$361,2,0),"") -> 3.3.01.01 Saldo Laba Tidak Dicadangkan
A112: 111 | B112: =IF(ISNUMBER(SEARCH($L$2,C112)),MAX(B$1:$B111)+1,0) -> 104 | C112: 3.2.02.07 Bagi Hasil Penyertaan Modal Masyarakat Desa F | D112: Debit | E112: 0 | F112: =SUMIF('neraca saldo'!C:C,COA!C112,'neraca saldo'!H:H) -> 0 | I112: 3.2.02. | J112: =IFERROR(VLOOKUP(ROWS($J$2:J112),$B$2:$C$361,2,0),"") -> 3.3.02.01 Saldo Laba Dicadangkan untuk Pembelian Aset Tetap
A113: 112 | B113: =IF(ISNUMBER(SEARCH($L$2,C113)),MAX(B$1:$B112)+1,0) -> 105 | C113: 3.2.02.08 Bagi Hasil Penyertaan Modal Masyarakat Desa G | D113: Debit | E113: 0 | F113: =SUMIF('neraca saldo'!C:C,COA!C113,'neraca saldo'!H:H) -> 0 | I113: 3.2.02. | J113: =IFERROR(VLOOKUP(ROWS($J$2:J113),$B$2:$C$361,2,0),"") -> 3.3.01.02 Saldo Laba Dicadangkan untuk Pembayaran Utang Jangka Panjang
A114: 113 | B114: =IF(ISNUMBER(SEARCH($L$2,C114)),MAX(B$1:$B113)+1,0) -> 106 | C114: 3.2.02.09 Bagi Hasil Penyertaan Modal Masyarakat Desa H | D114: Debit | E114: 0 | F114: =SUMIF('neraca saldo'!C:C,COA!C114,'neraca saldo'!H:H) -> 0 | I114: 3.2.02. | J114: =IFERROR(VLOOKUP(ROWS($J$2:J114),$B$2:$C$361,2,0),"") -> 3.4.01.01 Modal Donasi/Sumbangan
A115: 114 | B115: =IF(ISNUMBER(SEARCH($L$2,C115)),MAX(B$1:$B114)+1,0) -> 107 | C115: 3.2.02.10 Bagi Hasil Penyertaan Modal Masyarakat Desa I | D115: Debit | E115: 0 | F115: =SUMIF('neraca saldo'!C:C,COA!C115,'neraca saldo'!H:H) -> 0 | I115: 3.2.02. | J115: =IFERROR(VLOOKUP(ROWS($J$2:J115),$B$2:$C$361,2,0),"") -> 4.1.01.01 Pendapatan Tiket
A116: 115 | B116: =IF(ISNUMBER(SEARCH($L$2,C116)),MAX(B$1:$B115)+1,0) -> 108 | C116: 3.2.02.11 Bagi Hasil Penyertaan Modal Masyarakat Desa J | D116: Debit | E116: 0 | F116: =SUMIF('neraca saldo'!C:C,COA!C116,'neraca saldo'!H:H) -> 0 | I116: 3.2.02. | J116: =IFERROR(VLOOKUP(ROWS($J$2:J116),$B$2:$C$361,2,0),"") -> 4.1.01.02 Pendapatan Wahana
A117: 116 | B117: =IF(ISNUMBER(SEARCH($L$2,C117)),MAX(B$1:$B116)+1,0) -> 109 | C117: 3.2.02.12 Bagi Hasil Penyertaan Modal Masyarakat Desa (Eks PNPM) | D117: Debit | E117: 0 | F117: =SUMIF('neraca saldo'!C:C,COA!C117,'neraca saldo'!H:H) -> 0 | I117: 3.2.02. | J117: =IFERROR(VLOOKUP(ROWS($J$2:J117),$B$2:$C$361,2,0),"") -> 4.1.01.03 Pendapatan Paket Wisata
A118: 117 | B118: =IF(ISNUMBER(SEARCH($L$2,C118)),MAX(B$1:$B117)+1,0) -> 110 | C118: 3.3.01.01 Saldo Laba Tidak Dicadangkan | D118: Kredit | E118: 0 | F118: =SUMIF('neraca saldo'!C:C,COA!C118,'neraca saldo'!H:H) -> 0 | G118: =IF(E118=0,"",F118/E118) ->  | I118: =LEFT(C118,7) -> 3.3.01. | J118: =IFERROR(VLOOKUP(ROWS($J$2:J118),$B$2:$C$361,2,0),"") -> 4.1.02.01 Pendapatan Pengelolaan Air Bersih
A119: 118 | B119: =IF(ISNUMBER(SEARCH($L$2,C119)),MAX(B$1:$B118)+1,0) -> 111 | C119: 3.3.02.01 Saldo Laba Dicadangkan untuk Pembelian Aset Tetap | D119: Kredit | E119: 0 | F119: =SUMIF('neraca saldo'!C:C,COA!C119,'neraca saldo'!H:H) -> 0 | I119: 3.3.02. | J119: =IFERROR(VLOOKUP(ROWS($J$2:J119),$B$2:$C$361,2,0),"") -> 4.1.04.01 Pendapatan Sewa Tempat Outbound
A120: 119 | B120: =IF(ISNUMBER(SEARCH($L$2,C120)),MAX(B$1:$B119)+1,0) -> 112 | C120: 3.3.01.02 Saldo Laba Dicadangkan untuk Pembayaran Utang Jangka Panjang | D120: Kredit | E120: 0 | F120: =SUMIF('neraca saldo'!C:C,COA!C120,'neraca saldo'!H:H) -> 0 | I120: 3.3.01. | J120: =IFERROR(VLOOKUP(ROWS($J$2:J120),$B$2:$C$361,2,0),"") -> 4.1.04.02 Pendapatan Sewa Tempat untuk Toko/Kios
A121: 120 | B121: =IF(ISNUMBER(SEARCH($L$2,C121)),MAX(B$1:$B120)+1,0) -> 113 | C121: 3.4.01.01 Modal Donasi/Sumbangan | D121: Kredit | E121: 0 | F121: =SUMIF('neraca saldo'!C:C,COA!C121,'neraca saldo'!H:H) -> 0 | G121: =IF(E121=0,"",F121/E121) ->  | I121: =LEFT(C121,7) -> 3.4.01. | J121: =IFERROR(VLOOKUP(ROWS($J$2:J121),$B$2:$C$361,2,0),"") -> 4.1.04.03 Pendapatan Sewa Gedung
A122: 121 | B122: =IF(ISNUMBER(SEARCH($L$2,C122)),MAX(B$1:$B120)+1,0) -> 113 | C122: 3.8.01.01 RK Pusat | D122: Kredit | E122: 0 | F122: =SUMIF('neraca saldo'!C:C,COA!C122,'neraca saldo'!H:H) -> 0 | G122: =IF(E122=0,"",F122/E122) ->  | I122: =LEFT(C122,7) -> 3.8.01. | J122: =IFERROR(VLOOKUP(ROWS($J$2:J122),$B$2:$C$361,2,0),"") -> 4.1.04.04 Pendapatan Sewa Mobil
A123: 122 | B123: =IF(ISNUMBER(SEARCH($L$2,C123)),MAX(B$1:$B120)+1,0) -> 113 | C123: 3.9.01.01 Ikhtisar Laba Rugi | D123: Kredit | E123: 0 | F123: =SUMIF('neraca saldo'!C:C,COA!C123,'neraca saldo'!H:H) -> 0 | G123: =IF(E123=0,"",F123/E123) ->  | I123: =LEFT(C123,7) -> 3.9.01. | J123: =IFERROR(VLOOKUP(ROWS($J$2:J123),$B$2:$C$361,2,0),"") -> 4.1.04.05 Pendapatan Sewa Peralatan Gedung
A124: 123 | B124: =IF(ISNUMBER(SEARCH($L$2,C124)),MAX(B$1:$B123)+1,0) -> 114 | C124: 4.1.01.01 Pendapatan Tiket | D124: Kredit | E124: 0 | F124: =SUMIF('neraca saldo'!C:C,COA!C124,'neraca saldo'!H:H) -> 0 | G124: =IF(E124=0,"",F124/E124) ->  | I124: =LEFT(C124,7) -> 4.1.01. | J124: =IFERROR(VLOOKUP(ROWS($J$2:J124),$B$2:$C$361,2,0),"") -> 4.1.04.99 Pendapatan Sewa Lainnya
A125: 124 | B125: =IF(ISNUMBER(SEARCH($L$2,C125)),MAX(B$1:$B124)+1,0) -> 115 | C125: 4.1.01.02 Pendapatan Wahana | D125: Kredit | E125: 0 | F125: =SUMIF('neraca saldo'!C:C,COA!C125,'neraca saldo'!H:H) -> 0 | I125: 4.1.01. | J125: =IFERROR(VLOOKUP(ROWS($J$2:J125),$B$2:$C$361,2,0),"") -> 4.1.05.01 Pendapatan Jasa Pembayaran Listrik
A126: 125 | B126: =IF(ISNUMBER(SEARCH($L$2,C126)),MAX(B$1:$B125)+1,0) -> 116 | C126: 4.1.01.03 Pendapatan Paket Wisata | D126: Kredit | E126: 0 | F126: =SUMIF('neraca saldo'!C:C,COA!C126,'neraca saldo'!H:H) -> 0 | I126: 4.1.01. | J126: =IFERROR(VLOOKUP(ROWS($J$2:J126),$B$2:$C$361,2,0),"") -> 4.1.05.99 Pendapatan Jasa Pelayanan lainnya
A127: 126 | B127: =IF(ISNUMBER(SEARCH($L$2,C127)),MAX(B$1:$B126)+1,0) -> 117 | C127: 4.1.02.01 Pendapatan Pengelolaan Air Bersih | D127: Kredit | E127: 0 | F127: =SUMIF('neraca saldo'!C:C,COA!C127,'neraca saldo'!H:H) -> 0 | G127: =IF(E127=0,"",F127/E127) ->  | I127: =LEFT(C127,7) -> 4.1.02. | J127: =IFERROR(VLOOKUP(ROWS($J$2:J127),$B$2:$C$361,2,0),"") -> 4.1.06.01 Pendapatan Transportasi
A128: 127 | B128: =IF(ISNUMBER(SEARCH($L$2,C128)),MAX(B$1:$B126)+1,0) -> 117 | C128: 4.1.03.01 Pendapatan Pengelolaan Sampah | D128: Kredit | E128: 0 | F128: =SUMIF('neraca saldo'!C:C,COA!C128,'neraca saldo'!H:H) -> 0 | I128: 4.1.03. | J128: =IFERROR(VLOOKUP(ROWS($J$2:J128),$B$2:$C$361,2,0),"") -> 4.1.07.01 Pendapatan Parkir Mobil
A129: 128 | B129: =IF(ISNUMBER(SEARCH($L$2,C129)),MAX(B$1:$B128)+1,0) -> 118 | C129: 4.1.04.01 Pendapatan Sewa Tempat Outbound | D129: Kredit | E129: 0 | F129: =SUMIF('neraca saldo'!C:C,COA!C129,'neraca saldo'!H:H) -> 0 | I129: 4.1.04. | J129: =IFERROR(VLOOKUP(ROWS($J$2:J129),$B$2:$C$361,2,0),"") -> 4.1.07.02 Pendapatan Parkir Motor
A130: 129 | B130: =IF(ISNUMBER(SEARCH($L$2,C130)),MAX(B$1:$B129)+1,0) -> 119 | C130: 4.1.04.02 Pendapatan Sewa Tempat untuk Toko/Kios | D130: Kredit | E130: 0 | F130: =SUMIF('neraca saldo'!C:C,COA!C130,'neraca saldo'!H:H) -> 0 | I130: =LEFT(C130,7) -> 4.1.04. | J130: =IFERROR(VLOOKUP(ROWS($J$2:J130),$B$2:$C$361,2,0),"") -> 4.1.08.01 Pendapatan Simpan Pinjam
A131: 130 | B131: =IF(ISNUMBER(SEARCH($L$2,C131)),MAX(B$1:$B130)+1,0) -> 120 | C131: 4.1.04.03 Pendapatan Sewa Gedung | D131: Kredit | E131: 0 | F131: =SUMIF('neraca saldo'!C:C,COA!C131,'neraca saldo'!H:H) -> 0 | I131: =LEFT(C131,7) -> 4.1.04. | J131: =IFERROR(VLOOKUP(ROWS($J$2:J131),$B$2:$C$361,2,0),"") -> 4.1.09.01 Pendapatan Pelatihan
A132: 131 | B132: =IF(ISNUMBER(SEARCH($L$2,C132)),MAX(B$1:$B131)+1,0) -> 121 | C132: 4.1.04.04 Pendapatan Sewa Mobil | D132: Kredit | E132: 0 | F132: =SUMIF('neraca saldo'!C:C,COA!C132,'neraca saldo'!H:H) -> 0 | I132: 4.1.04. | J132: =IFERROR(VLOOKUP(ROWS($J$2:J132),$B$2:$C$361,2,0),"") -> 4.1.10.01 Pendapatan Homestay
A133: 132 | B133: =IF(ISNUMBER(SEARCH($L$2,C133)),MAX(B$1:$B132)+1,0) -> 122 | C133: 4.1.04.05 Pendapatan Sewa Peralatan Gedung | D133: Kredit | E133: 0 | F133: =SUMIF('neraca saldo'!C:C,COA!C133,'neraca saldo'!H:H) -> 0 | I133: 4.1.04. | J133: =IFERROR(VLOOKUP(ROWS($J$2:J133),$B$2:$C$361,2,0),"") -> 4.1.11.01 Pendapata Komisi
A134: 133 | B134: =IF(ISNUMBER(SEARCH($L$2,C134)),MAX(B$1:$B133)+1,0) -> 123 | C134: 4.1.04.99 Pendapatan Sewa Lainnya | D134: Kredit | E134: 0 | F134: =SUMIF('neraca saldo'!C:C,COA!C134,'neraca saldo'!H:H) -> 0 | I134: 4.1.04. | J134: =IFERROR(VLOOKUP(ROWS($J$2:J134),$B$2:$C$361,2,0),"") -> 4.2.01.01 Pendapatan Penjualan Makanan/Minuman
A135: 134 | B135: =IF(ISNUMBER(SEARCH($L$2,C135)),MAX(B$1:$B134)+1,0) -> 124 | C135: 4.1.05.01 Pendapatan Jasa Pembayaran Listrik | D135: Kredit | E135: 0 | F135: =SUMIF('neraca saldo'!C:C,COA!C135,'neraca saldo'!H:H) -> 0 | I135: 4.1.05. | J135: =IFERROR(VLOOKUP(ROWS($J$2:J135),$B$2:$C$361,2,0),"") -> 4.2.01.02 Pendapatan Penjualan Pakaian/Kaos/Jaket
A136: 135 | B136: =IF(ISNUMBER(SEARCH($L$2,C136)),MAX(B$1:$B135)+1,0) -> 125 | C136: 4.1.05.99 Pendapatan Jasa Pelayanan lainnya | D136: Kredit | E136: 0 | F136: =SUMIF('neraca saldo'!C:C,COA!C136,'neraca saldo'!H:H) -> 0 | I136: 4.1.05. | J136: =IFERROR(VLOOKUP(ROWS($J$2:J136),$B$2:$C$361,2,0),"") -> 4.2.01.03 Pendapatan Penjualan Hasil Kerajinan/Suvenir
A137: 136 | B137: =IF(ISNUMBER(SEARCH($L$2,C137)),MAX(B$1:$B136)+1,0) -> 126 | C137: 4.1.06.01 Pendapatan Transportasi | D137: Kredit | E137: 0 | F137: =SUMIF('neraca saldo'!C:C,COA!C137,'neraca saldo'!H:H) -> 0 | I137: 4.1.06. | J137: =IFERROR(VLOOKUP(ROWS($J$2:J137),$B$2:$C$361,2,0),"") -> 4.2.01.04 Pendapatan Penjualan Buku
A138: 137 | B138: =IF(ISNUMBER(SEARCH($L$2,C138)),MAX(B$1:$B137)+1,0) -> 127 | C138: 4.1.07.01 Pendapatan Parkir Mobil | D138: Kredit | E138: 0 | F138: =SUMIF('neraca saldo'!C:C,COA!C138,'neraca saldo'!H:H) -> 0 | I138: 4.1.07. | J138: =IFERROR(VLOOKUP(ROWS($J$2:J138),$B$2:$C$361,2,0),"") -> 4.2.01.05 Pendapatan Penjualan Biji Kopi
A139: =ROW()-1 -> 138 | B139: =IF(ISNUMBER(SEARCH($L$2,C139)),MAX(B$1:$B138)+1,0) -> 128 | C139: 4.1.07.02 Pendapatan Parkir Motor | D139: Kredit | E139: 0 | F139: =SUMIF('neraca saldo'!C:C,COA!C139,'neraca saldo'!H:H) -> 0 | I139: 4.1.07. | J139: =IFERROR(VLOOKUP(ROWS($J$2:J139),$B$2:$C$361,2,0),"") -> 4.2.01.06 Pendapatan Penjualan Bensin
A140: 139 | B140: =IF(ISNUMBER(SEARCH($L$2,C140)),MAX(B$1:$B139)+1,0) -> 129 | C140: 4.1.08.01 Pendapatan Simpan Pinjam | D140: Kredit | E140: 0 | F140: =SUMIF('neraca saldo'!C:C,COA!C140,'neraca saldo'!H:H) -> 0 | I140: 4.1.08. | J140: =IFERROR(VLOOKUP(ROWS($J$2:J140),$B$2:$C$361,2,0),"") -> 4.2.01.99 Diskon Penjualan Barang Dagangan
A141: 140 | B141: =IF(ISNUMBER(SEARCH($L$2,C141)),MAX(B$1:$B140)+1,0) -> 130 | C141: 4.1.09.01 Pendapatan Pelatihan | D141: Kredit | E141: 0 | F141: =SUMIF('neraca saldo'!C:C,COA!C141,'neraca saldo'!H:H) -> 0 | I141: 4.1.09. | J141: =IFERROR(VLOOKUP(ROWS($J$2:J141),$B$2:$C$361,2,0),"") -> 4.3.01.01 Pendapatan Katering
A142: 141 | B142: =IF(ISNUMBER(SEARCH($L$2,C142)),MAX(B$1:$B141)+1,0) -> 131 | C142: 4.1.10.01 Pendapatan Homestay | D142: Kredit | E142: 0 | F142: =SUMIF('neraca saldo'!C:C,COA!C142,'neraca saldo'!H:H) -> 0 | I142: 4.1.10. | J142: =IFERROR(VLOOKUP(ROWS($J$2:J142),$B$2:$C$361,2,0),"") -> 4.3.01.02 Pendapatan Restoran
A143: 142 | B143: =IF(ISNUMBER(SEARCH($L$2,C143)),MAX(B$1:$B142)+1,0) -> 132 | C143: 4.1.11.01 Pendapata Komisi | D143: Kredit | E143: 0 | F143: =SUMIF('neraca saldo'!C:C,COA!C143,'neraca saldo'!H:H) -> 0 | I143: 4.1.11. | J143: =IFERROR(VLOOKUP(ROWS($J$2:J143),$B$2:$C$361,2,0),"") -> 4.3.01.03 Pendapatan Kopi
A144: 143 | B144: =IF(ISNUMBER(SEARCH($L$2,C144)),MAX(B$1:$B143)+1,0) -> 133 | C144: 4.2.01.01 Pendapatan Penjualan Makanan/Minuman | D144: Kredit | E144: 0 | F144: =SUMIF('neraca saldo'!C:C,COA!C144,'neraca saldo'!H:H) -> 0 | I144: =LEFT(C144,7) -> 4.2.01. | J144: =IFERROR(VLOOKUP(ROWS($J$2:J144),$B$2:$C$361,2,0),"") -> 4.3.01.04 Diskon Penjualan Barang Jadi
A145: 144 | B145: =IF(ISNUMBER(SEARCH($L$2,C145)),MAX(B$1:$B144)+1,0) -> 134 | C145: 4.2.01.02 Pendapatan Penjualan Pakaian/Kaos/Jaket | D145: Kredit | E145: 0 | F145: =SUMIF('neraca saldo'!C:C,COA!C145,'neraca saldo'!H:H) -> 0 | I145: 4.2.01. | J145: =IFERROR(VLOOKUP(ROWS($J$2:J145),$B$2:$C$361,2,0),"") -> 5.1.01.01 Harga Pokok Penjualan Barang Dagangan
A146: 145 | B146: =IF(ISNUMBER(SEARCH($L$2,C146)),MAX(B$1:$B145)+1,0) -> 135 | C146: 4.2.01.03 Pendapatan Penjualan Hasil Kerajinan/Suvenir | D146: Kredit | E146: 0 | F146: =SUMIF('neraca saldo'!C:C,COA!C146,'neraca saldo'!H:H) -> 0 | G146: =IF(E146=0,"",F146/E146) ->  | I146: 4.2.01. | J146: =IFERROR(VLOOKUP(ROWS($J$2:J146),$B$2:$C$361,2,0),"") -> 5.2.01.01 Harga Pokok Penjualan Barang Jadi
A147: 146 | B147: =IF(ISNUMBER(SEARCH($L$2,C147)),MAX(B$1:$B146)+1,0) -> 136 | C147: 4.2.01.04 Pendapatan Penjualan Buku | D147: Kredit | E147: 0 | F147: =SUMIF('neraca saldo'!C:C,COA!C147,'neraca saldo'!H:H) -> 0 | I147: 4.2.01. | J147: =IFERROR(VLOOKUP(ROWS($J$2:J147),$B$2:$C$361,2,0),"") -> 5.3.01.01 Harga Pokok Produksi
A148: 147 | B148: =IF(ISNUMBER(SEARCH($L$2,C148)),MAX(B$1:$B147)+1,0) -> 137 | C148: 4.2.01.05 Pendapatan Penjualan Biji Kopi | D148: Kredit | E148: 0 | F148: =SUMIF('neraca saldo'!C:C,COA!C148,'neraca saldo'!H:H) -> 0 | I148: 4.2.01. | J148: =IFERROR(VLOOKUP(ROWS($J$2:J148),$B$2:$C$361,2,0),"") -> 6.1.01.01 Beban Gaji dan Tunjangan Bag. Adum
A149: 148 | B149: =IF(ISNUMBER(SEARCH($L$2,C149)),MAX(B$1:$B148)+1,0) -> 138 | C149: 4.2.01.06 Pendapatan Penjualan Bensin | D149: Kredit | E149: 0 | F149: =SUMIF('neraca saldo'!C:C,COA!C149,'neraca saldo'!H:H) -> 0 | I149: 4.2.01. | J149: =IFERROR(VLOOKUP(ROWS($J$2:J149),$B$2:$C$361,2,0),"") -> 6.1.01.02 Beban Honor Lembur Bag. Adum
A150: 149 | B150: =IF(ISNUMBER(SEARCH($L$2,C150)),MAX(B$1:$B149)+1,0) -> 139 | C150: 4.2.01.99 Diskon Penjualan Barang Dagangan | D150: Debit | E150: 0 | F150: =SUMIF('neraca saldo'!C:C,COA!C150,'neraca saldo'!H:H) -> 0 | I150: 4.2.01. | J150: =IFERROR(VLOOKUP(ROWS($J$2:J150),$B$2:$C$361,2,0),"") -> 6.1.01.03 Beban Honor Narasumber
A151: 150 | B151: =IF(ISNUMBER(SEARCH($L$2,C151)),MAX(B$1:$B150)+1,0) -> 140 | C151: 4.3.01.01 Pendapatan Katering | D151: Kredit | E151: 0 | F151: =SUMIF('neraca saldo'!C:C,COA!C151,'neraca saldo'!H:H) -> 0 | I151: 4.3.01. | J151: =IFERROR(VLOOKUP(ROWS($J$2:J151),$B$2:$C$361,2,0),"") -> 6.1.01.04 Beban Insentif (Bonus) Bag. Adum
A152: 151 | B152: =IF(ISNUMBER(SEARCH($L$2,C152)),MAX(B$1:$B151)+1,0) -> 141 | C152: 4.3.01.02 Pendapatan Restoran | D152: Kredit | E152: 0 | F152: =SUMIF('neraca saldo'!C:C,COA!C152,'neraca saldo'!H:H) -> 0 | I152: 4.3.01. | J152: =IFERROR(VLOOKUP(ROWS($J$2:J152),$B$2:$C$361,2,0),"") -> 6.1.01.05 Beban Komisi Bag. Adum
A153: 152 | B153: =IF(ISNUMBER(SEARCH($L$2,C153)),MAX(B$1:$B152)+1,0) -> 142 | C153: 4.3.01.03 Pendapatan Kopi | D153: Kredit | E153: 0 | F153: =SUMIF('neraca saldo'!C:C,COA!C153,'neraca saldo'!H:H) -> 0 | I153: 4.3.01. | J153: =IFERROR(VLOOKUP(ROWS($J$2:J153),$B$2:$C$361,2,0),"") -> 6.1.01.06 Beban Seragam Pegawai Bag. Adum
A154: 153 | B154: =IF(ISNUMBER(SEARCH($L$2,C154)),MAX(B$1:$B153)+1,0) -> 143 | C154: 4.3.01.04 Diskon Penjualan Barang Jadi | D154: Debit | E154: 0 | F154: =SUMIF('neraca saldo'!C:C,COA!C154,'neraca saldo'!H:H) -> 0 | I154: 4.3.01. | J154: =IFERROR(VLOOKUP(ROWS($J$2:J154),$B$2:$C$361,2,0),"") -> 6.1.01.07 Beban Penguatan SDM
A155: 154 | B155: =IF(ISNUMBER(SEARCH($L$2,C155)),MAX(B$1:$B154)+1,0) -> 144 | C155: 5.1.01.01 Harga Pokok Penjualan Barang Dagangan | D155: Debit | E155: 0 | F155: =SUMIF('neraca saldo'!C:C,COA!C155,'neraca saldo'!H:H) -> 0 | I155: 5.1.01. | J155: =IFERROR(VLOOKUP(ROWS($J$2:J155),$B$2:$C$361,2,0),"") -> 6.1.01.99 Beban Pegawai Bag. Adum Lainnya
A156: 155 | B156: =IF(ISNUMBER(SEARCH($L$2,C156)),MAX(B$1:$B155)+1,0) -> 145 | C156: 5.2.01.01 Harga Pokok Penjualan Barang Jadi | D156: Debit | E156: 0 | F156: =SUMIF('neraca saldo'!C:C,COA!C156,'neraca saldo'!H:H) -> 0 | I156: 5.2.01. | J156: =IFERROR(VLOOKUP(ROWS($J$2:J156),$B$2:$C$361,2,0),"") -> 6.1.02.01 Beban Alat Tulis Kantor (ATK)
A157: 156 | B157: =IF(ISNUMBER(SEARCH($L$2,C157)),MAX(B$1:$B156)+1,0) -> 146 | C157: 5.3.01.01 Harga Pokok Produksi | D157: Debit | E157: 0 | F157: =SUMIF('neraca saldo'!C:C,COA!C157,'neraca saldo'!H:H) -> 0 | I157: 5.3.01. | J157: =IFERROR(VLOOKUP(ROWS($J$2:J157),$B$2:$C$361,2,0),"") -> 6.1.02.02 Beban Foto Copy
A158: 157 | B158: =IF(ISNUMBER(SEARCH($L$2,C158)),MAX(B$1:$B157)+1,0) -> 147 | C158: 6.1.01.01 Beban Gaji dan Tunjangan Bag. Adum | D158: Debit | E158: 0 | F158: =SUMIF('neraca saldo'!C:C,COA!C158,'neraca saldo'!H:H) -> 0 | I158: 6.1.01. | J158: =IFERROR(VLOOKUP(ROWS($J$2:J158),$B$2:$C$361,2,0),"") -> 6.1.02.03 Beban Konsumsi Rapat
A159: 158 | B159: =IF(ISNUMBER(SEARCH($L$2,C159)),MAX(B$1:$B158)+1,0) -> 148 | C159: 6.1.01.02 Beban Honor Lembur Bag. Adum | D159: Debit | E159: 0 | F159: =SUMIF('neraca saldo'!C:C,COA!C159,'neraca saldo'!H:H) -> 0 | I159: 6.1.01. | J159: =IFERROR(VLOOKUP(ROWS($J$2:J159),$B$2:$C$361,2,0),"") -> 6.1.02.04 Beban Cetak dan Dekorasi
A160: 159 | B160: =IF(ISNUMBER(SEARCH($L$2,C160)),MAX(B$1:$B159)+1,0) -> 149 | C160: 6.1.01.03 Beban Honor Narasumber | D160: Debit | E160: 0 | F160: =SUMIF('neraca saldo'!C:C,COA!C160,'neraca saldo'!H:H) -> 0 | I160: 6.1.01. | J160: =IFERROR(VLOOKUP(ROWS($J$2:J160),$B$2:$C$361,2,0),"") -> 6.1.02.99 Beban Perlengkapan Lainnya
A161: 160 | B161: =IF(ISNUMBER(SEARCH($L$2,C161)),MAX(B$1:$B160)+1,0) -> 150 | C161: 6.1.01.04 Beban Insentif (Bonus) Bag. Adum | D161: Debit | E161: 0 | F161: =SUMIF('neraca saldo'!C:C,COA!C161,'neraca saldo'!H:H) -> 0 | I161: 6.1.01. | J161: =IFERROR(VLOOKUP(ROWS($J$2:J161),$B$2:$C$361,2,0),"") -> 6.1.03.01 Beban Pemeliharaan dan Perbaikan
A162: 161 | B162: =IF(ISNUMBER(SEARCH($L$2,C162)),MAX(B$1:$B161)+1,0) -> 151 | C162: 6.1.01.05 Beban Komisi Bag. Adum | D162: Debit | E162: 0 | F162: =SUMIF('neraca saldo'!C:C,COA!C162,'neraca saldo'!H:H) -> 0 | I162: 6.1.01. | J162: =IFERROR(VLOOKUP(ROWS($J$2:J162),$B$2:$C$361,2,0),"") -> 6.1.04.01 Beban Listrik
A163: 162 | B163: =IF(ISNUMBER(SEARCH($L$2,C163)),MAX(B$1:$B162)+1,0) -> 152 | C163: 6.1.01.06 Beban Seragam Pegawai Bag. Adum | D163: Debit | E163: 0 | F163: =SUMIF('neraca saldo'!C:C,COA!C163,'neraca saldo'!H:H) -> 0 | I163: 6.1.01. | J163: =IFERROR(VLOOKUP(ROWS($J$2:J163),$B$2:$C$361,2,0),"") -> 6.1.04.02 Beban Telepon/Internet
A164: 163 | B164: =IF(ISNUMBER(SEARCH($L$2,C164)),MAX(B$1:$B163)+1,0) -> 153 | C164: 6.1.01.07 Beban Penguatan SDM | D164: Debit | E164: 0 | F164: =SUMIF('neraca saldo'!C:C,COA!C164,'neraca saldo'!H:H) -> 0 | I164: 6.1.01. | J164: =IFERROR(VLOOKUP(ROWS($J$2:J164),$B$2:$C$361,2,0),"") -> 6.1.04.99 Beban Utilitas Lainnya
A165: 164 | B165: =IF(ISNUMBER(SEARCH($L$2,C165)),MAX(B$1:$B164)+1,0) -> 154 | C165: 6.1.01.99 Beban Pegawai Bag. Adum Lainnya | D165: Debit | E165: 0 | F165: =SUMIF('neraca saldo'!C:C,COA!C165,'neraca saldo'!H:H) -> 0 | I165: 6.1.01. | J165: =IFERROR(VLOOKUP(ROWS($J$2:J165),$B$2:$C$361,2,0),"") -> 6.1.05.01 Beban Sewa
A166: 165 | B166: =IF(ISNUMBER(SEARCH($L$2,C166)),MAX(B$1:$B165)+1,0) -> 155 | C166: 6.1.02.01 Beban Alat Tulis Kantor (ATK) | D166: Debit | E166: 0 | F166: =SUMIF('neraca saldo'!C:C,COA!C166,'neraca saldo'!H:H) -> 0 | I166: 6.1.02. | J166: =IFERROR(VLOOKUP(ROWS($J$2:J166),$B$2:$C$361,2,0),"") -> 6.1.05.02 Beban Asuransi
A167: 166 | B167: =IF(ISNUMBER(SEARCH($L$2,C167)),MAX(B$1:$B166)+1,0) -> 156 | C167: 6.1.02.02 Beban Foto Copy | D167: Debit | E167: 0 | F167: =SUMIF('neraca saldo'!C:C,COA!C167,'neraca saldo'!H:H) -> 0 | I167: 6.1.02. | J167: =IFERROR(VLOOKUP(ROWS($J$2:J167),$B$2:$C$361,2,0),"") -> 6.1.06.01 Beban Kebersihan
A168: 167 | B168: =IF(ISNUMBER(SEARCH($L$2,C168)),MAX(B$1:$B167)+1,0) -> 157 | C168: 6.1.02.03 Beban Konsumsi Rapat | D168: Debit | E168: 0 | F168: =SUMIF('neraca saldo'!C:C,COA!C168,'neraca saldo'!H:H) -> 0 | I168: 6.1.02. | J168: =IFERROR(VLOOKUP(ROWS($J$2:J168),$B$2:$C$361,2,0),"") -> 6.1.06.02 Beban Keamanan
A169: 168 | B169: =IF(ISNUMBER(SEARCH($L$2,C169)),MAX(B$1:$B168)+1,0) -> 158 | C169: 6.1.02.04 Beban Cetak dan Dekorasi | D169: Debit | E169: 0 | F169: =SUMIF('neraca saldo'!C:C,COA!C169,'neraca saldo'!H:H) -> 0 | I169: 6.1.02. | J169: =IFERROR(VLOOKUP(ROWS($J$2:J169),$B$2:$C$361,2,0),"") -> 6.1.07.01 Beban Penyisihan Piutang Tak Tertagih
A170: 169 | B170: =IF(ISNUMBER(SEARCH($L$2,C170)),MAX(B$1:$B169)+1,0) -> 159 | C170: 6.1.02.99 Beban Perlengkapan Lainnya | D170: Debit | E170: 0 | F170: =SUMIF('neraca saldo'!C:C,COA!C170,'neraca saldo'!H:H) -> 0 | I170: 6.1.02. | J170: =IFERROR(VLOOKUP(ROWS($J$2:J170),$B$2:$C$361,2,0),"") -> 6.1.07.02 Beban Penyusutan Kendaraan
A171: 170 | B171: =IF(ISNUMBER(SEARCH($L$2,C171)),MAX(B$1:$B170)+1,0) -> 160 | C171: 6.1.03.01 Beban Pemeliharaan dan Perbaikan | D171: Debit | E171: 0 | F171: =SUMIF('neraca saldo'!C:C,COA!C171,'neraca saldo'!H:H) -> 0 | I171: 6.1.03. | J171: =IFERROR(VLOOKUP(ROWS($J$2:J171),$B$2:$C$361,2,0),"") -> 6.1.07.03 Beban Penyusutan Peralatan dan Mesin
A172: 171 | B172: =IF(ISNUMBER(SEARCH($L$2,C172)),MAX(B$1:$B171)+1,0) -> 161 | C172: 6.1.04.01 Beban Listrik | D172: Debit | E172: 0 | F172: =SUMIF('neraca saldo'!C:C,COA!C172,'neraca saldo'!H:H) -> 0 | I172: 6.1.04. | J172: =IFERROR(VLOOKUP(ROWS($J$2:J172),$B$2:$C$361,2,0),"") -> 6.1.07.04 Beban Penyusutan Meubelair
A173: 172 | B173: =IF(ISNUMBER(SEARCH($L$2,C173)),MAX(B$1:$B172)+1,0) -> 162 | C173: 6.1.04.02 Beban Telepon/Internet | D173: Debit | E173: 0 | F173: =SUMIF('neraca saldo'!C:C,COA!C173,'neraca saldo'!H:H) -> 0 | I173: 6.1.04. | J173: =IFERROR(VLOOKUP(ROWS($J$2:J173),$B$2:$C$361,2,0),"") -> 6.1.07.05 Beban Penyusutan Gedung dan Bangunan
A174: 173 | B174: =IF(ISNUMBER(SEARCH($L$2,C174)),MAX(B$1:$B173)+1,0) -> 163 | C174: 6.1.04.99 Beban Utilitas Lainnya | D174: Debit | E174: 0 | F174: =SUMIF('neraca saldo'!C:C,COA!C174,'neraca saldo'!H:H) -> 0 | I174: 6.1.04. | J174: =IFERROR(VLOOKUP(ROWS($J$2:J174),$B$2:$C$361,2,0),"") -> 6.1.07.06 Beban Amortisasi Aset takberwujud
A175: 174 | B175: =IF(ISNUMBER(SEARCH($L$2,C175)),MAX(B$1:$B174)+1,0) -> 164 | C175: 6.1.05.01 Beban Sewa | D175: Debit | E175: 0 | F175: =SUMIF('neraca saldo'!C:C,COA!C175,'neraca saldo'!H:H) -> 0 | I175: 6.1.05. | J175: =IFERROR(VLOOKUP(ROWS($J$2:J175),$B$2:$C$361,2,0),"") -> 6.1.99.01 Beban Parkir
A176: 175 | B176: =IF(ISNUMBER(SEARCH($L$2,C176)),MAX(B$1:$B175)+1,0) -> 165 | C176: 6.1.05.02 Beban Asuransi | D176: Debit | E176: 0 | F176: =SUMIF('neraca saldo'!C:C,COA!C176,'neraca saldo'!H:H) -> 0 | G176: =IF(E176=0,"",F176/E176) ->  | I176: =LEFT(C176,7) -> 6.1.05. | J176: =IFERROR(VLOOKUP(ROWS($J$2:J176),$B$2:$C$361,2,0),"") -> 6.1.99.02 Beban Audit
A177: 176 | B177: =IF(ISNUMBER(SEARCH($L$2,C177)),MAX(B$1:$B176)+1,0) -> 166 | C177: 6.1.06.01 Beban Kebersihan | D177: Debit | E177: 0 | F177: =SUMIF('neraca saldo'!C:C,COA!C177,'neraca saldo'!H:H) -> 0 | I177: 6.1.06. | J177: =IFERROR(VLOOKUP(ROWS($J$2:J177),$B$2:$C$361,2,0),"") -> 6.1.99.03 Beban Perjalanan Dinas
A178: 177 | B178: =IF(ISNUMBER(SEARCH($L$2,C178)),MAX(B$1:$B177)+1,0) -> 167 | C178: 6.1.06.02 Beban Keamanan | D178: Debit | E178: 0 | F178: =SUMIF('neraca saldo'!C:C,COA!C178,'neraca saldo'!H:H) -> 0 | I178: 6.1.06. | J178: =IFERROR(VLOOKUP(ROWS($J$2:J178),$B$2:$C$361,2,0),"") -> 6.1.99.04 Beban Transportasi
A179: 178 | B179: =IF(ISNUMBER(SEARCH($L$2,C179)),MAX(B$1:$B178)+1,0) -> 168 | C179: 6.1.07.01 Beban Penyisihan Piutang Tak Tertagih | D179: Debit | E179: 0 | F179: =SUMIF('neraca saldo'!C:C,COA!C179,'neraca saldo'!H:H) -> 0 | I179: 6.1.07. | J179: =IFERROR(VLOOKUP(ROWS($J$2:J179),$B$2:$C$361,2,0),"") -> 6.1.99.05 Beban Jamuan Tamu
A180: 179 | B180: =IF(ISNUMBER(SEARCH($L$2,C180)),MAX(B$1:$B179)+1,0) -> 169 | C180: 6.1.07.02 Beban Penyusutan Kendaraan | D180: Debit | E180: 0 | F180: =SUMIF('neraca saldo'!C:C,COA!C180,'neraca saldo'!H:H) -> 0 | I180: 6.1.07. | J180: =IFERROR(VLOOKUP(ROWS($J$2:J180),$B$2:$C$361,2,0),"") -> 6.2.01.01 Beban Gaji/Upah Bag. Operasional
A181: 180 | B181: =IF(ISNUMBER(SEARCH($L$2,C181)),MAX(B$1:$B180)+1,0) -> 170 | C181: 6.1.07.03 Beban Penyusutan Peralatan dan Mesin | D181: Debit | E181: 0 | F181: =SUMIF('neraca saldo'!C:C,COA!C181,'neraca saldo'!H:H) -> 0 | I181: 6.1.07. | J181: =IFERROR(VLOOKUP(ROWS($J$2:J181),$B$2:$C$361,2,0),"") -> 6.2.01.02 Beban Uang Makan Bag. Operasional
A182: 181 | B182: =IF(ISNUMBER(SEARCH($L$2,C182)),MAX(B$1:$B181)+1,0) -> 171 | C182: 6.1.07.04 Beban Penyusutan Meubelair | D182: Debit | E182: 0 | F182: =SUMIF('neraca saldo'!C:C,COA!C182,'neraca saldo'!H:H) -> 0 | I182: 6.1.07. | J182: =IFERROR(VLOOKUP(ROWS($J$2:J182),$B$2:$C$361,2,0),"") -> 6.2.02.01 Beban Pemeliharaan Wahana
A183: 182 | B183: =IF(ISNUMBER(SEARCH($L$2,C183)),MAX(B$1:$B182)+1,0) -> 172 | C183: 6.1.07.05 Beban Penyusutan Gedung dan Bangunan | D183: Debit | E183: 0 | F183: =SUMIF('neraca saldo'!C:C,COA!C183,'neraca saldo'!H:H) -> 0 | I183: 6.1.07. | J183: =IFERROR(VLOOKUP(ROWS($J$2:J183),$B$2:$C$361,2,0),"") -> 6.2.02.02 Beban Perbaikan dan Renovasi
A184: 183 | B184: =IF(ISNUMBER(SEARCH($L$2,C184)),MAX(B$1:$B183)+1,0) -> 173 | C184: 6.1.07.06 Beban Amortisasi Aset takberwujud | D184: Debit | E184: 0 | F184: =SUMIF('neraca saldo'!C:C,COA!C184,'neraca saldo'!H:H) -> 0 | I184: 6.1.07. | J184: =IFERROR(VLOOKUP(ROWS($J$2:J184),$B$2:$C$361,2,0),"") -> 6.2.03.01 Beban Tim SAR
A185: 184 | B185: =IF(ISNUMBER(SEARCH($L$2,C185)),MAX(B$1:$B184)+1,0) -> 174 | C185: 6.1.99.01 Beban Parkir | D185: Debit | E185: 0 | F185: =SUMIF('neraca saldo'!C:C,COA!C185,'neraca saldo'!H:H) -> 0 | I185: 6.1.99. | J185: =IFERROR(VLOOKUP(ROWS($J$2:J185),$B$2:$C$361,2,0),"") -> 6.2.03.02 Beban P3K
A186: 185 | B186: =IF(ISNUMBER(SEARCH($L$2,C186)),MAX(B$1:$B185)+1,0) -> 175 | C186: 6.1.99.02 Beban Audit | D186: Debit | E186: 0 | F186: =SUMIF('neraca saldo'!C:C,COA!C186,'neraca saldo'!H:H) -> 0 | I186: 6.1.99. | J186: =IFERROR(VLOOKUP(ROWS($J$2:J186),$B$2:$C$361,2,0),"") -> 6.2.99.01 Beban Komunikasi
A187: 186 | B187: =IF(ISNUMBER(SEARCH($L$2,C187)),MAX(B$1:$B186)+1,0) -> 176 | C187: 6.1.99.03 Beban Perjalanan Dinas | D187: Debit | E187: 0 | F187: =SUMIF('neraca saldo'!C:C,COA!C187,'neraca saldo'!H:H) -> 0 | I187: 6.1.99. | J187: =IFERROR(VLOOKUP(ROWS($J$2:J187),$B$2:$C$361,2,0),"") -> 6.2.99.02 Beban Sewa Lokasi
A188: 187 | B188: =IF(ISNUMBER(SEARCH($L$2,C188)),MAX(B$1:$B187)+1,0) -> 177 | C188: 6.1.99.04 Beban Transportasi | D188: Debit | E188: 0 | F188: =SUMIF('neraca saldo'!C:C,COA!C188,'neraca saldo'!H:H) -> 0 | I188: 6.1.99. | J188: =IFERROR(VLOOKUP(ROWS($J$2:J188),$B$2:$C$361,2,0),"") -> 6.2.99.03 Beban Pakan Ikan
A189: 188 | B189: =IF(ISNUMBER(SEARCH($L$2,C189)),MAX(B$1:$B188)+1,0) -> 178 | C189: 6.1.99.05 Beban Jamuan Tamu | D189: Debit | E189: 0 | F189: =SUMIF('neraca saldo'!C:C,COA!C189,'neraca saldo'!H:H) -> 0 | I189: 6.1.99. | J189: =IFERROR(VLOOKUP(ROWS($J$2:J189),$B$2:$C$361,2,0),"") -> 6.3.01.01 Beban Gaji/Upah Bag. Pemasaran
A190: 189 | B190: =IF(ISNUMBER(SEARCH($L$2,C190)),MAX(B$1:$B189)+1,0) -> 0 | C190: 6.1.99.99 Beban Administrasi dan Umum Lainnya | D190: Debit | E190: 0 | F190: =SUMIF('neraca saldo'!C:C,COA!C190,'neraca saldo'!H:H) -> 0 | I190: 6.1.99. | J190: =IFERROR(VLOOKUP(ROWS($J$2:J190),$B$2:$C$361,2,0),"") -> 6.3.01.02 Beban Insentif (Bonus) Bag. Pemasaran
A191: 190 | B191: =IF(ISNUMBER(SEARCH($L$2,C191)),MAX(B$1:$B190)+1,0) -> 179 | C191: 6.2.01.01 Beban Gaji/Upah Bag. Operasional | D191: Debit | E191: 0 | F191: =SUMIF('neraca saldo'!C:C,COA!C191,'neraca saldo'!H:H) -> 0 | I191: 6.2.01. | J191: =IFERROR(VLOOKUP(ROWS($J$2:J191),$B$2:$C$361,2,0),"") -> 6.3.01.03 Beban Seragam Pegawai Bag. Pemasaran
A192: 191 | B192: =IF(ISNUMBER(SEARCH($L$2,C192)),MAX(B$1:$B191)+1,0) -> 180 | C192: 6.2.01.02 Beban Uang Makan Bag. Operasional | D192: Debit | E192: 0 | F192: =SUMIF('neraca saldo'!C:C,COA!C192,'neraca saldo'!H:H) -> 0 | I192: 6.2.01. | J192: =IFERROR(VLOOKUP(ROWS($J$2:J192),$B$2:$C$361,2,0),"") -> 6.3.02.01 Beban Iklan
A193: 192 | B193: =IF(ISNUMBER(SEARCH($L$2,C193)),MAX(B$1:$B192)+1,0) -> 181 | C193: 6.2.02.01 Beban Pemeliharaan Wahana | D193: Debit | E193: 0 | F193: =SUMIF('neraca saldo'!C:C,COA!C193,'neraca saldo'!H:H) -> 0 | G193: =IF(E193=0,"",F193/E193) ->  | I193: =LEFT(C193,7) -> 6.2.02. | J193: =IFERROR(VLOOKUP(ROWS($J$2:J193),$B$2:$C$361,2,0),"") -> 6.3.02.02 Beban Promosi wartawan
A194: 193 | B194: =IF(ISNUMBER(SEARCH($L$2,C194)),MAX(B$1:$B193)+1,0) -> 182 | C194: 6.2.02.02 Beban Perbaikan dan Renovasi | D194: Debit | E194: 0 | F194: =SUMIF('neraca saldo'!C:C,COA!C194,'neraca saldo'!H:H) -> 0 | I194: 6.2.02. | J194: =IFERROR(VLOOKUP(ROWS($J$2:J194),$B$2:$C$361,2,0),"") -> 6.3.02.03 Beban Dana Sosial
A195: 194 | B195: =IF(ISNUMBER(SEARCH($L$2,C195)),MAX(B$1:$B194)+1,0) -> 183 | C195: 6.2.03.01 Beban Tim SAR | D195: Debit | E195: 0 | F195: =SUMIF('neraca saldo'!C:C,COA!C195,'neraca saldo'!H:H) -> 0 | I195: 6.2.03. | J195: =IFERROR(VLOOKUP(ROWS($J$2:J195),$B$2:$C$361,2,0),"") -> 7.1.01.01 Pendapatan Bunga Bank
A196: 195 | B196: =IF(ISNUMBER(SEARCH($L$2,C196)),MAX(B$1:$B195)+1,0) -> 184 | C196: 6.2.03.02 Beban P3K | D196: Debit | E196: 0 | F196: =SUMIF('neraca saldo'!C:C,COA!C196,'neraca saldo'!H:H) -> 0 | I196: 6.2.03. | J196: =IFERROR(VLOOKUP(ROWS($J$2:J196),$B$2:$C$361,2,0),"") -> 7.1.01.02 Pendapatan Jasa Agen BRILink
A197: 196 | B197: =IF(ISNUMBER(SEARCH($L$2,C197)),MAX(B$1:$B196)+1,0) -> 185 | C197: 6.2.99.01 Beban Komunikasi | D197: Debit | E197: 0 | F197: =SUMIF('neraca saldo'!C:C,COA!C197,'neraca saldo'!H:H) -> 0 | I197: 6.2.99. | J197: =IFERROR(VLOOKUP(ROWS($J$2:J197),$B$2:$C$361,2,0),"") -> 7.1.01.03 Pendapatan Jasa Agen BNI
A198: 197 | B198: =IF(ISNUMBER(SEARCH($L$2,C198)),MAX(B$1:$B197)+1,0) -> 186 | C198: 6.2.99.02 Beban Sewa Lokasi | D198: Debit | E198: 0 | F198: =SUMIF('neraca saldo'!C:C,COA!C198,'neraca saldo'!H:H) -> 0 | I198: 6.2.99. | J198: =IFERROR(VLOOKUP(ROWS($J$2:J198),$B$2:$C$361,2,0),"") -> 7.1.02.01 Pendapatan Dividen
A199: 198 | B199: =IF(ISNUMBER(SEARCH($L$2,C199)),MAX(B$1:$B198)+1,0) -> 187 | C199: 6.2.99.03 Beban Pakan Ikan | D199: Debit | E199: 0 | F199: =SUMIF('neraca saldo'!C:C,COA!C199,'neraca saldo'!H:H) -> 0 | I199: 6.2.99. | J199: =IFERROR(VLOOKUP(ROWS($J$2:J199),$B$2:$C$361,2,0),"") -> 7.1.03.01 Pendapatan Denda
A200: 199 | B200: =IF(ISNUMBER(SEARCH($L$2,C200)),MAX(B$1:$B199)+1,0) -> 0 | C200: 6.2.99.99 Beban Operasional Lainnya | D200: Debit | E200: 0 | F200: =SUMIF('neraca saldo'!C:C,COA!C200,'neraca saldo'!H:H) -> 0 | I200: 6.2.99. | J200: =IFERROR(VLOOKUP(ROWS($J$2:J200),$B$2:$C$361,2,0),"") -> 7.1.04.01 Pendapatan Iklan
... 161 more rows

Sheet Reff (hidden)
A1: Buku Pembantu Piutang/Utang
B2: Piutang_Usaha | C2: Piutang_kepada_Pegawai | D2: Piutang_Lainnya | E2: Utang_Usaha
A4: Komponen Laporan Arus Kas
B5: Kas_Masuk_Operasi | C5: Kas_Keluar_Operasi | D5: Kas_Masuk_Investasi | E5: Kas_Keluar_Investasi | F5: Kas_Masuk_Pendanaan | G5: Kas_Keluar_Pendanaan
B6: Penerimaan kas dari penjualan jasa
B7: Penerimaan kas dari penjualan barang dagangan
B8: Penerimaan kas dari penjualan barang jadi
B9: penerimaan kas dari bunga dan deviden
B10: penerimaan kas dari bunga bank
B11: penerimaan kas dari cicilan pinjaman
B12: penerimaan kas dari jasa pinjaman
B15: Kas_Keluar_Operasi
B16: Pengeluaran kas untuk pembayaran ke pemasok barang
B17: Pengeluaran kas untuk pembayaran gaji/upah pegawai/karyawan
B18: Pengeluaran kas untku pembayaran pajak
B19: Pengeluaran kas untuk pembayaran bunga
B20: Pengeluaran kas untuk pembayaran beban-beban yang lain
B21: Pengeluaran kas untuk pinjaman
B24: Kas_Masuk_Investasi
B25: Penerimaan Kas dari Penjualan Aset Tetap
B26: Penerimaan Kas dari Penjualan Investasi
B29: Kas_Keluar_Investasi
B30: Pengeluaran Kas untuk Pembelian Aset Tetap
B31: Pengeluaran Kas untuk Pembelian Investasi
B34: Kas_Masuk_Pendanaan
B35: Penerimaan kas dari penyertaan modal desa
B36: Penerimaan kas dari penyertaan modal masyarakat
B37: Penerimaan kas dari Donasi/Sumbangan
B38: Penerimaan kas dari utang jangka panjang
B39: Penerimaan kas dari RK Pusat
B41: Kas_Keluar_Pendanaan
B42: Pembayaran bagi hasil penyertaan modal desa
B43: Pembayaran bagi hasil penyertaan modal masyarakat
B44: Pembayaran pokok utang jangka panjang
B45: Pembayaran Modal RK Unit
A49: No | B49: Bulan | C49: Akhir Bulan
A50: 1 | B50: Januari | C50: 31 Januari
A51: 2 | B51: Februari | C51: 28 Februari
A52: 3 | B52: Maret | C52: 31 Maret
A53: 4 | B53: April | C53: 30 April
A54: 5 | B54: Mei | C54: 31 Mei
A55: 6 | B55: Juni | C55: 30 Juni
A56: 7 | B56: Juli | C56: 31 Juli
A57: 8 | B57: Agustus | C57: 31 Agustus
A58: 9 | B58: September | C58: 30 September
A59: 10 | B59: Oktober | C59: 31 Oktober
A60: 11 | B60: November | C60: 30 November
A61: 12 | B61: Desember | C61: 31 Desember
A64: Status Pinjaman
A65: Saldo Awal Piutang SPP
A66: Saldo Awal Piutang UEP
A67: Saldo Awal Piutang Usaha
A68: Saldo Awal Piutang Pegawai
A69: Saldo Awal Simpanan Nasabah
A70: Saldo Awal Aset Tetap
A71: Saldo Awal Utang
A72: Saldo Awal Persediaan
A73: Saldo Awal Bahan Baku
A74: Cicilan Tunggakan Jasa
A75: Cicilan Tunggakan Pokok
A76: Cicilan 1
A77: Cicilan 2
A78: Cicilan 3
A79: Cicilan 4
A80: Cicilan 5
A81: Cicilan 6
A82: Cicilan 7
A83: Cicilan 8
A84: Cicilan 9
A85: Cicilan 10
A86: Cicilan 11
A87: Cicilan 12
A88: Cicilan 13
A89: Cicilan 14
A90: Cicilan 15
A91: Cicilan 16
A92: Cicilan 17
A93: Cicilan 18
A94: Cicilan 19
A95: Cicilan 20
A96: Cicilan 21
A97: Cicilan 22
A98: Cicilan 23
A99: Cicilan 24
A100: Cicilan 25
A101: Cicilan 26
A102: Cicilan 27
A103: Cicilan 28
A104: Cicilan 29
A105: Cicilan 30
A106: Cicilan 31
A107: Cicilan 32
A108: Cicilan 33
A109: Cicilan 34
A110: Cicilan 35
A111: Cicilan 36
A112: Cicilan 37
A113: Cicilan 38
A114: Cicilan 39
A115: Cicilan 40
A116: Cicilan 41
A117: Cicilan 42
A118: Cicilan 43
A119: Cicilan 44
A120: Cicilan 45
A121: Cicilan 46
A122: Cicilan 47
A123: Cicilan 48
A124: Cicilan 49
A125: Cicilan 50
A126: Cicilan 51
A127: Cicilan 52
A128: Cicilan 53
A129: Cicilan 54
A130: Cicilan 55
A131: Cicilan 56
A132: Cicilan 57
A133: Cicilan 58
A134: Cicilan 59
A135: Cicilan 60
A136: Lunas
A137: Penyusutan Tahun ke-1
A138: Penyusutan Tahun ke-2
A139: Penyusutan Tahun ke-3
A140: Penyusutan Tahun ke-4
A141: Penyusutan Tahun ke-5
A142: Penyusutan Tahun ke-6
A143: Penyusutan Tahun ke-7
A144: Penyusutan Tahun ke-8
A145: Penyusutan Tahun ke-9
A146: Penyusutan Tahun ke-10
A147: Penyusutan Tahun ke-11
A148: Penyusutan Tahun ke-12
A149: Penyusutan Tahun ke-13
A150: Penyusutan Tahun ke-14
A151: Penyusutan Tahun ke-15
A152: Penyusutan Tahun ke-16
A153: Penyusutan Tahun ke-17
A154: Penyusutan Tahun ke-18
A155: Penyusutan Tahun ke-19
A156: Penyusutan Tahun ke-20

Sheet DAFTAR
A1: edit atau tambahkan nama nasabah/penyedia/persediaan dalam range warna
A2: aph | B2: Kd | C2: DAFTAR NASABAH PINJAM/ DEBITUR | D2: GULIR KE- | E2: TANGGAL GULIR TERAKHIR | F2: JANGKA WAKTU PINJAMAN (BULAN) | G2: Daftar Kemungkinan yang Dicari | I2: Cari | K2: Rumus | N2: Kd | O2: DAFTAR PENYEDIA/KREDITUR | P2: Daftar Kemungkinan yang Dicari | R2: Cari | S2: Rumus | V2: Kd | W2: DAFTAR PERSEDIAAN | X2: Daftar Kemungkinan yang Dicari | Z2: Cari | AA2: Rumus | AD2: Kd | AE2: DAFTAR NASABAH SIMPAN | AH2: Kd | AI2: DAFTAR ASET | AL2: Kd | AM2: DAFTAR PERSEDIAAN BAHAN BAKU
A3: =ROW()-2 -> 1 | B3: =IF(ISNUMBER(SEARCH($I$3,C3)),MAX(B$2:$B2)+1,0) -> 0 | G3: =IFERROR(VLOOKUP(ROWS($G$3:G3),$B$3:$C$502,2,0),"") ->  | I3: =CELL("contents") -> 0 | K3: =OFFSET($G$3,,,COUNTIF($G$3:$G$51,"?*")) ->  | M3: =ROW()-2 -> 1 | N3: =IF(ISNUMBER(SEARCH($R$3,O3)),MAX($N$2:N2)+1,0) -> 0 | P3: =IFERROR(VLOOKUP(ROWS($P$3:P3),$N$3:$O$502,2,0),"") ->  | R3: =CELL("contents") -> 0 | S3: =OFFSET($P$3,,,COUNTIF($P$3:$P$51,"?*")) ->  | U3: =ROW()-2 -> 1 | V3: =IF(ISNUMBER(SEARCH($Z$3,W3)),MAX($V$2:V2)+1,0) -> 0 | X3: =IFERROR(VLOOKUP(ROWS($X$3:X3),$V$3:$W$502,2,0),"") ->  | Z3: =CELL("contents") -> 0 | AA3: =OFFSET($X$3,,,COUNTIF($X$3:$X$51,"?*")) ->  | AC3: 1 | AD3: 0 | AG3: 1 | AH3: 0 | AK3: 1 | AL3: 0
A4: =ROW()-2 -> 2 | B4: =IF(ISNUMBER(SEARCH($I$3,C4)),MAX(B$2:$B3)+1,0) -> 0 | G4: =IFERROR(VLOOKUP(ROWS($G$3:G4),$B$3:$C$502,2,0),"") ->  | M4: =ROW()-2 -> 2 | N4: =IF(ISNUMBER(SEARCH($R$3,O4)),MAX($N$2:N3)+1,0) -> 0 | P4: =IFERROR(VLOOKUP(ROWS($P$3:P4),$N$3:$O$502,2,0),"") ->  | U4: =ROW()-2 -> 2 | V4: =IF(ISNUMBER(SEARCH($Z$3,W4)),MAX($V$2:V3)+1,0) -> 0 | X4: =IFERROR(VLOOKUP(ROWS($X$3:X4),$V$3:$W$502,2,0),"") ->  | AC4: 2 | AD4: 0 | AG4: 2 | AH4: 0 | AK4: 2 | AL4: 0
A5: 3 | B5: =IF(ISNUMBER(SEARCH($I$3,C5)),MAX(B$2:$B4)+1,0) -> 0 | G5: =IFERROR(VLOOKUP(ROWS($G$3:G5),$B$3:$C$502,2,0),"") ->  | M5: 3 | N5: =IF(ISNUMBER(SEARCH($R$3,O5)),MAX($N$2:N4)+1,0) -> 0 | P5: =IFERROR(VLOOKUP(ROWS($P$3:P5),$N$3:$O$502,2,0),"") ->  | U5: 3 | V5: =IF(ISNUMBER(SEARCH($Z$3,W5)),MAX($V$2:V4)+1,0) -> 0 | X5: =IFERROR(VLOOKUP(ROWS($X$3:X5),$V$3:$W$502,2,0),"") ->  | AC5: 3 | AD5: 0 | AG5: 3 | AH5: 0 | AK5: 3 | AL5: 0
A6: 4 | B6: =IF(ISNUMBER(SEARCH($I$3,C6)),MAX(B$2:$B5)+1,0) -> 0 | G6: =IFERROR(VLOOKUP(ROWS($G$3:G6),$B$3:$C$502,2,0),"") ->  | M6: 4 | N6: =IF(ISNUMBER(SEARCH($R$3,O6)),MAX($N$2:N5)+1,0) -> 0 | P6: =IFERROR(VLOOKUP(ROWS($P$3:P6),$N$3:$O$502,2,0),"") ->  | U6: 4 | V6: =IF(ISNUMBER(SEARCH($Z$3,W6)),MAX($V$2:V5)+1,0) -> 0 | X6: =IFERROR(VLOOKUP(ROWS($X$3:X6),$V$3:$W$502,2,0),"") ->  | AC6: 4 | AD6: 0 | AG6: 4 | AH6: 0 | AK6: 4 | AL6: 0
A7: 5 | B7: =IF(ISNUMBER(SEARCH($I$3,C7)),MAX(B$2:$B6)+1,0) -> 0 | G7: =IFERROR(VLOOKUP(ROWS($G$3:G7),$B$3:$C$502,2,0),"") ->  | M7: 5 | N7: =IF(ISNUMBER(SEARCH($R$3,O7)),MAX($N$2:N6)+1,0) -> 0 | P7: =IFERROR(VLOOKUP(ROWS($P$3:P7),$N$3:$O$502,2,0),"") ->  | U7: 5 | V7: =IF(ISNUMBER(SEARCH($Z$3,W7)),MAX($V$2:V6)+1,0) -> 0 | X7: =IFERROR(VLOOKUP(ROWS($X$3:X7),$V$3:$W$502,2,0),"") ->  | AC7: 5 | AD7: 0 | AG7: 5 | AH7: 0 | AK7: 5 | AL7: 0
A8: 6 | B8: =IF(ISNUMBER(SEARCH($I$3,C8)),MAX(B$2:$B7)+1,0) -> 0 | G8: =IFERROR(VLOOKUP(ROWS($G$3:G8),$B$3:$C$502,2,0),"") ->  | M8: 6 | N8: =IF(ISNUMBER(SEARCH($R$3,O8)),MAX($N$2:N7)+1,0) -> 0 | P8: =IFERROR(VLOOKUP(ROWS($P$3:P8),$N$3:$O$502,2,0),"") ->  | U8: 6 | V8: =IF(ISNUMBER(SEARCH($Z$3,W8)),MAX($V$2:V7)+1,0) -> 0 | X8: =IFERROR(VLOOKUP(ROWS($X$3:X8),$V$3:$W$502,2,0),"") ->  | AC8: 6 | AD8: 0 | AG8: 6 | AH8: 0 | AK8: 6 | AL8: 0
A9: 7 | B9: =IF(ISNUMBER(SEARCH($I$3,C9)),MAX(B$2:$B6)+1,0) -> 0 | G9: =IFERROR(VLOOKUP(ROWS($G$3:G9),$B$3:$C$502,2,0),"") ->  | M9: 7 | N9: =IF(ISNUMBER(SEARCH($R$3,O9)),MAX($N$2:N8)+1,0) -> 0 | P9: =IFERROR(VLOOKUP(ROWS($P$3:P9),$N$3:$O$502,2,0),"") ->  | U9: 7 | V9: =IF(ISNUMBER(SEARCH($Z$3,W9)),MAX($V$2:V8)+1,0) -> 0 | X9: =IFERROR(VLOOKUP(ROWS($X$3:X9),$V$3:$W$502,2,0),"") ->  | AC9: 7 | AD9: 0 | AG9: 7 | AH9: 0 | AK9: 7 | AL9: 0
A10: 8 | B10: =IF(ISNUMBER(SEARCH($I$3,C10)),MAX(B$2:$B7)+1,0) -> 0 | G10: =IFERROR(VLOOKUP(ROWS($G$3:G10),$B$3:$C$502,2,0),"") ->  | M10: 8 | N10: =IF(ISNUMBER(SEARCH($R$3,O10)),MAX($N$2:N9)+1,0) -> 0 | P10: =IFERROR(VLOOKUP(ROWS($P$3:P10),$N$3:$O$502,2,0),"") ->  | U10: 8 | V10: =IF(ISNUMBER(SEARCH($Z$3,W10)),MAX($V$2:V9)+1,0) -> 0 | X10: =IFERROR(VLOOKUP(ROWS($X$3:X10),$V$3:$W$502,2,0),"") ->  | AC10: 8 | AD10: 0 | AG10: 8 | AH10: 0 | AK10: 8 | AL10: 0
A11: 9 | B11: =IF(ISNUMBER(SEARCH($I$3,C11)),MAX(B$2:$B6)+1,0) -> 0 | G11: =IFERROR(VLOOKUP(ROWS($G$3:G11),$B$3:$C$502,2,0),"") ->  | M11: 9 | N11: =IF(ISNUMBER(SEARCH($R$3,O11)),MAX($N$2:N10)+1,0) -> 0 | P11: =IFERROR(VLOOKUP(ROWS($P$3:P11),$N$3:$O$502,2,0),"") ->  | U11: 9 | V11: =IF(ISNUMBER(SEARCH($Z$3,W11)),MAX($V$2:V10)+1,0) -> 0 | X11: =IFERROR(VLOOKUP(ROWS($X$3:X11),$V$3:$W$502,2,0),"") ->  | AC11: 9 | AD11: 0 | AG11: 9 | AH11: 0 | AK11: 9 | AL11: 0
A12: 10 | B12: =IF(ISNUMBER(SEARCH($I$3,C12)),MAX(B$2:$B11)+1,0) -> 0 | G12: =IFERROR(VLOOKUP(ROWS($G$3:G12),$B$3:$C$502,2,0),"") ->  | M12: 10 | N12: =IF(ISNUMBER(SEARCH($R$3,O12)),MAX($N$2:N11)+1,0) -> 0 | P12: =IFERROR(VLOOKUP(ROWS($P$3:P12),$N$3:$O$502,2,0),"") ->  | U12: 10 | V12: =IF(ISNUMBER(SEARCH($Z$3,W12)),MAX($V$2:V11)+1,0) -> 0 | X12: =IFERROR(VLOOKUP(ROWS($X$3:X12),$V$3:$W$502,2,0),"") ->  | AC12: 10 | AD12: 0 | AG12: 10 | AH12: 0 | AK12: 10 | AL12: 0
A13: 11 | B13: =IF(ISNUMBER(SEARCH($I$3,C13)),MAX(B$2:$B12)+1,0) -> 0 | G13: =IFERROR(VLOOKUP(ROWS($G$3:G13),$B$3:$C$502,2,0),"") ->  | M13: 11 | N13: =IF(ISNUMBER(SEARCH($R$3,O13)),MAX($N$2:N12)+1,0) -> 0 | P13: =IFERROR(VLOOKUP(ROWS($P$3:P13),$N$3:$O$502,2,0),"") ->  | U13: 11 | V13: =IF(ISNUMBER(SEARCH($Z$3,W13)),MAX($V$2:V12)+1,0) -> 0 | X13: =IFERROR(VLOOKUP(ROWS($X$3:X13),$V$3:$W$502,2,0),"") ->  | AC13: 11 | AD13: 0 | AG13: 11 | AH13: 0 | AK13: 11 | AL13: 0
A14: 12 | B14: =IF(ISNUMBER(SEARCH($I$3,C14)),MAX(B$2:$B13)+1,0) -> 0 | G14: =IFERROR(VLOOKUP(ROWS($G$3:G14),$B$3:$C$502,2,0),"") ->  | M14: 12 | N14: =IF(ISNUMBER(SEARCH($R$3,O14)),MAX($N$2:N13)+1,0) -> 0 | P14: =IFERROR(VLOOKUP(ROWS($P$3:P14),$N$3:$O$502,2,0),"") ->  | U14: 12 | V14: =IF(ISNUMBER(SEARCH($Z$3,W14)),MAX($V$2:V13)+1,0) -> 0 | X14: =IFERROR(VLOOKUP(ROWS($X$3:X14),$V$3:$W$502,2,0),"") ->  | AC14: 12 | AD14: 0 | AG14: 12 | AH14: 0 | AK14: 12 | AL14: 0
A15: 13 | B15: =IF(ISNUMBER(SEARCH($I$3,C15)),MAX(B$2:$B14)+1,0) -> 0 | G15: =IFERROR(VLOOKUP(ROWS($G$3:G15),$B$3:$C$502,2,0),"") ->  | M15: 13 | N15: =IF(ISNUMBER(SEARCH($R$3,O15)),MAX($N$2:N14)+1,0) -> 0 | P15: =IFERROR(VLOOKUP(ROWS($P$3:P15),$N$3:$O$502,2,0),"") ->  | U15: 13 | V15: =IF(ISNUMBER(SEARCH($Z$3,W15)),MAX($V$2:V14)+1,0) -> 0 | X15: =IFERROR(VLOOKUP(ROWS($X$3:X15),$V$3:$W$502,2,0),"") ->  | AC15: 13 | AD15: 0 | AG15: 13 | AH15: 0 | AK15: 13 | AL15: 0
A16: 14 | B16: =IF(ISNUMBER(SEARCH($I$3,C16)),MAX(B$2:$B15)+1,0) -> 0 | G16: =IFERROR(VLOOKUP(ROWS($G$3:G16),$B$3:$C$502,2,0),"") ->  | M16: 14 | N16: =IF(ISNUMBER(SEARCH($R$3,O16)),MAX($N$2:N15)+1,0) -> 0 | P16: =IFERROR(VLOOKUP(ROWS($P$3:P16),$N$3:$O$502,2,0),"") ->  | U16: 14 | V16: =IF(ISNUMBER(SEARCH($Z$3,W16)),MAX($V$2:V15)+1,0) -> 0 | X16: =IFERROR(VLOOKUP(ROWS($X$3:X16),$V$3:$W$502,2,0),"") ->  | AC16: 14 | AD16: 0 | AG16: 14 | AH16: 0 | AK16: 14 | AL16: 0
A17: 15 | B17: =IF(ISNUMBER(SEARCH($I$3,C17)),MAX(B$2:$B16)+1,0) -> 0 | G17: =IFERROR(VLOOKUP(ROWS($G$3:G17),$B$3:$C$502,2,0),"") ->  | M17: 15 | N17: =IF(ISNUMBER(SEARCH($R$3,O17)),MAX($N$2:N16)+1,0) -> 0 | P17: =IFERROR(VLOOKUP(ROWS($P$3:P17),$N$3:$O$502,2,0),"") ->  | U17: 15 | V17: =IF(ISNUMBER(SEARCH($Z$3,W17)),MAX($V$2:V16)+1,0) -> 0 | X17: =IFERROR(VLOOKUP(ROWS($X$3:X17),$V$3:$W$502,2,0),"") ->  | AC17: 15 | AD17: 0 | AG17: 15 | AH17: 0 | AK17: 15 | AL17: 0
A18: 16 | B18: =IF(ISNUMBER(SEARCH($I$3,C18)),MAX(B$2:$B17)+1,0) -> 0 | G18: =IFERROR(VLOOKUP(ROWS($G$3:G18),$B$3:$C$502,2,0),"") ->  | M18: 16 | N18: =IF(ISNUMBER(SEARCH($R$3,O18)),MAX($N$2:N17)+1,0) -> 0 | P18: =IFERROR(VLOOKUP(ROWS($P$3:P18),$N$3:$O$502,2,0),"") ->  | U18: 16 | V18: =IF(ISNUMBER(SEARCH($Z$3,W18)),MAX($V$2:V17)+1,0) -> 0 | X18: =IFERROR(VLOOKUP(ROWS($X$3:X18),$V$3:$W$502,2,0),"") ->  | AC18: 16 | AD18: 0 | AG18: 16 | AH18: 0 | AK18: 16 | AL18: 0
A19: 17 | B19: =IF(ISNUMBER(SEARCH($I$3,C19)),MAX(B$2:$B18)+1,0) -> 0 | G19: =IFERROR(VLOOKUP(ROWS($G$3:G19),$B$3:$C$502,2,0),"") ->  | M19: 17 | N19: =IF(ISNUMBER(SEARCH($R$3,O19)),MAX($N$2:N18)+1,0) -> 0 | P19: =IFERROR(VLOOKUP(ROWS($P$3:P19),$N$3:$O$502,2,0),"") ->  | U19: 17 | V19: =IF(ISNUMBER(SEARCH($Z$3,W19)),MAX($V$2:V18)+1,0) -> 0 | X19: =IFERROR(VLOOKUP(ROWS($X$3:X19),$V$3:$W$502,2,0),"") ->  | AC19: 17 | AD19: 0 | AG19: 17 | AH19: 0 | AK19: 17 | AL19: 0
A20: 18 | B20: =IF(ISNUMBER(SEARCH($I$3,C20)),MAX(B$2:$B17)+1,0) -> 0 | G20: =IFERROR(VLOOKUP(ROWS($G$3:G20),$B$3:$C$502,2,0),"") ->  | M20: 18 | N20: =IF(ISNUMBER(SEARCH($R$3,O20)),MAX($N$2:N19)+1,0) -> 0 | P20: =IFERROR(VLOOKUP(ROWS($P$3:P20),$N$3:$O$502,2,0),"") ->  | U20: 18 | V20: =IF(ISNUMBER(SEARCH($Z$3,W20)),MAX($V$2:V19)+1,0) -> 0 | X20: =IFERROR(VLOOKUP(ROWS($X$3:X20),$V$3:$W$502,2,0),"") ->  | AC20: 18 | AD20: 0 | AG20: 18 | AH20: 0 | AK20: 18 | AL20: 0
A21: 19 | B21: =IF(ISNUMBER(SEARCH($I$3,C21)),MAX(B$2:$B20)+1,0) -> 0 | G21: =IFERROR(VLOOKUP(ROWS($G$3:G21),$B$3:$C$502,2,0),"") ->  | M21: 19 | N21: =IF(ISNUMBER(SEARCH($R$3,O21)),MAX($N$2:N20)+1,0) -> 0 | P21: =IFERROR(VLOOKUP(ROWS($P$3:P21),$N$3:$O$502,2,0),"") ->  | U21: 19 | V21: =IF(ISNUMBER(SEARCH($Z$3,W21)),MAX($V$2:V20)+1,0) -> 0 | X21: =IFERROR(VLOOKUP(ROWS($X$3:X21),$V$3:$W$502,2,0),"") ->  | AC21: 19 | AD21: 0 | AG21: 19 | AH21: 0 | AK21: 19 | AL21: 0
A22: 20 | B22: =IF(ISNUMBER(SEARCH($I$3,C22)),MAX(B$2:$B21)+1,0) -> 0 | G22: =IFERROR(VLOOKUP(ROWS($G$3:G22),$B$3:$C$502,2,0),"") ->  | M22: 20 | N22: =IF(ISNUMBER(SEARCH($R$3,O22)),MAX($N$2:N21)+1,0) -> 0 | P22: =IFERROR(VLOOKUP(ROWS($P$3:P22),$N$3:$O$502,2,0),"") ->  | U22: 20 | V22: =IF(ISNUMBER(SEARCH($Z$3,W22)),MAX($V$2:V21)+1,0) -> 0 | X22: =IFERROR(VLOOKUP(ROWS($X$3:X22),$V$3:$W$502,2,0),"") ->  | AC22: 20 | AD22: 0 | AG22: 20 | AH22: 0 | AK22: 20 | AL22: 0
A23: 21 | B23: =IF(ISNUMBER(SEARCH($I$3,C23)),MAX(B$2:$B22)+1,0) -> 0 | G23: =IFERROR(VLOOKUP(ROWS($G$3:G23),$B$3:$C$502,2,0),"") ->  | M23: 21 | N23: =IF(ISNUMBER(SEARCH($R$3,O23)),MAX($N$2:N22)+1,0) -> 0 | P23: =IFERROR(VLOOKUP(ROWS($P$3:P23),$N$3:$O$502,2,0),"") ->  | U23: 21 | V23: =IF(ISNUMBER(SEARCH($Z$3,W23)),MAX($V$2:V22)+1,0) -> 0 | X23: =IFERROR(VLOOKUP(ROWS($X$3:X23),$V$3:$W$502,2,0),"") ->  | AC23: 21 | AD23: 0 | AG23: 21 | AH23: 0 | AK23: 21 | AL23: 0
A24: 22 | B24: =IF(ISNUMBER(SEARCH($I$3,C24)),MAX(B$2:$B23)+1,0) -> 0 | G24: =IFERROR(VLOOKUP(ROWS($G$3:G24),$B$3:$C$502,2,0),"") ->  | M24: 22 | N24: =IF(ISNUMBER(SEARCH($R$3,O24)),MAX($N$2:N23)+1,0) -> 0 | P24: =IFERROR(VLOOKUP(ROWS($P$3:P24),$N$3:$O$502,2,0),"") ->  | U24: 22 | V24: =IF(ISNUMBER(SEARCH($Z$3,W24)),MAX($V$2:V23)+1,0) -> 0 | X24: =IFERROR(VLOOKUP(ROWS($X$3:X24),$V$3:$W$502,2,0),"") ->  | AC24: 22 | AD24: 0 | AG24: 22 | AH24: 0 | AK24: 22 | AL24: 0
A25: 23 | B25: =IF(ISNUMBER(SEARCH($I$3,C25)),MAX(B$2:$B24)+1,0) -> 0 | G25: =IFERROR(VLOOKUP(ROWS($G$3:G25),$B$3:$C$502,2,0),"") ->  | M25: 23 | N25: =IF(ISNUMBER(SEARCH($R$3,O25)),MAX($N$2:N24)+1,0) -> 0 | P25: =IFERROR(VLOOKUP(ROWS($P$3:P25),$N$3:$O$502,2,0),"") ->  | U25: 23 | V25: =IF(ISNUMBER(SEARCH($Z$3,W25)),MAX($V$2:V24)+1,0) -> 0 | X25: =IFERROR(VLOOKUP(ROWS($X$3:X25),$V$3:$W$502,2,0),"") ->  | AC25: 23 | AD25: 0 | AG25: 23 | AH25: 0 | AK25: 23 | AL25: 0
A26: 24 | B26: =IF(ISNUMBER(SEARCH($I$3,C26)),MAX(B$2:$B25)+1,0) -> 0 | G26: =IFERROR(VLOOKUP(ROWS($G$3:G26),$B$3:$C$502,2,0),"") ->  | M26: 24 | N26: =IF(ISNUMBER(SEARCH($R$3,O26)),MAX($N$2:N25)+1,0) -> 0 | P26: =IFERROR(VLOOKUP(ROWS($P$3:P26),$N$3:$O$502,2,0),"") ->  | U26: 24 | V26: =IF(ISNUMBER(SEARCH($Z$3,W26)),MAX($V$2:V25)+1,0) -> 0 | X26: =IFERROR(VLOOKUP(ROWS($X$3:X26),$V$3:$W$502,2,0),"") ->  | AC26: 24 | AD26: 0 | AG26: 24 | AH26: 0 | AK26: 24 | AL26: 0
A27: 25 | B27: =IF(ISNUMBER(SEARCH($I$3,C27)),MAX(B$2:$B26)+1,0) -> 0 | G27: =IFERROR(VLOOKUP(ROWS($G$3:G27),$B$3:$C$502,2,0),"") ->  | M27: 25 | N27: =IF(ISNUMBER(SEARCH($R$3,O27)),MAX($N$2:N26)+1,0) -> 0 | P27: =IFERROR(VLOOKUP(ROWS($P$3:P27),$N$3:$O$502,2,0),"") ->  | U27: 25 | V27: =IF(ISNUMBER(SEARCH($Z$3,W27)),MAX($V$2:V26)+1,0) -> 0 | X27: =IFERROR(VLOOKUP(ROWS($X$3:X27),$V$3:$W$502,2,0),"") ->  | AC27: 25 | AD27: 0 | AG27: 25 | AH27: 0 | AK27: 25 | AL27: 0
A28: 26 | B28: =IF(ISNUMBER(SEARCH($I$3,C28)),MAX(B$2:$B27)+1,0) -> 0 | G28: =IFERROR(VLOOKUP(ROWS($G$3:G28),$B$3:$C$502,2,0),"") ->  | M28: 26 | N28: =IF(ISNUMBER(SEARCH($R$3,O28)),MAX($N$2:N27)+1,0) -> 0 | P28: =IFERROR(VLOOKUP(ROWS($P$3:P28),$N$3:$O$502,2,0),"") ->  | U28: 26 | V28: =IF(ISNUMBER(SEARCH($Z$3,W28)),MAX($V$2:V27)+1,0) -> 0 | X28: =IFERROR(VLOOKUP(ROWS($X$3:X28),$V$3:$W$502,2,0),"") ->  | AC28: 26 | AD28: 0 | AG28: 26 | AH28: 0 | AK28: 26 | AL28: 0
A29: 27 | B29: =IF(ISNUMBER(SEARCH($I$3,C29)),MAX(B$2:$B28)+1,0) -> 0 | G29: =IFERROR(VLOOKUP(ROWS($G$3:G29),$B$3:$C$502,2,0),"") ->  | M29: 27 | N29: =IF(ISNUMBER(SEARCH($R$3,O29)),MAX($N$2:N28)+1,0) -> 0 | P29: =IFERROR(VLOOKUP(ROWS($P$3:P29),$N$3:$O$502,2,0),"") ->  | U29: 27 | V29: =IF(ISNUMBER(SEARCH($Z$3,W29)),MAX($V$2:V28)+1,0) -> 0 | X29: =IFERROR(VLOOKUP(ROWS($X$3:X29),$V$3:$W$502,2,0),"") ->  | AC29: 27 | AD29: 0 | AG29: 27 | AH29: 0 | AK29: 27 | AL29: 0
A30: 28 | B30: =IF(ISNUMBER(SEARCH($I$3,C30)),MAX(B$2:$B29)+1,0) -> 0 | G30: =IFERROR(VLOOKUP(ROWS($G$3:G30),$B$3:$C$502,2,0),"") ->  | M30: 28 | N30: =IF(ISNUMBER(SEARCH($R$3,O30)),MAX($N$2:N29)+1,0) -> 0 | P30: =IFERROR(VLOOKUP(ROWS($P$3:P30),$N$3:$O$502,2,0),"") ->  | U30: 28 | V30: =IF(ISNUMBER(SEARCH($Z$3,W30)),MAX($V$2:V29)+1,0) -> 0 | X30: =IFERROR(VLOOKUP(ROWS($X$3:X30),$V$3:$W$502,2,0),"") ->  | AC30: 28 | AD30: 0 | AG30: 28 | AH30: 0 | AK30: 28 | AL30: 0
A31: 29 | B31: =IF(ISNUMBER(SEARCH($I$3,C31)),MAX(B$2:$B30)+1,0) -> 0 | G31: =IFERROR(VLOOKUP(ROWS($G$3:G31),$B$3:$C$502,2,0),"") ->  | M31: 29 | N31: =IF(ISNUMBER(SEARCH($R$3,O31)),MAX($N$2:N30)+1,0) -> 0 | P31: =IFERROR(VLOOKUP(ROWS($P$3:P31),$N$3:$O$502,2,0),"") ->  | U31: 29 | V31: =IF(ISNUMBER(SEARCH($Z$3,W31)),MAX($V$2:V30)+1,0) -> 0 | X31: =IFERROR(VLOOKUP(ROWS($X$3:X31),$V$3:$W$502,2,0),"") ->  | AC31: 29 | AD31: 0 | AG31: 29 | AH31: 0 | AK31: 29 | AL31: 0
A32: 30 | B32: =IF(ISNUMBER(SEARCH($I$3,C32)),MAX(B$2:$B31)+1,0) -> 0 | G32: =IFERROR(VLOOKUP(ROWS($G$3:G32),$B$3:$C$502,2,0),"") ->  | M32: 30 | N32: =IF(ISNUMBER(SEARCH($R$3,O32)),MAX($N$2:N31)+1,0) -> 0 | P32: =IFERROR(VLOOKUP(ROWS($P$3:P32),$N$3:$O$502,2,0),"") ->  | U32: 30 | V32: =IF(ISNUMBER(SEARCH($Z$3,W32)),MAX($V$2:V31)+1,0) -> 0 | X32: =IFERROR(VLOOKUP(ROWS($X$3:X32),$V$3:$W$502,2,0),"") ->  | AC32: 30 | AD32: 0 | AG32: 30 | AH32: 0 | AK32: 30 | AL32: 0
A33: 31 | B33: =IF(ISNUMBER(SEARCH($I$3,C33)),MAX(B$2:$B32)+1,0) -> 0 | G33: =IFERROR(VLOOKUP(ROWS($G$3:G33),$B$3:$C$502,2,0),"") ->  | M33: 31 | N33: =IF(ISNUMBER(SEARCH($R$3,O33)),MAX($N$2:N32)+1,0) -> 0 | P33: =IFERROR(VLOOKUP(ROWS($P$3:P33),$N$3:$O$502,2,0),"") ->  | U33: 31 | V33: =IF(ISNUMBER(SEARCH($Z$3,W33)),MAX($V$2:V32)+1,0) -> 0 | X33: =IFERROR(VLOOKUP(ROWS($X$3:X33),$V$3:$W$502,2,0),"") ->  | AC33: 31 | AD33: 0 | AG33: 31 | AH33: 0 | AK33: 31 | AL33: 0
A34: 32 | B34: =IF(ISNUMBER(SEARCH($I$3,C34)),MAX(B$2:$B33)+1,0) -> 0 | G34: =IFERROR(VLOOKUP(ROWS($G$3:G34),$B$3:$C$502,2,0),"") ->  | M34: 32 | N34: =IF(ISNUMBER(SEARCH($R$3,O34)),MAX($N$2:N33)+1,0) -> 0 | P34: =IFERROR(VLOOKUP(ROWS($P$3:P34),$N$3:$O$502,2,0),"") ->  | U34: 32 | V34: =IF(ISNUMBER(SEARCH($Z$3,W34)),MAX($V$2:V33)+1,0) -> 0 | X34: =IFERROR(VLOOKUP(ROWS($X$3:X34),$V$3:$W$502,2,0),"") ->  | AC34: 32 | AD34: 0 | AG34: 32 | AH34: 0 | AK34: 32 | AL34: 0
A35: 33 | B35: =IF(ISNUMBER(SEARCH($I$3,C35)),MAX(B$2:$B34)+1,0) -> 0 | G35: =IFERROR(VLOOKUP(ROWS($G$3:G35),$B$3:$C$502,2,0),"") ->  | M35: 33 | N35: =IF(ISNUMBER(SEARCH($R$3,O35)),MAX($N$2:N34)+1,0) -> 0 | P35: =IFERROR(VLOOKUP(ROWS($P$3:P35),$N$3:$O$502,2,0),"") ->  | U35: 33 | V35: =IF(ISNUMBER(SEARCH($Z$3,W35)),MAX($V$2:V34)+1,0) -> 0 | X35: =IFERROR(VLOOKUP(ROWS($X$3:X35),$V$3:$W$502,2,0),"") ->  | AC35: 33 | AD35: 0 | AG35: 33 | AH35: 0 | AK35: 33 | AL35: 0
A36: 34 | B36: =IF(ISNUMBER(SEARCH($I$3,C36)),MAX(B$2:$B35)+1,0) -> 0 | G36: =IFERROR(VLOOKUP(ROWS($G$3:G36),$B$3:$C$502,2,0),"") ->  | M36: 34 | N36: =IF(ISNUMBER(SEARCH($R$3,O36)),MAX($N$2:N35)+1,0) -> 0 | P36: =IFERROR(VLOOKUP(ROWS($P$3:P36),$N$3:$O$502,2,0),"") ->  | U36: 34 | V36: =IF(ISNUMBER(SEARCH($Z$3,W36)),MAX($V$2:V35)+1,0) -> 0 | X36: =IFERROR(VLOOKUP(ROWS($X$3:X36),$V$3:$W$502,2,0),"") ->  | AC36: 34 | AD36: 0 | AG36: 34 | AH36: 0 | AK36: 34 | AL36: 0
A37: 35 | B37: =IF(ISNUMBER(SEARCH($I$3,C37)),MAX(B$2:$B36)+1,0) -> 0 | G37: =IFERROR(VLOOKUP(ROWS($G$3:G37),$B$3:$C$502,2,0),"") ->  | M37: 35 | N37: =IF(ISNUMBER(SEARCH($R$3,O37)),MAX($N$2:N36)+1,0) -> 0 | P37: =IFERROR(VLOOKUP(ROWS($P$3:P37),$N$3:$O$502,2,0),"") ->  | U37: 35 | V37: =IF(ISNUMBER(SEARCH($Z$3,W37)),MAX($V$2:V36)+1,0) -> 0 | X37: =IFERROR(VLOOKUP(ROWS($X$3:X37),$V$3:$W$502,2,0),"") ->  | AC37: 35 | AD37: 0 | AG37: 35 | AH37: 0 | AK37: 35 | AL37: 0
A38: 36 | B38: =IF(ISNUMBER(SEARCH($I$3,C38)),MAX(B$2:$B37)+1,0) -> 0 | G38: =IFERROR(VLOOKUP(ROWS($G$3:G38),$B$3:$C$502,2,0),"") ->  | M38: 36 | N38: =IF(ISNUMBER(SEARCH($R$3,O38)),MAX($N$2:N37)+1,0) -> 0 | P38: =IFERROR(VLOOKUP(ROWS($P$3:P38),$N$3:$O$502,2,0),"") ->  | U38: 36 | V38: =IF(ISNUMBER(SEARCH($Z$3,W38)),MAX($V$2:V37)+1,0) -> 0 | X38: =IFERROR(VLOOKUP(ROWS($X$3:X38),$V$3:$W$502,2,0),"") ->  | AC38: 36 | AD38: 0 | AG38: 36 | AH38: 0 | AK38: 36 | AL38: 0
A39: 37 | B39: =IF(ISNUMBER(SEARCH($I$3,C39)),MAX(B$2:$B38)+1,0) -> 0 | G39: =IFERROR(VLOOKUP(ROWS($G$3:G39),$B$3:$C$502,2,0),"") ->  | M39: 37 | N39: =IF(ISNUMBER(SEARCH($R$3,O39)),MAX($N$2:N38)+1,0) -> 0 | P39: =IFERROR(VLOOKUP(ROWS($P$3:P39),$N$3:$O$502,2,0),"") ->  | U39: 37 | V39: =IF(ISNUMBER(SEARCH($Z$3,W39)),MAX($V$2:V38)+1,0) -> 0 | X39: =IFERROR(VLOOKUP(ROWS($X$3:X39),$V$3:$W$502,2,0),"") ->  | AC39: 37 | AD39: 0 | AG39: 37 | AH39: 0 | AK39: 37 | AL39: 0
A40: 38 | B40: =IF(ISNUMBER(SEARCH($I$3,C40)),MAX(B$2:$B39)+1,0) -> 0 | G40: =IFERROR(VLOOKUP(ROWS($G$3:G40),$B$3:$C$502,2,0),"") ->  | M40: 38 | N40: =IF(ISNUMBER(SEARCH($R$3,O40)),MAX($N$2:N39)+1,0) -> 0 | P40: =IFERROR(VLOOKUP(ROWS($P$3:P40),$N$3:$O$502,2,0),"") ->  | U40: 38 | V40: =IF(ISNUMBER(SEARCH($Z$3,W40)),MAX($V$2:V39)+1,0) -> 0 | X40: =IFERROR(VLOOKUP(ROWS($X$3:X40),$V$3:$W$502,2,0),"") ->  | AC40: 38 | AD40: 0 | AG40: 38 | AH40: 0 | AK40: 38 | AL40: 0
A41: 39 | B41: =IF(ISNUMBER(SEARCH($I$3,C41)),MAX(B$2:$B40)+1,0) -> 0 | G41: =IFERROR(VLOOKUP(ROWS($G$3:G41),$B$3:$C$502,2,0),"") ->  | M41: 39 | N41: =IF(ISNUMBER(SEARCH($R$3,O41)),MAX($N$2:N40)+1,0) -> 0 | P41: =IFERROR(VLOOKUP(ROWS($P$3:P41),$N$3:$O$502,2,0),"") ->  | U41: 39 | V41: =IF(ISNUMBER(SEARCH($Z$3,W41)),MAX($V$2:V40)+1,0) -> 0 | X41: =IFERROR(VLOOKUP(ROWS($X$3:X41),$V$3:$W$502,2,0),"") ->  | AC41: 39 | AD41: 0 | AG41: 39 | AH41: 0 | AK41: 39 | AL41: 0
A42: 40 | B42: =IF(ISNUMBER(SEARCH($I$3,C42)),MAX(B$2:$B41)+1,0) -> 0 | G42: =IFERROR(VLOOKUP(ROWS($G$3:G42),$B$3:$C$502,2,0),"") ->  | M42: 40 | N42: =IF(ISNUMBER(SEARCH($R$3,O42)),MAX($N$2:N41)+1,0) -> 0 | P42: =IFERROR(VLOOKUP(ROWS($P$3:P42),$N$3:$O$502,2,0),"") ->  | U42: 40 | V42: =IF(ISNUMBER(SEARCH($Z$3,W42)),MAX($V$2:V41)+1,0) -> 0 | X42: =IFERROR(VLOOKUP(ROWS($X$3:X42),$V$3:$W$502,2,0),"") ->  | AC42: 40 | AD42: 0 | AG42: 40 | AH42: 0 | AK42: 40 | AL42: 0
A43: 41 | B43: =IF(ISNUMBER(SEARCH($I$3,C43)),MAX(B$2:$B42)+1,0) -> 0 | G43: =IFERROR(VLOOKUP(ROWS($G$3:G43),$B$3:$C$502,2,0),"") ->  | M43: 41 | N43: =IF(ISNUMBER(SEARCH($R$3,O43)),MAX($N$2:N42)+1,0) -> 0 | P43: =IFERROR(VLOOKUP(ROWS($P$3:P43),$N$3:$O$502,2,0),"") ->  | U43: 41 | V43: =IF(ISNUMBER(SEARCH($Z$3,W43)),MAX($V$2:V42)+1,0) -> 0 | X43: =IFERROR(VLOOKUP(ROWS($X$3:X43),$V$3:$W$502,2,0),"") ->  | AC43: 41 | AD43: 0 | AG43: 41 | AH43: 0 | AK43: 41 | AL43: 0
A44: 42 | B44: =IF(ISNUMBER(SEARCH($I$3,C44)),MAX(B$2:$B43)+1,0) -> 0 | G44: =IFERROR(VLOOKUP(ROWS($G$3:G44),$B$3:$C$502,2,0),"") ->  | M44: 42 | N44: =IF(ISNUMBER(SEARCH($R$3,O44)),MAX($N$2:N43)+1,0) -> 0 | P44: =IFERROR(VLOOKUP(ROWS($P$3:P44),$N$3:$O$502,2,0),"") ->  | U44: 42 | V44: =IF(ISNUMBER(SEARCH($Z$3,W44)),MAX($V$2:V43)+1,0) -> 0 | X44: =IFERROR(VLOOKUP(ROWS($X$3:X44),$V$3:$W$502,2,0),"") ->  | AC44: 42 | AD44: 0 | AG44: 42 | AH44: 0 | AK44: 42 | AL44: 0
A45: 43 | B45: =IF(ISNUMBER(SEARCH($I$3,C45)),MAX(B$2:$B44)+1,0) -> 0 | G45: =IFERROR(VLOOKUP(ROWS($G$3:G45),$B$3:$C$502,2,0),"") ->  | M45: 43 | N45: =IF(ISNUMBER(SEARCH($R$3,O45)),MAX($N$2:N44)+1,0) -> 0 | P45: =IFERROR(VLOOKUP(ROWS($P$3:P45),$N$3:$O$502,2,0),"") ->  | U45: 43 | V45: =IF(ISNUMBER(SEARCH($Z$3,W45)),MAX($V$2:V44)+1,0) -> 0 | X45: =IFERROR(VLOOKUP(ROWS($X$3:X45),$V$3:$W$502,2,0),"") ->  | AC45: 43 | AD45: 0 | AG45: 43 | AH45: 0 | AK45: 43 | AL45: 0
A46: 44 | B46: =IF(ISNUMBER(SEARCH($I$3,C46)),MAX(B$2:$B45)+1,0) -> 0 | G46: =IFERROR(VLOOKUP(ROWS($G$3:G46),$B$3:$C$502,2,0),"") ->  | M46: 44 | N46: =IF(ISNUMBER(SEARCH($R$3,O46)),MAX($N$2:N45)+1,0) -> 0 | P46: =IFERROR(VLOOKUP(ROWS($P$3:P46),$N$3:$O$502,2,0),"") ->  | U46: 44 | V46: =IF(ISNUMBER(SEARCH($Z$3,W46)),MAX($V$2:V45)+1,0) -> 0 | X46: =IFERROR(VLOOKUP(ROWS($X$3:X46),$V$3:$W$502,2,0),"") ->  | AC46: 44 | AD46: 0 | AG46: 44 | AH46: 0 | AK46: 44 | AL46: 0
A47: 45 | B47: =IF(ISNUMBER(SEARCH($I$3,C47)),MAX(B$2:$B46)+1,0) -> 0 | G47: =IFERROR(VLOOKUP(ROWS($G$3:G47),$B$3:$C$502,2,0),"") ->  | M47: 45 | N47: =IF(ISNUMBER(SEARCH($R$3,O47)),MAX($N$2:N46)+1,0) -> 0 | P47: =IFERROR(VLOOKUP(ROWS($P$3:P47),$N$3:$O$502,2,0),"") ->  | U47: 45 | V47: =IF(ISNUMBER(SEARCH($Z$3,W47)),MAX($V$2:V46)+1,0) -> 0 | X47: =IFERROR(VLOOKUP(ROWS($X$3:X47),$V$3:$W$502,2,0),"") ->  | AC47: 45 | AD47: 0 | AG47: 45 | AH47: 0 | AK47: 45 | AL47: 0
A48: 46 | B48: =IF(ISNUMBER(SEARCH($I$3,C48)),MAX(B$2:$B47)+1,0) -> 0 | G48: =IFERROR(VLOOKUP(ROWS($G$3:G48),$B$3:$C$502,2,0),"") ->  | M48: 46 | N48: =IF(ISNUMBER(SEARCH($R$3,O48)),MAX($N$2:N47)+1,0) -> 0 | P48: =IFERROR(VLOOKUP(ROWS($P$3:P48),$N$3:$O$502,2,0),"") ->  | U48: 46 | V48: =IF(ISNUMBER(SEARCH($Z$3,W48)),MAX($V$2:V47)+1,0) -> 0 | X48: =IFERROR(VLOOKUP(ROWS($X$3:X48),$V$3:$W$502,2,0),"") ->  | AC48: 46 | AD48: 0 | AG48: 46 | AH48: 0 | AK48: 46 | AL48: 0
A49: 47 | B49: =IF(ISNUMBER(SEARCH($I$3,C49)),MAX(B$2:$B48)+1,0) -> 0 | G49: =IFERROR(VLOOKUP(ROWS($G$3:G49),$B$3:$C$502,2,0),"") ->  | M49: 47 | N49: =IF(ISNUMBER(SEARCH($R$3,O49)),MAX($N$2:N48)+1,0) -> 0 | P49: =IFERROR(VLOOKUP(ROWS($P$3:P49),$N$3:$O$502,2,0),"") ->  | U49: 47 | V49: =IF(ISNUMBER(SEARCH($Z$3,W49)),MAX($V$2:V48)+1,0) -> 0 | X49: =IFERROR(VLOOKUP(ROWS($X$3:X49),$V$3:$W$502,2,0),"") ->  | AC49: 47 | AD49: 0 | AG49: 47 | AH49: 0 | AK49: 47 | AL49: 0
A50: 48 | B50: =IF(ISNUMBER(SEARCH($I$3,C50)),MAX(B$2:$B49)+1,0) -> 0 | G50: =IFERROR(VLOOKUP(ROWS($G$3:G50),$B$3:$C$502,2,0),"") ->  | M50: 48 | N50: =IF(ISNUMBER(SEARCH($R$3,O50)),MAX($N$2:N49)+1,0) -> 0 | P50: =IFERROR(VLOOKUP(ROWS($P$3:P50),$N$3:$O$502,2,0),"") ->  | U50: 48 | V50: =IF(ISNUMBER(SEARCH($Z$3,W50)),MAX($V$2:V49)+1,0) -> 0 | X50: =IFERROR(VLOOKUP(ROWS($X$3:X50),$V$3:$W$502,2,0),"") ->  | AC50: 48 | AD50: 0 | AG50: 48 | AH50: 0 | AK50: 48 | AL50: 0
A51: 49 | B51: =IF(ISNUMBER(SEARCH($I$3,C51)),MAX(B$2:$B50)+1,0) -> 0 | G51: =IFERROR(VLOOKUP(ROWS($G$3:G51),$B$3:$C$502,2,0),"") ->  | M51: 49 | N51: =IF(ISNUMBER(SEARCH($R$3,O51)),MAX($N$2:N50)+1,0) -> 0 | P51: =IFERROR(VLOOKUP(ROWS($P$3:P51),$N$3:$O$502,2,0),"") ->  | U51: 49 | V51: =IF(ISNUMBER(SEARCH($Z$3,W51)),MAX($V$2:V50)+1,0) -> 0 | X51: =IFERROR(VLOOKUP(ROWS($X$3:X51),$V$3:$W$502,2,0),"") ->  | AC51: 49 | AD51: 0 | AG51: 49 | AH51: 0 | AK51: 49 | AL51: 0
A52: 50 | B52: =IF(ISNUMBER(SEARCH($I$3,C52)),MAX(B$2:$B51)+1,0) -> 0 | G52: =IFERROR(VLOOKUP(ROWS($G$3:G52),$B$3:$C$502,2,0),"") ->  | M52: 50 | N52: =IF(ISNUMBER(SEARCH($R$3,O52)),MAX($N$2:N51)+1,0) -> 0 | P52: =IFERROR(VLOOKUP(ROWS($P$3:P52),$N$3:$O$502,2,0),"") ->  | U52: 50 | V52: =IF(ISNUMBER(SEARCH($Z$3,W52)),MAX($V$2:V51)+1,0) -> 0 | X52: =IFERROR(VLOOKUP(ROWS($X$3:X52),$V$3:$W$502,2,0),"") ->  | AC52: 50 | AD52: 0 | AG52: 50 | AH52: 0 | AK52: 50 | AL52: 0
A53: 51 | B53: =IF(ISNUMBER(SEARCH($I$3,C53)),MAX(B$2:$B52)+1,0) -> 0 | G53: =IFERROR(VLOOKUP(ROWS($G$3:G53),$B$3:$C$502,2,0),"") ->  | M53: 51 | N53: =IF(ISNUMBER(SEARCH($R$3,O53)),MAX($N$2:N52)+1,0) -> 0 | P53: =IFERROR(VLOOKUP(ROWS($P$3:P53),$N$3:$O$502,2,0),"") ->  | U53: 51 | V53: =IF(ISNUMBER(SEARCH($Z$3,W53)),MAX($V$2:V52)+1,0) -> 0 | X53: =IFERROR(VLOOKUP(ROWS($X$3:X53),$V$3:$W$502,2,0),"") ->  | AC53: 51 | AD53: 0 | AG53: 51 | AH53: 0 | AK53: 51 | AL53: 0
A54: 52 | B54: =IF(ISNUMBER(SEARCH($I$3,C54)),MAX(B$2:$B53)+1,0) -> 0 | G54: =IFERROR(VLOOKUP(ROWS($G$3:G54),$B$3:$C$502,2,0),"") ->  | M54: 52 | N54: =IF(ISNUMBER(SEARCH($R$3,O54)),MAX($N$2:N53)+1,0) -> 0 | P54: =IFERROR(VLOOKUP(ROWS($P$3:P54),$N$3:$O$502,2,0),"") ->  | U54: 52 | V54: =IF(ISNUMBER(SEARCH($Z$3,W54)),MAX($V$2:V53)+1,0) -> 0 | X54: =IFERROR(VLOOKUP(ROWS($X$3:X54),$V$3:$W$502,2,0),"") ->  | AC54: 52 | AD54: 0 | AG54: 52 | AH54: 0 | AK54: 52 | AL54: 0
A55: 53 | B55: =IF(ISNUMBER(SEARCH($I$3,C55)),MAX(B$2:$B54)+1,0) -> 0 | G55: =IFERROR(VLOOKUP(ROWS($G$3:G55),$B$3:$C$502,2,0),"") ->  | M55: 53 | N55: =IF(ISNUMBER(SEARCH($R$3,O55)),MAX($N$2:N54)+1,0) -> 0 | P55: =IFERROR(VLOOKUP(ROWS($P$3:P55),$N$3:$O$502,2,0),"") ->  | U55: 53 | V55: =IF(ISNUMBER(SEARCH($Z$3,W55)),MAX($V$2:V54)+1,0) -> 0 | X55: =IFERROR(VLOOKUP(ROWS($X$3:X55),$V$3:$W$502,2,0),"") ->  | AC55: 53 | AD55: 0 | AG55: 53 | AH55: 0 | AK55: 53 | AL55: 0
A56: 54 | B56: =IF(ISNUMBER(SEARCH($I$3,C56)),MAX(B$2:$B55)+1,0) -> 0 | G56: =IFERROR(VLOOKUP(ROWS($G$3:G56),$B$3:$C$502,2,0),"") ->  | M56: 54 | N56: =IF(ISNUMBER(SEARCH($R$3,O56)),MAX($N$2:N55)+1,0) -> 0 | P56: =IFERROR(VLOOKUP(ROWS($P$3:P56),$N$3:$O$502,2,0),"") ->  | U56: 54 | V56: =IF(ISNUMBER(SEARCH($Z$3,W56)),MAX($V$2:V55)+1,0) -> 0 | X56: =IFERROR(VLOOKUP(ROWS($X$3:X56),$V$3:$W$502,2,0),"") ->  | AC56: 54 | AD56: 0 | AG56: 54 | AH56: 0 | AK56: 54 | AL56: 0
A57: 55 | B57: =IF(ISNUMBER(SEARCH($I$3,C57)),MAX(B$2:$B56)+1,0) -> 0 | G57: =IFERROR(VLOOKUP(ROWS($G$3:G57),$B$3:$C$502,2,0),"") ->  | M57: 55 | N57: =IF(ISNUMBER(SEARCH($R$3,O57)),MAX($N$2:N56)+1,0) -> 0 | P57: =IFERROR(VLOOKUP(ROWS($P$3:P57),$N$3:$O$502,2,0),"") ->  | U57: 55 | V57: =IF(ISNUMBER(SEARCH($Z$3,W57)),MAX($V$2:V56)+1,0) -> 0 | X57: =IFERROR(VLOOKUP(ROWS($X$3:X57),$V$3:$W$502,2,0),"") ->  | AC57: 55 | AD57: 0 | AG57: 55 | AH57: 0 | AK57: 55 | AL57: 0
A58: 56 | B58: =IF(ISNUMBER(SEARCH($I$3,C58)),MAX(B$2:$B57)+1,0) -> 0 | G58: =IFERROR(VLOOKUP(ROWS($G$3:G58),$B$3:$C$502,2,0),"") ->  | M58: 56 | N58: =IF(ISNUMBER(SEARCH($R$3,O58)),MAX($N$2:N57)+1,0) -> 0 | P58: =IFERROR(VLOOKUP(ROWS($P$3:P58),$N$3:$O$502,2,0),"") ->  | U58: 56 | V58: =IF(ISNUMBER(SEARCH($Z$3,W58)),MAX($V$2:V57)+1,0) -> 0 | X58: =IFERROR(VLOOKUP(ROWS($X$3:X58),$V$3:$W$502,2,0),"") ->  | AC58: 56 | AD58: 0 | AG58: 56 | AH58: 0 | AK58: 56 | AL58: 0
A59: 57 | B59: =IF(ISNUMBER(SEARCH($I$3,C59)),MAX(B$2:$B58)+1,0) -> 0 | G59: =IFERROR(VLOOKUP(ROWS($G$3:G59),$B$3:$C$502,2,0),"") ->  | M59: 57 | N59: =IF(ISNUMBER(SEARCH($R$3,O59)),MAX($N$2:N58)+1,0) -> 0 | P59: =IFERROR(VLOOKUP(ROWS($P$3:P59),$N$3:$O$502,2,0),"") ->  | U59: 57 | V59: =IF(ISNUMBER(SEARCH($Z$3,W59)),MAX($V$2:V58)+1,0) -> 0 | X59: =IFERROR(VLOOKUP(ROWS($X$3:X59),$V$3:$W$502,2,0),"") ->  | AC59: 57 | AD59: 0 | AG59: 57 | AH59: 0 | AK59: 57 | AL59: 0
A60: 58 | B60: =IF(ISNUMBER(SEARCH($I$3,C60)),MAX(B$2:$B59)+1,0) -> 0 | G60: =IFERROR(VLOOKUP(ROWS($G$3:G60),$B$3:$C$502,2,0),"") ->  | M60: 58 | N60: =IF(ISNUMBER(SEARCH($R$3,O60)),MAX($N$2:N59)+1,0) -> 0 | P60: =IFERROR(VLOOKUP(ROWS($P$3:P60),$N$3:$O$502,2,0),"") ->  | U60: 58 | V60: =IF(ISNUMBER(SEARCH($Z$3,W60)),MAX($V$2:V59)+1,0) -> 0 | X60: =IFERROR(VLOOKUP(ROWS($X$3:X60),$V$3:$W$502,2,0),"") ->  | AC60: 58 | AD60: 0 | AG60: 58 | AH60: 0 | AK60: 58 | AL60: 0
A61: 59 | B61: =IF(ISNUMBER(SEARCH($I$3,C61)),MAX(B$2:$B60)+1,0) -> 0 | G61: =IFERROR(VLOOKUP(ROWS($G$3:G61),$B$3:$C$502,2,0),"") ->  | M61: 59 | N61: =IF(ISNUMBER(SEARCH($R$3,O61)),MAX($N$2:N60)+1,0) -> 0 | P61: =IFERROR(VLOOKUP(ROWS($P$3:P61),$N$3:$O$502,2,0),"") ->  | U61: 59 | V61: =IF(ISNUMBER(SEARCH($Z$3,W61)),MAX($V$2:V60)+1,0) -> 0 | X61: =IFERROR(VLOOKUP(ROWS($X$3:X61),$V$3:$W$502,2,0),"") ->  | AC61: 59 | AD61: 0 | AG61: 59 | AH61: 0 | AK61: 59 | AL61: 0
A62: 60 | B62: =IF(ISNUMBER(SEARCH($I$3,C62)),MAX(B$2:$B61)+1,0) -> 0 | G62: =IFERROR(VLOOKUP(ROWS($G$3:G62),$B$3:$C$502,2,0),"") ->  | M62: 60 | N62: =IF(ISNUMBER(SEARCH($R$3,O62)),MAX($N$2:N61)+1,0) -> 0 | P62: =IFERROR(VLOOKUP(ROWS($P$3:P62),$N$3:$O$502,2,0),"") ->  | U62: 60 | V62: =IF(ISNUMBER(SEARCH($Z$3,W62)),MAX($V$2:V61)+1,0) -> 0 | X62: =IFERROR(VLOOKUP(ROWS($X$3:X62),$V$3:$W$502,2,0),"") ->  | AC62: 60 | AD62: 0 | AG62: 60 | AH62: 0 | AK62: 60 | AL62: 0
A63: 61 | B63: =IF(ISNUMBER(SEARCH($I$3,C63)),MAX(B$2:$B62)+1,0) -> 0 | G63: =IFERROR(VLOOKUP(ROWS($G$3:G63),$B$3:$C$502,2,0),"") ->  | M63: 61 | N63: =IF(ISNUMBER(SEARCH($R$3,O63)),MAX($N$2:N62)+1,0) -> 0 | P63: =IFERROR(VLOOKUP(ROWS($P$3:P63),$N$3:$O$502,2,0),"") ->  | U63: 61 | V63: =IF(ISNUMBER(SEARCH($Z$3,W63)),MAX($V$2:V62)+1,0) -> 0 | X63: =IFERROR(VLOOKUP(ROWS($X$3:X63),$V$3:$W$502,2,0),"") ->  | AC63: 61 | AD63: 0 | AG63: 61 | AH63: 0 | AK63: 61 | AL63: 0
A64: 62 | B64: =IF(ISNUMBER(SEARCH($I$3,C64)),MAX(B$2:$B63)+1,0) -> 0 | G64: =IFERROR(VLOOKUP(ROWS($G$3:G64),$B$3:$C$502,2,0),"") ->  | M64: 62 | N64: =IF(ISNUMBER(SEARCH($R$3,O64)),MAX($N$2:N63)+1,0) -> 0 | P64: =IFERROR(VLOOKUP(ROWS($P$3:P64),$N$3:$O$502,2,0),"") ->  | U64: 62 | V64: =IF(ISNUMBER(SEARCH($Z$3,W64)),MAX($V$2:V63)+1,0) -> 0 | X64: =IFERROR(VLOOKUP(ROWS($X$3:X64),$V$3:$W$502,2,0),"") ->  | AC64: 62 | AD64: 0 | AG64: 62 | AH64: 0 | AK64: 62 | AL64: 0
A65: 63 | B65: =IF(ISNUMBER(SEARCH($I$3,C65)),MAX(B$2:$B64)+1,0) -> 0 | G65: =IFERROR(VLOOKUP(ROWS($G$3:G65),$B$3:$C$502,2,0),"") ->  | M65: 63 | N65: =IF(ISNUMBER(SEARCH($R$3,O65)),MAX($N$2:N64)+1,0) -> 0 | P65: =IFERROR(VLOOKUP(ROWS($P$3:P65),$N$3:$O$502,2,0),"") ->  | U65: 63 | V65: =IF(ISNUMBER(SEARCH($Z$3,W65)),MAX($V$2:V64)+1,0) -> 0 | X65: =IFERROR(VLOOKUP(ROWS($X$3:X65),$V$3:$W$502,2,0),"") ->  | AC65: 63 | AD65: 0 | AG65: 63 | AH65: 0 | AK65: 63 | AL65: 0
A66: 64 | B66: =IF(ISNUMBER(SEARCH($I$3,C66)),MAX(B$2:$B65)+1,0) -> 0 | G66: =IFERROR(VLOOKUP(ROWS($G$3:G66),$B$3:$C$502,2,0),"") ->  | M66: 64 | N66: =IF(ISNUMBER(SEARCH($R$3,O66)),MAX($N$2:N65)+1,0) -> 0 | P66: =IFERROR(VLOOKUP(ROWS($P$3:P66),$N$3:$O$502,2,0),"") ->  | U66: 64 | V66: =IF(ISNUMBER(SEARCH($Z$3,W66)),MAX($V$2:V65)+1,0) -> 0 | X66: =IFERROR(VLOOKUP(ROWS($X$3:X66),$V$3:$W$502,2,0),"") ->  | AC66: 64 | AD66: 0 | AG66: 64 | AH66: 0 | AK66: 64 | AL66: 0
A67: 65 | B67: =IF(ISNUMBER(SEARCH($I$3,C67)),MAX(B$2:$B66)+1,0) -> 0 | G67: =IFERROR(VLOOKUP(ROWS($G$3:G67),$B$3:$C$502,2,0),"") ->  | M67: 65 | N67: =IF(ISNUMBER(SEARCH($R$3,O67)),MAX($N$2:N66)+1,0) -> 0 | P67: =IFERROR(VLOOKUP(ROWS($P$3:P67),$N$3:$O$502,2,0),"") ->  | U67: 65 | V67: =IF(ISNUMBER(SEARCH($Z$3,W67)),MAX($V$2:V66)+1,0) -> 0 | X67: =IFERROR(VLOOKUP(ROWS($X$3:X67),$V$3:$W$502,2,0),"") ->  | AC67: 65 | AD67: 0 | AG67: 65 | AH67: 0 | AK67: 65 | AL67: 0
A68: =ROW()-2 -> 66 | B68: =IF(ISNUMBER(SEARCH($I$3,C68)),MAX(B$2:$B67)+1,0) -> 0 | G68: =IFERROR(VLOOKUP(ROWS($G$3:G68),$B$3:$C$502,2,0),"") ->  | M68: =ROW()-2 -> 66 | N68: =IF(ISNUMBER(SEARCH($R$3,O68)),MAX($N$2:N67)+1,0) -> 0 | P68: =IFERROR(VLOOKUP(ROWS($P$3:P68),$N$3:$O$502,2,0),"") ->  | U68: =ROW()-2 -> 66 | V68: =IF(ISNUMBER(SEARCH($Z$3,W68)),MAX($V$2:V67)+1,0) -> 0 | X68: =IFERROR(VLOOKUP(ROWS($X$3:X68),$V$3:$W$502,2,0),"") ->  | AC68: 66 | AD68: 0 | AG68: 66 | AH68: 0 | AK68: 66 | AL68: 0
A69: 67 | B69: =IF(ISNUMBER(SEARCH($I$3,C69)),MAX(B$2:$B68)+1,0) -> 0 | G69: =IFERROR(VLOOKUP(ROWS($G$3:G69),$B$3:$C$502,2,0),"") ->  | M69: 67 | N69: =IF(ISNUMBER(SEARCH($R$3,O69)),MAX($N$2:N68)+1,0) -> 0 | P69: =IFERROR(VLOOKUP(ROWS($P$3:P69),$N$3:$O$502,2,0),"") ->  | U69: 67 | V69: =IF(ISNUMBER(SEARCH($Z$3,W69)),MAX($V$2:V68)+1,0) -> 0 | X69: =IFERROR(VLOOKUP(ROWS($X$3:X69),$V$3:$W$502,2,0),"") ->  | AC69: 67 | AD69: 0 | AG69: 67 | AH69: 0 | AK69: 67 | AL69: 0
A70: 68 | B70: =IF(ISNUMBER(SEARCH($I$3,C70)),MAX(B$2:$B69)+1,0) -> 0 | G70: =IFERROR(VLOOKUP(ROWS($G$3:G70),$B$3:$C$502,2,0),"") ->  | M70: 68 | N70: =IF(ISNUMBER(SEARCH($R$3,O70)),MAX($N$2:N69)+1,0) -> 0 | P70: =IFERROR(VLOOKUP(ROWS($P$3:P70),$N$3:$O$502,2,0),"") ->  | U70: 68 | V70: =IF(ISNUMBER(SEARCH($Z$3,W70)),MAX($V$2:V69)+1,0) -> 0 | X70: =IFERROR(VLOOKUP(ROWS($X$3:X70),$V$3:$W$502,2,0),"") ->  | AC70: 68 | AD70: 0 | AG70: 68 | AH70: 0 | AK70: 68 | AL70: 0
A71: 69 | B71: =IF(ISNUMBER(SEARCH($I$3,C71)),MAX(B$2:$B70)+1,0) -> 0 | G71: =IFERROR(VLOOKUP(ROWS($G$3:G71),$B$3:$C$502,2,0),"") ->  | M71: 69 | N71: =IF(ISNUMBER(SEARCH($R$3,O71)),MAX($N$2:N70)+1,0) -> 0 | P71: =IFERROR(VLOOKUP(ROWS($P$3:P71),$N$3:$O$502,2,0),"") ->  | U71: 69 | V71: =IF(ISNUMBER(SEARCH($Z$3,W71)),MAX($V$2:V70)+1,0) -> 0 | X71: =IFERROR(VLOOKUP(ROWS($X$3:X71),$V$3:$W$502,2,0),"") ->  | AC71: 69 | AD71: 0 | AG71: 69 | AH71: 0 | AK71: 69 | AL71: 0
A72: 70 | B72: =IF(ISNUMBER(SEARCH($I$3,C72)),MAX(B$2:$B71)+1,0) -> 0 | G72: =IFERROR(VLOOKUP(ROWS($G$3:G72),$B$3:$C$502,2,0),"") ->  | M72: 70 | N72: =IF(ISNUMBER(SEARCH($R$3,O72)),MAX($N$2:N71)+1,0) -> 0 | P72: =IFERROR(VLOOKUP(ROWS($P$3:P72),$N$3:$O$502,2,0),"") ->  | U72: 70 | V72: =IF(ISNUMBER(SEARCH($Z$3,W72)),MAX($V$2:V71)+1,0) -> 0 | X72: =IFERROR(VLOOKUP(ROWS($X$3:X72),$V$3:$W$502,2,0),"") ->  | AC72: 70 | AD72: 0 | AG72: 70 | AH72: 0 | AK72: 70 | AL72: 0
A73: 71 | B73: =IF(ISNUMBER(SEARCH($I$3,C73)),MAX(B$2:$B72)+1,0) -> 0 | G73: =IFERROR(VLOOKUP(ROWS($G$3:G73),$B$3:$C$502,2,0),"") ->  | M73: 71 | N73: =IF(ISNUMBER(SEARCH($R$3,O73)),MAX($N$2:N72)+1,0) -> 0 | P73: =IFERROR(VLOOKUP(ROWS($P$3:P73),$N$3:$O$502,2,0),"") ->  | U73: 71 | V73: =IF(ISNUMBER(SEARCH($Z$3,W73)),MAX($V$2:V72)+1,0) -> 0 | X73: =IFERROR(VLOOKUP(ROWS($X$3:X73),$V$3:$W$502,2,0),"") ->  | AC73: 71 | AD73: 0 | AG73: 71 | AH73: 0 | AK73: 71 | AL73: 0
A74: 72 | B74: =IF(ISNUMBER(SEARCH($I$3,C74)),MAX(B$2:$B73)+1,0) -> 0 | G74: =IFERROR(VLOOKUP(ROWS($G$3:G74),$B$3:$C$502,2,0),"") ->  | M74: 72 | N74: =IF(ISNUMBER(SEARCH($R$3,O74)),MAX($N$2:N73)+1,0) -> 0 | P74: =IFERROR(VLOOKUP(ROWS($P$3:P74),$N$3:$O$502,2,0),"") ->  | U74: 72 | V74: =IF(ISNUMBER(SEARCH($Z$3,W74)),MAX($V$2:V73)+1,0) -> 0 | X74: =IFERROR(VLOOKUP(ROWS($X$3:X74),$V$3:$W$502,2,0),"") ->  | AC74: 72 | AD74: 0 | AG74: 72 | AH74: 0 | AK74: 72 | AL74: 0
A75: 73 | B75: =IF(ISNUMBER(SEARCH($I$3,C75)),MAX(B$2:$B74)+1,0) -> 0 | G75: =IFERROR(VLOOKUP(ROWS($G$3:G75),$B$3:$C$502,2,0),"") ->  | M75: 73 | N75: =IF(ISNUMBER(SEARCH($R$3,O75)),MAX($N$2:N74)+1,0) -> 0 | P75: =IFERROR(VLOOKUP(ROWS($P$3:P75),$N$3:$O$502,2,0),"") ->  | U75: 73 | V75: =IF(ISNUMBER(SEARCH($Z$3,W75)),MAX($V$2:V74)+1,0) -> 0 | X75: =IFERROR(VLOOKUP(ROWS($X$3:X75),$V$3:$W$502,2,0),"") ->  | AC75: 73 | AD75: 0 | AG75: 73 | AH75: 0 | AK75: 73 | AL75: 0
A76: 74 | B76: =IF(ISNUMBER(SEARCH($I$3,C76)),MAX(B$2:$B75)+1,0) -> 0 | G76: =IFERROR(VLOOKUP(ROWS($G$3:G76),$B$3:$C$502,2,0),"") ->  | M76: 74 | N76: =IF(ISNUMBER(SEARCH($R$3,O76)),MAX($N$2:N75)+1,0) -> 0 | P76: =IFERROR(VLOOKUP(ROWS($P$3:P76),$N$3:$O$502,2,0),"") ->  | U76: 74 | V76: =IF(ISNUMBER(SEARCH($Z$3,W76)),MAX($V$2:V75)+1,0) -> 0 | X76: =IFERROR(VLOOKUP(ROWS($X$3:X76),$V$3:$W$502,2,0),"") ->  | AC76: 74 | AD76: 0 | AG76: 74 | AH76: 0 | AK76: 74 | AL76: 0
A77: 75 | B77: =IF(ISNUMBER(SEARCH($I$3,C77)),MAX(B$2:$B76)+1,0) -> 0 | G77: =IFERROR(VLOOKUP(ROWS($G$3:G77),$B$3:$C$502,2,0),"") ->  | M77: 75 | N77: =IF(ISNUMBER(SEARCH($R$3,O77)),MAX($N$2:N76)+1,0) -> 0 | P77: =IFERROR(VLOOKUP(ROWS($P$3:P77),$N$3:$O$502,2,0),"") ->  | U77: 75 | V77: =IF(ISNUMBER(SEARCH($Z$3,W77)),MAX($V$2:V76)+1,0) -> 0 | X77: =IFERROR(VLOOKUP(ROWS($X$3:X77),$V$3:$W$502,2,0),"") ->  | AC77: 75 | AD77: 0 | AG77: 75 | AH77: 0 | AK77: 75 | AL77: 0
A78: 76 | B78: =IF(ISNUMBER(SEARCH($I$3,C78)),MAX(B$2:$B77)+1,0) -> 0 | G78: =IFERROR(VLOOKUP(ROWS($G$3:G78),$B$3:$C$502,2,0),"") ->  | M78: 76 | N78: =IF(ISNUMBER(SEARCH($R$3,O78)),MAX($N$2:N77)+1,0) -> 0 | P78: =IFERROR(VLOOKUP(ROWS($P$3:P78),$N$3:$O$502,2,0),"") ->  | U78: 76 | V78: =IF(ISNUMBER(SEARCH($Z$3,W78)),MAX($V$2:V77)+1,0) -> 0 | X78: =IFERROR(VLOOKUP(ROWS($X$3:X78),$V$3:$W$502,2,0),"") ->  | AC78: 76 | AD78: 0 | AG78: 76 | AH78: 0 | AK78: 76 | AL78: 0
A79: 77 | B79: =IF(ISNUMBER(SEARCH($I$3,C79)),MAX(B$2:$B78)+1,0) -> 0 | G79: =IFERROR(VLOOKUP(ROWS($G$3:G79),$B$3:$C$502,2,0),"") ->  | M79: 77 | N79: =IF(ISNUMBER(SEARCH($R$3,O79)),MAX($N$2:N78)+1,0) -> 0 | P79: =IFERROR(VLOOKUP(ROWS($P$3:P79),$N$3:$O$502,2,0),"") ->  | U79: 77 | V79: =IF(ISNUMBER(SEARCH($Z$3,W79)),MAX($V$2:V78)+1,0) -> 0 | X79: =IFERROR(VLOOKUP(ROWS($X$3:X79),$V$3:$W$502,2,0),"") ->  | AC79: 77 | AD79: 0 | AG79: 77 | AH79: 0 | AK79: 77 | AL79: 0
A80: 78 | B80: =IF(ISNUMBER(SEARCH($I$3,C80)),MAX(B$2:$B79)+1,0) -> 0 | G80: =IFERROR(VLOOKUP(ROWS($G$3:G80),$B$3:$C$502,2,0),"") ->  | M80: 78 | N80: =IF(ISNUMBER(SEARCH($R$3,O80)),MAX($N$2:N79)+1,0) -> 0 | P80: =IFERROR(VLOOKUP(ROWS($P$3:P80),$N$3:$O$502,2,0),"") ->  | U80: 78 | V80: =IF(ISNUMBER(SEARCH($Z$3,W80)),MAX($V$2:V79)+1,0) -> 0 | X80: =IFERROR(VLOOKUP(ROWS($X$3:X80),$V$3:$W$502,2,0),"") ->  | AC80: 78 | AD80: 0 | AG80: 78 | AH80: 0 | AK80: 78 | AL80: 0
A81: 79 | B81: =IF(ISNUMBER(SEARCH($I$3,C81)),MAX(B$2:$B80)+1,0) -> 0 | G81: =IFERROR(VLOOKUP(ROWS($G$3:G81),$B$3:$C$502,2,0),"") ->  | M81: 79 | N81: =IF(ISNUMBER(SEARCH($R$3,O81)),MAX($N$2:N80)+1,0) -> 0 | P81: =IFERROR(VLOOKUP(ROWS($P$3:P81),$N$3:$O$502,2,0),"") ->  | U81: 79 | V81: =IF(ISNUMBER(SEARCH($Z$3,W81)),MAX($V$2:V80)+1,0) -> 0 | X81: =IFERROR(VLOOKUP(ROWS($X$3:X81),$V$3:$W$502,2,0),"") ->  | AC81: 79 | AD81: 0 | AG81: 79 | AH81: 0 | AK81: 79 | AL81: 0
A82: 80 | B82: =IF(ISNUMBER(SEARCH($I$3,C82)),MAX(B$2:$B81)+1,0) -> 0 | G82: =IFERROR(VLOOKUP(ROWS($G$3:G82),$B$3:$C$502,2,0),"") ->  | M82: 80 | N82: =IF(ISNUMBER(SEARCH($R$3,O82)),MAX($N$2:N81)+1,0) -> 0 | P82: =IFERROR(VLOOKUP(ROWS($P$3:P82),$N$3:$O$502,2,0),"") ->  | U82: 80 | V82: =IF(ISNUMBER(SEARCH($Z$3,W82)),MAX($V$2:V81)+1,0) -> 0 | X82: =IFERROR(VLOOKUP(ROWS($X$3:X82),$V$3:$W$502,2,0),"") ->  | AC82: 80 | AD82: 0 | AG82: 80 | AH82: 0 | AK82: 80 | AL82: 0
A83: 81 | B83: =IF(ISNUMBER(SEARCH($I$3,C83)),MAX(B$2:$B82)+1,0) -> 0 | G83: =IFERROR(VLOOKUP(ROWS($G$3:G83),$B$3:$C$502,2,0),"") ->  | M83: 81 | N83: =IF(ISNUMBER(SEARCH($R$3,O83)),MAX($N$2:N82)+1,0) -> 0 | P83: =IFERROR(VLOOKUP(ROWS($P$3:P83),$N$3:$O$502,2,0),"") ->  | U83: 81 | V83: =IF(ISNUMBER(SEARCH($Z$3,W83)),MAX($V$2:V82)+1,0) -> 0 | X83: =IFERROR(VLOOKUP(ROWS($X$3:X83),$V$3:$W$502,2,0),"") ->  | AC83: 81 | AD83: 0 | AG83: 81 | AH83: 0 | AK83: 81 | AL83: 0
A84: 82 | B84: =IF(ISNUMBER(SEARCH($I$3,C84)),MAX(B$2:$B83)+1,0) -> 0 | G84: =IFERROR(VLOOKUP(ROWS($G$3:G84),$B$3:$C$502,2,0),"") ->  | M84: 82 | N84: =IF(ISNUMBER(SEARCH($R$3,O84)),MAX($N$2:N83)+1,0) -> 0 | P84: =IFERROR(VLOOKUP(ROWS($P$3:P84),$N$3:$O$502,2,0),"") ->  | U84: 82 | V84: =IF(ISNUMBER(SEARCH($Z$3,W84)),MAX($V$2:V83)+1,0) -> 0 | X84: =IFERROR(VLOOKUP(ROWS($X$3:X84),$V$3:$W$502,2,0),"") ->  | AC84: 82 | AD84: 0 | AG84: 82 | AH84: 0 | AK84: 82 | AL84: 0
A85: 83 | B85: =IF(ISNUMBER(SEARCH($I$3,C85)),MAX(B$2:$B84)+1,0) -> 0 | G85: =IFERROR(VLOOKUP(ROWS($G$3:G85),$B$3:$C$502,2,0),"") ->  | M85: 83 | N85: =IF(ISNUMBER(SEARCH($R$3,O85)),MAX($N$2:N84)+1,0) -> 0 | P85: =IFERROR(VLOOKUP(ROWS($P$3:P85),$N$3:$O$502,2,0),"") ->  | U85: 83 | V85: =IF(ISNUMBER(SEARCH($Z$3,W85)),MAX($V$2:V84)+1,0) -> 0 | X85: =IFERROR(VLOOKUP(ROWS($X$3:X85),$V$3:$W$502,2,0),"") ->  | AC85: 83 | AD85: 0 | AG85: 83 | AH85: 0 | AK85: 83 | AL85: 0
A86: 84 | B86: =IF(ISNUMBER(SEARCH($I$3,C86)),MAX(B$2:$B85)+1,0) -> 0 | G86: =IFERROR(VLOOKUP(ROWS($G$3:G86),$B$3:$C$502,2,0),"") ->  | M86: 84 | N86: =IF(ISNUMBER(SEARCH($R$3,O86)),MAX($N$2:N85)+1,0) -> 0 | P86: =IFERROR(VLOOKUP(ROWS($P$3:P86),$N$3:$O$502,2,0),"") ->  | U86: 84 | V86: =IF(ISNUMBER(SEARCH($Z$3,W86)),MAX($V$2:V85)+1,0) -> 0 | X86: =IFERROR(VLOOKUP(ROWS($X$3:X86),$V$3:$W$502,2,0),"") ->  | AC86: 84 | AD86: 0 | AG86: 84 | AH86: 0 | AK86: 84 | AL86: 0
A87: 85 | B87: =IF(ISNUMBER(SEARCH($I$3,C87)),MAX(B$2:$B86)+1,0) -> 0 | G87: =IFERROR(VLOOKUP(ROWS($G$3:G87),$B$3:$C$502,2,0),"") ->  | M87: 85 | N87: =IF(ISNUMBER(SEARCH($R$3,O87)),MAX($N$2:N86)+1,0) -> 0 | P87: =IFERROR(VLOOKUP(ROWS($P$3:P87),$N$3:$O$502,2,0),"") ->  | U87: 85 | V87: =IF(ISNUMBER(SEARCH($Z$3,W87)),MAX($V$2:V86)+1,0) -> 0 | X87: =IFERROR(VLOOKUP(ROWS($X$3:X87),$V$3:$W$502,2,0),"") ->  | AC87: 85 | AD87: 0 | AG87: 85 | AH87: 0 | AK87: 85 | AL87: 0
A88: 86 | B88: =IF(ISNUMBER(SEARCH($I$3,C88)),MAX(B$2:$B87)+1,0) -> 0 | G88: =IFERROR(VLOOKUP(ROWS($G$3:G88),$B$3:$C$502,2,0),"") ->  | M88: 86 | N88: =IF(ISNUMBER(SEARCH($R$3,O88)),MAX($N$2:N87)+1,0) -> 0 | P88: =IFERROR(VLOOKUP(ROWS($P$3:P88),$N$3:$O$502,2,0),"") ->  | U88: 86 | V88: =IF(ISNUMBER(SEARCH($Z$3,W88)),MAX($V$2:V87)+1,0) -> 0 | X88: =IFERROR(VLOOKUP(ROWS($X$3:X88),$V$3:$W$502,2,0),"") ->  | AC88: 86 | AD88: 0 | AG88: 86 | AH88: 0 | AK88: 86 | AL88: 0
A89: 87 | B89: =IF(ISNUMBER(SEARCH($I$3,C89)),MAX(B$2:$B88)+1,0) -> 0 | G89: =IFERROR(VLOOKUP(ROWS($G$3:G89),$B$3:$C$502,2,0),"") ->  | M89: 87 | N89: =IF(ISNUMBER(SEARCH($R$3,O89)),MAX($N$2:N88)+1,0) -> 0 | P89: =IFERROR(VLOOKUP(ROWS($P$3:P89),$N$3:$O$502,2,0),"") ->  | U89: 87 | V89: =IF(ISNUMBER(SEARCH($Z$3,W89)),MAX($V$2:V88)+1,0) -> 0 | X89: =IFERROR(VLOOKUP(ROWS($X$3:X89),$V$3:$W$502,2,0),"") ->  | AC89: 87 | AD89: 0 | AG89: 87 | AH89: 0 | AK89: 87 | AL89: 0
A90: 88 | B90: =IF(ISNUMBER(SEARCH($I$3,C90)),MAX(B$2:$B89)+1,0) -> 0 | G90: =IFERROR(VLOOKUP(ROWS($G$3:G90),$B$3:$C$502,2,0),"") ->  | M90: 88 | N90: =IF(ISNUMBER(SEARCH($R$3,O90)),MAX($N$2:N89)+1,0) -> 0 | P90: =IFERROR(VLOOKUP(ROWS($P$3:P90),$N$3:$O$502,2,0),"") ->  | U90: 88 | V90: =IF(ISNUMBER(SEARCH($Z$3,W90)),MAX($V$2:V89)+1,0) -> 0 | X90: =IFERROR(VLOOKUP(ROWS($X$3:X90),$V$3:$W$502,2,0),"") ->  | AC90: 88 | AD90: 0 | AG90: 88 | AH90: 0 | AK90: 88 | AL90: 0
A91: 89 | B91: =IF(ISNUMBER(SEARCH($I$3,C91)),MAX(B$2:$B90)+1,0) -> 0 | G91: =IFERROR(VLOOKUP(ROWS($G$3:G91),$B$3:$C$502,2,0),"") ->  | M91: 89 | N91: =IF(ISNUMBER(SEARCH($R$3,O91)),MAX($N$2:N90)+1,0) -> 0 | P91: =IFERROR(VLOOKUP(ROWS($P$3:P91),$N$3:$O$502,2,0),"") ->  | U91: 89 | V91: =IF(ISNUMBER(SEARCH($Z$3,W91)),MAX($V$2:V90)+1,0) -> 0 | X91: =IFERROR(VLOOKUP(ROWS($X$3:X91),$V$3:$W$502,2,0),"") ->  | AC91: 89 | AD91: 0 | AG91: 89 | AH91: 0 | AK91: 89 | AL91: 0
A92: 90 | B92: =IF(ISNUMBER(SEARCH($I$3,C92)),MAX(B$2:$B91)+1,0) -> 0 | G92: =IFERROR(VLOOKUP(ROWS($G$3:G92),$B$3:$C$502,2,0),"") ->  | M92: 90 | N92: =IF(ISNUMBER(SEARCH($R$3,O92)),MAX($N$2:N91)+1,0) -> 0 | P92: =IFERROR(VLOOKUP(ROWS($P$3:P92),$N$3:$O$502,2,0),"") ->  | U92: 90 | V92: =IF(ISNUMBER(SEARCH($Z$3,W92)),MAX($V$2:V91)+1,0) -> 0 | X92: =IFERROR(VLOOKUP(ROWS($X$3:X92),$V$3:$W$502,2,0),"") ->  | AC92: 90 | AD92: 0 | AG92: 90 | AH92: 0 | AK92: 90 | AL92: 0
A93: 91 | B93: =IF(ISNUMBER(SEARCH($I$3,C93)),MAX(B$2:$B92)+1,0) -> 0 | G93: =IFERROR(VLOOKUP(ROWS($G$3:G93),$B$3:$C$502,2,0),"") ->  | M93: 91 | N93: =IF(ISNUMBER(SEARCH($R$3,O93)),MAX($N$2:N92)+1,0) -> 0 | P93: =IFERROR(VLOOKUP(ROWS($P$3:P93),$N$3:$O$502,2,0),"") ->  | U93: 91 | V93: =IF(ISNUMBER(SEARCH($Z$3,W93)),MAX($V$2:V92)+1,0) -> 0 | X93: =IFERROR(VLOOKUP(ROWS($X$3:X93),$V$3:$W$502,2,0),"") ->  | AC93: 91 | AD93: 0 | AG93: 91 | AH93: 0 | AK93: 91 | AL93: 0
A94: 92 | B94: =IF(ISNUMBER(SEARCH($I$3,C94)),MAX(B$2:$B93)+1,0) -> 0 | G94: =IFERROR(VLOOKUP(ROWS($G$3:G94),$B$3:$C$502,2,0),"") ->  | M94: 92 | N94: =IF(ISNUMBER(SEARCH($R$3,O94)),MAX($N$2:N93)+1,0) -> 0 | P94: =IFERROR(VLOOKUP(ROWS($P$3:P94),$N$3:$O$502,2,0),"") ->  | U94: 92 | V94: =IF(ISNUMBER(SEARCH($Z$3,W94)),MAX($V$2:V93)+1,0) -> 0 | X94: =IFERROR(VLOOKUP(ROWS($X$3:X94),$V$3:$W$502,2,0),"") ->  | AC94: 92 | AD94: 0 | AG94: 92 | AH94: 0 | AK94: 92 | AL94: 0
A95: 93 | B95: =IF(ISNUMBER(SEARCH($I$3,C95)),MAX(B$2:$B94)+1,0) -> 0 | G95: =IFERROR(VLOOKUP(ROWS($G$3:G95),$B$3:$C$502,2,0),"") ->  | M95: 93 | N95: =IF(ISNUMBER(SEARCH($R$3,O95)),MAX($N$2:N94)+1,0) -> 0 | P95: =IFERROR(VLOOKUP(ROWS($P$3:P95),$N$3:$O$502,2,0),"") ->  | U95: 93 | V95: =IF(ISNUMBER(SEARCH($Z$3,W95)),MAX($V$2:V94)+1,0) -> 0 | X95: =IFERROR(VLOOKUP(ROWS($X$3:X95),$V$3:$W$502,2,0),"") ->  | AC95: 93 | AD95: 0 | AG95: 93 | AH95: 0 | AK95: 93 | AL95: 0
A96: 94 | B96: =IF(ISNUMBER(SEARCH($I$3,C96)),MAX(B$2:$B95)+1,0) -> 0 | G96: =IFERROR(VLOOKUP(ROWS($G$3:G96),$B$3:$C$502,2,0),"") ->  | M96: 94 | N96: =IF(ISNUMBER(SEARCH($R$3,O96)),MAX($N$2:N95)+1,0) -> 0 | P96: =IFERROR(VLOOKUP(ROWS($P$3:P96),$N$3:$O$502,2,0),"") ->  | U96: 94 | V96: =IF(ISNUMBER(SEARCH($Z$3,W96)),MAX($V$2:V95)+1,0) -> 0 | X96: =IFERROR(VLOOKUP(ROWS($X$3:X96),$V$3:$W$502,2,0),"") ->  | AC96: 94 | AD96: 0 | AG96: 94 | AH96: 0 | AK96: 94 | AL96: 0
A97: 95 | B97: =IF(ISNUMBER(SEARCH($I$3,C97)),MAX(B$2:$B96)+1,0) -> 0 | G97: =IFERROR(VLOOKUP(ROWS($G$3:G97),$B$3:$C$502,2,0),"") ->  | M97: 95 | N97: =IF(ISNUMBER(SEARCH($R$3,O97)),MAX($N$2:N96)+1,0) -> 0 | P97: =IFERROR(VLOOKUP(ROWS($P$3:P97),$N$3:$O$502,2,0),"") ->  | U97: 95 | V97: =IF(ISNUMBER(SEARCH($Z$3,W97)),MAX($V$2:V96)+1,0) -> 0 | X97: =IFERROR(VLOOKUP(ROWS($X$3:X97),$V$3:$W$502,2,0),"") ->  | AC97: 95 | AD97: 0 | AG97: 95 | AH97: 0 | AK97: 95 | AL97: 0
A98: 96 | B98: =IF(ISNUMBER(SEARCH($I$3,C98)),MAX(B$2:$B97)+1,0) -> 0 | G98: =IFERROR(VLOOKUP(ROWS($G$3:G98),$B$3:$C$502,2,0),"") ->  | M98: 96 | N98: =IF(ISNUMBER(SEARCH($R$3,O98)),MAX($N$2:N97)+1,0) -> 0 | P98: =IFERROR(VLOOKUP(ROWS($P$3:P98),$N$3:$O$502,2,0),"") ->  | U98: 96 | V98: =IF(ISNUMBER(SEARCH($Z$3,W98)),MAX($V$2:V97)+1,0) -> 0 | X98: =IFERROR(VLOOKUP(ROWS($X$3:X98),$V$3:$W$502,2,0),"") ->  | AC98: 96 | AD98: 0 | AG98: 96 | AH98: 0 | AK98: 96 | AL98: 0
A99: 97 | B99: =IF(ISNUMBER(SEARCH($I$3,C99)),MAX(B$2:$B98)+1,0) -> 0 | G99: =IFERROR(VLOOKUP(ROWS($G$3:G99),$B$3:$C$502,2,0),"") ->  | M99: 97 | N99: =IF(ISNUMBER(SEARCH($R$3,O99)),MAX($N$2:N98)+1,0) -> 0 | P99: =IFERROR(VLOOKUP(ROWS($P$3:P99),$N$3:$O$502,2,0),"") ->  | U99: 97 | V99: =IF(ISNUMBER(SEARCH($Z$3,W99)),MAX($V$2:V98)+1,0) -> 0 | X99: =IFERROR(VLOOKUP(ROWS($X$3:X99),$V$3:$W$502,2,0),"") ->  | AC99: 97 | AD99: 0 | AG99: 97 | AH99: 0 | AK99: 97 | AL99: 0
A100: 98 | B100: =IF(ISNUMBER(SEARCH($I$3,C100)),MAX(B$2:$B99)+1,0) -> 0 | G100: =IFERROR(VLOOKUP(ROWS($G$3:G100),$B$3:$C$502,2,0),"") ->  | M100: 98 | N100: =IF(ISNUMBER(SEARCH($R$3,O100)),MAX($N$2:N99)+1,0) -> 0 | P100: =IFERROR(VLOOKUP(ROWS($P$3:P100),$N$3:$O$502,2,0),"") ->  | U100: 98 | V100: =IF(ISNUMBER(SEARCH($Z$3,W100)),MAX($V$2:V99)+1,0) -> 0 | X100: =IFERROR(VLOOKUP(ROWS($X$3:X100),$V$3:$W$502,2,0),"") ->  | AC100: 98 | AD100: 0 | AG100: 98 | AH100: 0 | AK100: 98 | AL100: 0
A101: 99 | B101: =IF(ISNUMBER(SEARCH($I$3,C101)),MAX(B$2:$B100)+1,0) -> 0 | G101: =IFERROR(VLOOKUP(ROWS($G$3:G101),$B$3:$C$502,2,0),"") ->  | M101: 99 | N101: =IF(ISNUMBER(SEARCH($R$3,O101)),MAX($N$2:N100)+1,0) -> 0 | P101: =IFERROR(VLOOKUP(ROWS($P$3:P101),$N$3:$O$502,2,0),"") ->  | U101: 99 | V101: =IF(ISNUMBER(SEARCH($Z$3,W101)),MAX($V$2:V100)+1,0) -> 0 | X101: =IFERROR(VLOOKUP(ROWS($X$3:X101),$V$3:$W$502,2,0),"") ->  | AC101: 99 | AD101: 0 | AG101: 99 | AH101: 0 | AK101: 99 | AL101: 0
A102: 100 | B102: =IF(ISNUMBER(SEARCH($I$3,C102)),MAX(B$2:$B101)+1,0) -> 0 | G102: =IFERROR(VLOOKUP(ROWS($G$3:G102),$B$3:$C$502,2,0),"") ->  | M102: 100 | N102: =IF(ISNUMBER(SEARCH($R$3,O102)),MAX($N$2:N101)+1,0) -> 0 | P102: =IFERROR(VLOOKUP(ROWS($P$3:P102),$N$3:$O$502,2,0),"") ->  | U102: 100 | V102: =IF(ISNUMBER(SEARCH($Z$3,W102)),MAX($V$2:V101)+1,0) -> 0 | X102: =IFERROR(VLOOKUP(ROWS($X$3:X102),$V$3:$W$502,2,0),"") ->  | AC102: 100 | AD102: 0 | AG102: 100 | AH102: 0 | AK102: 100 | AL102: 0
A103: 101 | B103: =IF(ISNUMBER(SEARCH($I$3,C103)),MAX(B$2:$B102)+1,0) -> 0 | G103: =IFERROR(VLOOKUP(ROWS($G$3:G103),$B$3:$C$502,2,0),"") ->  | M103: 101 | N103: =IF(ISNUMBER(SEARCH($R$3,O103)),MAX($N$2:N102)+1,0) -> 0 | P103: =IFERROR(VLOOKUP(ROWS($P$3:P103),$N$3:$O$502,2,0),"") ->  | U103: 101 | V103: =IF(ISNUMBER(SEARCH($Z$3,W103)),MAX($V$2:V102)+1,0) -> 0 | X103: =IFERROR(VLOOKUP(ROWS($X$3:X103),$V$3:$W$502,2,0),"") ->  | AC103: 101 | AD103: 0 | AG103: 101 | AH103: 0 | AK103: 101 | AL103: 0
A104: 102 | B104: =IF(ISNUMBER(SEARCH($I$3,C104)),MAX(B$2:$B103)+1,0) -> 0 | G104: =IFERROR(VLOOKUP(ROWS($G$3:G104),$B$3:$C$502,2,0),"") ->  | M104: 102 | N104: =IF(ISNUMBER(SEARCH($R$3,O104)),MAX($N$2:N103)+1,0) -> 0 | P104: =IFERROR(VLOOKUP(ROWS($P$3:P104),$N$3:$O$502,2,0),"") ->  | U104: 102 | V104: =IF(ISNUMBER(SEARCH($Z$3,W104)),MAX($V$2:V103)+1,0) -> 0 | X104: =IFERROR(VLOOKUP(ROWS($X$3:X104),$V$3:$W$502,2,0),"") ->  | AC104: 102 | AD104: 0 | AG104: 102 | AH104: 0 | AK104: 102 | AL104: 0
A105: 103 | B105: =IF(ISNUMBER(SEARCH($I$3,C105)),MAX(B$2:$B104)+1,0) -> 0 | G105: =IFERROR(VLOOKUP(ROWS($G$3:G105),$B$3:$C$502,2,0),"") ->  | M105: 103 | N105: =IF(ISNUMBER(SEARCH($R$3,O105)),MAX($N$2:N104)+1,0) -> 0 | P105: =IFERROR(VLOOKUP(ROWS($P$3:P105),$N$3:$O$502,2,0),"") ->  | U105: 103 | V105: =IF(ISNUMBER(SEARCH($Z$3,W105)),MAX($V$2:V104)+1,0) -> 0 | X105: =IFERROR(VLOOKUP(ROWS($X$3:X105),$V$3:$W$502,2,0),"") ->  | AC105: 103 | AD105: 0 | AG105: 103 | AH105: 0 | AK105: 103 | AL105: 0
A106: 104 | B106: =IF(ISNUMBER(SEARCH($I$3,C106)),MAX(B$2:$B105)+1,0) -> 0 | G106: =IFERROR(VLOOKUP(ROWS($G$3:G106),$B$3:$C$502,2,0),"") ->  | M106: 104 | N106: =IF(ISNUMBER(SEARCH($R$3,O106)),MAX($N$2:N105)+1,0) -> 0 | P106: =IFERROR(VLOOKUP(ROWS($P$3:P106),$N$3:$O$502,2,0),"") ->  | U106: 104 | V106: =IF(ISNUMBER(SEARCH($Z$3,W106)),MAX($V$2:V105)+1,0) -> 0 | X106: =IFERROR(VLOOKUP(ROWS($X$3:X106),$V$3:$W$502,2,0),"") ->  | AC106: 104 | AD106: 0 | AG106: 104 | AH106: 0 | AK106: 104 | AL106: 0
A107: 105 | B107: =IF(ISNUMBER(SEARCH($I$3,C107)),MAX(B$2:$B106)+1,0) -> 0 | G107: =IFERROR(VLOOKUP(ROWS($G$3:G107),$B$3:$C$502,2,0),"") ->  | M107: 105 | N107: =IF(ISNUMBER(SEARCH($R$3,O107)),MAX($N$2:N106)+1,0) -> 0 | P107: =IFERROR(VLOOKUP(ROWS($P$3:P107),$N$3:$O$502,2,0),"") ->  | U107: 105 | V107: =IF(ISNUMBER(SEARCH($Z$3,W107)),MAX($V$2:V106)+1,0) -> 0 | X107: =IFERROR(VLOOKUP(ROWS($X$3:X107),$V$3:$W$502,2,0),"") ->  | AC107: 105 | AD107: 0 | AG107: 105 | AH107: 0 | AK107: 105 | AL107: 0
A108: 106 | B108: =IF(ISNUMBER(SEARCH($I$3,C108)),MAX(B$2:$B107)+1,0) -> 0 | G108: =IFERROR(VLOOKUP(ROWS($G$3:G108),$B$3:$C$502,2,0),"") ->  | M108: 106 | N108: =IF(ISNUMBER(SEARCH($R$3,O108)),MAX($N$2:N107)+1,0) -> 0 | P108: =IFERROR(VLOOKUP(ROWS($P$3:P108),$N$3:$O$502,2,0),"") ->  | U108: 106 | V108: =IF(ISNUMBER(SEARCH($Z$3,W108)),MAX($V$2:V107)+1,0) -> 0 | X108: =IFERROR(VLOOKUP(ROWS($X$3:X108),$V$3:$W$502,2,0),"") ->  | AC108: 106 | AD108: 0 | AG108: 106 | AH108: 0 | AK108: 106 | AL108: 0
A109: 107 | B109: =IF(ISNUMBER(SEARCH($I$3,C109)),MAX(B$2:$B108)+1,0) -> 0 | G109: =IFERROR(VLOOKUP(ROWS($G$3:G109),$B$3:$C$502,2,0),"") ->  | M109: 107 | N109: =IF(ISNUMBER(SEARCH($R$3,O109)),MAX($N$2:N108)+1,0) -> 0 | P109: =IFERROR(VLOOKUP(ROWS($P$3:P109),$N$3:$O$502,2,0),"") ->  | U109: 107 | V109: =IF(ISNUMBER(SEARCH($Z$3,W109)),MAX($V$2:V108)+1,0) -> 0 | X109: =IFERROR(VLOOKUP(ROWS($X$3:X109),$V$3:$W$502,2,0),"") ->  | AC109: 107 | AD109: 0 | AG109: 107 | AH109: 0 | AK109: 107 | AL109: 0
A110: 108 | B110: =IF(ISNUMBER(SEARCH($I$3,C110)),MAX(B$2:$B109)+1,0) -> 0 | G110: =IFERROR(VLOOKUP(ROWS($G$3:G110),$B$3:$C$502,2,0),"") ->  | M110: 108 | N110: =IF(ISNUMBER(SEARCH($R$3,O110)),MAX($N$2:N109)+1,0) -> 0 | P110: =IFERROR(VLOOKUP(ROWS($P$3:P110),$N$3:$O$502,2,0),"") ->  | U110: 108 | V110: =IF(ISNUMBER(SEARCH($Z$3,W110)),MAX($V$2:V109)+1,0) -> 0 | X110: =IFERROR(VLOOKUP(ROWS($X$3:X110),$V$3:$W$502,2,0),"") ->  | AC110: 108 | AD110: 0 | AG110: 108 | AH110: 0 | AK110: 108 | AL110: 0
A111: 109 | B111: =IF(ISNUMBER(SEARCH($I$3,C111)),MAX(B$2:$B110)+1,0) -> 0 | G111: =IFERROR(VLOOKUP(ROWS($G$3:G111),$B$3:$C$502,2,0),"") ->  | M111: 109 | N111: =IF(ISNUMBER(SEARCH($R$3,O111)),MAX($N$2:N110)+1,0) -> 0 | P111: =IFERROR(VLOOKUP(ROWS($P$3:P111),$N$3:$O$502,2,0),"") ->  | U111: 109 | V111: =IF(ISNUMBER(SEARCH($Z$3,W111)),MAX($V$2:V110)+1,0) -> 0 | X111: =IFERROR(VLOOKUP(ROWS($X$3:X111),$V$3:$W$502,2,0),"") ->  | AC111: 109 | AD111: 0 | AG111: 109 | AH111: 0 | AK111: 109 | AL111: 0
A112: 110 | B112: =IF(ISNUMBER(SEARCH($I$3,C112)),MAX(B$2:$B111)+1,0) -> 0 | G112: =IFERROR(VLOOKUP(ROWS($G$3:G112),$B$3:$C$502,2,0),"") ->  | M112: 110 | N112: =IF(ISNUMBER(SEARCH($R$3,O112)),MAX($N$2:N111)+1,0) -> 0 | P112: =IFERROR(VLOOKUP(ROWS($P$3:P112),$N$3:$O$502,2,0),"") ->  | U112: 110 | V112: =IF(ISNUMBER(SEARCH($Z$3,W112)),MAX($V$2:V111)+1,0) -> 0 | X112: =IFERROR(VLOOKUP(ROWS($X$3:X112),$V$3:$W$502,2,0),"") ->  | AC112: 110 | AD112: 0 | AG112: 110 | AH112: 0 | AK112: 110 | AL112: 0
A113: 111 | B113: =IF(ISNUMBER(SEARCH($I$3,C113)),MAX(B$2:$B112)+1,0) -> 0 | G113: =IFERROR(VLOOKUP(ROWS($G$3:G113),$B$3:$C$502,2,0),"") ->  | M113: 111 | N113: =IF(ISNUMBER(SEARCH($R$3,O113)),MAX($N$2:N112)+1,0) -> 0 | P113: =IFERROR(VLOOKUP(ROWS($P$3:P113),$N$3:$O$502,2,0),"") ->  | U113: 111 | V113: =IF(ISNUMBER(SEARCH($Z$3,W113)),MAX($V$2:V112)+1,0) -> 0 | X113: =IFERROR(VLOOKUP(ROWS($X$3:X113),$V$3:$W$502,2,0),"") ->  | AC113: 111 | AD113: 0 | AG113: 111 | AH113: 0 | AK113: 111 | AL113: 0
A114: 112 | B114: =IF(ISNUMBER(SEARCH($I$3,C114)),MAX(B$2:$B113)+1,0) -> 0 | G114: =IFERROR(VLOOKUP(ROWS($G$3:G114),$B$3:$C$502,2,0),"") ->  | M114: 112 | N114: =IF(ISNUMBER(SEARCH($R$3,O114)),MAX($N$2:N113)+1,0) -> 0 | P114: =IFERROR(VLOOKUP(ROWS($P$3:P114),$N$3:$O$502,2,0),"") ->  | U114: 112 | V114: =IF(ISNUMBER(SEARCH($Z$3,W114)),MAX($V$2:V113)+1,0) -> 0 | X114: =IFERROR(VLOOKUP(ROWS($X$3:X114),$V$3:$W$502,2,0),"") ->  | AC114: 112 | AD114: 0 | AG114: 112 | AH114: 0 | AK114: 112 | AL114: 0
A115: 113 | B115: =IF(ISNUMBER(SEARCH($I$3,C115)),MAX(B$2:$B114)+1,0) -> 0 | G115: =IFERROR(VLOOKUP(ROWS($G$3:G115),$B$3:$C$502,2,0),"") ->  | M115: 113 | N115: =IF(ISNUMBER(SEARCH($R$3,O115)),MAX($N$2:N114)+1,0) -> 0 | P115: =IFERROR(VLOOKUP(ROWS($P$3:P115),$N$3:$O$502,2,0),"") ->  | U115: 113 | V115: =IF(ISNUMBER(SEARCH($Z$3,W115)),MAX($V$2:V114)+1,0) -> 0 | X115: =IFERROR(VLOOKUP(ROWS($X$3:X115),$V$3:$W$502,2,0),"") ->  | AC115: 113 | AD115: 0 | AG115: 113 | AH115: 0 | AK115: 113 | AL115: 0
A116: 114 | B116: =IF(ISNUMBER(SEARCH($I$3,C116)),MAX(B$2:$B115)+1,0) -> 0 | G116: =IFERROR(VLOOKUP(ROWS($G$3:G116),$B$3:$C$502,2,0),"") ->  | M116: 114 | N116: =IF(ISNUMBER(SEARCH($R$3,O116)),MAX($N$2:N115)+1,0) -> 0 | P116: =IFERROR(VLOOKUP(ROWS($P$3:P116),$N$3:$O$502,2,0),"") ->  | U116: 114 | V116: =IF(ISNUMBER(SEARCH($Z$3,W116)),MAX($V$2:V115)+1,0) -> 0 | X116: =IFERROR(VLOOKUP(ROWS($X$3:X116),$V$3:$W$502,2,0),"") ->  | AC116: 114 | AD116: 0 | AG116: 114 | AH116: 0 | AK116: 114 | AL116: 0
A117: 115 | B117: =IF(ISNUMBER(SEARCH($I$3,C117)),MAX(B$2:$B116)+1,0) -> 0 | G117: =IFERROR(VLOOKUP(ROWS($G$3:G117),$B$3:$C$502,2,0),"") ->  | M117: 115 | N117: =IF(ISNUMBER(SEARCH($R$3,O117)),MAX($N$2:N116)+1,0) -> 0 | P117: =IFERROR(VLOOKUP(ROWS($P$3:P117),$N$3:$O$502,2,0),"") ->  | U117: 115 | V117: =IF(ISNUMBER(SEARCH($Z$3,W117)),MAX($V$2:V116)+1,0) -> 0 | X117: =IFERROR(VLOOKUP(ROWS($X$3:X117),$V$3:$W$502,2,0),"") ->  | AC117: 115 | AD117: 0 | AG117: 115 | AH117: 0 | AK117: 115 | AL117: 0
A118: 116 | B118: =IF(ISNUMBER(SEARCH($I$3,C118)),MAX(B$2:$B117)+1,0) -> 0 | G118: =IFERROR(VLOOKUP(ROWS($G$3:G118),$B$3:$C$502,2,0),"") ->  | M118: 116 | N118: =IF(ISNUMBER(SEARCH($R$3,O118)),MAX($N$2:N117)+1,0) -> 0 | P118: =IFERROR(VLOOKUP(ROWS($P$3:P118),$N$3:$O$502,2,0),"") ->  | U118: 116 | V118: =IF(ISNUMBER(SEARCH($Z$3,W118)),MAX($V$2:V117)+1,0) -> 0 | X118: =IFERROR(VLOOKUP(ROWS($X$3:X118),$V$3:$W$502,2,0),"") ->  | AC118: 116 | AD118: 0 | AG118: 116 | AH118: 0 | AK118: 116 | AL118: 0
A119: 117 | B119: =IF(ISNUMBER(SEARCH($I$3,C119)),MAX(B$2:$B118)+1,0) -> 0 | G119: =IFERROR(VLOOKUP(ROWS($G$3:G119),$B$3:$C$502,2,0),"") ->  | M119: 117 | N119: =IF(ISNUMBER(SEARCH($R$3,O119)),MAX($N$2:N118)+1,0) -> 0 | P119: =IFERROR(VLOOKUP(ROWS($P$3:P119),$N$3:$O$502,2,0),"") ->  | U119: 117 | V119: =IF(ISNUMBER(SEARCH($Z$3,W119)),MAX($V$2:V118)+1,0) -> 0 | X119: =IFERROR(VLOOKUP(ROWS($X$3:X119),$V$3:$W$502,2,0),"") ->  | AC119: 117 | AD119: 0 | AG119: 117 | AH119: 0 | AK119: 117 | AL119: 0
A120: 118 | B120: =IF(ISNUMBER(SEARCH($I$3,C120)),MAX(B$2:$B119)+1,0) -> 0 | G120: =IFERROR(VLOOKUP(ROWS($G$3:G120),$B$3:$C$502,2,0),"") ->  | M120: 118 | N120: =IF(ISNUMBER(SEARCH($R$3,O120)),MAX($N$2:N119)+1,0) -> 0 | P120: =IFERROR(VLOOKUP(ROWS($P$3:P120),$N$3:$O$502,2,0),"") ->  | U120: 118 | V120: =IF(ISNUMBER(SEARCH($Z$3,W120)),MAX($V$2:V119)+1,0) -> 0 | X120: =IFERROR(VLOOKUP(ROWS($X$3:X120),$V$3:$W$502,2,0),"") ->  | AC120: 118 | AD120: 0 | AG120: 118 | AH120: 0 | AK120: 118 | AL120: 0
A121: 119 | B121: =IF(ISNUMBER(SEARCH($I$3,C121)),MAX(B$2:$B120)+1,0) -> 0 | G121: =IFERROR(VLOOKUP(ROWS($G$3:G121),$B$3:$C$502,2,0),"") ->  | M121: 119 | N121: =IF(ISNUMBER(SEARCH($R$3,O121)),MAX($N$2:N120)+1,0) -> 0 | P121: =IFERROR(VLOOKUP(ROWS($P$3:P121),$N$3:$O$502,2,0),"") ->  | U121: 119 | V121: =IF(ISNUMBER(SEARCH($Z$3,W121)),MAX($V$2:V120)+1,0) -> 0 | X121: =IFERROR(VLOOKUP(ROWS($X$3:X121),$V$3:$W$502,2,0),"") ->  | AC121: 119 | AD121: 0 | AG121: 119 | AH121: 0 | AK121: 119 | AL121: 0
A122: 120 | B122: =IF(ISNUMBER(SEARCH($I$3,C122)),MAX(B$2:$B121)+1,0) -> 0 | G122: =IFERROR(VLOOKUP(ROWS($G$3:G122),$B$3:$C$502,2,0),"") ->  | M122: 120 | N122: =IF(ISNUMBER(SEARCH($R$3,O122)),MAX($N$2:N121)+1,0) -> 0 | P122: =IFERROR(VLOOKUP(ROWS($P$3:P122),$N$3:$O$502,2,0),"") ->  | U122: 120 | V122: =IF(ISNUMBER(SEARCH($Z$3,W122)),MAX($V$2:V121)+1,0) -> 0 | X122: =IFERROR(VLOOKUP(ROWS($X$3:X122),$V$3:$W$502,2,0),"") ->  | AC122: 120 | AD122: 0 | AG122: 120 | AH122: 0 | AK122: 120 | AL122: 0
A123: 121 | B123: =IF(ISNUMBER(SEARCH($I$3,C123)),MAX(B$2:$B122)+1,0) -> 0 | G123: =IFERROR(VLOOKUP(ROWS($G$3:G123),$B$3:$C$502,2,0),"") ->  | M123: 121 | N123: =IF(ISNUMBER(SEARCH($R$3,O123)),MAX($N$2:N122)+1,0) -> 0 | P123: =IFERROR(VLOOKUP(ROWS($P$3:P123),$N$3:$O$502,2,0),"") ->  | U123: 121 | V123: =IF(ISNUMBER(SEARCH($Z$3,W123)),MAX($V$2:V122)+1,0) -> 0 | X123: =IFERROR(VLOOKUP(ROWS($X$3:X123),$V$3:$W$502,2,0),"") ->  | AC123: 121 | AD123: 0 | AG123: 121 | AH123: 0 | AK123: 121 | AL123: 0
A124: 122 | B124: =IF(ISNUMBER(SEARCH($I$3,C124)),MAX(B$2:$B123)+1,0) -> 0 | G124: =IFERROR(VLOOKUP(ROWS($G$3:G124),$B$3:$C$502,2,0),"") ->  | M124: 122 | N124: =IF(ISNUMBER(SEARCH($R$3,O124)),MAX($N$2:N123)+1,0) -> 0 | P124: =IFERROR(VLOOKUP(ROWS($P$3:P124),$N$3:$O$502,2,0),"") ->  | U124: 122 | V124: =IF(ISNUMBER(SEARCH($Z$3,W124)),MAX($V$2:V123)+1,0) -> 0 | X124: =IFERROR(VLOOKUP(ROWS($X$3:X124),$V$3:$W$502,2,0),"") ->  | AC124: 122 | AD124: 0 | AG124: 122 | AH124: 0 | AK124: 122 | AL124: 0
A125: 123 | B125: =IF(ISNUMBER(SEARCH($I$3,C125)),MAX(B$2:$B124)+1,0) -> 0 | G125: =IFERROR(VLOOKUP(ROWS($G$3:G125),$B$3:$C$502,2,0),"") ->  | M125: 123 | N125: =IF(ISNUMBER(SEARCH($R$3,O125)),MAX($N$2:N124)+1,0) -> 0 | P125: =IFERROR(VLOOKUP(ROWS($P$3:P125),$N$3:$O$502,2,0),"") ->  | U125: 123 | V125: =IF(ISNUMBER(SEARCH($Z$3,W125)),MAX($V$2:V124)+1,0) -> 0 | X125: =IFERROR(VLOOKUP(ROWS($X$3:X125),$V$3:$W$502,2,0),"") ->  | AC125: 123 | AD125: 0 | AG125: 123 | AH125: 0 | AK125: 123 | AL125: 0
A126: 124 | B126: =IF(ISNUMBER(SEARCH($I$3,C126)),MAX(B$2:$B125)+1,0) -> 0 | G126: =IFERROR(VLOOKUP(ROWS($G$3:G126),$B$3:$C$502,2,0),"") ->  | M126: 124 | N126: =IF(ISNUMBER(SEARCH($R$3,O126)),MAX($N$2:N125)+1,0) -> 0 | P126: =IFERROR(VLOOKUP(ROWS($P$3:P126),$N$3:$O$502,2,0),"") ->  | U126: 124 | V126: =IF(ISNUMBER(SEARCH($Z$3,W126)),MAX($V$2:V125)+1,0) -> 0 | X126: =IFERROR(VLOOKUP(ROWS($X$3:X126),$V$3:$W$502,2,0),"") ->  | AC126: 124 | AD126: 0 | AG126: 124 | AH126: 0 | AK126: 124 | AL126: 0
A127: 125 | B127: =IF(ISNUMBER(SEARCH($I$3,C127)),MAX(B$2:$B126)+1,0) -> 0 | G127: =IFERROR(VLOOKUP(ROWS($G$3:G127),$B$3:$C$502,2,0),"") ->  | M127: 125 | N127: =IF(ISNUMBER(SEARCH($R$3,O127)),MAX($N$2:N126)+1,0) -> 0 | P127: =IFERROR(VLOOKUP(ROWS($P$3:P127),$N$3:$O$502,2,0),"") ->  | U127: 125 | V127: =IF(ISNUMBER(SEARCH($Z$3,W127)),MAX($V$2:V126)+1,0) -> 0 | X127: =IFERROR(VLOOKUP(ROWS($X$3:X127),$V$3:$W$502,2,0),"") ->  | AC127: 125 | AD127: 0 | AG127: 125 | AH127: 0 | AK127: 125 | AL127: 0
A128: 126 | B128: =IF(ISNUMBER(SEARCH($I$3,C128)),MAX(B$2:$B127)+1,0) -> 0 | G128: =IFERROR(VLOOKUP(ROWS($G$3:G128),$B$3:$C$502,2,0),"") ->  | M128: 126 | N128: =IF(ISNUMBER(SEARCH($R$3,O128)),MAX($N$2:N127)+1,0) -> 0 | P128: =IFERROR(VLOOKUP(ROWS($P$3:P128),$N$3:$O$502,2,0),"") ->  | U128: 126 | V128: =IF(ISNUMBER(SEARCH($Z$3,W128)),MAX($V$2:V127)+1,0) -> 0 | X128: =IFERROR(VLOOKUP(ROWS($X$3:X128),$V$3:$W$502,2,0),"") ->  | AC128: 126 | AD128: 0 | AG128: 126 | AH128: 0 | AK128: 126 | AL128: 0
A129: 127 | B129: =IF(ISNUMBER(SEARCH($I$3,C129)),MAX(B$2:$B128)+1,0) -> 0 | G129: =IFERROR(VLOOKUP(ROWS($G$3:G129),$B$3:$C$502,2,0),"") ->  | M129: 127 | N129: =IF(ISNUMBER(SEARCH($R$3,O129)),MAX($N$2:N128)+1,0) -> 0 | P129: =IFERROR(VLOOKUP(ROWS($P$3:P129),$N$3:$O$502,2,0),"") ->  | U129: 127 | V129: =IF(ISNUMBER(SEARCH($Z$3,W129)),MAX($V$2:V128)+1,0) -> 0 | X129: =IFERROR(VLOOKUP(ROWS($X$3:X129),$V$3:$W$502,2,0),"") ->  | AC129: 127 | AD129: 0 | AG129: 127 | AH129: 0 | AK129: 127 | AL129: 0
A130: 128 | B130: =IF(ISNUMBER(SEARCH($I$3,C130)),MAX(B$2:$B129)+1,0) -> 0 | G130: =IFERROR(VLOOKUP(ROWS($G$3:G130),$B$3:$C$502,2,0),"") ->  | M130: 128 | N130: =IF(ISNUMBER(SEARCH($R$3,O130)),MAX($N$2:N129)+1,0) -> 0 | P130: =IFERROR(VLOOKUP(ROWS($P$3:P130),$N$3:$O$502,2,0),"") ->  | U130: 128 | V130: =IF(ISNUMBER(SEARCH($Z$3,W130)),MAX($V$2:V129)+1,0) -> 0 | X130: =IFERROR(VLOOKUP(ROWS($X$3:X130),$V$3:$W$502,2,0),"") ->  | AC130: 128 | AD130: 0 | AG130: 128 | AH130: 0 | AK130: 128 | AL130: 0
A131: 129 | B131: =IF(ISNUMBER(SEARCH($I$3,C131)),MAX(B$2:$B130)+1,0) -> 0 | G131: =IFERROR(VLOOKUP(ROWS($G$3:G131),$B$3:$C$502,2,0),"") ->  | M131: 129 | N131: =IF(ISNUMBER(SEARCH($R$3,O131)),MAX($N$2:N130)+1,0) -> 0 | P131: =IFERROR(VLOOKUP(ROWS($P$3:P131),$N$3:$O$502,2,0),"") ->  | U131: 129 | V131: =IF(ISNUMBER(SEARCH($Z$3,W131)),MAX($V$2:V130)+1,0) -> 0 | X131: =IFERROR(VLOOKUP(ROWS($X$3:X131),$V$3:$W$502,2,0),"") ->  | AC131: 129 | AD131: 0 | AG131: 129 | AH131: 0 | AK131: 129 | AL131: 0
A132: =ROW()-2 -> 130 | B132: =IF(ISNUMBER(SEARCH($I$3,C132)),MAX(B$2:$B131)+1,0) -> 0 | G132: =IFERROR(VLOOKUP(ROWS($G$3:G132),$B$3:$C$502,2,0),"") ->  | M132: =ROW()-2 -> 130 | N132: =IF(ISNUMBER(SEARCH($R$3,O132)),MAX($N$2:N131)+1,0) -> 0 | P132: =IFERROR(VLOOKUP(ROWS($P$3:P132),$N$3:$O$502,2,0),"") ->  | U132: =ROW()-2 -> 130 | V132: =IF(ISNUMBER(SEARCH($Z$3,W132)),MAX($V$2:V131)+1,0) -> 0 | X132: =IFERROR(VLOOKUP(ROWS($X$3:X132),$V$3:$W$502,2,0),"") ->  | AC132: 130 | AD132: 0 | AG132: 130 | AH132: 0 | AK132: 130 | AL132: 0
A133: 131 | B133: =IF(ISNUMBER(SEARCH($I$3,C133)),MAX(B$2:$B132)+1,0) -> 0 | G133: =IFERROR(VLOOKUP(ROWS($G$3:G133),$B$3:$C$502,2,0),"") ->  | M133: 131 | N133: =IF(ISNUMBER(SEARCH($R$3,O133)),MAX($N$2:N132)+1,0) -> 0 | P133: =IFERROR(VLOOKUP(ROWS($P$3:P133),$N$3:$O$502,2,0),"") ->  | U133: 131 | V133: =IF(ISNUMBER(SEARCH($Z$3,W133)),MAX($V$2:V132)+1,0) -> 0 | X133: =IFERROR(VLOOKUP(ROWS($X$3:X133),$V$3:$W$502,2,0),"") ->  | AC133: 131 | AD133: 0 | AG133: 131 | AH133: 0 | AK133: 131 | AL133: 0
A134: 132 | B134: =IF(ISNUMBER(SEARCH($I$3,C134)),MAX(B$2:$B133)+1,0) -> 0 | G134: =IFERROR(VLOOKUP(ROWS($G$3:G134),$B$3:$C$502,2,0),"") ->  | M134: 132 | N134: =IF(ISNUMBER(SEARCH($R$3,O134)),MAX($N$2:N133)+1,0) -> 0 | P134: =IFERROR(VLOOKUP(ROWS($P$3:P134),$N$3:$O$502,2,0),"") ->  | U134: 132 | V134: =IF(ISNUMBER(SEARCH($Z$3,W134)),MAX($V$2:V133)+1,0) -> 0 | X134: =IFERROR(VLOOKUP(ROWS($X$3:X134),$V$3:$W$502,2,0),"") ->  | AC134: 132 | AD134: 0 | AG134: 132 | AH134: 0 | AK134: 132 | AL134: 0
A135: 133 | B135: =IF(ISNUMBER(SEARCH($I$3,C135)),MAX(B$2:$B134)+1,0) -> 0 | G135: =IFERROR(VLOOKUP(ROWS($G$3:G135),$B$3:$C$502,2,0),"") ->  | M135: 133 | N135: =IF(ISNUMBER(SEARCH($R$3,O135)),MAX($N$2:N134)+1,0) -> 0 | P135: =IFERROR(VLOOKUP(ROWS($P$3:P135),$N$3:$O$502,2,0),"") ->  | U135: 133 | V135: =IF(ISNUMBER(SEARCH($Z$3,W135)),MAX($V$2:V134)+1,0) -> 0 | X135: =IFERROR(VLOOKUP(ROWS($X$3:X135),$V$3:$W$502,2,0),"") ->  | AC135: 133 | AD135: 0 | AG135: 133 | AH135: 0 | AK135: 133 | AL135: 0
A136: 134 | B136: =IF(ISNUMBER(SEARCH($I$3,C136)),MAX(B$2:$B135)+1,0) -> 0 | G136: =IFERROR(VLOOKUP(ROWS($G$3:G136),$B$3:$C$502,2,0),"") ->  | M136: 134 | N136: =IF(ISNUMBER(SEARCH($R$3,O136)),MAX($N$2:N135)+1,0) -> 0 | P136: =IFERROR(VLOOKUP(ROWS($P$3:P136),$N$3:$O$502,2,0),"") ->  | U136: 134 | V136: =IF(ISNUMBER(SEARCH($Z$3,W136)),MAX($V$2:V135)+1,0) -> 0 | X136: =IFERROR(VLOOKUP(ROWS($X$3:X136),$V$3:$W$502,2,0),"") ->  | AC136: 134 | AD136: 0 | AG136: 134 | AH136: 0 | AK136: 134 | AL136: 0
A137: 135 | B137: =IF(ISNUMBER(SEARCH($I$3,C137)),MAX(B$2:$B136)+1,0) -> 0 | G137: =IFERROR(VLOOKUP(ROWS($G$3:G137),$B$3:$C$502,2,0),"") ->  | M137: 135 | N137: =IF(ISNUMBER(SEARCH($R$3,O137)),MAX($N$2:N136)+1,0) -> 0 | P137: =IFERROR(VLOOKUP(ROWS($P$3:P137),$N$3:$O$502,2,0),"") ->  | U137: 135 | V137: =IF(ISNUMBER(SEARCH($Z$3,W137)),MAX($V$2:V136)+1,0) -> 0 | X137: =IFERROR(VLOOKUP(ROWS($X$3:X137),$V$3:$W$502,2,0),"") ->  | AC137: 135 | AD137: 0 | AG137: 135 | AH137: 0 | AK137: 135 | AL137: 0
A138: 136 | B138: =IF(ISNUMBER(SEARCH($I$3,C138)),MAX(B$2:$B137)+1,0) -> 0 | G138: =IFERROR(VLOOKUP(ROWS($G$3:G138),$B$3:$C$502,2,0),"") ->  | M138: 136 | N138: =IF(ISNUMBER(SEARCH($R$3,O138)),MAX($N$2:N137)+1,0) -> 0 | P138: =IFERROR(VLOOKUP(ROWS($P$3:P138),$N$3:$O$502,2,0),"") ->  | U138: 136 | V138: =IF(ISNUMBER(SEARCH($Z$3,W138)),MAX($V$2:V137)+1,0) -> 0 | X138: =IFERROR(VLOOKUP(ROWS($X$3:X138),$V$3:$W$502,2,0),"") ->  | AC138: 136 | AD138: 0 | AG138: 136 | AH138: 0 | AK138: 136 | AL138: 0
A139: 137 | B139: =IF(ISNUMBER(SEARCH($I$3,C139)),MAX(B$2:$B138)+1,0) -> 0 | G139: =IFERROR(VLOOKUP(ROWS($G$3:G139),$B$3:$C$502,2,0),"") ->  | M139: 137 | N139: =IF(ISNUMBER(SEARCH($R$3,O139)),MAX($N$2:N138)+1,0) -> 0 | P139: =IFERROR(VLOOKUP(ROWS($P$3:P139),$N$3:$O$502,2,0),"") ->  | U139: 137 | V139: =IF(ISNUMBER(SEARCH($Z$3,W139)),MAX($V$2:V138)+1,0) -> 0 | X139: =IFERROR(VLOOKUP(ROWS($X$3:X139),$V$3:$W$502,2,0),"") ->  | AC139: 137 | AD139: 0 | AG139: 137 | AH139: 0 | AK139: 137 | AL139: 0
A140: 138 | B140: =IF(ISNUMBER(SEARCH($I$3,C140)),MAX(B$2:$B139)+1,0) -> 0 | G140: =IFERROR(VLOOKUP(ROWS($G$3:G140),$B$3:$C$502,2,0),"") ->  | M140: 138 | N140: =IF(ISNUMBER(SEARCH($R$3,O140)),MAX($N$2:N139)+1,0) -> 0 | P140: =IFERROR(VLOOKUP(ROWS($P$3:P140),$N$3:$O$502,2,0),"") ->  | U140: 138 | V140: =IF(ISNUMBER(SEARCH($Z$3,W140)),MAX($V$2:V139)+1,0) -> 0 | X140: =IFERROR(VLOOKUP(ROWS($X$3:X140),$V$3:$W$502,2,0),"") ->  | AC140: 138 | AD140: 0 | AG140: 138 | AH140: 0 | AK140: 138 | AL140: 0
A141: 139 | B141: =IF(ISNUMBER(SEARCH($I$3,C141)),MAX(B$2:$B140)+1,0) -> 0 | G141: =IFERROR(VLOOKUP(ROWS($G$3:G141),$B$3:$C$502,2,0),"") ->  | M141: 139 | N141: =IF(ISNUMBER(SEARCH($R$3,O141)),MAX($N$2:N140)+1,0) -> 0 | P141: =IFERROR(VLOOKUP(ROWS($P$3:P141),$N$3:$O$502,2,0),"") ->  | U141: 139 | V141: =IF(ISNUMBER(SEARCH($Z$3,W141)),MAX($V$2:V140)+1,0) -> 0 | X141: =IFERROR(VLOOKUP(ROWS($X$3:X141),$V$3:$W$502,2,0),"") ->  | AC141: 139 | AD141: 0 | AG141: 139 | AH141: 0 | AK141: 139 | AL141: 0
A142: 140 | B142: =IF(ISNUMBER(SEARCH($I$3,C142)),MAX(B$2:$B141)+1,0) -> 0 | G142: =IFERROR(VLOOKUP(ROWS($G$3:G142),$B$3:$C$502,2,0),"") ->  | M142: 140 | N142: =IF(ISNUMBER(SEARCH($R$3,O142)),MAX($N$2:N141)+1,0) -> 0 | P142: =IFERROR(VLOOKUP(ROWS($P$3:P142),$N$3:$O$502,2,0),"") ->  | U142: 140 | V142: =IF(ISNUMBER(SEARCH($Z$3,W142)),MAX($V$2:V141)+1,0) -> 0 | X142: =IFERROR(VLOOKUP(ROWS($X$3:X142),$V$3:$W$502,2,0),"") ->  | AC142: 140 | AD142: 0 | AG142: 140 | AH142: 0 | AK142: 140 | AL142: 0
A143: 141 | B143: =IF(ISNUMBER(SEARCH($I$3,C143)),MAX(B$2:$B142)+1,0) -> 0 | G143: =IFERROR(VLOOKUP(ROWS($G$3:G143),$B$3:$C$502,2,0),"") ->  | M143: 141 | N143: =IF(ISNUMBER(SEARCH($R$3,O143)),MAX($N$2:N142)+1,0) -> 0 | P143: =IFERROR(VLOOKUP(ROWS($P$3:P143),$N$3:$O$502,2,0),"") ->  | U143: 141 | V143: =IF(ISNUMBER(SEARCH($Z$3,W143)),MAX($V$2:V142)+1,0) -> 0 | X143: =IFERROR(VLOOKUP(ROWS($X$3:X143),$V$3:$W$502,2,0),"") ->  | AC143: 141 | AD143: 0 | AG143: 141 | AH143: 0 | AK143: 141 | AL143: 0
A144: 142 | B144: =IF(ISNUMBER(SEARCH($I$3,C144)),MAX(B$2:$B143)+1,0) -> 0 | G144: =IFERROR(VLOOKUP(ROWS($G$3:G144),$B$3:$C$502,2,0),"") ->  | M144: 142 | N144: =IF(ISNUMBER(SEARCH($R$3,O144)),MAX($N$2:N143)+1,0) -> 0 | P144: =IFERROR(VLOOKUP(ROWS($P$3:P144),$N$3:$O$502,2,0),"") ->  | U144: 142 | V144: =IF(ISNUMBER(SEARCH($Z$3,W144)),MAX($V$2:V143)+1,0) -> 0 | X144: =IFERROR(VLOOKUP(ROWS($X$3:X144),$V$3:$W$502,2,0),"") ->  | AC144: 142 | AD144: 0 | AG144: 142 | AH144: 0 | AK144: 142 | AL144: 0
A145: 143 | B145: =IF(ISNUMBER(SEARCH($I$3,C145)),MAX(B$2:$B144)+1,0) -> 0 | G145: =IFERROR(VLOOKUP(ROWS($G$3:G145),$B$3:$C$502,2,0),"") ->  | M145: 143 | N145: =IF(ISNUMBER(SEARCH($R$3,O145)),MAX($N$2:N144)+1,0) -> 0 | P145: =IFERROR(VLOOKUP(ROWS($P$3:P145),$N$3:$O$502,2,0),"") ->  | U145: 143 | V145: =IF(ISNUMBER(SEARCH($Z$3,W145)),MAX($V$2:V144)+1,0) -> 0 | X145: =IFERROR(VLOOKUP(ROWS($X$3:X145),$V$3:$W$502,2,0),"") ->  | AC145: 143 | AD145: 0 | AG145: 143 | AH145: 0 | AK145: 143 | AL145: 0
A146: 144 | B146: =IF(ISNUMBER(SEARCH($I$3,C146)),MAX(B$2:$B145)+1,0) -> 0 | G146: =IFERROR(VLOOKUP(ROWS($G$3:G146),$B$3:$C$502,2,0),"") ->  | M146: 144 | N146: =IF(ISNUMBER(SEARCH($R$3,O146)),MAX($N$2:N145)+1,0) -> 0 | P146: =IFERROR(VLOOKUP(ROWS($P$3:P146),$N$3:$O$502,2,0),"") ->  | U146: 144 | V146: =IF(ISNUMBER(SEARCH($Z$3,W146)),MAX($V$2:V145)+1,0) -> 0 | X146: =IFERROR(VLOOKUP(ROWS($X$3:X146),$V$3:$W$502,2,0),"") ->  | AC146: 144 | AD146: 0 | AG146: 144 | AH146: 0 | AK146: 144 | AL146: 0
A147: 145 | B147: =IF(ISNUMBER(SEARCH($I$3,C147)),MAX(B$2:$B146)+1,0) -> 0 | G147: =IFERROR(VLOOKUP(ROWS($G$3:G147),$B$3:$C$502,2,0),"") ->  | M147: 145 | N147: =IF(ISNUMBER(SEARCH($R$3,O147)),MAX($N$2:N146)+1,0) -> 0 | P147: =IFERROR(VLOOKUP(ROWS($P$3:P147),$N$3:$O$502,2,0),"") ->  | U147: 145 | V147: =IF(ISNUMBER(SEARCH($Z$3,W147)),MAX($V$2:V146)+1,0) -> 0 | X147: =IFERROR(VLOOKUP(ROWS($X$3:X147),$V$3:$W$502,2,0),"") ->  | AC147: 145 | AD147: 0 | AG147: 145 | AH147: 0 | AK147: 145 | AL147: 0
A148: 146 | B148: =IF(ISNUMBER(SEARCH($I$3,C148)),MAX(B$2:$B147)+1,0) -> 0 | G148: =IFERROR(VLOOKUP(ROWS($G$3:G148),$B$3:$C$502,2,0),"") ->  | M148: 146 | N148: =IF(ISNUMBER(SEARCH($R$3,O148)),MAX($N$2:N147)+1,0) -> 0 | P148: =IFERROR(VLOOKUP(ROWS($P$3:P148),$N$3:$O$502,2,0),"") ->  | U148: 146 | V148: =IF(ISNUMBER(SEARCH($Z$3,W148)),MAX($V$2:V147)+1,0) -> 0 | X148: =IFERROR(VLOOKUP(ROWS($X$3:X148),$V$3:$W$502,2,0),"") ->  | AC148: 146 | AD148: 0 | AG148: 146 | AH148: 0 | AK148: 146 | AL148: 0
A149: 147 | B149: =IF(ISNUMBER(SEARCH($I$3,C149)),MAX(B$2:$B148)+1,0) -> 0 | G149: =IFERROR(VLOOKUP(ROWS($G$3:G149),$B$3:$C$502,2,0),"") ->  | M149: 147 | N149: =IF(ISNUMBER(SEARCH($R$3,O149)),MAX($N$2:N148)+1,0) -> 0 | P149: =IFERROR(VLOOKUP(ROWS($P$3:P149),$N$3:$O$502,2,0),"") ->  | U149: 147 | V149: =IF(ISNUMBER(SEARCH($Z$3,W149)),MAX($V$2:V148)+1,0) -> 0 | X149: =IFERROR(VLOOKUP(ROWS($X$3:X149),$V$3:$W$502,2,0),"") ->  | AC149: 147 | AD149: 0 | AG149: 147 | AH149: 0 | AK149: 147 | AL149: 0
A150: 148 | B150: =IF(ISNUMBER(SEARCH($I$3,C150)),MAX(B$2:$B149)+1,0) -> 0 | G150: =IFERROR(VLOOKUP(ROWS($G$3:G150),$B$3:$C$502,2,0),"") ->  | M150: 148 | N150: =IF(ISNUMBER(SEARCH($R$3,O150)),MAX($N$2:N149)+1,0) -> 0 | P150: =IFERROR(VLOOKUP(ROWS($P$3:P150),$N$3:$O$502,2,0),"") ->  | U150: 148 | V150: =IF(ISNUMBER(SEARCH($Z$3,W150)),MAX($V$2:V149)+1,0) -> 0 | X150: =IFERROR(VLOOKUP(ROWS($X$3:X150),$V$3:$W$502,2,0),"") ->  | AC150: 148 | AD150: 0 | AG150: 148 | AH150: 0 | AK150: 148 | AL150: 0
A151: 149 | B151: =IF(ISNUMBER(SEARCH($I$3,C151)),MAX(B$2:$B150)+1,0) -> 0 | G151: =IFERROR(VLOOKUP(ROWS($G$3:G151),$B$3:$C$502,2,0),"") ->  | M151: 149 | N151: =IF(ISNUMBER(SEARCH($R$3,O151)),MAX($N$2:N150)+1,0) -> 0 | P151: =IFERROR(VLOOKUP(ROWS($P$3:P151),$N$3:$O$502,2,0),"") ->  | U151: 149 | V151: =IF(ISNUMBER(SEARCH($Z$3,W151)),MAX($V$2:V150)+1,0) -> 0 | X151: =IFERROR(VLOOKUP(ROWS($X$3:X151),$V$3:$W$502,2,0),"") ->  | AC151: 149 | AD151: 0 | AG151: 149 | AH151: 0 | AK151: 149 | AL151: 0
A152: 150 | B152: =IF(ISNUMBER(SEARCH($I$3,C152)),MAX(B$2:$B151)+1,0) -> 0 | G152: =IFERROR(VLOOKUP(ROWS($G$3:G152),$B$3:$C$502,2,0),"") ->  | M152: 150 | N152: =IF(ISNUMBER(SEARCH($R$3,O152)),MAX($N$2:N151)+1,0) -> 0 | P152: =IFERROR(VLOOKUP(ROWS($P$3:P152),$N$3:$O$502,2,0),"") ->  | U152: 150 | V152: =IF(ISNUMBER(SEARCH($Z$3,W152)),MAX($V$2:V151)+1,0) -> 0 | X152: =IFERROR(VLOOKUP(ROWS($X$3:X152),$V$3:$W$502,2,0),"") ->  | AC152: 150 | AD152: 0 | AG152: 150 | AH152: 0 | AK152: 150 | AL152: 0
A153: 151 | B153: =IF(ISNUMBER(SEARCH($I$3,C153)),MAX(B$2:$B152)+1,0) -> 0 | G153: =IFERROR(VLOOKUP(ROWS($G$3:G153),$B$3:$C$502,2,0),"") ->  | M153: 151 | N153: =IF(ISNUMBER(SEARCH($R$3,O153)),MAX($N$2:N152)+1,0) -> 0 | P153: =IFERROR(VLOOKUP(ROWS($P$3:P153),$N$3:$O$502,2,0),"") ->  | U153: 151 | V153: =IF(ISNUMBER(SEARCH($Z$3,W153)),MAX($V$2:V152)+1,0) -> 0 | X153: =IFERROR(VLOOKUP(ROWS($X$3:X153),$V$3:$W$502,2,0),"") ->  | AC153: 151 | AD153: 0 | AG153: 151 | AH153: 0 | AK153: 151 | AL153: 0
A154: 152 | B154: =IF(ISNUMBER(SEARCH($I$3,C154)),MAX(B$2:$B153)+1,0) -> 0 | G154: =IFERROR(VLOOKUP(ROWS($G$3:G154),$B$3:$C$502,2,0),"") ->  | M154: 152 | N154: =IF(ISNUMBER(SEARCH($R$3,O154)),MAX($N$2:N153)+1,0) -> 0 | P154: =IFERROR(VLOOKUP(ROWS($P$3:P154),$N$3:$O$502,2,0),"") ->  | U154: 152 | V154: =IF(ISNUMBER(SEARCH($Z$3,W154)),MAX($V$2:V153)+1,0) -> 0 | X154: =IFERROR(VLOOKUP(ROWS($X$3:X154),$V$3:$W$502,2,0),"") ->  | AC154: 152 | AD154: 0 | AG154: 152 | AH154: 0 | AK154: 152 | AL154: 0
A155: 153 | B155: =IF(ISNUMBER(SEARCH($I$3,C155)),MAX(B$2:$B154)+1,0) -> 0 | G155: =IFERROR(VLOOKUP(ROWS($G$3:G155),$B$3:$C$502,2,0),"") ->  | M155: 153 | N155: =IF(ISNUMBER(SEARCH($R$3,O155)),MAX($N$2:N154)+1,0) -> 0 | P155: =IFERROR(VLOOKUP(ROWS($P$3:P155),$N$3:$O$502,2,0),"") ->  | U155: 153 | V155: =IF(ISNUMBER(SEARCH($Z$3,W155)),MAX($V$2:V154)+1,0) -> 0 | X155: =IFERROR(VLOOKUP(ROWS($X$3:X155),$V$3:$W$502,2,0),"") ->  | AC155: 153 | AD155: 0 | AG155: 153 | AH155: 0 | AK155: 153 | AL155: 0
A156: 154 | B156: =IF(ISNUMBER(SEARCH($I$3,C156)),MAX(B$2:$B155)+1,0) -> 0 | G156: =IFERROR(VLOOKUP(ROWS($G$3:G156),$B$3:$C$502,2,0),"") ->  | M156: 154 | N156: =IF(ISNUMBER(SEARCH($R$3,O156)),MAX($N$2:N155)+1,0) -> 0 | P156: =IFERROR(VLOOKUP(ROWS($P$3:P156),$N$3:$O$502,2,0),"") ->  | U156: 154 | V156: =IF(ISNUMBER(SEARCH($Z$3,W156)),MAX($V$2:V155)+1,0) -> 0 | X156: =IFERROR(VLOOKUP(ROWS($X$3:X156),$V$3:$W$502,2,0),"") ->  | AC156: 154 | AD156: 0 | AG156: 154 | AH156: 0 | AK156: 154 | AL156: 0
A157: 155 | B157: =IF(ISNUMBER(SEARCH($I$3,C157)),MAX(B$2:$B156)+1,0) -> 0 | G157: =IFERROR(VLOOKUP(ROWS($G$3:G157),$B$3:$C$502,2,0),"") ->  | M157: 155 | N157: =IF(ISNUMBER(SEARCH($R$3,O157)),MAX($N$2:N156)+1,0) -> 0 | P157: =IFERROR(VLOOKUP(ROWS($P$3:P157),$N$3:$O$502,2,0),"") ->  | U157: 155 | V157: =IF(ISNUMBER(SEARCH($Z$3,W157)),MAX($V$2:V156)+1,0) -> 0 | X157: =IFERROR(VLOOKUP(ROWS($X$3:X157),$V$3:$W$502,2,0),"") ->  | AC157: 155 | AD157: 0 | AG157: 155 | AH157: 0 | AK157: 155 | AL157: 0
A158: 156 | B158: =IF(ISNUMBER(SEARCH($I$3,C158)),MAX(B$2:$B157)+1,0) -> 0 | G158: =IFERROR(VLOOKUP(ROWS($G$3:G158),$B$3:$C$502,2,0),"") ->  | M158: 156 | N158: =IF(ISNUMBER(SEARCH($R$3,O158)),MAX($N$2:N157)+1,0) -> 0 | P158: =IFERROR(VLOOKUP(ROWS($P$3:P158),$N$3:$O$502,2,0),"") ->  | U158: 156 | V158: =IF(ISNUMBER(SEARCH($Z$3,W158)),MAX($V$2:V157)+1,0) -> 0 | X158: =IFERROR(VLOOKUP(ROWS($X$3:X158),$V$3:$W$502,2,0),"") ->  | AC158: 156 | AD158: 0 | AG158: 156 | AH158: 0 | AK158: 156 | AL158: 0
A159: 157 | B159: =IF(ISNUMBER(SEARCH($I$3,C159)),MAX(B$2:$B158)+1,0) -> 0 | G159: =IFERROR(VLOOKUP(ROWS($G$3:G159),$B$3:$C$502,2,0),"") ->  | M159: 157 | N159: =IF(ISNUMBER(SEARCH($R$3,O159)),MAX($N$2:N158)+1,0) -> 0 | P159: =IFERROR(VLOOKUP(ROWS($P$3:P159),$N$3:$O$502,2,0),"") ->  | U159: 157 | V159: =IF(ISNUMBER(SEARCH($Z$3,W159)),MAX($V$2:V158)+1,0) -> 0 | X159: =IFERROR(VLOOKUP(ROWS($X$3:X159),$V$3:$W$502,2,0),"") ->  | AC159: 157 | AD159: 0 | AG159: 157 | AH159: 0 | AK159: 157 | AL159: 0
A160: 158 | B160: =IF(ISNUMBER(SEARCH($I$3,C160)),MAX(B$2:$B159)+1,0) -> 0 | G160: =IFERROR(VLOOKUP(ROWS($G$3:G160),$B$3:$C$502,2,0),"") ->  | M160: 158 | N160: =IF(ISNUMBER(SEARCH($R$3,O160)),MAX($N$2:N159)+1,0) -> 0 | P160: =IFERROR(VLOOKUP(ROWS($P$3:P160),$N$3:$O$502,2,0),"") ->  | U160: 158 | V160: =IF(ISNUMBER(SEARCH($Z$3,W160)),MAX($V$2:V159)+1,0) -> 0 | X160: =IFERROR(VLOOKUP(ROWS($X$3:X160),$V$3:$W$502,2,0),"") ->  | AC160: 158 | AD160: 0 | AG160: 158 | AH160: 0 | AK160: 158 | AL160: 0
A161: 159 | B161: =IF(ISNUMBER(SEARCH($I$3,C161)),MAX(B$2:$B160)+1,0) -> 0 | G161: =IFERROR(VLOOKUP(ROWS($G$3:G161),$B$3:$C$502,2,0),"") ->  | M161: 159 | N161: =IF(ISNUMBER(SEARCH($R$3,O161)),MAX($N$2:N160)+1,0) -> 0 | P161: =IFERROR(VLOOKUP(ROWS($P$3:P161),$N$3:$O$502,2,0),"") ->  | U161: 159 | V161: =IF(ISNUMBER(SEARCH($Z$3,W161)),MAX($V$2:V160)+1,0) -> 0 | X161: =IFERROR(VLOOKUP(ROWS($X$3:X161),$V$3:$W$502,2,0),"") ->  | AC161: 159 | AD161: 0 | AG161: 159 | AH161: 0 | AK161: 159 | AL161: 0
A162: 160 | B162: =IF(ISNUMBER(SEARCH($I$3,C162)),MAX(B$2:$B161)+1,0) -> 0 | G162: =IFERROR(VLOOKUP(ROWS($G$3:G162),$B$3:$C$502,2,0),"") ->  | M162: 160 | N162: =IF(ISNUMBER(SEARCH($R$3,O162)),MAX($N$2:N161)+1,0) -> 0 | P162: =IFERROR(VLOOKUP(ROWS($P$3:P162),$N$3:$O$502,2,0),"") ->  | U162: 160 | V162: =IF(ISNUMBER(SEARCH($Z$3,W162)),MAX($V$2:V161)+1,0) -> 0 | X162: =IFERROR(VLOOKUP(ROWS($X$3:X162),$V$3:$W$502,2,0),"") ->  | AC162: 160 | AD162: 0 | AG162: 160 | AH162: 0 | AK162: 160 | AL162: 0
A163: 161 | B163: =IF(ISNUMBER(SEARCH($I$3,C163)),MAX(B$2:$B162)+1,0) -> 0 | G163: =IFERROR(VLOOKUP(ROWS($G$3:G163),$B$3:$C$502,2,0),"") ->  | M163: 161 | N163: =IF(ISNUMBER(SEARCH($R$3,O163)),MAX($N$2:N162)+1,0) -> 0 | P163: =IFERROR(VLOOKUP(ROWS($P$3:P163),$N$3:$O$502,2,0),"") ->  | U163: 161 | V163: =IF(ISNUMBER(SEARCH($Z$3,W163)),MAX($V$2:V162)+1,0) -> 0 | X163: =IFERROR(VLOOKUP(ROWS($X$3:X163),$V$3:$W$502,2,0),"") ->  | AC163: 161 | AD163: 0 | AG163: 161 | AH163: 0 | AK163: 161 | AL163: 0
A164: 162 | B164: =IF(ISNUMBER(SEARCH($I$3,C164)),MAX(B$2:$B163)+1,0) -> 0 | G164: =IFERROR(VLOOKUP(ROWS($G$3:G164),$B$3:$C$502,2,0),"") ->  | M164: 162 | N164: =IF(ISNUMBER(SEARCH($R$3,O164)),MAX($N$2:N163)+1,0) -> 0 | P164: =IFERROR(VLOOKUP(ROWS($P$3:P164),$N$3:$O$502,2,0),"") ->  | U164: 162 | V164: =IF(ISNUMBER(SEARCH($Z$3,W164)),MAX($V$2:V163)+1,0) -> 0 | X164: =IFERROR(VLOOKUP(ROWS($X$3:X164),$V$3:$W$502,2,0),"") ->  | AC164: 162 | AD164: 0 | AG164: 162 | AH164: 0 | AK164: 162 | AL164: 0
A165: 163 | B165: =IF(ISNUMBER(SEARCH($I$3,C165)),MAX(B$2:$B164)+1,0) -> 0 | G165: =IFERROR(VLOOKUP(ROWS($G$3:G165),$B$3:$C$502,2,0),"") ->  | M165: 163 | N165: =IF(ISNUMBER(SEARCH($R$3,O165)),MAX($N$2:N164)+1,0) -> 0 | P165: =IFERROR(VLOOKUP(ROWS($P$3:P165),$N$3:$O$502,2,0),"") ->  | U165: 163 | V165: =IF(ISNUMBER(SEARCH($Z$3,W165)),MAX($V$2:V164)+1,0) -> 0 | X165: =IFERROR(VLOOKUP(ROWS($X$3:X165),$V$3:$W$502,2,0),"") ->  | AC165: 163 | AD165: 0 | AG165: 163 | AH165: 0 | AK165: 163 | AL165: 0
A166: 164 | B166: =IF(ISNUMBER(SEARCH($I$3,C166)),MAX(B$2:$B165)+1,0) -> 0 | G166: =IFERROR(VLOOKUP(ROWS($G$3:G166),$B$3:$C$502,2,0),"") ->  | M166: 164 | N166: =IF(ISNUMBER(SEARCH($R$3,O166)),MAX($N$2:N165)+1,0) -> 0 | P166: =IFERROR(VLOOKUP(ROWS($P$3:P166),$N$3:$O$502,2,0),"") ->  | U166: 164 | V166: =IF(ISNUMBER(SEARCH($Z$3,W166)),MAX($V$2:V165)+1,0) -> 0 | X166: =IFERROR(VLOOKUP(ROWS($X$3:X166),$V$3:$W$502,2,0),"") ->  | AC166: 164 | AD166: 0 | AG166: 164 | AH166: 0 | AK166: 164 | AL166: 0
A167: 165 | B167: =IF(ISNUMBER(SEARCH($I$3,C167)),MAX(B$2:$B166)+1,0) -> 0 | G167: =IFERROR(VLOOKUP(ROWS($G$3:G167),$B$3:$C$502,2,0),"") ->  | M167: 165 | N167: =IF(ISNUMBER(SEARCH($R$3,O167)),MAX($N$2:N166)+1,0) -> 0 | P167: =IFERROR(VLOOKUP(ROWS($P$3:P167),$N$3:$O$502,2,0),"") ->  | U167: 165 | V167: =IF(ISNUMBER(SEARCH($Z$3,W167)),MAX($V$2:V166)+1,0) -> 0 | X167: =IFERROR(VLOOKUP(ROWS($X$3:X167),$V$3:$W$502,2,0),"") ->  | AC167: 165 | AD167: 0 | AG167: 165 | AH167: 0 | AK167: 165 | AL167: 0
A168: 166 | B168: =IF(ISNUMBER(SEARCH($I$3,C168)),MAX(B$2:$B167)+1,0) -> 0 | G168: =IFERROR(VLOOKUP(ROWS($G$3:G168),$B$3:$C$502,2,0),"") ->  | M168: 166 | N168: =IF(ISNUMBER(SEARCH($R$3,O168)),MAX($N$2:N167)+1,0) -> 0 | P168: =IFERROR(VLOOKUP(ROWS($P$3:P168),$N$3:$O$502,2,0),"") ->  | U168: 166 | V168: =IF(ISNUMBER(SEARCH($Z$3,W168)),MAX($V$2:V167)+1,0) -> 0 | X168: =IFERROR(VLOOKUP(ROWS($X$3:X168),$V$3:$W$502,2,0),"") ->  | AC168: 166 | AD168: 0 | AG168: 166 | AH168: 0 | AK168: 166 | AL168: 0
A169: 167 | B169: =IF(ISNUMBER(SEARCH($I$3,C169)),MAX(B$2:$B168)+1,0) -> 0 | G169: =IFERROR(VLOOKUP(ROWS($G$3:G169),$B$3:$C$502,2,0),"") ->  | M169: 167 | N169: =IF(ISNUMBER(SEARCH($R$3,O169)),MAX($N$2:N168)+1,0) -> 0 | P169: =IFERROR(VLOOKUP(ROWS($P$3:P169),$N$3:$O$502,2,0),"") ->  | U169: 167 | V169: =IF(ISNUMBER(SEARCH($Z$3,W169)),MAX($V$2:V168)+1,0) -> 0 | X169: =IFERROR(VLOOKUP(ROWS($X$3:X169),$V$3:$W$502,2,0),"") ->  | AC169: 167 | AD169: 0 | AG169: 167 | AH169: 0 | AK169: 167 | AL169: 0
A170: 168 | B170: =IF(ISNUMBER(SEARCH($I$3,C170)),MAX(B$2:$B169)+1,0) -> 0 | G170: =IFERROR(VLOOKUP(ROWS($G$3:G170),$B$3:$C$502,2,0),"") ->  | M170: 168 | N170: =IF(ISNUMBER(SEARCH($R$3,O170)),MAX($N$2:N169)+1,0) -> 0 | P170: =IFERROR(VLOOKUP(ROWS($P$3:P170),$N$3:$O$502,2,0),"") ->  | U170: 168 | V170: =IF(ISNUMBER(SEARCH($Z$3,W170)),MAX($V$2:V169)+1,0) -> 0 | X170: =IFERROR(VLOOKUP(ROWS($X$3:X170),$V$3:$W$502,2,0),"") ->  | AC170: 168 | AD170: 0 | AG170: 168 | AH170: 0 | AK170: 168 | AL170: 0
A171: 169 | B171: =IF(ISNUMBER(SEARCH($I$3,C171)),MAX(B$2:$B170)+1,0) -> 0 | G171: =IFERROR(VLOOKUP(ROWS($G$3:G171),$B$3:$C$502,2,0),"") ->  | M171: 169 | N171: =IF(ISNUMBER(SEARCH($R$3,O171)),MAX($N$2:N170)+1,0) -> 0 | P171: =IFERROR(VLOOKUP(ROWS($P$3:P171),$N$3:$O$502,2,0),"") ->  | U171: 169 | V171: =IF(ISNUMBER(SEARCH($Z$3,W171)),MAX($V$2:V170)+1,0) -> 0 | X171: =IFERROR(VLOOKUP(ROWS($X$3:X171),$V$3:$W$502,2,0),"") ->  | AC171: 169 | AD171: 0 | AG171: 169 | AH171: 0 | AK171: 169 | AL171: 0
A172: 170 | B172: =IF(ISNUMBER(SEARCH($I$3,C172)),MAX(B$2:$B171)+1,0) -> 0 | G172: =IFERROR(VLOOKUP(ROWS($G$3:G172),$B$3:$C$502,2,0),"") ->  | M172: 170 | N172: =IF(ISNUMBER(SEARCH($R$3,O172)),MAX($N$2:N171)+1,0) -> 0 | P172: =IFERROR(VLOOKUP(ROWS($P$3:P172),$N$3:$O$502,2,0),"") ->  | U172: 170 | V172: =IF(ISNUMBER(SEARCH($Z$3,W172)),MAX($V$2:V171)+1,0) -> 0 | X172: =IFERROR(VLOOKUP(ROWS($X$3:X172),$V$3:$W$502,2,0),"") ->  | AC172: 170 | AD172: 0 | AG172: 170 | AH172: 0 | AK172: 170 | AL172: 0
A173: 171 | B173: =IF(ISNUMBER(SEARCH($I$3,C173)),MAX(B$2:$B172)+1,0) -> 0 | G173: =IFERROR(VLOOKUP(ROWS($G$3:G173),$B$3:$C$502,2,0),"") ->  | M173: 171 | N173: =IF(ISNUMBER(SEARCH($R$3,O173)),MAX($N$2:N172)+1,0) -> 0 | P173: =IFERROR(VLOOKUP(ROWS($P$3:P173),$N$3:$O$502,2,0),"") ->  | U173: 171 | V173: =IF(ISNUMBER(SEARCH($Z$3,W173)),MAX($V$2:V172)+1,0) -> 0 | X173: =IFERROR(VLOOKUP(ROWS($X$3:X173),$V$3:$W$502,2,0),"") ->  | AC173: 171 | AD173: 0 | AG173: 171 | AH173: 0 | AK173: 171 | AL173: 0
A174: 172 | B174: =IF(ISNUMBER(SEARCH($I$3,C174)),MAX(B$2:$B173)+1,0) -> 0 | G174: =IFERROR(VLOOKUP(ROWS($G$3:G174),$B$3:$C$502,2,0),"") ->  | M174: 172 | N174: =IF(ISNUMBER(SEARCH($R$3,O174)),MAX($N$2:N173)+1,0) -> 0 | P174: =IFERROR(VLOOKUP(ROWS($P$3:P174),$N$3:$O$502,2,0),"") ->  | U174: 172 | V174: =IF(ISNUMBER(SEARCH($Z$3,W174)),MAX($V$2:V173)+1,0) -> 0 | X174: =IFERROR(VLOOKUP(ROWS($X$3:X174),$V$3:$W$502,2,0),"") ->  | AC174: 172 | AD174: 0 | AG174: 172 | AH174: 0 | AK174: 172 | AL174: 0
A175: 173 | B175: =IF(ISNUMBER(SEARCH($I$3,C175)),MAX(B$2:$B174)+1,0) -> 0 | G175: =IFERROR(VLOOKUP(ROWS($G$3:G175),$B$3:$C$502,2,0),"") ->  | M175: 173 | N175: =IF(ISNUMBER(SEARCH($R$3,O175)),MAX($N$2:N174)+1,0) -> 0 | P175: =IFERROR(VLOOKUP(ROWS($P$3:P175),$N$3:$O$502,2,0),"") ->  | U175: 173 | V175: =IF(ISNUMBER(SEARCH($Z$3,W175)),MAX($V$2:V174)+1,0) -> 0 | X175: =IFERROR(VLOOKUP(ROWS($X$3:X175),$V$3:$W$502,2,0),"") ->  | AC175: 173 | AD175: 0 | AG175: 173 | AH175: 0 | AK175: 173 | AL175: 0
A176: 174 | B176: =IF(ISNUMBER(SEARCH($I$3,C176)),MAX(B$2:$B175)+1,0) -> 0 | G176: =IFERROR(VLOOKUP(ROWS($G$3:G176),$B$3:$C$502,2,0),"") ->  | M176: 174 | N176: =IF(ISNUMBER(SEARCH($R$3,O176)),MAX($N$2:N175)+1,0) -> 0 | P176: =IFERROR(VLOOKUP(ROWS($P$3:P176),$N$3:$O$502,2,0),"") ->  | U176: 174 | V176: =IF(ISNUMBER(SEARCH($Z$3,W176)),MAX($V$2:V175)+1,0) -> 0 | X176: =IFERROR(VLOOKUP(ROWS($X$3:X176),$V$3:$W$502,2,0),"") ->  | AC176: 174 | AD176: 0 | AG176: 174 | AH176: 0 | AK176: 174 | AL176: 0
A177: 175 | B177: =IF(ISNUMBER(SEARCH($I$3,C177)),MAX(B$2:$B176)+1,0) -> 0 | G177: =IFERROR(VLOOKUP(ROWS($G$3:G177),$B$3:$C$502,2,0),"") ->  | M177: 175 | N177: =IF(ISNUMBER(SEARCH($R$3,O177)),MAX($N$2:N176)+1,0) -> 0 | P177: =IFERROR(VLOOKUP(ROWS($P$3:P177),$N$3:$O$502,2,0),"") ->  | U177: 175 | V177: =IF(ISNUMBER(SEARCH($Z$3,W177)),MAX($V$2:V176)+1,0) -> 0 | X177: =IFERROR(VLOOKUP(ROWS($X$3:X177),$V$3:$W$502,2,0),"") ->  | AC177: 175 | AD177: 0 | AG177: 175 | AH177: 0 | AK177: 175 | AL177: 0
A178: 176 | B178: =IF(ISNUMBER(SEARCH($I$3,C178)),MAX(B$2:$B177)+1,0) -> 0 | G178: =IFERROR(VLOOKUP(ROWS($G$3:G178),$B$3:$C$502,2,0),"") ->  | M178: 176 | N178: =IF(ISNUMBER(SEARCH($R$3,O178)),MAX($N$2:N177)+1,0) -> 0 | P178: =IFERROR(VLOOKUP(ROWS($P$3:P178),$N$3:$O$502,2,0),"") ->  | U178: 176 | V178: =IF(ISNUMBER(SEARCH($Z$3,W178)),MAX($V$2:V177)+1,0) -> 0 | X178: =IFERROR(VLOOKUP(ROWS($X$3:X178),$V$3:$W$502,2,0),"") ->  | AC178: 176 | AD178: 0 | AG178: 176 | AH178: 0 | AK178: 176 | AL178: 0
A179: 177 | B179: =IF(ISNUMBER(SEARCH($I$3,C179)),MAX(B$2:$B178)+1,0) -> 0 | G179: =IFERROR(VLOOKUP(ROWS($G$3:G179),$B$3:$C$502,2,0),"") ->  | M179: 177 | N179: =IF(ISNUMBER(SEARCH($R$3,O179)),MAX($N$2:N178)+1,0) -> 0 | P179: =IFERROR(VLOOKUP(ROWS($P$3:P179),$N$3:$O$502,2,0),"") ->  | U179: 177 | V179: =IF(ISNUMBER(SEARCH($Z$3,W179)),MAX($V$2:V178)+1,0) -> 0 | X179: =IFERROR(VLOOKUP(ROWS($X$3:X179),$V$3:$W$502,2,0),"") ->  | AC179: 177 | AD179: 0 | AG179: 177 | AH179: 0 | AK179: 177 | AL179: 0
A180: 178 | B180: =IF(ISNUMBER(SEARCH($I$3,C180)),MAX(B$2:$B179)+1,0) -> 0 | G180: =IFERROR(VLOOKUP(ROWS($G$3:G180),$B$3:$C$502,2,0),"") ->  | M180: 178 | N180: =IF(ISNUMBER(SEARCH($R$3,O180)),MAX($N$2:N179)+1,0) -> 0 | P180: =IFERROR(VLOOKUP(ROWS($P$3:P180),$N$3:$O$502,2,0),"") ->  | U180: 178 | V180: =IF(ISNUMBER(SEARCH($Z$3,W180)),MAX($V$2:V179)+1,0) -> 0 | X180: =IFERROR(VLOOKUP(ROWS($X$3:X180),$V$3:$W$502,2,0),"") ->  | AC180: 178 | AD180: 0 | AG180: 178 | AH180: 0 | AK180: 178 | AL180: 0
A181: 179 | B181: =IF(ISNUMBER(SEARCH($I$3,C181)),MAX(B$2:$B180)+1,0) -> 0 | G181: =IFERROR(VLOOKUP(ROWS($G$3:G181),$B$3:$C$502,2,0),"") ->  | M181: 179 | N181: =IF(ISNUMBER(SEARCH($R$3,O181)),MAX($N$2:N180)+1,0) -> 0 | P181: =IFERROR(VLOOKUP(ROWS($P$3:P181),$N$3:$O$502,2,0),"") ->  | U181: 179 | V181: =IF(ISNUMBER(SEARCH($Z$3,W181)),MAX($V$2:V180)+1,0) -> 0 | X181: =IFERROR(VLOOKUP(ROWS($X$3:X181),$V$3:$W$502,2,0),"") ->  | AC181: 179 | AD181: 0 | AG181: 179 | AH181: 0 | AK181: 179 | AL181: 0
A182: 180 | B182: =IF(ISNUMBER(SEARCH($I$3,C182)),MAX(B$2:$B181)+1,0) -> 0 | G182: =IFERROR(VLOOKUP(ROWS($G$3:G182),$B$3:$C$502,2,0),"") ->  | M182: 180 | N182: =IF(ISNUMBER(SEARCH($R$3,O182)),MAX($N$2:N181)+1,0) -> 0 | P182: =IFERROR(VLOOKUP(ROWS($P$3:P182),$N$3:$O$502,2,0),"") ->  | U182: 180 | V182: =IF(ISNUMBER(SEARCH($Z$3,W182)),MAX($V$2:V181)+1,0) -> 0 | X182: =IFERROR(VLOOKUP(ROWS($X$3:X182),$V$3:$W$502,2,0),"") ->  | AC182: 180 | AD182: 0 | AG182: 180 | AH182: 0 | AK182: 180 | AL182: 0
A183: 181 | B183: =IF(ISNUMBER(SEARCH($I$3,C183)),MAX(B$2:$B182)+1,0) -> 0 | G183: =IFERROR(VLOOKUP(ROWS($G$3:G183),$B$3:$C$502,2,0),"") ->  | M183: 181 | N183: =IF(ISNUMBER(SEARCH($R$3,O183)),MAX($N$2:N182)+1,0) -> 0 | P183: =IFERROR(VLOOKUP(ROWS($P$3:P183),$N$3:$O$502,2,0),"") ->  | U183: 181 | V183: =IF(ISNUMBER(SEARCH($Z$3,W183)),MAX($V$2:V182)+1,0) -> 0 | X183: =IFERROR(VLOOKUP(ROWS($X$3:X183),$V$3:$W$502,2,0),"") ->  | AC183: 181 | AD183: 0 | AG183: 181 | AH183: 0 | AK183: 181 | AL183: 0
A184: 182 | B184: =IF(ISNUMBER(SEARCH($I$3,C184)),MAX(B$2:$B183)+1,0) -> 0 | G184: =IFERROR(VLOOKUP(ROWS($G$3:G184),$B$3:$C$502,2,0),"") ->  | M184: 182 | N184: =IF(ISNUMBER(SEARCH($R$3,O184)),MAX($N$2:N183)+1,0) -> 0 | P184: =IFERROR(VLOOKUP(ROWS($P$3:P184),$N$3:$O$502,2,0),"") ->  | U184: 182 | V184: =IF(ISNUMBER(SEARCH($Z$3,W184)),MAX($V$2:V183)+1,0) -> 0 | X184: =IFERROR(VLOOKUP(ROWS($X$3:X184),$V$3:$W$502,2,0),"") ->  | AC184: 182 | AD184: 0 | AG184: 182 | AH184: 0 | AK184: 182 | AL184: 0
A185: 183 | B185: =IF(ISNUMBER(SEARCH($I$3,C185)),MAX(B$2:$B184)+1,0) -> 0 | G185: =IFERROR(VLOOKUP(ROWS($G$3:G185),$B$3:$C$502,2,0),"") ->  | M185: 183 | N185: =IF(ISNUMBER(SEARCH($R$3,O185)),MAX($N$2:N184)+1,0) -> 0 | P185: =IFERROR(VLOOKUP(ROWS($P$3:P185),$N$3:$O$502,2,0),"") ->  | U185: 183 | V185: =IF(ISNUMBER(SEARCH($Z$3,W185)),MAX($V$2:V184)+1,0) -> 0 | X185: =IFERROR(VLOOKUP(ROWS($X$3:X185),$V$3:$W$502,2,0),"") ->  | AC185: 183 | AD185: 0 | AG185: 183 | AH185: 0 | AK185: 183 | AL185: 0
A186: 184 | B186: =IF(ISNUMBER(SEARCH($I$3,C186)),MAX(B$2:$B185)+1,0) -> 0 | G186: =IFERROR(VLOOKUP(ROWS($G$3:G186),$B$3:$C$502,2,0),"") ->  | M186: 184 | N186: =IF(ISNUMBER(SEARCH($R$3,O186)),MAX($N$2:N185)+1,0) -> 0 | P186: =IFERROR(VLOOKUP(ROWS($P$3:P186),$N$3:$O$502,2,0),"") ->  | U186: 184 | V186: =IF(ISNUMBER(SEARCH($Z$3,W186)),MAX($V$2:V185)+1,0) -> 0 | X186: =IFERROR(VLOOKUP(ROWS($X$3:X186),$V$3:$W$502,2,0),"") ->  | AC186: 184 | AD186: 0 | AG186: 184 | AH186: 0 | AK186: 184 | AL186: 0
A187: 185 | B187: =IF(ISNUMBER(SEARCH($I$3,C187)),MAX(B$2:$B186)+1,0) -> 0 | G187: =IFERROR(VLOOKUP(ROWS($G$3:G187),$B$3:$C$502,2,0),"") ->  | M187: 185 | N187: =IF(ISNUMBER(SEARCH($R$3,O187)),MAX($N$2:N186)+1,0) -> 0 | P187: =IFERROR(VLOOKUP(ROWS($P$3:P187),$N$3:$O$502,2,0),"") ->  | U187: 185 | V187: =IF(ISNUMBER(SEARCH($Z$3,W187)),MAX($V$2:V186)+1,0) -> 0 | X187: =IFERROR(VLOOKUP(ROWS($X$3:X187),$V$3:$W$502,2,0),"") ->  | AC187: 185 | AD187: 0 | AG187: 185 | AH187: 0 | AK187: 185 | AL187: 0
A188: 186 | B188: =IF(ISNUMBER(SEARCH($I$3,C188)),MAX(B$2:$B187)+1,0) -> 0 | G188: =IFERROR(VLOOKUP(ROWS($G$3:G188),$B$3:$C$502,2,0),"") ->  | M188: 186 | N188: =IF(ISNUMBER(SEARCH($R$3,O188)),MAX($N$2:N187)+1,0) -> 0 | P188: =IFERROR(VLOOKUP(ROWS($P$3:P188),$N$3:$O$502,2,0),"") ->  | U188: 186 | V188: =IF(ISNUMBER(SEARCH($Z$3,W188)),MAX($V$2:V187)+1,0) -> 0 | X188: =IFERROR(VLOOKUP(ROWS($X$3:X188),$V$3:$W$502,2,0),"") ->  | AC188: 186 | AD188: 0 | AG188: 186 | AH188: 0 | AK188: 186 | AL188: 0
A189: 187 | B189: =IF(ISNUMBER(SEARCH($I$3,C189)),MAX(B$2:$B188)+1,0) -> 0 | G189: =IFERROR(VLOOKUP(ROWS($G$3:G189),$B$3:$C$502,2,0),"") ->  | M189: 187 | N189: =IF(ISNUMBER(SEARCH($R$3,O189)),MAX($N$2:N188)+1,0) -> 0 | P189: =IFERROR(VLOOKUP(ROWS($P$3:P189),$N$3:$O$502,2,0),"") ->  | U189: 187 | V189: =IF(ISNUMBER(SEARCH($Z$3,W189)),MAX($V$2:V188)+1,0) -> 0 | X189: =IFERROR(VLOOKUP(ROWS($X$3:X189),$V$3:$W$502,2,0),"") ->  | AC189: 187 | AD189: 0 | AG189: 187 | AH189: 0 | AK189: 187 | AL189: 0
A190: 188 | B190: =IF(ISNUMBER(SEARCH($I$3,C190)),MAX(B$2:$B189)+1,0) -> 0 | G190: =IFERROR(VLOOKUP(ROWS($G$3:G190),$B$3:$C$502,2,0),"") ->  | M190: 188 | N190: =IF(ISNUMBER(SEARCH($R$3,O190)),MAX($N$2:N189)+1,0) -> 0 | P190: =IFERROR(VLOOKUP(ROWS($P$3:P190),$N$3:$O$502,2,0),"") ->  | U190: 188 | V190: =IF(ISNUMBER(SEARCH($Z$3,W190)),MAX($V$2:V189)+1,0) -> 0 | X190: =IFERROR(VLOOKUP(ROWS($X$3:X190),$V$3:$W$502,2,0),"") ->  | AC190: 188 | AD190: 0 | AG190: 188 | AH190: 0 | AK190: 188 | AL190: 0
A191: 189 | B191: =IF(ISNUMBER(SEARCH($I$3,C191)),MAX(B$2:$B190)+1,0) -> 0 | G191: =IFERROR(VLOOKUP(ROWS($G$3:G191),$B$3:$C$502,2,0),"") ->  | M191: 189 | N191: =IF(ISNUMBER(SEARCH($R$3,O191)),MAX($N$2:N190)+1,0) -> 0 | P191: =IFERROR(VLOOKUP(ROWS($P$3:P191),$N$3:$O$502,2,0),"") ->  | U191: 189 | V191: =IF(ISNUMBER(SEARCH($Z$3,W191)),MAX($V$2:V190)+1,0) -> 0 | X191: =IFERROR(VLOOKUP(ROWS($X$3:X191),$V$3:$W$502,2,0),"") ->  | AC191: 189 | AD191: 0 | AG191: 189 | AH191: 0 | AK191: 189 | AL191: 0
A192: 190 | B192: =IF(ISNUMBER(SEARCH($I$3,C192)),MAX(B$2:$B191)+1,0) -> 0 | G192: =IFERROR(VLOOKUP(ROWS($G$3:G192),$B$3:$C$502,2,0),"") ->  | M192: 190 | N192: =IF(ISNUMBER(SEARCH($R$3,O192)),MAX($N$2:N191)+1,0) -> 0 | P192: =IFERROR(VLOOKUP(ROWS($P$3:P192),$N$3:$O$502,2,0),"") ->  | U192: 190 | V192: =IF(ISNUMBER(SEARCH($Z$3,W192)),MAX($V$2:V191)+1,0) -> 0 | X192: =IFERROR(VLOOKUP(ROWS($X$3:X192),$V$3:$W$502,2,0),"") ->  | AC192: 190 | AD192: 0 | AG192: 190 | AH192: 0 | AK192: 190 | AL192: 0
A193: 191 | B193: =IF(ISNUMBER(SEARCH($I$3,C193)),MAX(B$2:$B192)+1,0) -> 0 | G193: =IFERROR(VLOOKUP(ROWS($G$3:G193),$B$3:$C$502,2,0),"") ->  | M193: 191 | N193: =IF(ISNUMBER(SEARCH($R$3,O193)),MAX($N$2:N192)+1,0) -> 0 | P193: =IFERROR(VLOOKUP(ROWS($P$3:P193),$N$3:$O$502,2,0),"") ->  | U193: 191 | V193: =IF(ISNUMBER(SEARCH($Z$3,W193)),MAX($V$2:V192)+1,0) -> 0 | X193: =IFERROR(VLOOKUP(ROWS($X$3:X193),$V$3:$W$502,2,0),"") ->  | AC193: 191 | AD193: 0 | AG193: 191 | AH193: 0 | AK193: 191 | AL193: 0
A194: 192 | B194: =IF(ISNUMBER(SEARCH($I$3,C194)),MAX(B$2:$B193)+1,0) -> 0 | G194: =IFERROR(VLOOKUP(ROWS($G$3:G194),$B$3:$C$502,2,0),"") ->  | M194: 192 | N194: =IF(ISNUMBER(SEARCH($R$3,O194)),MAX($N$2:N193)+1,0) -> 0 | P194: =IFERROR(VLOOKUP(ROWS($P$3:P194),$N$3:$O$502,2,0),"") ->  | U194: 192 | V194: =IF(ISNUMBER(SEARCH($Z$3,W194)),MAX($V$2:V193)+1,0) -> 0 | X194: =IFERROR(VLOOKUP(ROWS($X$3:X194),$V$3:$W$502,2,0),"") ->  | AC194: 192 | AD194: 0 | AG194: 192 | AH194: 0 | AK194: 192 | AL194: 0
A195: 193 | B195: =IF(ISNUMBER(SEARCH($I$3,C195)),MAX(B$2:$B194)+1,0) -> 0 | G195: =IFERROR(VLOOKUP(ROWS($G$3:G195),$B$3:$C$502,2,0),"") ->  | M195: 193 | N195: =IF(ISNUMBER(SEARCH($R$3,O195)),MAX($N$2:N194)+1,0) -> 0 | P195: =IFERROR(VLOOKUP(ROWS($P$3:P195),$N$3:$O$502,2,0),"") ->  | U195: 193 | V195: =IF(ISNUMBER(SEARCH($Z$3,W195)),MAX($V$2:V194)+1,0) -> 0 | X195: =IFERROR(VLOOKUP(ROWS($X$3:X195),$V$3:$W$502,2,0),"") ->  | AC195: 193 | AD195: 0 | AG195: 193 | AH195: 0 | AK195: 193 | AL195: 0
A196: =ROW()-2 -> 194 | B196: =IF(ISNUMBER(SEARCH($I$3,C196)),MAX(B$2:$B195)+1,0) -> 0 | G196: =IFERROR(VLOOKUP(ROWS($G$3:G196),$B$3:$C$502,2,0),"") ->  | M196: =ROW()-2 -> 194 | N196: =IF(ISNUMBER(SEARCH($R$3,O196)),MAX($N$2:N195)+1,0) -> 0 | P196: =IFERROR(VLOOKUP(ROWS($P$3:P196),$N$3:$O$502,2,0),"") ->  | U196: =ROW()-2 -> 194 | V196: =IF(ISNUMBER(SEARCH($Z$3,W196)),MAX($V$2:V195)+1,0) -> 0 | X196: =IFERROR(VLOOKUP(ROWS($X$3:X196),$V$3:$W$502,2,0),"") ->  | AC196: 194 | AD196: 0 | AG196: 194 | AH196: 0 | AK196: 194 | AL196: 0
A197: 195 | B197: =IF(ISNUMBER(SEARCH($I$3,C197)),MAX(B$2:$B196)+1,0) -> 0 | G197: =IFERROR(VLOOKUP(ROWS($G$3:G197),$B$3:$C$502,2,0),"") ->  | M197: 195 | N197: =IF(ISNUMBER(SEARCH($R$3,O197)),MAX($N$2:N196)+1,0) -> 0 | P197: =IFERROR(VLOOKUP(ROWS($P$3:P197),$N$3:$O$502,2,0),"") ->  | U197: 195 | V197: =IF(ISNUMBER(SEARCH($Z$3,W197)),MAX($V$2:V196)+1,0) -> 0 | X197: =IFERROR(VLOOKUP(ROWS($X$3:X197),$V$3:$W$502,2,0),"") ->  | AC197: 195 | AD197: 0 | AG197: 195 | AH197: 0 | AK197: 195 | AL197: 0
A198: 196 | B198: =IF(ISNUMBER(SEARCH($I$3,C198)),MAX(B$2:$B197)+1,0) -> 0 | G198: =IFERROR(VLOOKUP(ROWS($G$3:G198),$B$3:$C$502,2,0),"") ->  | M198: 196 | N198: =IF(ISNUMBER(SEARCH($R$3,O198)),MAX($N$2:N197)+1,0) -> 0 | P198: =IFERROR(VLOOKUP(ROWS($P$3:P198),$N$3:$O$502,2,0),"") ->  | U198: 196 | V198: =IF(ISNUMBER(SEARCH($Z$3,W198)),MAX($V$2:V197)+1,0) -> 0 | X198: =IFERROR(VLOOKUP(ROWS($X$3:X198),$V$3:$W$502,2,0),"") ->  | AC198: 196 | AD198: 0 | AG198: 196 | AH198: 0 | AK198: 196 | AL198: 0
A199: 197 | B199: =IF(ISNUMBER(SEARCH($I$3,C199)),MAX(B$2:$B198)+1,0) -> 0 | G199: =IFERROR(VLOOKUP(ROWS($G$3:G199),$B$3:$C$502,2,0),"") ->  | M199: 197 | N199: =IF(ISNUMBER(SEARCH($R$3,O199)),MAX($N$2:N198)+1,0) -> 0 | P199: =IFERROR(VLOOKUP(ROWS($P$3:P199),$N$3:$O$502,2,0),"") ->  | U199: 197 | V199: =IF(ISNUMBER(SEARCH($Z$3,W199)),MAX($V$2:V198)+1,0) -> 0 | X199: =IFERROR(VLOOKUP(ROWS($X$3:X199),$V$3:$W$502,2,0),"") ->  | AC199: 197 | AD199: 0 | AG199: 197 | AH199: 0 | AK199: 197 | AL199: 0
A200: 198 | B200: =IF(ISNUMBER(SEARCH($I$3,C200)),MAX(B$2:$B199)+1,0) -> 0 | G200: =IFERROR(VLOOKUP(ROWS($G$3:G200),$B$3:$C$502,2,0),"") ->  | M200: 198 | N200: =IF(ISNUMBER(SEARCH($R$3,O200)),MAX($N$2:N199)+1,0) -> 0 | P200: =IFERROR(VLOOKUP(ROWS($P$3:P200),$N$3:$O$502,2,0),"") ->  | U200: 198 | V200: =IF(ISNUMBER(SEARCH($Z$3,W200)),MAX($V$2:V199)+1,0) -> 0 | X200: =IFERROR(VLOOKUP(ROWS($X$3:X200),$V$3:$W$502,2,0),"") ->  | AC200: 198 | AD200: 0 | AG200: 198 | AH200: 0 | AK200: 198 | AL200: 0
... 302 more rows

Sheet Ref Sehat (hidden)
A1: TINGKAT KESEHATAN KEUANGAN BUMDESA | E1: ROE | F1: Skor | H1: ROI | I1: Skor | K1: Cash Rasio | L1: Skor | N1: Current Rasio | O1: Skor | Q1: CP | R1: Skor | T1: PP | U1: Skor | W1: TATO | X1: Skor | Z1: TMSTA | AA1: Skor
E2: 0 | F2: 3 | H2: 0 | I2: 3 | K2: 0 | L2: 0 | N2: 0 | O2: 0 | Q2: 0 | R2: 7 | T2: 0 | U2: 7 | W2: 0 | X2: 2 | Z2: 0 | AA2: 5.5
B3: RENTANG NILAI | C3: KATEGORI | E3: 0.01 | F3: 6 | H3: 0.01 | I3: 4 | K3: 0.05 | L3: 1 | N3: 0.9 | O3: 1 | Q3: 60 | R3: 6 | T3: 60 | U3: 6 | W3: 0.2 | X3: 3 | Z3: 0.1 | AA3: 8.5
B4: 1 | C4: TIDAK SEHAT | E4: 0.025 | F4: 8 | H4: 0.03 | I4: 6 | K4: 0.1 | L4: 3 | N4: 0.95 | O4: 3 | Q4: 90 | R4: 5.5 | T4: 90 | U4: 5.5 | W4: 0.4 | X4: 3.5 | Z4: 0.2 | AA4: 10
B5: 30 | C5: KURANG SEHAT | E5: 0.04 | F5: 10 | H5: 0.05 | I5: 7 | K5: 0.15 | L5: 4 | N5: 1 | O5: 4 | Q5: 120 | R5: 5 | T5: 120 | U5: 5 | W5: 0.6 | X5: 4 | Z5: 0.3 | AA5: 14
B6: 65 | C6: SEHAT | E6: 0.053 | F6: 12 | H6: 0.07 | I6: 9 | K6: 0.25 | L6: 6 | N6: 1.1 | O6: 6 | Q6: 150 | R6: 4 | T6: 150 | U6: 4 | W6: 0.75 | X6: 5 | Z6: 0.4 | AA6: 13
E7: 0.066 | F7: 14 | H7: 0.09 | I7: 11 | K7: 0.35 | L7: 7 | N7: 1.25 | O7: 7 | Q7: 180 | R7: 4 | T7: 180 | U7: 4 | W7: 0.9 | X7: 5.5 | Z7: 0.5 | AA7: 12
E8: 0.079 | F8: 17 | H8: 0.105 | I8: 13 | Q8: 210 | R8: 3.5 | T8: 210 | U8: 3.5 | W8: 1.05 | X8: 5 | Z8: 0.6 | AA8: 11
E9: 0.09 | F9: 20 | H9: 0.12 | I9: 15 | Q9: 240 | R9: 1.5 | T9: 240 | U9: 1.5 | W9: 1.2 | X9: 7 | Z9: 0.7 | AA9: 10.5
E10: 0.11 | F10: 23 | H10: 0.13 | I10: 17 | Q10: 270 | R10: 1 | T10: 270 | U10: 1 | Z10: 0.8 | AA10: 10
E11: 0.13 | F11: 26 | H11: 0.15 | I11: 19 | Q11: 300 | R11: 0 | T11: 300 | U11: 0 | Z11: 0.9 | AA11: 9
E12: 0.15 | F12: 29 | H12: 0.18 | I12: 21
F14: 29 | I14: 21 | L14: 7 | O14: 7 | R14: 7 | U14: 7 | X14: 7 | AA14: 15 | AB14: =SUM(E14:AA14) -> 100
E16: <0% | F16: 0 | H16: <0% | I16: 1 | K16: >35% | L16: 7 | N16: >125% | O16: 7 | Z16: <0% | AA16: 0
E17: >15% | F17: 29 | H17: >18% | I17: 21
A21: KOMPONEN | B21: BOBOT | C21: Formula | E21: ROE | F21: Skor | H21: ROI | I21: Skor | K21: Cash Rasio | L21: Skor | N21: Current Rasio | O21: Skor | Q21: CP | R21: Skor | T21: PP | U21: Skor | W21: TATO | X21: Skor | Z21: TMSTA | AA21: Skor
A22: Imbalan kepada pemilik (ROE) | B22: =29/100 -> 0.29 | C22: Laba setelah pajak : modal pemilik X 100% | E22: <0% | F22: 0 | H22: <=0% | I22: 1 | K22: 0 | L22: 0 | N22: 0 | O22: 0 | Q22: 0 | R22: 5 | T22: 0 | U22: 5 | W22: 0 | X22: 1.5 | Z22: 0 | AA22: 4 | AB22: =AA22/70*100 -> 5.714285714
A23: Imbalan Investasi (ROI) | B23: =22/100 -> 0.22 | C23: (EBIT + Penyusutan)/Capital employed X 100% | E23: 0 | F23: 2 | H23: 0 | I23: 2 | K23: 0.05 | L23: 1 | N23: 0.9 | O23: 1 | Q23: 60 | R23: 5 | T23: 60 | U23: 4.5 | W23: 0.2 | X23: 2 | Z23: 0.1 | AA23: 6 | AB23: =AA23/70*100 -> 8.571428571
A24: Rasio Kas | B24: =7/100 -> 0.07 | C24: (Kas+ Bank+Surat berharga jk pendek):Utang lancar x 100% | E24: 0.01 | F24: 4 | H24: 0.01 | I24: 3 | K24: 0.1 | L24: 2 | N24: 0.95 | O24: 2 | Q24: 90 | R24: 4.5 | T24: 90 | U24: 4 | W24: 0.4 | X24: 2.5 | Z24: 0.2 | AA24: 7.25 | AB24: 10.35714286
A25: Rasio Lancar | B25: =7/100 -> 0.07 | C25: Aset lancar:utang lancarX100% | E25: 0.025 | F25: 5.5 | H25: 0.03 | I25: 4 | K25: 0.15 | L25: 3 | N25: 1 | O25: 3 | Q25: 120 | R25: 4 | T25: 120 | U25: 3.5 | W25: 0.6 | X25: 3 | Z25: 0.3 | AA25: 10 | AB25: 14.28571429
A26: Collection Period | B26: 0.07 | C26: Total Piutang usaha : total pendapatan usaha X 365 | E26: 0.04 | F26: 7 | H26: 0.05 | I26: 5 | K26: 0.25 | L26: 4 | N26: 1.1 | O26: 4 | Q26: 150 | R26: 3.5 | T26: 150 | U26: 3 | W26: 0.75 | X26: 3.5 | Z26: 0.4 | AA26: 9 | AB26: 12.85714286
A27: Perputaran Persediaan | B27: 0.07 | C27: Total Persediaan : total pendapatan usaha X 365 | E27: 0.053 | F27: 8.5 | H27: 0.07 | I27: 6 | K27: 0.35 | L27: 5 | N27: 1.25 | O27: 5 | Q27: 180 | R27: 3 | T27: 180 | U27: 2.4 | W27: 0.9 | X27: 4 | Z27: 0.5 | AA27: 8.5 | AB27: 12.14285714
A28: Perputaran Total Aset | B28: 0.07 | C28: Total aset : capital empoled x 100% | E28: 0.066 | F28: 10 | H28: 0.09 | I28: 7.5 | K28: >35% | L28: 5 | N28: >125% | O28: 5 | Q28: 210 | R28: 2.4 | T28: 210 | U28: 1.8 | W28: 1.05 | X28: 4.5 | Z28: 0.6 | AA28: 8 | AB28: 11.42857143
A29: Rasio Modal Pemilik thd Total Aktiva | B29: =14/100 -> 0.14 | C29: total modal pemilik : total aset x 100% | E29: 0.079 | F29: 12 | H29: 0.105 | I29: 9 | Q29: 240 | R29: 1.8 | T29: 240 | U29: 1.2 | W29: 1.2 | X29: 5 | Z29: 0.7 | AA29: 7.5 | AB29: 10.71428571
E30: 0.09 | F30: 14 | H30: 0.12 | I30: 10.5 | Q30: 270 | R30: 1.2 | T30: 270 | U30: 0.6 | W30: >120% | X30: 5 | Z30: 0.8 | AA30: 7 | AB30: 10
E31: 0.11 | F31: 16 | H31: 0.13 | I31: 12 | Q31: 300 | R31: 0.6 | T31: 300 | U31: 0 | Z31: 0.9 | AA31: 6.5 | AB31: 9.285714286
E32: 0.13 | F32: 18 | H32: 0.15 | I32: 13.5 | Q32: >300 | R32: 0
E33: 0.15 | F33: 20 | H33: 0.18 | I33: 15
E34: >15% | F34: 20 | H34: >18% | I34: 15 | L34: tidak punya utang lancar?
L35: tak terhingga? | N35: tak terhingga? | Q35: tak terhingga?
F36: 20 | I36: 15 | L36: 5 | O36: 5 | R36: 5 | U36: 5 | X36: 5 | AA36: 10 | AB36: =SUM(E36:AA36) -> 70
E38: ROE | F38: SKOR | H38: ROE | I38: SKOR | K38: ROE | L38: SKOR | N38: ROE | O38: SKOR | Q38: ROE | R38: SKOR | T38: ROE | U38: SKOR | W38: ROE | X38: SKOR | Z38: ROE | AA38: SKOR
E39: 0.17 | F39: =VLOOKUP(E39,$E$22:$F$32,2,1) -> 18 | H39: 0.1 | I39: =VLOOKUP(H39,H22:I34,2,1) -> 7.5 | K39: 0.1 | L39: =VLOOKUP(K39,K22:L33,2,1) -> 2 | N39: 0.1 | O39: =VLOOKUP(N39,N22:O33,2,1) -> 0 | Q39: 300 | R39: =VLOOKUP(Q39,Q22:R33,2,1) -> 0.6 | T39: 400 | U39: =VLOOKUP(T39,T22:U33,2,1) -> 0 | W39: 0.05 | X39: =VLOOKUP(W39,W22:X30,2,1) -> 1.5 | Z39: 0.05 | AA39: =VLOOKUP(Z39,Z22:AA31,2,1) -> 4

Sheet Jurnal
E1: =CELL("contents") -> 0
B3: =IF(Home!C6="","",Home!C6) -> 
B4: =IF(Home!C8="","",Home!C8) -> 
B6: BUKU JURNAL | D6: =IF(D7=0,"Balance","Tidak Balance, Cek Jurnal") -> Balance
D7: =SUM(F:F)-SUM(G:G) -> 0
B8: Tanggal | C8: Nomor Bukti | D8: Kode dan Nama Akun | E8: Post Ref | F8: SISI KIRI (Debit) | G8: SISI KANAN (Kredit) | H8: Keterangan Transaksi | I8: Komponen Laporan Arus Kas | J8: Nama Nasabah/ Debitur | K8: Nama Penyedia/Kreditur | L8: Nama Nasabah Simpan | M8: Nama Persediaan | N8: Nama Bahan Baku | O8: Nama Aset | P8: Status | Q8: Unit | R8: Bulan | S8: Level 4 | T8: Level 3 | U8: Level 1 | V8: Jumlah | W8: Reff Arus Kas
R9: =IF(B9="","",MONTH(B9)) ->  | S9: =LEFT(D9,9) ->  | T9: =LEFT(D9,6) ->  | U9: =LEFT(D9,1) ->  | V9: =IFERROR(IF(VLOOKUP(D9,saldonormal,2,0)="Debit",F9-G9,G9-F9),0) -> 0 | W9: =IF(SUMPRODUCT((I9=aruskas)*1)>0,I9,"aruskas") -> aruskas
R10: =IF(B10="","",MONTH(B10)) ->  | S10: =LEFT(D10,9) ->  | T10: =LEFT(D10,6) ->  | U10: =LEFT(D10,1) ->  | V10: =IFERROR(IF(VLOOKUP(D10,saldonormal,2,0)="Debit",F10-G10,G10-F10),0) -> 0 | W10: aruskas
R11: =IF(B11="","",MONTH(B11)) ->  | S11: =LEFT(D11,9) ->  | T11: =LEFT(D11,6) ->  | U11: =LEFT(D11,1) ->  | V11: =IFERROR(IF(VLOOKUP(D11,saldonormal,2,0)="Debit",F11-G11,G11-F11),0) -> 0 | W11: aruskas
R12: =IF(B12="","",MONTH(B12)) ->  | S12: =LEFT(D12,9) ->  | T12: =LEFT(D12,6) ->  | U12: =LEFT(D12,1) ->  | V12: =IFERROR(IF(VLOOKUP(D12,saldonormal,2,0)="Debit",F12-G12,G12-F12),0) -> 0 | W12: aruskas
V13: 0 | W13: aruskas
V14: 0 | W14: aruskas
V15: 0 | W15: aruskas
V16: 0 | W16: aruskas
V17: 0 | W17: aruskas
V18: 0 | W18: aruskas
V19: 0 | W19: aruskas
V20: 0 | W20: aruskas
V21: 0 | W21: aruskas
V22: 0 | W22: aruskas
V23: 0 | W23: aruskas
V24: 0 | W24: aruskas
V25: 0 | W25: aruskas
V26: 0 | W26: aruskas
V27: 0 | W27: aruskas
V28: 0 | W28: aruskas
V29: 0 | W29: aruskas
V30: 0 | W30: aruskas
V31: 0 | W31: aruskas
V32: 0 | W32: aruskas
V33: 0 | W33: aruskas
V34: 0 | W34: aruskas
V35: 0 | W35: aruskas
V36: 0 | W36: aruskas
V37: 0 | W37: aruskas
V38: 0 | W38: aruskas
V39: 0 | W39: aruskas
V40: 0 | W40: aruskas
V41: 0 | W41: aruskas
V42: 0 | W42: aruskas
V43: 0 | W43: aruskas
V44: 0 | W44: aruskas
V45: 0 | W45: aruskas
V46: 0 | W46: aruskas
V47: 0 | W47: aruskas
V48: 0 | W48: aruskas
V49: 0 | W49: aruskas
V50: 0 | W50: aruskas
V51: 0 | W51: aruskas
V52: 0 | W52: aruskas
V53: 0 | W53: aruskas
V54: 0 | W54: aruskas
V55: 0 | W55: aruskas
V56: 0 | W56: aruskas
V57: 0 | W57: aruskas
V58: 0 | W58: aruskas
V59: 0 | W59: aruskas
V60: 0 | W60: aruskas
V61: 0 | W61: aruskas
V62: 0 | W62: aruskas
V63: 0 | W63: aruskas
V64: 0 | W64: aruskas
V65: 0 | W65: aruskas
V66: 0 | W66: aruskas
V67: 0 | W67: aruskas
V68: 0 | W68: aruskas
V69: 0 | W69: aruskas
V70: 0 | W70: aruskas
V71: 0 | W71: aruskas
V72: 0 | W72: aruskas
V73: 0 | W73: =IF(SUMPRODUCT((I73=aruskas)*1)>0,I73,"aruskas") -> aruskas
V74: 0 | W74: aruskas
V75: 0 | W75: aruskas
R76: =IF(B76="","",MONTH(B76)) ->  | S76: =LEFT(D76,9) ->  | T76: =LEFT(D76,6) ->  | U76: =LEFT(D76,1) ->  | V76: =IFERROR(IF(VLOOKUP(D76,saldonormal,2,0)="Debit",F76-G76,G76-F76),0) -> 0 | W76: aruskas
V77: 0 | W77: aruskas
V78: 0 | W78: aruskas
V79: 0 | W79: aruskas
V80: 0 | W80: aruskas
V81: 0 | W81: aruskas
V82: 0 | W82: aruskas
V83: 0 | W83: aruskas
V84: 0 | W84: aruskas
V85: 0 | W85: aruskas
V86: 0 | W86: aruskas
V87: 0 | W87: aruskas
V88: 0 | W88: aruskas
V89: 0 | W89: aruskas
V90: 0 | W90: aruskas
V91: 0 | W91: aruskas
V92: 0 | W92: aruskas
V93: 0 | W93: aruskas
V94: 0 | W94: aruskas
V95: 0 | W95: aruskas
V96: 0 | W96: aruskas
V97: 0 | W97: aruskas
V98: 0 | W98: aruskas
V99: 0 | W99: aruskas
V100: 0 | W100: aruskas
V101: 0 | W101: aruskas
V102: 0 | W102: aruskas
V103: 0 | W103: aruskas
V104: 0 | W104: aruskas
V105: 0 | W105: aruskas
V106: 0 | W106: aruskas
V107: 0 | W107: aruskas
V108: 0 | W108: aruskas
V109: 0 | W109: aruskas
V110: 0 | W110: aruskas
V111: 0 | W111: aruskas
V112: 0 | W112: aruskas
V113: 0 | W113: aruskas
V114: 0 | W114: aruskas
V115: 0 | W115: aruskas
V116: 0 | W116: aruskas
V117: 0 | W117: aruskas
V118: 0 | W118: aruskas
V119: 0 | W119: aruskas
V120: 0 | W120: aruskas
V121: 0 | W121: aruskas
V122: 0 | W122: aruskas
V123: 0 | W123: aruskas
V124: 0 | W124: aruskas
V125: 0 | W125: aruskas
V126: 0 | W126: aruskas
V127: 0 | W127: aruskas
V128: 0 | W128: aruskas
V129: 0 | W129: aruskas
V130: 0 | W130: aruskas
V131: 0 | W131: aruskas
V132: 0 | W132: aruskas
V133: 0 | W133: aruskas
V134: 0 | W134: aruskas
V135: 0 | W135: aruskas
V136: 0 | W136: aruskas
V137: 0 | W137: =IF(SUMPRODUCT((I137=aruskas)*1)>0,I137,"aruskas") -> aruskas
V138: 0 | W138: aruskas
V139: 0 | W139: aruskas
R140: =IF(B140="","",MONTH(B140)) ->  | S140: =LEFT(D140,9) ->  | T140: =LEFT(D140,6) ->  | U140: =LEFT(D140,1) ->  | V140: =IFERROR(IF(VLOOKUP(D140,saldonormal,2,0)="Debit",F140-G140,G140-F140),0) -> 0 | W140: aruskas
V141: 0 | W141: aruskas
V142: 0 | W142: aruskas
V143: 0 | W143: aruskas
V144: 0 | W144: aruskas
V145: 0 | W145: aruskas
V146: 0 | W146: aruskas
V147: 0 | W147: aruskas
V148: 0 | W148: aruskas
V149: 0 | W149: aruskas
V150: 0 | W150: aruskas
V151: 0 | W151: aruskas
V152: 0 | W152: aruskas
V153: 0 | W153: aruskas
V154: 0 | W154: aruskas
V155: 0 | W155: aruskas
V156: 0 | W156: aruskas
V157: 0 | W157: aruskas
V158: 0 | W158: aruskas
V159: 0 | W159: aruskas
V160: 0 | W160: aruskas
V161: 0 | W161: aruskas
V162: 0 | W162: aruskas
V163: 0 | W163: aruskas
V164: 0 | W164: aruskas
V165: 0 | W165: aruskas
V166: 0 | W166: aruskas
V167: 0 | W167: aruskas
V168: 0 | W168: aruskas
V169: 0 | W169: aruskas
V170: 0 | W170: aruskas
V171: 0 | W171: aruskas
V172: 0 | W172: aruskas
V173: 0 | W173: aruskas
V174: 0 | W174: aruskas
V175: 0 | W175: aruskas
V176: 0 | W176: aruskas
V177: 0 | W177: aruskas
V178: 0 | W178: aruskas
V179: 0 | W179: aruskas
V180: 0 | W180: aruskas
V181: 0 | W181: aruskas
V182: 0 | W182: aruskas
V183: 0 | W183: aruskas
V184: 0 | W184: aruskas
V185: 0 | W185: aruskas
V186: 0 | W186: aruskas
V187: 0 | W187: aruskas
V188: 0 | W188: aruskas
V189: 0 | W189: aruskas
V190: 0 | W190: aruskas
V191: 0 | W191: aruskas
V192: 0 | W192: aruskas
V193: 0 | W193: aruskas
V194: 0 | W194: aruskas
V195: 0 | W195: aruskas
V196: 0 | W196: aruskas
V197: 0 | W197: aruskas
V198: 0 | W198: aruskas
V199: 0 | W199: aruskas
V200: 0 | W200: aruskas
V201: 0 | W201: =IF(SUMPRODUCT((I201=aruskas)*1)>0,I201,"aruskas") -> aruskas
V202: 0 | W202: aruskas
... 2048 more rows

Sheet Kunci Jurnal (hidden)
A1: Tanggal | B1: Nomor Bukti | C1: Kode dan Nama Akun | D1: Post Ref | E1: SISI KIRI (Debit) | F1: SISI KANAN (Kredit) | G1: Keterangan Transaksi | H1: Komponen Laporan Arus Kas | I1: Buku Pembantu
A2: 2023-01-01 | B2: 001/01/UWA/2023 | C2: 1.1.01.01 Kas Tunai | E2: 20000000 | G2: Saldo Awal
A3: 2023-01-01 | B3: 001/01/UWA/2023 | C3: 1.1.01.02 Kas di Bank BSI | E3: 70000000 | G3: Saldo Awal
A4: 2023-01-01 | B4: 001/01/UWA/2023 | C4: 1.1.06.01 Alat Tulis Kantor (ATK) | E4: 5000000 | G4: Saldo Awal
A5: 2023-01-01 | B5: 001/01/UWA/2023 | C5: 1.3.03.01 Peralatan dan Mesin | E5: 25000000 | G5: Saldo Awal
A6: 2023-01-01 | B6: 001/01/UWA/2023 | C6: 1.3.07.02 Akumulasi Penyusutan Peralatan dan Mesin | F6: 1800000 | G6: Saldo Awal
A7: 2023-01-01 | B7: 001/01/UWA/2023 | C7: 3.1.01.01 Penyertaan Modal Desa | F7: 78200000 | G7: Saldo Awal
A8: 2023-01-01 | B8: 001/01/UWA/2023 | C8: 3.1.02.01 Penyertaan Modal Masyarakat | F8: 30000000 | G8: Saldo Awal
A9: 2023-01-01 | B9: 001/01/UWA/2023 | C9: 3.3.01.01 Saldo Laba Tidak Dicadangkan | F9: 10000000 | G9: Saldo Awal
A11: 2023-01-02 | B11: 001/01/UWA/2023 | C11: 1.1.01.01 Kas Tunai | E11: 70000000 | G11: Menerima pendapatan tiket dan parkir mobil | H11: Penerimaan kas dari penjualan jasa
A12: 2023-01-02 | B12: 001/01/UWA/2023 | C12: 4.1.01.01 Pendapatan Tiket | F12: 50000000 | G12: Menerima pendapatan tiket dan parkir mobil
A13: 2023-01-02 | B13: 001/01/UWA/2023 | C13: 4.1.07.01 Pendapatan Parkir Mobil | F13: 20000000 | G13: Menerima pendapatan tiket dan parkir mobil
A15: 2023-01-03 | B15: 002/01/UWA/2023 | C15: 1.1.01.02 Kas di Bank BSI | E15: 70000000 | G15: Menyetorkan pendapatan tiket dan parkir mobil
A16: 2023-01-03 | B16: 002/01/UWA/2023 | C16: 1.1.01.01 Kas Tunai | F16: 70000000 | G16: Menyetorkan pendapatan tiket dan parkir mobil
A18: 2023-03-03 | B18: 001/03/UWA/2023 | C18: 6.1.02.01 Beban Alat Tulis Kantor (ATK) | E18: 3000000 | G18: Membeli ATK
A19: 2023-03-03 | B19: 001/03/UWA/2023 | C19: 1.1.01.02 Kas di Bank BSI | F19: 3000000 | G19: Membeli ATK | H19: Pengeluaran kas untuk pembayaran beban-beban yang lain
A21: 2023-04-04 | B21: 001/04/UWA/2023 | C21: 1.3.02.01 Kendaraan | E21: 15000000 | G21: Membeli motor
A22: 2023-04-04 | B22: 001/04/UWA/2023 | C22: 2.1.01.01 Utang Usaha | F22: 15000000 | G22: Membeli motor | I22: Toko Baik Hati
A24: 2023-07-07 | B24: 001/07/UWA/2023 | C24: 1.1.01.01 Kas Tunai | E24: 5000000 | G24: Menerima pendapatan banana boat | H24: Penerimaan kas dari penjualan jasa
A25: 2023-07-07 | B25: 001/07/UWA/2023 | C25: 4.1.01.02 Pendapatan Wahana | F25: 5000000 | G25: Menerima pendapatan banana boat
A27: 2023-07-07 | B27: 002/07/UWA/2023 | C27: 1.1.01.02 Kas di Bank BSI | E27: 5000000 | G27: Menyetorkan pendapatan ke Bank BSI
A28: 2023-07-07 | B28: 002/07/UWA/2023 | C28: 1.1.01.01 Kas Tunai | F28: 5000000 | G28: Menyetorkan pendapatan ke Bank BSI
A30: 2023-08-05 | B30: 001/08/UWA/2023 | C30: 1.1.03.01 Piutang Usaha | E30: 3000000 | G30: Mencatat pendapatan sewa mobil secara piutang | I30: Tuan Upin
A31: 2023-08-05 | B31: 001/08/UWA/2023 | C31: 4.1.04.04 Pendapatan Sewa Mobil | F31: 3000000 | G31: Mencatat pendapatan sewa mobil secara piutang
A33: 2023-09-10 | B33: 001/09/UWA/2023 | C33: 1.1.01.02 Kas di Bank BSI | E33: 3000000 | G33: Menerima kas atas piutang pendapatan sewa mobil | H33: Penerimaan kas dari penjualan jasa
A34: 2023-09-10 | B34: 001/09/UWA/2023 | C34: 1.1.03.01 Piutang Usaha | F34: 3000000 | G34: Menerima kas atas piutang pendapatan sewa mobil | I34: Tuan Upin
A36: 2023-09-11 | B36: 002/09/UWA/2023 | C36: 6.1.01.01 Beban Gaji dan Tunjangan Bag. Adum | E36: 4500000 | G36: Membayar beban gaji
A37: 2023-09-11 | B37: 002/09/UWA/2023 | C37: 1.1.01.02 Kas di Bank BSI | F37: 4500000 | G37: Membayar beban gaji | H37: Pengeluaran kas untuk pembayaran gaji/upah pegawai/karyawan
A39: 2023-10-05 | B39: 001/10/UWA/2023 | C39: 1.1.05.01 Persediaan Barang Dagangan | E39: 2850000 | G39: Membeli barang dagangan bensin
A40: 2023-10-05 | B40: 001/10/UWA/2023 | C40: 1.1.01.02 Kas di Bank BSI | F40: 2850000 | G40: Membeli barang dagangan bensin | H40: Pengeluaran kas untuk pembayaran ke pemasok barang
A42: 2023-10-07 | B42: 002/10/UWA/2023 | C42: 1.1.01.01 Kas Tunai | E42: 1000000 | G42: Menerima pendapatan penjualan bensin | H42: Penerimaan kas dari penjualan barang dagangan
A43: 2023-10-07 | B43: 002/10/UWA/2023 | C43: 4.2.01.06 Pendapatan Penjualan Bensin | F43: 1000000 | G43: Menerima pendapatan penjualan bensin
A45: 2023-10-07 | B45: 002/10/UWA/2023 | C45: 5.1.01.01 Harga Pokok Penjualan Barang Dagangan | E45: 950000 | G45: Mencatat harga pokok penjualan bensin
A46: 2023-10-07 | B46: 002/10/UWA/2023 | C46: 1.1.05.01 Persediaan Barang Dagangan | F46: 950000 | G46: Mencatat harga pokok penjualan bensin
A48: 2023-10-09 | B48: 003/10/UWA/2023 | C48: 2.1.01.01 Utang Usaha | E48: 15000000 | G48: Membayar utang usaha | I48: Toko Baik Hati
A49: 2023-10-09 | B49: 003/10/UWA/2023 | C49: 1.1.01.02 Kas di Bank BSI | F49: 15000000 | G49: Membayar utang usaha | H49: Pengeluaran Kas untuk Pembelian Aset Tetap
A51: 2023-11-07 | B51: 001/11/UWA/2023 | C51: 6.1.04.01 Beban Listrik | E51: 1500000 | G51: Membayar beban listrik
A52: 2023-11-07 | B52: 001/11/UWA/2023 | C52: 1.1.01.02 Kas di Bank BSI | F52: 1500000 | G52: Membayar beban listrik | H52: Pengeluaran kas untuk pembayaran beban-beban yang lain
A54: 2023-12-08 | B54: 001/12/UWA/2023 | C54: 6.1.04.02 Beban Telepon/Internet | E54: 1750000 | G54: Membayar beban telepon dan internet
A55: 2023-12-08 | B55: 001/12/UWA/2023 | C55: 1.1.01.02 Kas di Bank BSI | F55: 1750000 | G55: Membayar beban telepon dan internet | H55: Pengeluaran kas untuk pembayaran beban-beban yang lain
A57: 2023-12-15 | B57: 002/12/UWA/2023 | C57: 1.1.01.02 Kas di Bank BSI | E57: 25000000 | G57: Menerima donasi/sumbangan | H57: Penerimaan kas dari Donasi/Sumbangan
A58: 2023-12-15 | B58: 002/12/UWA/2023 | C58: 3.4.01.01 Modal Donasi/Sumbangan | F58: =E57 -> 25000000 | G58: Menerima donasi/sumbangan
A60: 2023-12-31 | B60: 003/12/UWA/2023 | C60: 6.1.07.03 Beban Penyusutan Peralatan dan Mesin | E60: 3500000 | G60: Jurnal penyusutan aset tetap
A61: 2023-12-31 | B61: 003/12/UWA/2023 | C61: 1.3.07.02 Akumulasi Penyusutan Peralatan dan Mesin | F61: 3500000 | G61: Jurnal penyusutan aset tetap
A63: 2023-12-31 | B63: 003/12/UWA/2023 | C63: 6.1.07.02 Beban Penyusutan Kendaraan | E63: 1600000 | G63: Jurnal penyusutan aset tetap
A64: 2023-12-31 | B64: 003/12/UWA/2023 | C64: 1.3.07.01 Akumulasi Penyusutan Kendaraan | F64: 1600000 | G64: Jurnal penyusutan aset tetap
A66: 2023-12-31 | B66: 004/12/UWA/2023 | C66: 6.1.04.01 Beban Listrik | E66: 2000000 | G66: Beban Listrik terhutang
A67: 2023-12-31 | B67: 004/12/UWA/2023 | C67: 2.1.04.01 Utang Listrik | F67: 2000000 | G67: Beban Listrik terhutang
A69: 2023-12-31 | B69: 005/12/UWA/2023 | C69: 3.2.01.01 Bagi Hasil Penyertaan Modal Desa | E69: 24080000 | G69: Bagi hasil ke desa
A70: 2023-12-31 | B70: 005/12/UWA/2023 | C70: 1.1.01.02 Kas di Bank BSI | F70: 24080000 | G70: Bagi hasil ke desa | H70: Pembayaran bagi hasil penyertaan modal desa
A72: 2023-12-31 | B72: 005/12/UWA/2023 | C72: 3.2.02.01 Bagi Hasil Penyertaan Modal Masyarakat | E72: 18060000 | G72: Bagi hasil ke masyarakat
A73: 2023-12-31 | B73: 005/12/UWA/2023 | C73: 1.1.01.02 Kas di Bank BSI | F73: 18060000 | G73: Bagi hasil ke masyarakat | H73: Pembayaran bagi hasil penyertaan modal masyarakat

Sheet Buku Besar
A1: aph | J1: =VLOOKUP(H2,daftarakun,4,0) -> Debit
A2: andy p hamzah | H2: 1 | I2: =VLOOKUP(H2,daftarakun,3,0) -> 1.1.01.01 Kas Tunai
B3: =IF(Home!C6="","",Home!C6) -> 
B4: =IF(Home!C8="","",Home!C8) -> 
B5: BUKU BESAR
D7: KODE AKUN | E7: : | F7: =LEFT(I2,8) -> 1.1.01.0
D8: NAMA AKUN | E8: : | F8: =MID(I2,10,50) -> Kas Tunai
D9: PAGU PERUBAHAN APBD | E9: : | F9: =VLOOKUP(I2,dataakun,4) -> 
B12: Tanggal | C12: No Bukti | D12: Transaksi | E12: Ref | F12: Debit | G12: Kredit | H12: Saldo
B13: =IF(D13="","",Jurnal!B9) ->  | C13: =IF(D13="","",Jurnal!C9) ->  | D13: =IF(Jurnal!D9='Buku Besar'!$I$2,Jurnal!H9,"") ->  | F13: =IF(D13="",0,Jurnal!F9) -> 0 | G13: =IF(D13="",0,Jurnal!G9) -> 0 | H13: =IF($J$1="Debit",F13-G13,G13-F13) -> 0
B14: =IF(D14="","",Jurnal!B10) ->  | C14: =IF(D14="","",Jurnal!C10) ->  | D14: =IF(Jurnal!D10='Buku Besar'!$I$2,Jurnal!H10,"") ->  | F14: =IF(D14="",0,Jurnal!F10) -> 0 | G14: =IF(D14="",0,Jurnal!G10) -> 0 | H14: =IF($J$1="Debit",H13+F14-G14,H13+G14-F14) -> 0
B15: =IF(D15="","",Jurnal!B11) ->  | C15: =IF(D15="","",Jurnal!C11) ->  | D15: =IF(Jurnal!D11='Buku Besar'!$I$2,Jurnal!H11,"") ->  | F15: =IF(D15="",0,Jurnal!F11) -> 0 | G15: =IF(D15="",0,Jurnal!G11) -> 0 | H15: =IF($J$1="Debit",H14+F15-G15,H14+G15-F15) -> 0
B16: =IF(D16="","",Jurnal!B12) ->  | C16: =IF(D16="","",Jurnal!C12) ->  | D16: =IF(Jurnal!D12='Buku Besar'!$I$2,Jurnal!H12,"") ->  | F16: =IF(D16="",0,Jurnal!F12) -> 0 | G16: =IF(D16="",0,Jurnal!G12) -> 0 | H16: 0
B17: =IF(D17="","",Jurnal!B13) ->  | C17: =IF(D17="","",Jurnal!C13) ->  | D17: =IF(Jurnal!D13='Buku Besar'!$I$2,Jurnal!H13,"") ->  | F17: =IF(D17="",0,Jurnal!F13) -> 0 | G17: =IF(D17="",0,Jurnal!G13) -> 0 | H17: 0
B18: =IF(D18="","",Jurnal!B14) ->  | C18: =IF(D18="","",Jurnal!C14) ->  | D18: =IF(Jurnal!D14='Buku Besar'!$I$2,Jurnal!H14,"") ->  | F18: =IF(D18="",0,Jurnal!F14) -> 0 | G18: =IF(D18="",0,Jurnal!G14) -> 0 | H18: 0
B19: =IF(D19="","",Jurnal!B15) ->  | C19: =IF(D19="","",Jurnal!C15) ->  | D19: =IF(Jurnal!D15='Buku Besar'!$I$2,Jurnal!H15,"") ->  | F19: =IF(D19="",0,Jurnal!F15) -> 0 | G19: =IF(D19="",0,Jurnal!G15) -> 0 | H19: 0
B20: =IF(D20="","",Jurnal!B16) ->  | C20: =IF(D20="","",Jurnal!C16) ->  | D20: =IF(Jurnal!D16='Buku Besar'!$I$2,Jurnal!H16,"") ->  | F20: =IF(D20="",0,Jurnal!F16) -> 0 | G20: =IF(D20="",0,Jurnal!G16) -> 0 | H20: 0
B21: =IF(D21="","",Jurnal!B17) ->  | C21: =IF(D21="","",Jurnal!C17) ->  | D21: =IF(Jurnal!D17='Buku Besar'!$I$2,Jurnal!H17,"") ->  | F21: =IF(D21="",0,Jurnal!F17) -> 0 | G21: =IF(D21="",0,Jurnal!G17) -> 0 | H21: 0
B22: =IF(D22="","",Jurnal!B18) ->  | C22: =IF(D22="","",Jurnal!C18) ->  | D22: =IF(Jurnal!D18='Buku Besar'!$I$2,Jurnal!H18,"") ->  | F22: =IF(D22="",0,Jurnal!F18) -> 0 | G22: =IF(D22="",0,Jurnal!G18) -> 0 | H22: 0
B23: =IF(D23="","",Jurnal!B19) ->  | C23: =IF(D23="","",Jurnal!C19) ->  | D23: =IF(Jurnal!D19='Buku Besar'!$I$2,Jurnal!H19,"") ->  | F23: =IF(D23="",0,Jurnal!F19) -> 0 | G23: =IF(D23="",0,Jurnal!G19) -> 0 | H23: 0
B24: =IF(D24="","",Jurnal!B20) ->  | C24: =IF(D24="","",Jurnal!C20) ->  | D24: =IF(Jurnal!D20='Buku Besar'!$I$2,Jurnal!H20,"") ->  | F24: =IF(D24="",0,Jurnal!F20) -> 0 | G24: =IF(D24="",0,Jurnal!G20) -> 0 | H24: 0
B25: =IF(D25="","",Jurnal!B21) ->  | C25: =IF(D25="","",Jurnal!C21) ->  | D25: =IF(Jurnal!D21='Buku Besar'!$I$2,Jurnal!H21,"") ->  | F25: =IF(D25="",0,Jurnal!F21) -> 0 | G25: =IF(D25="",0,Jurnal!G21) -> 0 | H25: 0
B26: =IF(D26="","",Jurnal!B22) ->  | C26: =IF(D26="","",Jurnal!C22) ->  | D26: =IF(Jurnal!D22='Buku Besar'!$I$2,Jurnal!H22,"") ->  | F26: =IF(D26="",0,Jurnal!F22) -> 0 | G26: =IF(D26="",0,Jurnal!G22) -> 0 | H26: 0
B27: =IF(D27="","",Jurnal!B23) ->  | C27: =IF(D27="","",Jurnal!C23) ->  | D27: =IF(Jurnal!D23='Buku Besar'!$I$2,Jurnal!H23,"") ->  | F27: =IF(D27="",0,Jurnal!F23) -> 0 | G27: =IF(D27="",0,Jurnal!G23) -> 0 | H27: 0
B28: =IF(D28="","",Jurnal!B24) ->  | C28: =IF(D28="","",Jurnal!C24) ->  | D28: =IF(Jurnal!D24='Buku Besar'!$I$2,Jurnal!H24,"") ->  | F28: =IF(D28="",0,Jurnal!F24) -> 0 | G28: =IF(D28="",0,Jurnal!G24) -> 0 | H28: 0
B29: =IF(D29="","",Jurnal!B25) ->  | C29: =IF(D29="","",Jurnal!C25) ->  | D29: =IF(Jurnal!D25='Buku Besar'!$I$2,Jurnal!H25,"") ->  | F29: =IF(D29="",0,Jurnal!F25) -> 0 | G29: =IF(D29="",0,Jurnal!G25) -> 0 | H29: 0
B30: =IF(D30="","",Jurnal!B26) ->  | C30: =IF(D30="","",Jurnal!C26) ->  | D30: =IF(Jurnal!D26='Buku Besar'!$I$2,Jurnal!H26,"") ->  | F30: =IF(D30="",0,Jurnal!F26) -> 0 | G30: =IF(D30="",0,Jurnal!G26) -> 0 | H30: 0
B31: =IF(D31="","",Jurnal!B27) ->  | C31: =IF(D31="","",Jurnal!C27) ->  | D31: =IF(Jurnal!D27='Buku Besar'!$I$2,Jurnal!H27,"") ->  | F31: =IF(D31="",0,Jurnal!F27) -> 0 | G31: =IF(D31="",0,Jurnal!G27) -> 0 | H31: 0
B32: =IF(D32="","",Jurnal!B28) ->  | C32: =IF(D32="","",Jurnal!C28) ->  | D32: =IF(Jurnal!D28='Buku Besar'!$I$2,Jurnal!H28,"") ->  | F32: =IF(D32="",0,Jurnal!F28) -> 0 | G32: =IF(D32="",0,Jurnal!G28) -> 0 | H32: 0
B33: =IF(D33="","",Jurnal!B29) ->  | C33: =IF(D33="","",Jurnal!C29) ->  | D33: =IF(Jurnal!D29='Buku Besar'!$I$2,Jurnal!H29,"") ->  | F33: =IF(D33="",0,Jurnal!F29) -> 0 | G33: =IF(D33="",0,Jurnal!G29) -> 0 | H33: 0
B34: =IF(D34="","",Jurnal!B30) ->  | C34: =IF(D34="","",Jurnal!C30) ->  | D34: =IF(Jurnal!D30='Buku Besar'!$I$2,Jurnal!H30,"") ->  | F34: =IF(D34="",0,Jurnal!F30) -> 0 | G34: =IF(D34="",0,Jurnal!G30) -> 0 | H34: 0
B35: =IF(D35="","",Jurnal!B31) ->  | C35: =IF(D35="","",Jurnal!C31) ->  | D35: =IF(Jurnal!D31='Buku Besar'!$I$2,Jurnal!H31,"") ->  | F35: =IF(D35="",0,Jurnal!F31) -> 0 | G35: =IF(D35="",0,Jurnal!G31) -> 0 | H35: 0
B36: =IF(D36="","",Jurnal!B32) ->  | C36: =IF(D36="","",Jurnal!C32) ->  | D36: =IF(Jurnal!D32='Buku Besar'!$I$2,Jurnal!H32,"") ->  | F36: =IF(D36="",0,Jurnal!F32) -> 0 | G36: =IF(D36="",0,Jurnal!G32) -> 0 | H36: 0
B37: =IF(D37="","",Jurnal!B33) ->  | C37: =IF(D37="","",Jurnal!C33) ->  | D37: =IF(Jurnal!D33='Buku Besar'!$I$2,Jurnal!H33,"") ->  | F37: =IF(D37="",0,Jurnal!F33) -> 0 | G37: =IF(D37="",0,Jurnal!G33) -> 0 | H37: 0
B38: =IF(D38="","",Jurnal!B34) ->  | C38: =IF(D38="","",Jurnal!C34) ->  | D38: =IF(Jurnal!D34='Buku Besar'!$I$2,Jurnal!H34,"") ->  | F38: =IF(D38="",0,Jurnal!F34) -> 0 | G38: =IF(D38="",0,Jurnal!G34) -> 0 | H38: 0
B39: =IF(D39="","",Jurnal!B35) ->  | C39: =IF(D39="","",Jurnal!C35) ->  | D39: =IF(Jurnal!D35='Buku Besar'!$I$2,Jurnal!H35,"") ->  | F39: =IF(D39="",0,Jurnal!F35) -> 0 | G39: =IF(D39="",0,Jurnal!G35) -> 0 | H39: 0
B40: =IF(D40="","",Jurnal!B36) ->  | C40: =IF(D40="","",Jurnal!C36) ->  | D40: =IF(Jurnal!D36='Buku Besar'!$I$2,Jurnal!H36,"") ->  | F40: =IF(D40="",0,Jurnal!F36) -> 0 | G40: =IF(D40="",0,Jurnal!G36) -> 0 | H40: 0
B41: =IF(D41="","",Jurnal!B37) ->  | C41: =IF(D41="","",Jurnal!C37) ->  | D41: =IF(Jurnal!D37='Buku Besar'!$I$2,Jurnal!H37,"") ->  | F41: =IF(D41="",0,Jurnal!F37) -> 0 | G41: =IF(D41="",0,Jurnal!G37) -> 0 | H41: 0
B42: =IF(D42="","",Jurnal!B38) ->  | C42: =IF(D42="","",Jurnal!C38) ->  | D42: =IF(Jurnal!D38='Buku Besar'!$I$2,Jurnal!H38,"") ->  | F42: =IF(D42="",0,Jurnal!F38) -> 0 | G42: =IF(D42="",0,Jurnal!G38) -> 0 | H42: 0
B43: =IF(D43="","",Jurnal!B39) ->  | C43: =IF(D43="","",Jurnal!C39) ->  | D43: =IF(Jurnal!D39='Buku Besar'!$I$2,Jurnal!H39,"") ->  | F43: =IF(D43="",0,Jurnal!F39) -> 0 | G43: =IF(D43="",0,Jurnal!G39) -> 0 | H43: 0
B44: =IF(D44="","",Jurnal!B40) ->  | C44: =IF(D44="","",Jurnal!C40) ->  | D44: =IF(Jurnal!D40='Buku Besar'!$I$2,Jurnal!H40,"") ->  | F44: =IF(D44="",0,Jurnal!F40) -> 0 | G44: =IF(D44="",0,Jurnal!G40) -> 0 | H44: 0
B45: =IF(D45="","",Jurnal!B41) ->  | C45: =IF(D45="","",Jurnal!C41) ->  | D45: =IF(Jurnal!D41='Buku Besar'!$I$2,Jurnal!H41,"") ->  | F45: =IF(D45="",0,Jurnal!F41) -> 0 | G45: =IF(D45="",0,Jurnal!G41) -> 0 | H45: 0
B46: =IF(D46="","",Jurnal!B42) ->  | C46: =IF(D46="","",Jurnal!C42) ->  | D46: =IF(Jurnal!D42='Buku Besar'!$I$2,Jurnal!H42,"") ->  | F46: =IF(D46="",0,Jurnal!F42) -> 0 | G46: =IF(D46="",0,Jurnal!G42) -> 0 | H46: 0
B47: =IF(D47="","",Jurnal!B43) ->  | C47: =IF(D47="","",Jurnal!C43) ->  | D47: =IF(Jurnal!D43='Buku Besar'!$I$2,Jurnal!H43,"") ->  | F47: =IF(D47="",0,Jurnal!F43) -> 0 | G47: =IF(D47="",0,Jurnal!G43) -> 0 | H47: 0
B48: =IF(D48="","",Jurnal!B44) ->  | C48: =IF(D48="","",Jurnal!C44) ->  | D48: =IF(Jurnal!D44='Buku Besar'!$I$2,Jurnal!H44,"") ->  | F48: =IF(D48="",0,Jurnal!F44) -> 0 | G48: =IF(D48="",0,Jurnal!G44) -> 0 | H48: 0
B49: =IF(D49="","",Jurnal!B45) ->  | C49: =IF(D49="","",Jurnal!C45) ->  | D49: =IF(Jurnal!D45='Buku Besar'!$I$2,Jurnal!H45,"") ->  | F49: =IF(D49="",0,Jurnal!F45) -> 0 | G49: =IF(D49="",0,Jurnal!G45) -> 0 | H49: 0
B50: =IF(D50="","",Jurnal!B46) ->  | C50: =IF(D50="","",Jurnal!C46) ->  | D50: =IF(Jurnal!D46='Buku Besar'!$I$2,Jurnal!H46,"") ->  | F50: =IF(D50="",0,Jurnal!F46) -> 0 | G50: =IF(D50="",0,Jurnal!G46) -> 0 | H50: 0
B51: =IF(D51="","",Jurnal!B47) ->  | C51: =IF(D51="","",Jurnal!C47) ->  | D51: =IF(Jurnal!D47='Buku Besar'!$I$2,Jurnal!H47,"") ->  | F51: =IF(D51="",0,Jurnal!F47) -> 0 | G51: =IF(D51="",0,Jurnal!G47) -> 0 | H51: 0
B52: =IF(D52="","",Jurnal!B48) ->  | C52: =IF(D52="","",Jurnal!C48) ->  | D52: =IF(Jurnal!D48='Buku Besar'!$I$2,Jurnal!H48,"") ->  | F52: =IF(D52="",0,Jurnal!F48) -> 0 | G52: =IF(D52="",0,Jurnal!G48) -> 0 | H52: 0
B53: =IF(D53="","",Jurnal!B49) ->  | C53: =IF(D53="","",Jurnal!C49) ->  | D53: =IF(Jurnal!D49='Buku Besar'!$I$2,Jurnal!H49,"") ->  | F53: =IF(D53="",0,Jurnal!F49) -> 0 | G53: =IF(D53="",0,Jurnal!G49) -> 0 | H53: 0
B54: =IF(D54="","",Jurnal!B50) ->  | C54: =IF(D54="","",Jurnal!C50) ->  | D54: =IF(Jurnal!D50='Buku Besar'!$I$2,Jurnal!H50,"") ->  | F54: =IF(D54="",0,Jurnal!F50) -> 0 | G54: =IF(D54="",0,Jurnal!G50) -> 0 | H54: 0
B55: =IF(D55="","",Jurnal!B51) ->  | C55: =IF(D55="","",Jurnal!C51) ->  | D55: =IF(Jurnal!D51='Buku Besar'!$I$2,Jurnal!H51,"") ->  | F55: =IF(D55="",0,Jurnal!F51) -> 0 | G55: =IF(D55="",0,Jurnal!G51) -> 0 | H55: 0
B56: =IF(D56="","",Jurnal!B52) ->  | C56: =IF(D56="","",Jurnal!C52) ->  | D56: =IF(Jurnal!D52='Buku Besar'!$I$2,Jurnal!H52,"") ->  | F56: =IF(D56="",0,Jurnal!F52) -> 0 | G56: =IF(D56="",0,Jurnal!G52) -> 0 | H56: 0
B57: =IF(D57="","",Jurnal!B53) ->  | C57: =IF(D57="","",Jurnal!C53) ->  | D57: =IF(Jurnal!D53='Buku Besar'!$I$2,Jurnal!H53,"") ->  | F57: =IF(D57="",0,Jurnal!F53) -> 0 | G57: =IF(D57="",0,Jurnal!G53) -> 0 | H57: 0
B58: =IF(D58="","",Jurnal!B54) ->  | C58: =IF(D58="","",Jurnal!C54) ->  | D58: =IF(Jurnal!D54='Buku Besar'!$I$2,Jurnal!H54,"") ->  | F58: =IF(D58="",0,Jurnal!F54) -> 0 | G58: =IF(D58="",0,Jurnal!G54) -> 0 | H58: 0
B59: =IF(D59="","",Jurnal!B55) ->  | C59: =IF(D59="","",Jurnal!C55) ->  | D59: =IF(Jurnal!D55='Buku Besar'!$I$2,Jurnal!H55,"") ->  | F59: =IF(D59="",0,Jurnal!F55) -> 0 | G59: =IF(D59="",0,Jurnal!G55) -> 0 | H59: 0
B60: =IF(D60="","",Jurnal!B56) ->  | C60: =IF(D60="","",Jurnal!C56) ->  | D60: =IF(Jurnal!D56='Buku Besar'!$I$2,Jurnal!H56,"") ->  | F60: =IF(D60="",0,Jurnal!F56) -> 0 | G60: =IF(D60="",0,Jurnal!G56) -> 0 | H60: 0
B61: =IF(D61="","",Jurnal!B57) ->  | C61: =IF(D61="","",Jurnal!C57) ->  | D61: =IF(Jurnal!D57='Buku Besar'!$I$2,Jurnal!H57,"") ->  | F61: =IF(D61="",0,Jurnal!F57) -> 0 | G61: =IF(D61="",0,Jurnal!G57) -> 0 | H61: 0
B62: =IF(D62="","",Jurnal!B58) ->  | C62: =IF(D62="","",Jurnal!C58) ->  | D62: =IF(Jurnal!D58='Buku Besar'!$I$2,Jurnal!H58,"") ->  | F62: =IF(D62="",0,Jurnal!F58) -> 0 | G62: =IF(D62="",0,Jurnal!G58) -> 0 | H62: 0
B63: =IF(D63="","",Jurnal!B59) ->  | C63: =IF(D63="","",Jurnal!C59) ->  | D63: =IF(Jurnal!D59='Buku Besar'!$I$2,Jurnal!H59,"") ->  | F63: =IF(D63="",0,Jurnal!F59) -> 0 | G63: =IF(D63="",0,Jurnal!G59) -> 0 | H63: 0
B64: =IF(D64="","",Jurnal!B60) ->  | C64: =IF(D64="","",Jurnal!C60) ->  | D64: =IF(Jurnal!D60='Buku Besar'!$I$2,Jurnal!H60,"") ->  | F64: =IF(D64="",0,Jurnal!F60) -> 0 | G64: =IF(D64="",0,Jurnal!G60) -> 0 | H64: 0
B65: =IF(D65="","",Jurnal!B61) ->  | C65: =IF(D65="","",Jurnal!C61) ->  | D65: =IF(Jurnal!D61='Buku Besar'!$I$2,Jurnal!H61,"") ->  | F65: =IF(D65="",0,Jurnal!F61) -> 0 | G65: =IF(D65="",0,Jurnal!G61) -> 0 | H65: 0
B66: =IF(D66="","",Jurnal!B62) ->  | C66: =IF(D66="","",Jurnal!C62) ->  | D66: =IF(Jurnal!D62='Buku Besar'!$I$2,Jurnal!H62,"") ->  | F66: =IF(D66="",0,Jurnal!F62) -> 0 | G66: =IF(D66="",0,Jurnal!G62) -> 0 | H66: 0
B67: =IF(D67="","",Jurnal!B63) ->  | C67: =IF(D67="","",Jurnal!C63) ->  | D67: =IF(Jurnal!D63='Buku Besar'!$I$2,Jurnal!H63,"") ->  | F67: =IF(D67="",0,Jurnal!F63) -> 0 | G67: =IF(D67="",0,Jurnal!G63) -> 0 | H67: 0
B68: =IF(D68="","",Jurnal!B64) ->  | C68: =IF(D68="","",Jurnal!C64) ->  | D68: =IF(Jurnal!D64='Buku Besar'!$I$2,Jurnal!H64,"") ->  | F68: =IF(D68="",0,Jurnal!F64) -> 0 | G68: =IF(D68="",0,Jurnal!G64) -> 0 | H68: 0
B69: =IF(D69="","",Jurnal!B65) ->  | C69: =IF(D69="","",Jurnal!C65) ->  | D69: =IF(Jurnal!D65='Buku Besar'!$I$2,Jurnal!H65,"") ->  | F69: =IF(D69="",0,Jurnal!F65) -> 0 | G69: =IF(D69="",0,Jurnal!G65) -> 0 | H69: 0
B70: =IF(D70="","",Jurnal!B66) ->  | C70: =IF(D70="","",Jurnal!C66) ->  | D70: =IF(Jurnal!D66='Buku Besar'!$I$2,Jurnal!H66,"") ->  | F70: =IF(D70="",0,Jurnal!F66) -> 0 | G70: =IF(D70="",0,Jurnal!G66) -> 0 | H70: 0
B71: =IF(D71="","",Jurnal!B67) ->  | C71: =IF(D71="","",Jurnal!C67) ->  | D71: =IF(Jurnal!D67='Buku Besar'!$I$2,Jurnal!H67,"") ->  | F71: =IF(D71="",0,Jurnal!F67) -> 0 | G71: =IF(D71="",0,Jurnal!G67) -> 0 | H71: 0
B72: =IF(D72="","",Jurnal!B68) ->  | C72: =IF(D72="","",Jurnal!C68) ->  | D72: =IF(Jurnal!D68='Buku Besar'!$I$2,Jurnal!H68,"") ->  | F72: =IF(D72="",0,Jurnal!F68) -> 0 | G72: =IF(D72="",0,Jurnal!G68) -> 0 | H72: 0
B73: =IF(D73="","",Jurnal!B69) ->  | C73: =IF(D73="","",Jurnal!C69) ->  | D73: =IF(Jurnal!D69='Buku Besar'!$I$2,Jurnal!H69,"") ->  | F73: =IF(D73="",0,Jurnal!F69) -> 0 | G73: =IF(D73="",0,Jurnal!G69) -> 0 | H73: 0
B74: =IF(D74="","",Jurnal!B70) ->  | C74: =IF(D74="","",Jurnal!C70) ->  | D74: =IF(Jurnal!D70='Buku Besar'!$I$2,Jurnal!H70,"") ->  | F74: =IF(D74="",0,Jurnal!F70) -> 0 | G74: =IF(D74="",0,Jurnal!G70) -> 0 | H74: 0
B75: =IF(D75="","",Jurnal!B71) ->  | C75: =IF(D75="","",Jurnal!C71) ->  | D75: =IF(Jurnal!D71='Buku Besar'!$I$2,Jurnal!H71,"") ->  | F75: =IF(D75="",0,Jurnal!F71) -> 0 | G75: =IF(D75="",0,Jurnal!G71) -> 0 | H75: 0
B76: =IF(D76="","",Jurnal!B72) ->  | C76: =IF(D76="","",Jurnal!C72) ->  | D76: =IF(Jurnal!D72='Buku Besar'!$I$2,Jurnal!H72,"") ->  | F76: =IF(D76="",0,Jurnal!F72) -> 0 | G76: =IF(D76="",0,Jurnal!G72) -> 0 | H76: 0
B77: =IF(D77="","",Jurnal!B73) ->  | C77: =IF(D77="","",Jurnal!C73) ->  | D77: =IF(Jurnal!D73='Buku Besar'!$I$2,Jurnal!H73,"") ->  | F77: =IF(D77="",0,Jurnal!F73) -> 0 | G77: =IF(D77="",0,Jurnal!G73) -> 0 | H77: 0
B78: =IF(D78="","",Jurnal!B74) ->  | C78: =IF(D78="","",Jurnal!C74) ->  | D78: =IF(Jurnal!D74='Buku Besar'!$I$2,Jurnal!H74,"") ->  | F78: =IF(D78="",0,Jurnal!F74) -> 0 | G78: =IF(D78="",0,Jurnal!G74) -> 0 | H78: 0
B79: =IF(D79="","",Jurnal!B75) ->  | C79: =IF(D79="","",Jurnal!C75) ->  | D79: =IF(Jurnal!D75='Buku Besar'!$I$2,Jurnal!H75,"") ->  | F79: =IF(D79="",0,Jurnal!F75) -> 0 | G79: =IF(D79="",0,Jurnal!G75) -> 0 | H79: =IF($J$1="Debit",H78+F79-G79,H78+G79-F79) -> 0
B80: =IF(D80="","",Jurnal!B76) ->  | C80: =IF(D80="","",Jurnal!C76) ->  | D80: =IF(Jurnal!D76='Buku Besar'!$I$2,Jurnal!H76,"") ->  | F80: =IF(D80="",0,Jurnal!F76) -> 0 | G80: =IF(D80="",0,Jurnal!G76) -> 0 | H80: 0
B81: =IF(D81="","",Jurnal!B77) ->  | C81: =IF(D81="","",Jurnal!C77) ->  | D81: =IF(Jurnal!D77='Buku Besar'!$I$2,Jurnal!H77,"") ->  | F81: =IF(D81="",0,Jurnal!F77) -> 0 | G81: =IF(D81="",0,Jurnal!G77) -> 0 | H81: 0
B82: =IF(D82="","",Jurnal!B78) ->  | C82: =IF(D82="","",Jurnal!C78) ->  | D82: =IF(Jurnal!D78='Buku Besar'!$I$2,Jurnal!H78,"") ->  | F82: =IF(D82="",0,Jurnal!F78) -> 0 | G82: =IF(D82="",0,Jurnal!G78) -> 0 | H82: 0
B83: =IF(D83="","",Jurnal!B79) ->  | C83: =IF(D83="","",Jurnal!C79) ->  | D83: =IF(Jurnal!D79='Buku Besar'!$I$2,Jurnal!H79,"") ->  | F83: =IF(D83="",0,Jurnal!F79) -> 0 | G83: =IF(D83="",0,Jurnal!G79) -> 0 | H83: 0
B84: =IF(D84="","",Jurnal!B80) ->  | C84: =IF(D84="","",Jurnal!C80) ->  | D84: =IF(Jurnal!D80='Buku Besar'!$I$2,Jurnal!H80,"") ->  | F84: =IF(D84="",0,Jurnal!F80) -> 0 | G84: =IF(D84="",0,Jurnal!G80) -> 0 | H84: 0
B85: =IF(D85="","",Jurnal!B81) ->  | C85: =IF(D85="","",Jurnal!C81) ->  | D85: =IF(Jurnal!D81='Buku Besar'!$I$2,Jurnal!H81,"") ->  | F85: =IF(D85="",0,Jurnal!F81) -> 0 | G85: =IF(D85="",0,Jurnal!G81) -> 0 | H85: 0
B86: =IF(D86="","",Jurnal!B82) ->  | C86: =IF(D86="","",Jurnal!C82) ->  | D86: =IF(Jurnal!D82='Buku Besar'!$I$2,Jurnal!H82,"") ->  | F86: =IF(D86="",0,Jurnal!F82) -> 0 | G86: =IF(D86="",0,Jurnal!G82) -> 0 | H86: 0
B87: =IF(D87="","",Jurnal!B83) ->  | C87: =IF(D87="","",Jurnal!C83) ->  | D87: =IF(Jurnal!D83='Buku Besar'!$I$2,Jurnal!H83,"") ->  | F87: =IF(D87="",0,Jurnal!F83) -> 0 | G87: =IF(D87="",0,Jurnal!G83) -> 0 | H87: 0
B88: =IF(D88="","",Jurnal!B84) ->  | C88: =IF(D88="","",Jurnal!C84) ->  | D88: =IF(Jurnal!D84='Buku Besar'!$I$2,Jurnal!H84,"") ->  | F88: =IF(D88="",0,Jurnal!F84) -> 0 | G88: =IF(D88="",0,Jurnal!G84) -> 0 | H88: 0
B89: =IF(D89="","",Jurnal!B85) ->  | C89: =IF(D89="","",Jurnal!C85) ->  | D89: =IF(Jurnal!D85='Buku Besar'!$I$2,Jurnal!H85,"") ->  | F89: =IF(D89="",0,Jurnal!F85) -> 0 | G89: =IF(D89="",0,Jurnal!G85) -> 0 | H89: 0
B90: =IF(D90="","",Jurnal!B86) ->  | C90: =IF(D90="","",Jurnal!C86) ->  | D90: =IF(Jurnal!D86='Buku Besar'!$I$2,Jurnal!H86,"") ->  | F90: =IF(D90="",0,Jurnal!F86) -> 0 | G90: =IF(D90="",0,Jurnal!G86) -> 0 | H90: 0
B91: =IF(D91="","",Jurnal!B87) ->  | C91: =IF(D91="","",Jurnal!C87) ->  | D91: =IF(Jurnal!D87='Buku Besar'!$I$2,Jurnal!H87,"") ->  | F91: =IF(D91="",0,Jurnal!F87) -> 0 | G91: =IF(D91="",0,Jurnal!G87) -> 0 | H91: 0
B92: =IF(D92="","",Jurnal!B88) ->  | C92: =IF(D92="","",Jurnal!C88) ->  | D92: =IF(Jurnal!D88='Buku Besar'!$I$2,Jurnal!H88,"") ->  | F92: =IF(D92="",0,Jurnal!F88) -> 0 | G92: =IF(D92="",0,Jurnal!G88) -> 0 | H92: 0
B93: =IF(D93="","",Jurnal!B89) ->  | C93: =IF(D93="","",Jurnal!C89) ->  | D93: =IF(Jurnal!D89='Buku Besar'!$I$2,Jurnal!H89,"") ->  | F93: =IF(D93="",0,Jurnal!F89) -> 0 | G93: =IF(D93="",0,Jurnal!G89) -> 0 | H93: 0
B94: =IF(D94="","",Jurnal!B90) ->  | C94: =IF(D94="","",Jurnal!C90) ->  | D94: =IF(Jurnal!D90='Buku Besar'!$I$2,Jurnal!H90,"") ->  | F94: =IF(D94="",0,Jurnal!F90) -> 0 | G94: =IF(D94="",0,Jurnal!G90) -> 0 | H94: 0
B95: =IF(D95="","",Jurnal!B91) ->  | C95: =IF(D95="","",Jurnal!C91) ->  | D95: =IF(Jurnal!D91='Buku Besar'!$I$2,Jurnal!H91,"") ->  | F95: =IF(D95="",0,Jurnal!F91) -> 0 | G95: =IF(D95="",0,Jurnal!G91) -> 0 | H95: 0
B96: =IF(D96="","",Jurnal!B92) ->  | C96: =IF(D96="","",Jurnal!C92) ->  | D96: =IF(Jurnal!D92='Buku Besar'!$I$2,Jurnal!H92,"") ->  | F96: =IF(D96="",0,Jurnal!F92) -> 0 | G96: =IF(D96="",0,Jurnal!G92) -> 0 | H96: 0
B97: =IF(D97="","",Jurnal!B93) ->  | C97: =IF(D97="","",Jurnal!C93) ->  | D97: =IF(Jurnal!D93='Buku Besar'!$I$2,Jurnal!H93,"") ->  | F97: =IF(D97="",0,Jurnal!F93) -> 0 | G97: =IF(D97="",0,Jurnal!G93) -> 0 | H97: 0
B98: =IF(D98="","",Jurnal!B94) ->  | C98: =IF(D98="","",Jurnal!C94) ->  | D98: =IF(Jurnal!D94='Buku Besar'!$I$2,Jurnal!H94,"") ->  | F98: =IF(D98="",0,Jurnal!F94) -> 0 | G98: =IF(D98="",0,Jurnal!G94) -> 0 | H98: 0
B99: =IF(D99="","",Jurnal!B95) ->  | C99: =IF(D99="","",Jurnal!C95) ->  | D99: =IF(Jurnal!D95='Buku Besar'!$I$2,Jurnal!H95,"") ->  | F99: =IF(D99="",0,Jurnal!F95) -> 0 | G99: =IF(D99="",0,Jurnal!G95) -> 0 | H99: 0
B100: =IF(D100="","",Jurnal!B96) ->  | C100: =IF(D100="","",Jurnal!C96) ->  | D100: =IF(Jurnal!D96='Buku Besar'!$I$2,Jurnal!H96,"") ->  | F100: =IF(D100="",0,Jurnal!F96) -> 0 | G100: =IF(D100="",0,Jurnal!G96) -> 0 | H100: 0
B101: =IF(D101="","",Jurnal!B97) ->  | C101: =IF(D101="","",Jurnal!C97) ->  | D101: =IF(Jurnal!D97='Buku Besar'!$I$2,Jurnal!H97,"") ->  | F101: =IF(D101="",0,Jurnal!F97) -> 0 | G101: =IF(D101="",0,Jurnal!G97) -> 0 | H101: 0
B102: =IF(D102="","",Jurnal!B98) ->  | C102: =IF(D102="","",Jurnal!C98) ->  | D102: =IF(Jurnal!D98='Buku Besar'!$I$2,Jurnal!H98,"") ->  | F102: =IF(D102="",0,Jurnal!F98) -> 0 | G102: =IF(D102="",0,Jurnal!G98) -> 0 | H102: 0
B103: =IF(D103="","",Jurnal!B99) ->  | C103: =IF(D103="","",Jurnal!C99) ->  | D103: =IF(Jurnal!D99='Buku Besar'!$I$2,Jurnal!H99,"") ->  | F103: =IF(D103="",0,Jurnal!F99) -> 0 | G103: =IF(D103="",0,Jurnal!G99) -> 0 | H103: 0
B104: =IF(D104="","",Jurnal!B100) ->  | C104: =IF(D104="","",Jurnal!C100) ->  | D104: =IF(Jurnal!D100='Buku Besar'!$I$2,Jurnal!H100,"") ->  | F104: =IF(D104="",0,Jurnal!F100) -> 0 | G104: =IF(D104="",0,Jurnal!G100) -> 0 | H104: 0
B105: =IF(D105="","",Jurnal!B101) ->  | C105: =IF(D105="","",Jurnal!C101) ->  | D105: =IF(Jurnal!D101='Buku Besar'!$I$2,Jurnal!H101,"") ->  | F105: =IF(D105="",0,Jurnal!F101) -> 0 | G105: =IF(D105="",0,Jurnal!G101) -> 0 | H105: 0
B106: =IF(D106="","",Jurnal!B102) ->  | C106: =IF(D106="","",Jurnal!C102) ->  | D106: =IF(Jurnal!D102='Buku Besar'!$I$2,Jurnal!H102,"") ->  | F106: =IF(D106="",0,Jurnal!F102) -> 0 | G106: =IF(D106="",0,Jurnal!G102) -> 0 | H106: 0
B107: =IF(D107="","",Jurnal!B103) ->  | C107: =IF(D107="","",Jurnal!C103) ->  | D107: =IF(Jurnal!D103='Buku Besar'!$I$2,Jurnal!H103,"") ->  | F107: =IF(D107="",0,Jurnal!F103) -> 0 | G107: =IF(D107="",0,Jurnal!G103) -> 0 | H107: 0
B108: =IF(D108="","",Jurnal!B104) ->  | C108: =IF(D108="","",Jurnal!C104) ->  | D108: =IF(Jurnal!D104='Buku Besar'!$I$2,Jurnal!H104,"") ->  | F108: =IF(D108="",0,Jurnal!F104) -> 0 | G108: =IF(D108="",0,Jurnal!G104) -> 0 | H108: 0
B109: =IF(D109="","",Jurnal!B105) ->  | C109: =IF(D109="","",Jurnal!C105) ->  | D109: =IF(Jurnal!D105='Buku Besar'!$I$2,Jurnal!H105,"") ->  | F109: =IF(D109="",0,Jurnal!F105) -> 0 | G109: =IF(D109="",0,Jurnal!G105) -> 0 | H109: 0
B110: =IF(D110="","",Jurnal!B106) ->  | C110: =IF(D110="","",Jurnal!C106) ->  | D110: =IF(Jurnal!D106='Buku Besar'!$I$2,Jurnal!H106,"") ->  | F110: =IF(D110="",0,Jurnal!F106) -> 0 | G110: =IF(D110="",0,Jurnal!G106) -> 0 | H110: 0
B111: =IF(D111="","",Jurnal!B107) ->  | C111: =IF(D111="","",Jurnal!C107) ->  | D111: =IF(Jurnal!D107='Buku Besar'!$I$2,Jurnal!H107,"") ->  | F111: =IF(D111="",0,Jurnal!F107) -> 0 | G111: =IF(D111="",0,Jurnal!G107) -> 0 | H111: 0
B112: =IF(D112="","",Jurnal!B108) ->  | C112: =IF(D112="","",Jurnal!C108) ->  | D112: =IF(Jurnal!D108='Buku Besar'!$I$2,Jurnal!H108,"") ->  | F112: =IF(D112="",0,Jurnal!F108) -> 0 | G112: =IF(D112="",0,Jurnal!G108) -> 0 | H112: 0
B113: =IF(D113="","",Jurnal!B109) ->  | C113: =IF(D113="","",Jurnal!C109) ->  | D113: =IF(Jurnal!D109='Buku Besar'!$I$2,Jurnal!H109,"") ->  | F113: =IF(D113="",0,Jurnal!F109) -> 0 | G113: =IF(D113="",0,Jurnal!G109) -> 0 | H113: 0
B114: =IF(D114="","",Jurnal!B110) ->  | C114: =IF(D114="","",Jurnal!C110) ->  | D114: =IF(Jurnal!D110='Buku Besar'!$I$2,Jurnal!H110,"") ->  | F114: =IF(D114="",0,Jurnal!F110) -> 0 | G114: =IF(D114="",0,Jurnal!G110) -> 0 | H114: 0
B115: =IF(D115="","",Jurnal!B111) ->  | C115: =IF(D115="","",Jurnal!C111) ->  | D115: =IF(Jurnal!D111='Buku Besar'!$I$2,Jurnal!H111,"") ->  | F115: =IF(D115="",0,Jurnal!F111) -> 0 | G115: =IF(D115="",0,Jurnal!G111) -> 0 | H115: 0
B116: =IF(D116="","",Jurnal!B112) ->  | C116: =IF(D116="","",Jurnal!C112) ->  | D116: =IF(Jurnal!D112='Buku Besar'!$I$2,Jurnal!H112,"") ->  | F116: =IF(D116="",0,Jurnal!F112) -> 0 | G116: =IF(D116="",0,Jurnal!G112) -> 0 | H116: 0
B117: =IF(D117="","",Jurnal!B113) ->  | C117: =IF(D117="","",Jurnal!C113) ->  | D117: =IF(Jurnal!D113='Buku Besar'!$I$2,Jurnal!H113,"") ->  | F117: =IF(D117="",0,Jurnal!F113) -> 0 | G117: =IF(D117="",0,Jurnal!G113) -> 0 | H117: 0
B118: =IF(D118="","",Jurnal!B114) ->  | C118: =IF(D118="","",Jurnal!C114) ->  | D118: =IF(Jurnal!D114='Buku Besar'!$I$2,Jurnal!H114,"") ->  | F118: =IF(D118="",0,Jurnal!F114) -> 0 | G118: =IF(D118="",0,Jurnal!G114) -> 0 | H118: 0
B119: =IF(D119="","",Jurnal!B115) ->  | C119: =IF(D119="","",Jurnal!C115) ->  | D119: =IF(Jurnal!D115='Buku Besar'!$I$2,Jurnal!H115,"") ->  | F119: =IF(D119="",0,Jurnal!F115) -> 0 | G119: =IF(D119="",0,Jurnal!G115) -> 0 | H119: 0
B120: =IF(D120="","",Jurnal!B116) ->  | C120: =IF(D120="","",Jurnal!C116) ->  | D120: =IF(Jurnal!D116='Buku Besar'!$I$2,Jurnal!H116,"") ->  | F120: =IF(D120="",0,Jurnal!F116) -> 0 | G120: =IF(D120="",0,Jurnal!G116) -> 0 | H120: 0
B121: =IF(D121="","",Jurnal!B117) ->  | C121: =IF(D121="","",Jurnal!C117) ->  | D121: =IF(Jurnal!D117='Buku Besar'!$I$2,Jurnal!H117,"") ->  | F121: =IF(D121="",0,Jurnal!F117) -> 0 | G121: =IF(D121="",0,Jurnal!G117) -> 0 | H121: 0
B122: =IF(D122="","",Jurnal!B118) ->  | C122: =IF(D122="","",Jurnal!C118) ->  | D122: =IF(Jurnal!D118='Buku Besar'!$I$2,Jurnal!H118,"") ->  | F122: =IF(D122="",0,Jurnal!F118) -> 0 | G122: =IF(D122="",0,Jurnal!G118) -> 0 | H122: 0
B123: =IF(D123="","",Jurnal!B119) ->  | C123: =IF(D123="","",Jurnal!C119) ->  | D123: =IF(Jurnal!D119='Buku Besar'!$I$2,Jurnal!H119,"") ->  | F123: =IF(D123="",0,Jurnal!F119) -> 0 | G123: =IF(D123="",0,Jurnal!G119) -> 0 | H123: 0
B124: =IF(D124="","",Jurnal!B120) ->  | C124: =IF(D124="","",Jurnal!C120) ->  | D124: =IF(Jurnal!D120='Buku Besar'!$I$2,Jurnal!H120,"") ->  | F124: =IF(D124="",0,Jurnal!F120) -> 0 | G124: =IF(D124="",0,Jurnal!G120) -> 0 | H124: 0
B125: =IF(D125="","",Jurnal!B121) ->  | C125: =IF(D125="","",Jurnal!C121) ->  | D125: =IF(Jurnal!D121='Buku Besar'!$I$2,Jurnal!H121,"") ->  | F125: =IF(D125="",0,Jurnal!F121) -> 0 | G125: =IF(D125="",0,Jurnal!G121) -> 0 | H125: 0
B126: =IF(D126="","",Jurnal!B122) ->  | C126: =IF(D126="","",Jurnal!C122) ->  | D126: =IF(Jurnal!D122='Buku Besar'!$I$2,Jurnal!H122,"") ->  | F126: =IF(D126="",0,Jurnal!F122) -> 0 | G126: =IF(D126="",0,Jurnal!G122) -> 0 | H126: 0
B127: =IF(D127="","",Jurnal!B123) ->  | C127: =IF(D127="","",Jurnal!C123) ->  | D127: =IF(Jurnal!D123='Buku Besar'!$I$2,Jurnal!H123,"") ->  | F127: =IF(D127="",0,Jurnal!F123) -> 0 | G127: =IF(D127="",0,Jurnal!G123) -> 0 | H127: 0
B128: =IF(D128="","",Jurnal!B124) ->  | C128: =IF(D128="","",Jurnal!C124) ->  | D128: =IF(Jurnal!D124='Buku Besar'!$I$2,Jurnal!H124,"") ->  | F128: =IF(D128="",0,Jurnal!F124) -> 0 | G128: =IF(D128="",0,Jurnal!G124) -> 0 | H128: 0
B129: =IF(D129="","",Jurnal!B125) ->  | C129: =IF(D129="","",Jurnal!C125) ->  | D129: =IF(Jurnal!D125='Buku Besar'!$I$2,Jurnal!H125,"") ->  | F129: =IF(D129="",0,Jurnal!F125) -> 0 | G129: =IF(D129="",0,Jurnal!G125) -> 0 | H129: 0
B130: =IF(D130="","",Jurnal!B126) ->  | C130: =IF(D130="","",Jurnal!C126) ->  | D130: =IF(Jurnal!D126='Buku Besar'!$I$2,Jurnal!H126,"") ->  | F130: =IF(D130="",0,Jurnal!F126) -> 0 | G130: =IF(D130="",0,Jurnal!G126) -> 0 | H130: 0
B131: =IF(D131="","",Jurnal!B127) ->  | C131: =IF(D131="","",Jurnal!C127) ->  | D131: =IF(Jurnal!D127='Buku Besar'!$I$2,Jurnal!H127,"") ->  | F131: =IF(D131="",0,Jurnal!F127) -> 0 | G131: =IF(D131="",0,Jurnal!G127) -> 0 | H131: 0
B132: =IF(D132="","",Jurnal!B128) ->  | C132: =IF(D132="","",Jurnal!C128) ->  | D132: =IF(Jurnal!D128='Buku Besar'!$I$2,Jurnal!H128,"") ->  | F132: =IF(D132="",0,Jurnal!F128) -> 0 | G132: =IF(D132="",0,Jurnal!G128) -> 0 | H132: 0
B133: =IF(D133="","",Jurnal!B129) ->  | C133: =IF(D133="","",Jurnal!C129) ->  | D133: =IF(Jurnal!D129='Buku Besar'!$I$2,Jurnal!H129,"") ->  | F133: =IF(D133="",0,Jurnal!F129) -> 0 | G133: =IF(D133="",0,Jurnal!G129) -> 0 | H133: 0
B134: =IF(D134="","",Jurnal!B130) ->  | C134: =IF(D134="","",Jurnal!C130) ->  | D134: =IF(Jurnal!D130='Buku Besar'!$I$2,Jurnal!H130,"") ->  | F134: =IF(D134="",0,Jurnal!F130) -> 0 | G134: =IF(D134="",0,Jurnal!G130) -> 0 | H134: 0
B135: =IF(D135="","",Jurnal!B131) ->  | C135: =IF(D135="","",Jurnal!C131) ->  | D135: =IF(Jurnal!D131='Buku Besar'!$I$2,Jurnal!H131,"") ->  | F135: =IF(D135="",0,Jurnal!F131) -> 0 | G135: =IF(D135="",0,Jurnal!G131) -> 0 | H135: 0
B136: =IF(D136="","",Jurnal!B132) ->  | C136: =IF(D136="","",Jurnal!C132) ->  | D136: =IF(Jurnal!D132='Buku Besar'!$I$2,Jurnal!H132,"") ->  | F136: =IF(D136="",0,Jurnal!F132) -> 0 | G136: =IF(D136="",0,Jurnal!G132) -> 0 | H136: 0
B137: =IF(D137="","",Jurnal!B133) ->  | C137: =IF(D137="","",Jurnal!C133) ->  | D137: =IF(Jurnal!D133='Buku Besar'!$I$2,Jurnal!H133,"") ->  | F137: =IF(D137="",0,Jurnal!F133) -> 0 | G137: =IF(D137="",0,Jurnal!G133) -> 0 | H137: 0
B138: =IF(D138="","",Jurnal!B134) ->  | C138: =IF(D138="","",Jurnal!C134) ->  | D138: =IF(Jurnal!D134='Buku Besar'!$I$2,Jurnal!H134,"") ->  | F138: =IF(D138="",0,Jurnal!F134) -> 0 | G138: =IF(D138="",0,Jurnal!G134) -> 0 | H138: 0
B139: =IF(D139="","",Jurnal!B135) ->  | C139: =IF(D139="","",Jurnal!C135) ->  | D139: =IF(Jurnal!D135='Buku Besar'!$I$2,Jurnal!H135,"") ->  | F139: =IF(D139="",0,Jurnal!F135) -> 0 | G139: =IF(D139="",0,Jurnal!G135) -> 0 | H139: 0
B140: =IF(D140="","",Jurnal!B136) ->  | C140: =IF(D140="","",Jurnal!C136) ->  | D140: =IF(Jurnal!D136='Buku Besar'!$I$2,Jurnal!H136,"") ->  | F140: =IF(D140="",0,Jurnal!F136) -> 0 | G140: =IF(D140="",0,Jurnal!G136) -> 0 | H140: 0
B141: =IF(D141="","",Jurnal!B137) ->  | C141: =IF(D141="","",Jurnal!C137) ->  | D141: =IF(Jurnal!D137='Buku Besar'!$I$2,Jurnal!H137,"") ->  | F141: =IF(D141="",0,Jurnal!F137) -> 0 | G141: =IF(D141="",0,Jurnal!G137) -> 0 | H141: 0
B142: =IF(D142="","",Jurnal!B138) ->  | C142: =IF(D142="","",Jurnal!C138) ->  | D142: =IF(Jurnal!D138='Buku Besar'!$I$2,Jurnal!H138,"") ->  | F142: =IF(D142="",0,Jurnal!F138) -> 0 | G142: =IF(D142="",0,Jurnal!G138) -> 0 | H142: 0
B143: =IF(D143="","",Jurnal!B139) ->  | C143: =IF(D143="","",Jurnal!C139) ->  | D143: =IF(Jurnal!D139='Buku Besar'!$I$2,Jurnal!H139,"") ->  | F143: =IF(D143="",0,Jurnal!F139) -> 0 | G143: =IF(D143="",0,Jurnal!G139) -> 0 | H143: =IF($J$1="Debit",H142+F143-G143,H142+G143-F143) -> 0
B144: =IF(D144="","",Jurnal!B140) ->  | C144: =IF(D144="","",Jurnal!C140) ->  | D144: =IF(Jurnal!D140='Buku Besar'!$I$2,Jurnal!H140,"") ->  | F144: =IF(D144="",0,Jurnal!F140) -> 0 | G144: =IF(D144="",0,Jurnal!G140) -> 0 | H144: 0
B145: =IF(D145="","",Jurnal!B141) ->  | C145: =IF(D145="","",Jurnal!C141) ->  | D145: =IF(Jurnal!D141='Buku Besar'!$I$2,Jurnal!H141,"") ->  | F145: =IF(D145="",0,Jurnal!F141) -> 0 | G145: =IF(D145="",0,Jurnal!G141) -> 0 | H145: 0
B146: =IF(D146="","",Jurnal!B142) ->  | C146: =IF(D146="","",Jurnal!C142) ->  | D146: =IF(Jurnal!D142='Buku Besar'!$I$2,Jurnal!H142,"") ->  | F146: =IF(D146="",0,Jurnal!F142) -> 0 | G146: =IF(D146="",0,Jurnal!G142) -> 0 | H146: 0
B147: =IF(D147="","",Jurnal!B143) ->  | C147: =IF(D147="","",Jurnal!C143) ->  | D147: =IF(Jurnal!D143='Buku Besar'!$I$2,Jurnal!H143,"") ->  | F147: =IF(D147="",0,Jurnal!F143) -> 0 | G147: =IF(D147="",0,Jurnal!G143) -> 0 | H147: 0
B148: =IF(D148="","",Jurnal!B144) ->  | C148: =IF(D148="","",Jurnal!C144) ->  | D148: =IF(Jurnal!D144='Buku Besar'!$I$2,Jurnal!H144,"") ->  | F148: =IF(D148="",0,Jurnal!F144) -> 0 | G148: =IF(D148="",0,Jurnal!G144) -> 0 | H148: 0
B149: =IF(D149="","",Jurnal!B145) ->  | C149: =IF(D149="","",Jurnal!C145) ->  | D149: =IF(Jurnal!D145='Buku Besar'!$I$2,Jurnal!H145,"") ->  | F149: =IF(D149="",0,Jurnal!F145) -> 0 | G149: =IF(D149="",0,Jurnal!G145) -> 0 | H149: 0
B150: =IF(D150="","",Jurnal!B146) ->  | C150: =IF(D150="","",Jurnal!C146) ->  | D150: =IF(Jurnal!D146='Buku Besar'!$I$2,Jurnal!H146,"") ->  | F150: =IF(D150="",0,Jurnal!F146) -> 0 | G150: =IF(D150="",0,Jurnal!G146) -> 0 | H150: 0
B151: =IF(D151="","",Jurnal!B147) ->  | C151: =IF(D151="","",Jurnal!C147) ->  | D151: =IF(Jurnal!D147='Buku Besar'!$I$2,Jurnal!H147,"") ->  | F151: =IF(D151="",0,Jurnal!F147) -> 0 | G151: =IF(D151="",0,Jurnal!G147) -> 0 | H151: 0
B152: =IF(D152="","",Jurnal!B148) ->  | C152: =IF(D152="","",Jurnal!C148) ->  | D152: =IF(Jurnal!D148='Buku Besar'!$I$2,Jurnal!H148,"") ->  | F152: =IF(D152="",0,Jurnal!F148) -> 0 | G152: =IF(D152="",0,Jurnal!G148) -> 0 | H152: 0
B153: =IF(D153="","",Jurnal!B149) ->  | C153: =IF(D153="","",Jurnal!C149) ->  | D153: =IF(Jurnal!D149='Buku Besar'!$I$2,Jurnal!H149,"") ->  | F153: =IF(D153="",0,Jurnal!F149) -> 0 | G153: =IF(D153="",0,Jurnal!G149) -> 0 | H153: 0
B154: =IF(D154="","",Jurnal!B150) ->  | C154: =IF(D154="","",Jurnal!C150) ->  | D154: =IF(Jurnal!D150='Buku Besar'!$I$2,Jurnal!H150,"") ->  | F154: =IF(D154="",0,Jurnal!F150) -> 0 | G154: =IF(D154="",0,Jurnal!G150) -> 0 | H154: 0
B155: =IF(D155="","",Jurnal!B151) ->  | C155: =IF(D155="","",Jurnal!C151) ->  | D155: =IF(Jurnal!D151='Buku Besar'!$I$2,Jurnal!H151,"") ->  | F155: =IF(D155="",0,Jurnal!F151) -> 0 | G155: =IF(D155="",0,Jurnal!G151) -> 0 | H155: 0
B156: =IF(D156="","",Jurnal!B152) ->  | C156: =IF(D156="","",Jurnal!C152) ->  | D156: =IF(Jurnal!D152='Buku Besar'!$I$2,Jurnal!H152,"") ->  | F156: =IF(D156="",0,Jurnal!F152) -> 0 | G156: =IF(D156="",0,Jurnal!G152) -> 0 | H156: 0
B157: =IF(D157="","",Jurnal!B153) ->  | C157: =IF(D157="","",Jurnal!C153) ->  | D157: =IF(Jurnal!D153='Buku Besar'!$I$2,Jurnal!H153,"") ->  | F157: =IF(D157="",0,Jurnal!F153) -> 0 | G157: =IF(D157="",0,Jurnal!G153) -> 0 | H157: 0
B158: =IF(D158="","",Jurnal!B154) ->  | C158: =IF(D158="","",Jurnal!C154) ->  | D158: =IF(Jurnal!D154='Buku Besar'!$I$2,Jurnal!H154,"") ->  | F158: =IF(D158="",0,Jurnal!F154) -> 0 | G158: =IF(D158="",0,Jurnal!G154) -> 0 | H158: 0
B159: =IF(D159="","",Jurnal!B155) ->  | C159: =IF(D159="","",Jurnal!C155) ->  | D159: =IF(Jurnal!D155='Buku Besar'!$I$2,Jurnal!H155,"") ->  | F159: =IF(D159="",0,Jurnal!F155) -> 0 | G159: =IF(D159="",0,Jurnal!G155) -> 0 | H159: 0
B160: =IF(D160="","",Jurnal!B156) ->  | C160: =IF(D160="","",Jurnal!C156) ->  | D160: =IF(Jurnal!D156='Buku Besar'!$I$2,Jurnal!H156,"") ->  | F160: =IF(D160="",0,Jurnal!F156) -> 0 | G160: =IF(D160="",0,Jurnal!G156) -> 0 | H160: 0
B161: =IF(D161="","",Jurnal!B157) ->  | C161: =IF(D161="","",Jurnal!C157) ->  | D161: =IF(Jurnal!D157='Buku Besar'!$I$2,Jurnal!H157,"") ->  | F161: =IF(D161="",0,Jurnal!F157) -> 0 | G161: =IF(D161="",0,Jurnal!G157) -> 0 | H161: 0
B162: =IF(D162="","",Jurnal!B158) ->  | C162: =IF(D162="","",Jurnal!C158) ->  | D162: =IF(Jurnal!D158='Buku Besar'!$I$2,Jurnal!H158,"") ->  | F162: =IF(D162="",0,Jurnal!F158) -> 0 | G162: =IF(D162="",0,Jurnal!G158) -> 0 | H162: 0
B163: =IF(D163="","",Jurnal!B159) ->  | C163: =IF(D163="","",Jurnal!C159) ->  | D163: =IF(Jurnal!D159='Buku Besar'!$I$2,Jurnal!H159,"") ->  | F163: =IF(D163="",0,Jurnal!F159) -> 0 | G163: =IF(D163="",0,Jurnal!G159) -> 0 | H163: 0
B164: =IF(D164="","",Jurnal!B160) ->  | C164: =IF(D164="","",Jurnal!C160) ->  | D164: =IF(Jurnal!D160='Buku Besar'!$I$2,Jurnal!H160,"") ->  | F164: =IF(D164="",0,Jurnal!F160) -> 0 | G164: =IF(D164="",0,Jurnal!G160) -> 0 | H164: 0
B165: =IF(D165="","",Jurnal!B161) ->  | C165: =IF(D165="","",Jurnal!C161) ->  | D165: =IF(Jurnal!D161='Buku Besar'!$I$2,Jurnal!H161,"") ->  | F165: =IF(D165="",0,Jurnal!F161) -> 0 | G165: =IF(D165="",0,Jurnal!G161) -> 0 | H165: 0
B166: =IF(D166="","",Jurnal!B162) ->  | C166: =IF(D166="","",Jurnal!C162) ->  | D166: =IF(Jurnal!D162='Buku Besar'!$I$2,Jurnal!H162,"") ->  | F166: =IF(D166="",0,Jurnal!F162) -> 0 | G166: =IF(D166="",0,Jurnal!G162) -> 0 | H166: 0
B167: =IF(D167="","",Jurnal!B163) ->  | C167: =IF(D167="","",Jurnal!C163) ->  | D167: =IF(Jurnal!D163='Buku Besar'!$I$2,Jurnal!H163,"") ->  | F167: =IF(D167="",0,Jurnal!F163) -> 0 | G167: =IF(D167="",0,Jurnal!G163) -> 0 | H167: 0
B168: =IF(D168="","",Jurnal!B164) ->  | C168: =IF(D168="","",Jurnal!C164) ->  | D168: =IF(Jurnal!D164='Buku Besar'!$I$2,Jurnal!H164,"") ->  | F168: =IF(D168="",0,Jurnal!F164) -> 0 | G168: =IF(D168="",0,Jurnal!G164) -> 0 | H168: 0
B169: =IF(D169="","",Jurnal!B165) ->  | C169: =IF(D169="","",Jurnal!C165) ->  | D169: =IF(Jurnal!D165='Buku Besar'!$I$2,Jurnal!H165,"") ->  | F169: =IF(D169="",0,Jurnal!F165) -> 0 | G169: =IF(D169="",0,Jurnal!G165) -> 0 | H169: 0
B170: =IF(D170="","",Jurnal!B166) ->  | C170: =IF(D170="","",Jurnal!C166) ->  | D170: =IF(Jurnal!D166='Buku Besar'!$I$2,Jurnal!H166,"") ->  | F170: =IF(D170="",0,Jurnal!F166) -> 0 | G170: =IF(D170="",0,Jurnal!G166) -> 0 | H170: 0
B171: =IF(D171="","",Jurnal!B167) ->  | C171: =IF(D171="","",Jurnal!C167) ->  | D171: =IF(Jurnal!D167='Buku Besar'!$I$2,Jurnal!H167,"") ->  | F171: =IF(D171="",0,Jurnal!F167) -> 0 | G171: =IF(D171="",0,Jurnal!G167) -> 0 | H171: 0
B172: =IF(D172="","",Jurnal!B168) ->  | C172: =IF(D172="","",Jurnal!C168) ->  | D172: =IF(Jurnal!D168='Buku Besar'!$I$2,Jurnal!H168,"") ->  | F172: =IF(D172="",0,Jurnal!F168) -> 0 | G172: =IF(D172="",0,Jurnal!G168) -> 0 | H172: 0
B173: =IF(D173="","",Jurnal!B169) ->  | C173: =IF(D173="","",Jurnal!C169) ->  | D173: =IF(Jurnal!D169='Buku Besar'!$I$2,Jurnal!H169,"") ->  | F173: =IF(D173="",0,Jurnal!F169) -> 0 | G173: =IF(D173="",0,Jurnal!G169) -> 0 | H173: 0
B174: =IF(D174="","",Jurnal!B170) ->  | C174: =IF(D174="","",Jurnal!C170) ->  | D174: =IF(Jurnal!D170='Buku Besar'!$I$2,Jurnal!H170,"") ->  | F174: =IF(D174="",0,Jurnal!F170) -> 0 | G174: =IF(D174="",0,Jurnal!G170) -> 0 | H174: 0
B175: =IF(D175="","",Jurnal!B171) ->  | C175: =IF(D175="","",Jurnal!C171) ->  | D175: =IF(Jurnal!D171='Buku Besar'!$I$2,Jurnal!H171,"") ->  | F175: =IF(D175="",0,Jurnal!F171) -> 0 | G175: =IF(D175="",0,Jurnal!G171) -> 0 | H175: 0
B176: =IF(D176="","",Jurnal!B172) ->  | C176: =IF(D176="","",Jurnal!C172) ->  | D176: =IF(Jurnal!D172='Buku Besar'!$I$2,Jurnal!H172,"") ->  | F176: =IF(D176="",0,Jurnal!F172) -> 0 | G176: =IF(D176="",0,Jurnal!G172) -> 0 | H176: 0
B177: =IF(D177="","",Jurnal!B173) ->  | C177: =IF(D177="","",Jurnal!C173) ->  | D177: =IF(Jurnal!D173='Buku Besar'!$I$2,Jurnal!H173,"") ->  | F177: =IF(D177="",0,Jurnal!F173) -> 0 | G177: =IF(D177="",0,Jurnal!G173) -> 0 | H177: 0
B178: =IF(D178="","",Jurnal!B174) ->  | C178: =IF(D178="","",Jurnal!C174) ->  | D178: =IF(Jurnal!D174='Buku Besar'!$I$2,Jurnal!H174,"") ->  | F178: =IF(D178="",0,Jurnal!F174) -> 0 | G178: =IF(D178="",0,Jurnal!G174) -> 0 | H178: 0
B179: =IF(D179="","",Jurnal!B175) ->  | C179: =IF(D179="","",Jurnal!C175) ->  | D179: =IF(Jurnal!D175='Buku Besar'!$I$2,Jurnal!H175,"") ->  | F179: =IF(D179="",0,Jurnal!F175) -> 0 | G179: =IF(D179="",0,Jurnal!G175) -> 0 | H179: 0
B180: =IF(D180="","",Jurnal!B176) ->  | C180: =IF(D180="","",Jurnal!C176) ->  | D180: =IF(Jurnal!D176='Buku Besar'!$I$2,Jurnal!H176,"") ->  | F180: =IF(D180="",0,Jurnal!F176) -> 0 | G180: =IF(D180="",0,Jurnal!G176) -> 0 | H180: 0
B181: =IF(D181="","",Jurnal!B177) ->  | C181: =IF(D181="","",Jurnal!C177) ->  | D181: =IF(Jurnal!D177='Buku Besar'!$I$2,Jurnal!H177,"") ->  | F181: =IF(D181="",0,Jurnal!F177) -> 0 | G181: =IF(D181="",0,Jurnal!G177) -> 0 | H181: 0
B182: =IF(D182="","",Jurnal!B178) ->  | C182: =IF(D182="","",Jurnal!C178) ->  | D182: =IF(Jurnal!D178='Buku Besar'!$I$2,Jurnal!H178,"") ->  | F182: =IF(D182="",0,Jurnal!F178) -> 0 | G182: =IF(D182="",0,Jurnal!G178) -> 0 | H182: 0
B183: =IF(D183="","",Jurnal!B179) ->  | C183: =IF(D183="","",Jurnal!C179) ->  | D183: =IF(Jurnal!D179='Buku Besar'!$I$2,Jurnal!H179,"") ->  | F183: =IF(D183="",0,Jurnal!F179) -> 0 | G183: =IF(D183="",0,Jurnal!G179) -> 0 | H183: 0
B184: =IF(D184="","",Jurnal!B180) ->  | C184: =IF(D184="","",Jurnal!C180) ->  | D184: =IF(Jurnal!D180='Buku Besar'!$I$2,Jurnal!H180,"") ->  | F184: =IF(D184="",0,Jurnal!F180) -> 0 | G184: =IF(D184="",0,Jurnal!G180) -> 0 | H184: 0
B185: =IF(D185="","",Jurnal!B181) ->  | C185: =IF(D185="","",Jurnal!C181) ->  | D185: =IF(Jurnal!D181='Buku Besar'!$I$2,Jurnal!H181,"") ->  | F185: =IF(D185="",0,Jurnal!F181) -> 0 | G185: =IF(D185="",0,Jurnal!G181) -> 0 | H185: 0
B186: =IF(D186="","",Jurnal!B182) ->  | C186: =IF(D186="","",Jurnal!C182) ->  | D186: =IF(Jurnal!D182='Buku Besar'!$I$2,Jurnal!H182,"") ->  | F186: =IF(D186="",0,Jurnal!F182) -> 0 | G186: =IF(D186="",0,Jurnal!G182) -> 0 | H186: 0
B187: =IF(D187="","",Jurnal!B183) ->  | C187: =IF(D187="","",Jurnal!C183) ->  | D187: =IF(Jurnal!D183='Buku Besar'!$I$2,Jurnal!H183,"") ->  | F187: =IF(D187="",0,Jurnal!F183) -> 0 | G187: =IF(D187="",0,Jurnal!G183) -> 0 | H187: 0
B188: =IF(D188="","",Jurnal!B184) ->  | C188: =IF(D188="","",Jurnal!C184) ->  | D188: =IF(Jurnal!D184='Buku Besar'!$I$2,Jurnal!H184,"") ->  | F188: =IF(D188="",0,Jurnal!F184) -> 0 | G188: =IF(D188="",0,Jurnal!G184) -> 0 | H188: 0
B189: =IF(D189="","",Jurnal!B185) ->  | C189: =IF(D189="","",Jurnal!C185) ->  | D189: =IF(Jurnal!D185='Buku Besar'!$I$2,Jurnal!H185,"") ->  | F189: =IF(D189="",0,Jurnal!F185) -> 0 | G189: =IF(D189="",0,Jurnal!G185) -> 0 | H189: 0
B190: =IF(D190="","",Jurnal!B186) ->  | C190: =IF(D190="","",Jurnal!C186) ->  | D190: =IF(Jurnal!D186='Buku Besar'!$I$2,Jurnal!H186,"") ->  | F190: =IF(D190="",0,Jurnal!F186) -> 0 | G190: =IF(D190="",0,Jurnal!G186) -> 0 | H190: 0
B191: =IF(D191="","",Jurnal!B187) ->  | C191: =IF(D191="","",Jurnal!C187) ->  | D191: =IF(Jurnal!D187='Buku Besar'!$I$2,Jurnal!H187,"") ->  | F191: =IF(D191="",0,Jurnal!F187) -> 0 | G191: =IF(D191="",0,Jurnal!G187) -> 0 | H191: 0
B192: =IF(D192="","",Jurnal!B188) ->  | C192: =IF(D192="","",Jurnal!C188) ->  | D192: =IF(Jurnal!D188='Buku Besar'!$I$2,Jurnal!H188,"") ->  | F192: =IF(D192="",0,Jurnal!F188) -> 0 | G192: =IF(D192="",0,Jurnal!G188) -> 0 | H192: 0
B193: =IF(D193="","",Jurnal!B189) ->  | C193: =IF(D193="","",Jurnal!C189) ->  | D193: =IF(Jurnal!D189='Buku Besar'!$I$2,Jurnal!H189,"") ->  | F193: =IF(D193="",0,Jurnal!F189) -> 0 | G193: =IF(D193="",0,Jurnal!G189) -> 0 | H193: 0
B194: =IF(D194="","",Jurnal!B190) ->  | C194: =IF(D194="","",Jurnal!C190) ->  | D194: =IF(Jurnal!D190='Buku Besar'!$I$2,Jurnal!H190,"") ->  | F194: =IF(D194="",0,Jurnal!F190) -> 0 | G194: =IF(D194="",0,Jurnal!G190) -> 0 | H194: 0
B195: =IF(D195="","",Jurnal!B191) ->  | C195: =IF(D195="","",Jurnal!C191) ->  | D195: =IF(Jurnal!D191='Buku Besar'!$I$2,Jurnal!H191,"") ->  | F195: =IF(D195="",0,Jurnal!F191) -> 0 | G195: =IF(D195="",0,Jurnal!G191) -> 0 | H195: 0
B196: =IF(D196="","",Jurnal!B192) ->  | C196: =IF(D196="","",Jurnal!C192) ->  | D196: =IF(Jurnal!D192='Buku Besar'!$I$2,Jurnal!H192,"") ->  | F196: =IF(D196="",0,Jurnal!F192) -> 0 | G196: =IF(D196="",0,Jurnal!G192) -> 0 | H196: 0
B197: =IF(D197="","",Jurnal!B193) ->  | C197: =IF(D197="","",Jurnal!C193) ->  | D197: =IF(Jurnal!D193='Buku Besar'!$I$2,Jurnal!H193,"") ->  | F197: =IF(D197="",0,Jurnal!F193) -> 0 | G197: =IF(D197="",0,Jurnal!G193) -> 0 | H197: 0
B198: =IF(D198="","",Jurnal!B194) ->  | C198: =IF(D198="","",Jurnal!C194) ->  | D198: =IF(Jurnal!D194='Buku Besar'!$I$2,Jurnal!H194,"") ->  | F198: =IF(D198="",0,Jurnal!F194) -> 0 | G198: =IF(D198="",0,Jurnal!G194) -> 0 | H198: 0
B199: =IF(D199="","",Jurnal!B195) ->  | C199: =IF(D199="","",Jurnal!C195) ->  | D199: =IF(Jurnal!D195='Buku Besar'!$I$2,Jurnal!H195,"") ->  | F199: =IF(D199="",0,Jurnal!F195) -> 0 | G199: =IF(D199="",0,Jurnal!G195) -> 0 | H199: 0
B200: =IF(D200="","",Jurnal!B196) ->  | C200: =IF(D200="","",Jurnal!C196) ->  | D200: =IF(Jurnal!D196='Buku Besar'!$I$2,Jurnal!H196,"") ->  | F200: =IF(D200="",0,Jurnal!F196) -> 0 | G200: =IF(D200="",0,Jurnal!G196) -> 0 | H200: 0
B201: =IF(D201="","",Jurnal!B197) ->  | C201: =IF(D201="","",Jurnal!C197) ->  | D201: =IF(Jurnal!D197='Buku Besar'!$I$2,Jurnal!H197,"") ->  | F201: =IF(D201="",0,Jurnal!F197) -> 0 | G201: =IF(D201="",0,Jurnal!G197) -> 0 | H201: 0
B202: =IF(D202="","",Jurnal!B198) ->  | C202: =IF(D202="","",Jurnal!C198) ->  | D202: =IF(Jurnal!D198='Buku Besar'!$I$2,Jurnal!H198,"") ->  | F202: =IF(D202="",0,Jurnal!F198) -> 0 | G202: =IF(D202="",0,Jurnal!G198) -> 0 | H202: 0
B203: =IF(D203="","",Jurnal!B199) ->  | C203: =IF(D203="","",Jurnal!C199) ->  | D203: =IF(Jurnal!D199='Buku Besar'!$I$2,Jurnal!H199,"") ->  | F203: =IF(D203="",0,Jurnal!F199) -> 0 | G203: =IF(D203="",0,Jurnal!G199) -> 0 | H203: 0
... 4297 more rows

Sheet neraca saldo
A1: aph | C1: =IF(C2=0,"Balance","Tidak Balance") -> Balance
C2: =F244-G244 -> 0
C3: =IF(Home!C6="","",Home!C6) -> 
C4: =IF(Home!C8="","",Home!C8) -> 
C5: NERACA SALDO SETELAH PENYESUAIAN
C6: =IF(Home!C10="","","Per "&TEXT(Home!C10,"DD MMMM YYYY")) -> 
G7: (dalam Rupiah)
C9: Kode dan Nama Akun | D9: Neraca Percobaan | F9: Saldo
D10: Debit | E10: Kredit | F10: Debit | G10: Kredit | H10: Saldo Akhir | I10: Check | J10: Level 2 | K10: Level 3 | L10: Level 3 | M10: No
A11: =IFERROR(VLOOKUP(C11,saldonormal,2,0),"") -> Debit | B11: =SUBTOTAL(9,$M$11:M11) -> 1 | C11: =COA!C2 -> 1.1.01.01 Kas Tunai | D11: =SUMIF(Jurnal!D:D,'neraca saldo'!C11,Jurnal!F:F) -> 0 | E11: =SUMIF(Jurnal!D:D,'neraca saldo'!C11,Jurnal!G:G) -> 0 | F11: =IF(D11>E11,D11-E11,0) -> 0 | G11: =IF(E11>D11,E11-D11,0) -> 0 | H11: =IF(A11="Debit",F11-G11,G11-F11) -> 0 | I11: =IF(F11=G11,"","V") ->  | J11: =LEFT(C11,3) -> 1.1 | K11: =LEFT(C11,6) -> 1.1.01 | L11: =LEFT(C11,9) -> 1.1.01.01 | M11: 1
A12: =IFERROR(VLOOKUP(C12,saldonormal,2,0),"") -> Debit | B12: =SUBTOTAL(9,$M$11:M12) -> 2 | C12: =COA!C3 -> 1.1.01.02 Kas di Bank BRI | D12: =SUMIF(Jurnal!D:D,'neraca saldo'!C12,Jurnal!F:F) -> 0 | E12: =SUMIF(Jurnal!D:D,'neraca saldo'!C12,Jurnal!G:G) -> 0 | F12: =IF(D12>E12,D12-E12,0) -> 0 | G12: =IF(E12>D12,E12-D12,0) -> 0 | H12: =IF(A12="Debit",F12-G12,G12-F12) -> 0 | I12: =IF(F12=G12,"","V") ->  | J12: =LEFT(C12,3) -> 1.1 | K12: =LEFT(C12,6) -> 1.1.01 | L12: =LEFT(C12,9) -> 1.1.01.02 | M12: 1
A13: =IFERROR(VLOOKUP(C13,saldonormal,2,0),"") -> Debit | B13: =SUBTOTAL(9,$M$11:M13) -> 3 | C13: =COA!C4 -> 1.1.01.03 Kas di Bank Mandiri | D13: =SUMIF(Jurnal!D:D,'neraca saldo'!C13,Jurnal!F:F) -> 0 | E13: =SUMIF(Jurnal!D:D,'neraca saldo'!C13,Jurnal!G:G) -> 0 | F13: =IF(D13>E13,D13-E13,0) -> 0 | G13: =IF(E13>D13,E13-D13,0) -> 0 | H13: =IF(A13="Debit",F13-G13,G13-F13) -> 0 | I13: =IF(F13=G13,"","V") ->  | J13: =LEFT(C13,3) -> 1.1 | K13: =LEFT(C13,6) -> 1.1.01 | L13: =LEFT(C13,9) -> 1.1.01.03 | M13: 1
A14: Debit | B14: =SUBTOTAL(9,$M$11:M14) -> 4 | C14: =COA!C5 -> 1.1.01.04 Kas di Bank BNI | D14: =SUMIF(Jurnal!D:D,'neraca saldo'!C14,Jurnal!F:F) -> 0 | E14: =SUMIF(Jurnal!D:D,'neraca saldo'!C14,Jurnal!G:G) -> 0 | F14: 0 | G14: 0 | H14: 0 | J14: 1.1 | K14: 1.1.01 | L14: 1.1.01.04 | M14: 1
A15: Debit | B15: =SUBTOTAL(9,$M$11:M15) -> 5 | C15: =COA!C6 -> 1.1.01.05 Kas di Bank BPD | D15: =SUMIF(Jurnal!D:D,'neraca saldo'!C15,Jurnal!F:F) -> 0 | E15: =SUMIF(Jurnal!D:D,'neraca saldo'!C15,Jurnal!G:G) -> 0 | F15: 0 | G15: 0 | H15: 0 | J15: 1.1 | K15: 1.1.01 | L15: 1.1.01.05 | M15: 1
A16: Debit | B16: =SUBTOTAL(9,$M$11:M16) -> 6 | C16: =COA!C7 -> 1.1.01.98 Kas Kecil (Petty Cash) | D16: =SUMIF(Jurnal!D:D,'neraca saldo'!C16,Jurnal!F:F) -> 0 | E16: =SUMIF(Jurnal!D:D,'neraca saldo'!C16,Jurnal!G:G) -> 0 | F16: 0 | G16: 0 | H16: 0 | J16: 1.1 | K16: 1.1.01 | L16: 1.1.01.98 | M16: 1
A17: Debit | B17: =SUBTOTAL(9,$M$11:M17) -> 7 | C17: =COA!C8 -> 1.1.02.01 Deposito <= 3 bulan | D17: =SUMIF(Jurnal!D:D,'neraca saldo'!C17,Jurnal!F:F) -> 0 | E17: =SUMIF(Jurnal!D:D,'neraca saldo'!C17,Jurnal!G:G) -> 0 | F17: 0 | G17: 0 | H17: 0 | J17: 1.1 | K17: 1.1.02 | L17: 1.1.02.01 | M17: 1
A18: Debit | B18: =SUBTOTAL(9,$M$11:M18) -> 8 | C18: =COA!C9 -> 1.1.02.99 Setara Kas Lainnya | D18: =SUMIF(Jurnal!D:D,'neraca saldo'!C18,Jurnal!F:F) -> 0 | E18: =SUMIF(Jurnal!D:D,'neraca saldo'!C18,Jurnal!G:G) -> 0 | F18: 0 | G18: 0 | H18: 0 | J18: 1.1 | K18: 1.1.02 | L18: 1.1.02.99 | M18: 1
A19: Debit | B19: =SUBTOTAL(9,$M$11:M19) -> 9 | C19: =COA!C10 -> 1.1.03.01 Piutang Usaha | D19: =SUMIF(Jurnal!D:D,'neraca saldo'!C19,Jurnal!F:F) -> 0 | E19: =SUMIF(Jurnal!D:D,'neraca saldo'!C19,Jurnal!G:G) -> 0 | F19: 0 | G19: 0 | H19: 0 | J19: 1.1 | K19: 1.1.03 | L19: 1.1.03.01 | M19: 1
A20: Debit | B20: =SUBTOTAL(9,$M$11:M20) -> 10 | C20: =COA!C11 -> 1.1.03.02 Piutang kepada Pegawai | D20: =SUMIF(Jurnal!D:D,'neraca saldo'!C20,Jurnal!F:F) -> 0 | E20: =SUMIF(Jurnal!D:D,'neraca saldo'!C20,Jurnal!G:G) -> 0 | F20: 0 | G20: 0 | H20: 0 | J20: 1.1 | K20: 1.1.03 | L20: 1.1.03.02 | M20: 1
A21: Debit | B21: =SUBTOTAL(9,$M$11:M21) -> 11 | C21: =COA!C12 -> 1.1.03.03 Piutang Jasa SPP | D21: =SUMIF(Jurnal!D:D,'neraca saldo'!C21,Jurnal!F:F) -> 0 | E21: =SUMIF(Jurnal!D:D,'neraca saldo'!C21,Jurnal!G:G) -> 0 | F21: 0 | G21: 0 | H21: 0 | J21: 1.1 | K21: 1.1.03 | L21: 1.1.03.03 | M21: 1
A22: Debit | B22: =SUBTOTAL(9,$M$11:M22) -> 12 | C22: =COA!C13 -> 1.1.03.04 Piutang Jasa UEP | D22: =SUMIF(Jurnal!D:D,'neraca saldo'!C22,Jurnal!F:F) -> 0 | E22: =SUMIF(Jurnal!D:D,'neraca saldo'!C22,Jurnal!G:G) -> 0 | F22: 0 | G22: 0 | H22: 0 | J22: 1.1 | K22: 1.1.03 | L22: 1.1.03.04 | M22: 1
A23: Debit | B23: =SUBTOTAL(9,$M$11:M23) -> 13 | C23: =COA!C14 -> 1.1.03.99 Piutang Lainnya | D23: =SUMIF(Jurnal!D:D,'neraca saldo'!C23,Jurnal!F:F) -> 0 | E23: =SUMIF(Jurnal!D:D,'neraca saldo'!C23,Jurnal!G:G) -> 0 | F23: 0 | G23: 0 | H23: 0 | J23: 1.1 | K23: 1.1.03 | L23: 1.1.03.99 | M23: 1
A24: Kredit | B24: =SUBTOTAL(9,$M$11:M24) -> 14 | C24: =COA!C15 -> 1.1.04.01 Penyisihan Piutang Usaha Tak Tertagih | D24: =SUMIF(Jurnal!D:D,'neraca saldo'!C24,Jurnal!F:F) -> 0 | E24: =SUMIF(Jurnal!D:D,'neraca saldo'!C24,Jurnal!G:G) -> 0 | F24: 0 | G24: 0 | H24: 0 | J24: 1.1 | K24: 1.1.04 | L24: 1.1.04.01 | M24: 1
A25: Kredit | B25: =SUBTOTAL(9,$M$11:M25) -> 15 | C25: =COA!C16 -> 1.1.04.02 Penyisihan Piutang Kepada Pegawai Tak Tertagih | D25: =SUMIF(Jurnal!D:D,'neraca saldo'!C25,Jurnal!F:F) -> 0 | E25: =SUMIF(Jurnal!D:D,'neraca saldo'!C25,Jurnal!G:G) -> 0 | F25: 0 | G25: 0 | H25: 0 | J25: 1.1 | K25: 1.1.04 | L25: 1.1.04.02 | M25: 1
A26: Kredit | B26: =SUBTOTAL(9,$M$11:M26) -> 16 | C26: =COA!C17 -> 1.1.04.03 Penyisihan Piutang Jasa SPP Tak Tertagih | D26: =SUMIF(Jurnal!D:D,'neraca saldo'!C26,Jurnal!F:F) -> 0 | E26: =SUMIF(Jurnal!D:D,'neraca saldo'!C26,Jurnal!G:G) -> 0 | F26: 0 | G26: 0 | H26: 0 | J26: 1.1 | K26: 1.1.04 | L26: 1.1.04.03 | M26: 1
A27: Kredit | B27: =SUBTOTAL(9,$M$11:M27) -> 17 | C27: =COA!C18 -> 1.1.04.04 Penyisihan Piutang Jasa UEP Tak Tertagih | D27: =SUMIF(Jurnal!D:D,'neraca saldo'!C27,Jurnal!F:F) -> 0 | E27: =SUMIF(Jurnal!D:D,'neraca saldo'!C27,Jurnal!G:G) -> 0 | F27: 0 | G27: 0 | H27: 0 | J27: 1.1 | K27: 1.1.04 | L27: 1.1.04.04 | M27: 1
A28: Kredit | B28: =SUBTOTAL(9,$M$11:M28) -> 18 | C28: =COA!C19 -> 1.1.04.99 Penyisihan Piutang Lainnya Tak Tertagih | D28: =SUMIF(Jurnal!D:D,'neraca saldo'!C28,Jurnal!F:F) -> 0 | E28: =SUMIF(Jurnal!D:D,'neraca saldo'!C28,Jurnal!G:G) -> 0 | F28: 0 | G28: 0 | H28: 0 | J28: 1.1 | K28: 1.1.04 | L28: 1.1.04.99 | M28: 1
A29: Debit | B29: =SUBTOTAL(9,$M$11:M29) -> 19 | C29: =COA!C20 -> 1.1.05.01 Persediaan Barang Dagangan | D29: =SUMIF(Jurnal!D:D,'neraca saldo'!C29,Jurnal!F:F) -> 0 | E29: =SUMIF(Jurnal!D:D,'neraca saldo'!C29,Jurnal!G:G) -> 0 | F29: 0 | G29: 0 | H29: 0 | J29: 1.1 | K29: 1.1.05 | L29: 1.1.05.01 | M29: 1
A30: Debit | B30: =SUBTOTAL(9,$M$11:M30) -> 20 | C30: =COA!C21 -> 1.1.05.02 Persediaan Bahan Baku | D30: =SUMIF(Jurnal!D:D,'neraca saldo'!C30,Jurnal!F:F) -> 0 | E30: =SUMIF(Jurnal!D:D,'neraca saldo'!C30,Jurnal!G:G) -> 0 | F30: 0 | G30: 0 | H30: 0 | J30: 1.1 | K30: 1.1.05 | L30: 1.1.05.02 | M30: 1
A31: Debit | B31: =SUBTOTAL(9,$M$11:M31) -> 21 | C31: =COA!C22 -> 1.1.05.03 Persediaan Barang Dalam Proses | D31: =SUMIF(Jurnal!D:D,'neraca saldo'!C31,Jurnal!F:F) -> 0 | E31: =SUMIF(Jurnal!D:D,'neraca saldo'!C31,Jurnal!G:G) -> 0 | F31: 0 | G31: 0 | H31: 0 | J31: 1.1 | K31: 1.1.05 | L31: 1.1.05.03 | M31: 1
A32: Debit | B32: =SUBTOTAL(9,$M$11:M32) -> 22 | C32: =COA!C23 -> 1.1.05.04 Persediaan Barang Jadi | D32: =SUMIF(Jurnal!D:D,'neraca saldo'!C32,Jurnal!F:F) -> 0 | E32: =SUMIF(Jurnal!D:D,'neraca saldo'!C32,Jurnal!G:G) -> 0 | F32: 0 | G32: 0 | H32: 0 | J32: 1.1 | K32: 1.1.05 | L32: 1.1.05.04 | M32: 1
A33: Debit | B33: =SUBTOTAL(9,$M$11:M33) -> 23 | C33: =COA!C24 -> 1.1.06.01 Alat Tulis Kantor (ATK) | D33: =SUMIF(Jurnal!D:D,'neraca saldo'!C33,Jurnal!F:F) -> 0 | E33: =SUMIF(Jurnal!D:D,'neraca saldo'!C33,Jurnal!G:G) -> 0 | F33: 0 | G33: 0 | H33: 0 | J33: 1.1 | K33: 1.1.06 | L33: 1.1.06.01 | M33: 1
A34: Debit | B34: =SUBTOTAL(9,$M$11:M34) -> 24 | C34: =COA!C25 -> 1.1.07.01 Sewa Dibayar Dimuka | D34: =SUMIF(Jurnal!D:D,'neraca saldo'!C34,Jurnal!F:F) -> 0 | E34: =SUMIF(Jurnal!D:D,'neraca saldo'!C34,Jurnal!G:G) -> 0 | F34: 0 | G34: 0 | H34: 0 | J34: 1.1 | K34: 1.1.07 | L34: 1.1.07.01 | M34: 1
A35: Debit | B35: =SUBTOTAL(9,$M$11:M35) -> 25 | C35: =COA!C26 -> 1.1.07.02 Asuransi Dibayar Dimuka | D35: =SUMIF(Jurnal!D:D,'neraca saldo'!C35,Jurnal!F:F) -> 0 | E35: =SUMIF(Jurnal!D:D,'neraca saldo'!C35,Jurnal!G:G) -> 0 | F35: 0 | G35: 0 | H35: 0 | J35: 1.1 | K35: 1.1.07 | L35: 1.1.07.02 | M35: 1
A36: Debit | B36: =SUBTOTAL(9,$M$11:M36) -> 26 | C36: =COA!C27 -> 1.1.07.03 PPh 25 | D36: =SUMIF(Jurnal!D:D,'neraca saldo'!C36,Jurnal!F:F) -> 0 | E36: =SUMIF(Jurnal!D:D,'neraca saldo'!C36,Jurnal!G:G) -> 0 | F36: 0 | G36: 0 | H36: 0 | J36: 1.1 | K36: 1.1.07 | L36: 1.1.07.03 | M36: 1
A37: Debit | B37: =SUBTOTAL(9,$M$11:M37) -> 27 | C37: =COA!C28 -> 1.1.07.04 PPN Masukan | D37: =SUMIF(Jurnal!D:D,'neraca saldo'!C37,Jurnal!F:F) -> 0 | E37: =SUMIF(Jurnal!D:D,'neraca saldo'!C37,Jurnal!G:G) -> 0 | F37: 0 | G37: 0 | H37: 0 | J37: 1.1 | K37: 1.1.07 | L37: 1.1.07.04 | M37: 1
A38: Debit | B38: =SUBTOTAL(9,$M$11:M38) -> 28 | C38: =COA!C29 -> 1.1.98.99 Aset Lancar Lainnya | D38: =SUMIF(Jurnal!D:D,'neraca saldo'!C38,Jurnal!F:F) -> 0 | E38: =SUMIF(Jurnal!D:D,'neraca saldo'!C38,Jurnal!G:G) -> 0 | F38: 0 | G38: 0 | H38: 0 | J38: 1.1 | K38: 1.1.98 | L38: 1.1.98.99 | M38: 1
A39: Debit | B39: =SUBTOTAL(9,$M$11:M39) -> 29 | C39: =COA!C30 -> 1.1.99.01 RK Unit Wisata | D39: =SUMIF(Jurnal!D:D,'neraca saldo'!C39,Jurnal!F:F) -> 0 | E39: =SUMIF(Jurnal!D:D,'neraca saldo'!C39,Jurnal!G:G) -> 0 | F39: 0 | G39: 0 | H39: 0 | J39: 1.1 | K39: 1.1.99 | L39: 1.1.99.01 | M39: 1
A40: Debit | B40: =SUBTOTAL(9,$M$11:M40) -> 30 | C40: =COA!C31 -> 1.1.99.02 RK Unit Restoran | D40: =SUMIF(Jurnal!D:D,'neraca saldo'!C40,Jurnal!F:F) -> 0 | E40: =SUMIF(Jurnal!D:D,'neraca saldo'!C40,Jurnal!G:G) -> 0 | F40: 0 | G40: 0 | H40: 0 | J40: 1.1 | K40: 1.1.99 | L40: 1.1.99.02 | M40: 1
A41: Debit | B41: =SUBTOTAL(9,$M$11:M41) -> 31 | C41: =COA!C32 -> 1.1.99.03 RK Unit Minimart Desa | D41: =SUMIF(Jurnal!D:D,'neraca saldo'!C41,Jurnal!F:F) -> 0 | E41: =SUMIF(Jurnal!D:D,'neraca saldo'!C41,Jurnal!G:G) -> 0 | F41: 0 | G41: 0 | H41: 0 | J41: 1.1 | K41: 1.1.99 | L41: 1.1.99.03 | M41: 1
A42: Debit | B42: =SUBTOTAL(9,$M$11:M42) -> 32 | C42: =COA!C33 -> 1.1.99.04 RK Unit Gedung Serbaguna | D42: =SUMIF(Jurnal!D:D,'neraca saldo'!C42,Jurnal!F:F) -> 0 | E42: =SUMIF(Jurnal!D:D,'neraca saldo'!C42,Jurnal!G:G) -> 0 | F42: 0 | G42: 0 | H42: 0 | J42: 1.1 | K42: 1.1.99 | L42: 1.1.99.04 | M42: 1
A43: Debit | B43: =SUBTOTAL(9,$M$11:M43) -> 33 | C43: =COA!C34 -> 1.1.99.05 RK Unit Simpan Pinjam | D43: =SUMIF(Jurnal!D:D,'neraca saldo'!C43,Jurnal!F:F) -> 0 | E43: =SUMIF(Jurnal!D:D,'neraca saldo'!C43,Jurnal!G:G) -> 0 | F43: 0 | G43: 0 | H43: 0 | J43: 1.1 | K43: 1.1.99 | L43: 1.1.99.05 | M43: 1
A44: Debit | B44: =SUBTOTAL(9,$M$11:M44) -> 34 | C44: =COA!C35 -> 1.1.99.06 RK Unit Pengelolaan Air Bersih | D44: =SUMIF(Jurnal!D:D,'neraca saldo'!C44,Jurnal!F:F) -> 0 | E44: =SUMIF(Jurnal!D:D,'neraca saldo'!C44,Jurnal!G:G) -> 0 | F44: 0 | G44: 0 | H44: 0 | J44: 1.1 | K44: 1.1.99 | L44: 1.1.99.06 | M44: 1
A45: Debit | B45: =SUBTOTAL(9,$M$11:M45) -> 35 | C45: =COA!C36 -> 1.1.99.07 RK Unit Pengelolaan Sampah | D45: =SUMIF(Jurnal!D:D,'neraca saldo'!C45,Jurnal!F:F) -> 0 | E45: =SUMIF(Jurnal!D:D,'neraca saldo'!C45,Jurnal!G:G) -> 0 | F45: 0 | G45: 0 | H45: 0 | J45: 1.1 | K45: 1.1.99 | L45: 1.1.99.07 | M45: 1
A46: Debit | B46: =SUBTOTAL(9,$M$11:M46) -> 36 | C46: =COA!C37 -> 1.2.01.01 Deposito > 3 bulan | D46: =SUMIF(Jurnal!D:D,'neraca saldo'!C46,Jurnal!F:F) -> 0 | E46: =SUMIF(Jurnal!D:D,'neraca saldo'!C46,Jurnal!G:G) -> 0 | F46: 0 | G46: 0 | H46: 0 | J46: 1.2 | K46: 1.2.01 | L46: 1.2.01.01 | M46: 1
A47: Debit | B47: =SUBTOTAL(9,$M$11:M47) -> 37 | C47: =COA!C38 -> 1.2.01.99 Investasi Lainnya | D47: =SUMIF(Jurnal!D:D,'neraca saldo'!C47,Jurnal!F:F) -> 0 | E47: =SUMIF(Jurnal!D:D,'neraca saldo'!C47,Jurnal!G:G) -> 0 | F47: 0 | G47: 0 | H47: 0 | J47: 1.2 | K47: 1.2.01 | L47: 1.2.01.99 | M47: 1
A48: Debit | B48: =SUBTOTAL(9,$M$11:M48) -> 38 | C48: =COA!C39 -> 1.3.01.01 Tanah | D48: =SUMIF(Jurnal!D:D,'neraca saldo'!C48,Jurnal!F:F) -> 0 | E48: =SUMIF(Jurnal!D:D,'neraca saldo'!C48,Jurnal!G:G) -> 0 | F48: 0 | G48: 0 | H48: 0 | J48: 1.3 | K48: 1.3.01 | L48: 1.3.01.01 | M48: 1
A49: Debit | B49: =SUBTOTAL(9,$M$11:M49) -> 39 | C49: =COA!C40 -> 1.3.02.01 Kendaraan | D49: =SUMIF(Jurnal!D:D,'neraca saldo'!C49,Jurnal!F:F) -> 0 | E49: =SUMIF(Jurnal!D:D,'neraca saldo'!C49,Jurnal!G:G) -> 0 | F49: 0 | G49: 0 | H49: 0 | J49: 1.3 | K49: 1.3.02 | L49: 1.3.02.01 | M49: 1
A50: Debit | B50: =SUBTOTAL(9,$M$11:M50) -> 40 | C50: =COA!C41 -> 1.3.03.01 Peralatan dan Mesin | D50: =SUMIF(Jurnal!D:D,'neraca saldo'!C50,Jurnal!F:F) -> 0 | E50: =SUMIF(Jurnal!D:D,'neraca saldo'!C50,Jurnal!G:G) -> 0 | F50: 0 | G50: 0 | H50: 0 | J50: 1.3 | K50: 1.3.03 | L50: 1.3.03.01 | M50: 1
A51: Debit | B51: =SUBTOTAL(9,$M$11:M51) -> 41 | C51: =COA!C42 -> 1.3.04.01 Meubelair | D51: =SUMIF(Jurnal!D:D,'neraca saldo'!C51,Jurnal!F:F) -> 0 | E51: =SUMIF(Jurnal!D:D,'neraca saldo'!C51,Jurnal!G:G) -> 0 | F51: 0 | G51: 0 | H51: 0 | J51: 1.3 | K51: 1.3.04 | L51: 1.3.04.01 | M51: 1
A52: Debit | B52: =SUBTOTAL(9,$M$11:M52) -> 42 | C52: =COA!C43 -> 1.3.05.01 Gedung dan Bangunan | D52: =SUMIF(Jurnal!D:D,'neraca saldo'!C52,Jurnal!F:F) -> 0 | E52: =SUMIF(Jurnal!D:D,'neraca saldo'!C52,Jurnal!G:G) -> 0 | F52: 0 | G52: 0 | H52: 0 | J52: 1.3 | K52: 1.3.05 | L52: 1.3.05.01 | M52: 1
A53: Debit | B53: =SUBTOTAL(9,$M$11:M53) -> 43 | C53: =COA!C44 -> 1.3.06.01 Konstruksi Dalam Pengerjaan | D53: =SUMIF(Jurnal!D:D,'neraca saldo'!C53,Jurnal!F:F) -> 0 | E53: =SUMIF(Jurnal!D:D,'neraca saldo'!C53,Jurnal!G:G) -> 0 | F53: 0 | G53: 0 | H53: 0 | J53: 1.3 | K53: 1.3.06 | L53: 1.3.06.01 | M53: 1
A54: Kredit | B54: =SUBTOTAL(9,$M$11:M54) -> 44 | C54: =COA!C45 -> 1.3.07.01 Akumulasi Penyusutan Kendaraan | D54: =SUMIF(Jurnal!D:D,'neraca saldo'!C54,Jurnal!F:F) -> 0 | E54: =SUMIF(Jurnal!D:D,'neraca saldo'!C54,Jurnal!G:G) -> 0 | F54: 0 | G54: 0 | H54: 0 | J54: 1.3 | K54: 1.3.07 | L54: 1.3.07.01 | M54: 1
A55: Kredit | B55: =SUBTOTAL(9,$M$11:M55) -> 45 | C55: =COA!C46 -> 1.3.07.02 Akumulasi Penyusutan Peralatan dan Mesin | D55: =SUMIF(Jurnal!D:D,'neraca saldo'!C55,Jurnal!F:F) -> 0 | E55: =SUMIF(Jurnal!D:D,'neraca saldo'!C55,Jurnal!G:G) -> 0 | F55: 0 | G55: 0 | H55: 0 | J55: 1.3 | K55: 1.3.07 | L55: 1.3.07.02 | M55: 1
A56: Kredit | B56: =SUBTOTAL(9,$M$11:M56) -> 46 | C56: =COA!C47 -> 1.3.07.03 Akumulasi Penyusutan Meubelair | D56: =SUMIF(Jurnal!D:D,'neraca saldo'!C56,Jurnal!F:F) -> 0 | E56: =SUMIF(Jurnal!D:D,'neraca saldo'!C56,Jurnal!G:G) -> 0 | F56: 0 | G56: 0 | H56: 0 | J56: 1.3 | K56: 1.3.07 | L56: 1.3.07.03 | M56: 1
A57: Kredit | B57: =SUBTOTAL(9,$M$11:M57) -> 47 | C57: =COA!C48 -> 1.3.07.04 Akumulasi Penyusutan Gedung dan Bangunan | D57: =SUMIF(Jurnal!D:D,'neraca saldo'!C57,Jurnal!F:F) -> 0 | E57: =SUMIF(Jurnal!D:D,'neraca saldo'!C57,Jurnal!G:G) -> 0 | F57: 0 | G57: 0 | H57: 0 | J57: 1.3 | K57: 1.3.07 | L57: 1.3.07.04 | M57: 1
A58: Debit | B58: =SUBTOTAL(9,$M$11:M58) -> 48 | C58: =COA!C49 -> 1.3.99.99 Aset Tetap Lainnya | D58: =SUMIF(Jurnal!D:D,'neraca saldo'!C58,Jurnal!F:F) -> 0 | E58: =SUMIF(Jurnal!D:D,'neraca saldo'!C58,Jurnal!G:G) -> 0 | F58: 0 | G58: 0 | H58: 0 | J58: 1.3 | K58: 1.3.99 | L58: 1.3.99.99 | M58: 1
A59: Debit | B59: =SUBTOTAL(9,$M$11:M59) -> 49 | C59: =COA!C50 -> 1.4.01.01 Software | D59: =SUMIF(Jurnal!D:D,'neraca saldo'!C59,Jurnal!F:F) -> 0 | E59: =SUMIF(Jurnal!D:D,'neraca saldo'!C59,Jurnal!G:G) -> 0 | F59: 0 | G59: 0 | H59: 0 | J59: 1.4 | K59: 1.4.01 | L59: 1.4.01.01 | M59: 1
A60: Debit | B60: =SUBTOTAL(9,$M$11:M60) -> 50 | C60: =COA!C51 -> 1.4.01.02 Patent | D60: =SUMIF(Jurnal!D:D,'neraca saldo'!C60,Jurnal!F:F) -> 0 | E60: =SUMIF(Jurnal!D:D,'neraca saldo'!C60,Jurnal!G:G) -> 0 | F60: 0 | G60: 0 | H60: 0 | J60: 1.4 | K60: 1.4.01 | L60: 1.4.01.02 | M60: 1
A61: Debit | B61: =SUBTOTAL(9,$M$11:M61) -> 51 | C61: =COA!C52 -> 1.4.01.03 Trademark | D61: =SUMIF(Jurnal!D:D,'neraca saldo'!C61,Jurnal!F:F) -> 0 | E61: =SUMIF(Jurnal!D:D,'neraca saldo'!C61,Jurnal!G:G) -> 0 | F61: 0 | G61: 0 | H61: 0 | J61: 1.4 | K61: 1.4.01 | L61: 1.4.01.03 | M61: 1
A62: Kredit | B62: =SUBTOTAL(9,$M$11:M62) -> 52 | C62: =COA!C53 -> 1.4.02.01 Amortisasi Aset tak berwujud | D62: =SUMIF(Jurnal!D:D,'neraca saldo'!C62,Jurnal!F:F) -> 0 | E62: =SUMIF(Jurnal!D:D,'neraca saldo'!C62,Jurnal!G:G) -> 0 | F62: 0 | G62: 0 | H62: 0 | J62: 1.4 | K62: 1.4.02 | L62: 1.4.02.01 | M62: 1
A63: Debit | B63: =SUBTOTAL(9,$M$11:M63) -> 53 | C63: =COA!C54 -> 1.9.01.01 Aset Lain-lain | D63: =SUMIF(Jurnal!D:D,'neraca saldo'!C63,Jurnal!F:F) -> 0 | E63: =SUMIF(Jurnal!D:D,'neraca saldo'!C63,Jurnal!G:G) -> 0 | F63: 0 | G63: 0 | H63: 0 | J63: 1.9 | K63: 1.9.01 | L63: 1.9.01.01 | M63: 1
A64: Kredit | B64: =SUBTOTAL(9,$M$11:M64) -> 54 | C64: =COA!C55 -> 1.9.01.02 Akumulasi Penyusutan Aset Lain-lain | D64: =SUMIF(Jurnal!D:D,'neraca saldo'!C64,Jurnal!F:F) -> 0 | E64: =SUMIF(Jurnal!D:D,'neraca saldo'!C64,Jurnal!G:G) -> 0 | F64: 0 | G64: 0 | H64: 0 | J64: 1.9 | K64: 1.9.01 | L64: 1.9.01.02 | M64: 1
A65: Kredit | B65: =SUBTOTAL(9,$M$11:M65) -> 55 | C65: =COA!C56 -> 2.1.01.01 Utang Usaha | D65: =SUMIF(Jurnal!D:D,'neraca saldo'!C65,Jurnal!F:F) -> 0 | E65: =SUMIF(Jurnal!D:D,'neraca saldo'!C65,Jurnal!G:G) -> 0 | F65: 0 | G65: 0 | H65: 0 | J65: 2.1 | K65: 2.1.01 | L65: 2.1.01.01 | M65: 1
A66: Kredit | B66: =SUBTOTAL(9,$M$11:M66) -> 56 | C66: =COA!C57 -> 2.1.02.01 PPN Keluaran | D66: =SUMIF(Jurnal!D:D,'neraca saldo'!C66,Jurnal!F:F) -> 0 | E66: =SUMIF(Jurnal!D:D,'neraca saldo'!C66,Jurnal!G:G) -> 0 | F66: 0 | G66: 0 | H66: 0 | J66: 2.1 | K66: 2.1.02 | L66: 2.1.02.01 | M66: 1
A67: Kredit | B67: =SUBTOTAL(9,$M$11:M67) -> 57 | C67: =COA!C58 -> 2.1.02.02 PPh 21 | D67: =SUMIF(Jurnal!D:D,'neraca saldo'!C67,Jurnal!F:F) -> 0 | E67: =SUMIF(Jurnal!D:D,'neraca saldo'!C67,Jurnal!G:G) -> 0 | F67: 0 | G67: 0 | H67: 0 | J67: 2.1 | K67: 2.1.02 | L67: 2.1.02.02 | M67: 1
A68: Kredit | B68: =SUBTOTAL(9,$M$11:M68) -> 58 | C68: =COA!C59 -> 2.1.02.03 PPh 23 | D68: =SUMIF(Jurnal!D:D,'neraca saldo'!C68,Jurnal!F:F) -> 0 | E68: =SUMIF(Jurnal!D:D,'neraca saldo'!C68,Jurnal!G:G) -> 0 | F68: 0 | G68: 0 | H68: 0 | J68: 2.1 | K68: 2.1.02 | L68: 2.1.02.03 | M68: 1
A69: Kredit | B69: =SUBTOTAL(9,$M$11:M69) -> 59 | C69: =COA!C60 -> 2.1.02.04 PPh 29 | D69: =SUMIF(Jurnal!D:D,'neraca saldo'!C69,Jurnal!F:F) -> 0 | E69: =SUMIF(Jurnal!D:D,'neraca saldo'!C69,Jurnal!G:G) -> 0 | F69: 0 | G69: 0 | H69: 0 | J69: 2.1 | K69: 2.1.02 | L69: 2.1.02.04 | M69: 1
A70: Kredit | B70: =SUBTOTAL(9,$M$11:M70) -> 60 | C70: =COA!C61 -> 2.1.03.01 Utang Gaji dan Tunjangan | D70: =SUMIF(Jurnal!D:D,'neraca saldo'!C70,Jurnal!F:F) -> 0 | E70: =SUMIF(Jurnal!D:D,'neraca saldo'!C70,Jurnal!G:G) -> 0 | F70: 0 | G70: 0 | H70: 0 | J70: 2.1 | K70: 2.1.03 | L70: 2.1.03.01 | M70: 1
A71: Kredit | B71: =SUBTOTAL(9,$M$11:M71) -> 61 | C71: =COA!C62 -> 2.1.03.02 Utang Gaji/Upah Karyawan | D71: =SUMIF(Jurnal!D:D,'neraca saldo'!C71,Jurnal!F:F) -> 0 | E71: =SUMIF(Jurnal!D:D,'neraca saldo'!C71,Jurnal!G:G) -> 0 | F71: 0 | G71: 0 | H71: 0 | J71: 2.1 | K71: 2.1.03 | L71: 2.1.03.02 | M71: 1
A72: Kredit | B72: =SUBTOTAL(9,$M$11:M72) -> 62 | C72: =COA!C63 -> 2.1.04.01 Utang Listrik | D72: =SUMIF(Jurnal!D:D,'neraca saldo'!C72,Jurnal!F:F) -> 0 | E72: =SUMIF(Jurnal!D:D,'neraca saldo'!C72,Jurnal!G:G) -> 0 | F72: 0 | G72: 0 | H72: 0 | J72: 2.1 | K72: 2.1.04 | L72: 2.1.04.01 | M72: 1
A73: Kredit | B73: =SUBTOTAL(9,$M$11:M73) -> 63 | C73: =COA!C64 -> 2.1.04.02 Utang Telepon/Internet | D73: =SUMIF(Jurnal!D:D,'neraca saldo'!C73,Jurnal!F:F) -> 0 | E73: =SUMIF(Jurnal!D:D,'neraca saldo'!C73,Jurnal!G:G) -> 0 | F73: 0 | G73: 0 | H73: 0 | J73: 2.1 | K73: 2.1.04 | L73: 2.1.04.02 | M73: 1
A74: Kredit | B74: =SUBTOTAL(9,$M$11:M74) -> 64 | C74: =COA!C65 -> 2.1.04.93 Utang Utilitas Lainnya | D74: =SUMIF(Jurnal!D:D,'neraca saldo'!C74,Jurnal!F:F) -> 0 | E74: =SUMIF(Jurnal!D:D,'neraca saldo'!C74,Jurnal!G:G) -> 0 | F74: 0 | G74: 0 | H74: 0 | J74: 2.1 | K74: 2.1.04 | L74: 2.1.04.93 | M74: 1
A75: Kredit | B75: =SUBTOTAL(9,$M$11:M75) -> 65 | C75: =COA!C66 -> 2.1.05.01 Utang kepada Pihak Ketiga Jk. Pendek | D75: =SUMIF(Jurnal!D:D,'neraca saldo'!C75,Jurnal!F:F) -> 0 | E75: =SUMIF(Jurnal!D:D,'neraca saldo'!C75,Jurnal!G:G) -> 0 | F75: 0 | G75: 0 | H75: 0 | J75: 2.1 | K75: 2.1.05 | L75: 2.1.05.01 | M75: 1
A76: Kredit | B76: =SUBTOTAL(9,$M$11:M76) -> 66 | C76: =COA!C67 -> 2.1.05.99 Utang kepada Pihak Ketiga Jk. Pendek Lainnya | D76: =SUMIF(Jurnal!D:D,'neraca saldo'!C76,Jurnal!F:F) -> 0 | E76: =SUMIF(Jurnal!D:D,'neraca saldo'!C76,Jurnal!G:G) -> 0 | F76: 0 | G76: 0 | H76: 0 | J76: 2.1 | K76: 2.1.05 | L76: 2.1.05.99 | M76: 1
A77: =IFERROR(VLOOKUP(C77,saldonormal,2,0),"") -> Kredit | B77: =SUBTOTAL(9,$M$11:M77) -> 67 | C77: =COA!C68 -> 2.1.09.99 Utang Jangka Pendek Lainnya | D77: =SUMIF(Jurnal!D:D,'neraca saldo'!C77,Jurnal!F:F) -> 0 | E77: =SUMIF(Jurnal!D:D,'neraca saldo'!C77,Jurnal!G:G) -> 0 | F77: =IF(D77>E77,D77-E77,0) -> 0 | G77: =IF(E77>D77,E77-D77,0) -> 0 | H77: =IF(A77="Debit",F77-G77,G77-F77) -> 0 | I77: =IF(F77=G77,"","V") ->  | J77: =LEFT(C77,3) -> 2.1 | K77: =LEFT(C77,6) -> 2.1.09 | L77: =LEFT(C77,9) -> 2.1.09.99 | M77: 1
A78: Kredit | B78: =SUBTOTAL(9,$M$11:M78) -> 68 | C78: =COA!C69 -> 2.2.01.01 Utang Ke Bank | D78: =SUMIF(Jurnal!D:D,'neraca saldo'!C78,Jurnal!F:F) -> 0 | E78: =SUMIF(Jurnal!D:D,'neraca saldo'!C78,Jurnal!G:G) -> 0 | F78: 0 | G78: 0 | H78: 0 | J78: 2.2 | K78: 2.2.01 | L78: 2.2.01.01 | M78: 1
A79: Kredit | B79: =SUBTOTAL(9,$M$11:M79) -> 69 | C79: =COA!C70 -> 2.2.02.01 Utang kepada Pihak Ketiga Jk. Panjang | D79: =SUMIF(Jurnal!D:D,'neraca saldo'!C79,Jurnal!F:F) -> 0 | E79: =SUMIF(Jurnal!D:D,'neraca saldo'!C79,Jurnal!G:G) -> 0 | F79: 0 | G79: 0 | H79: 0 | J79: 2.2 | K79: 2.2.02 | L79: 2.2.02.01 | M79: 1
A80: Kredit | B80: =SUBTOTAL(9,$M$11:M80) -> 70 | C80: =COA!C71 -> 2.2.99.99 Utang Jangka Panjang Lainnya | D80: =SUMIF(Jurnal!D:D,'neraca saldo'!C80,Jurnal!F:F) -> 0 | E80: =SUMIF(Jurnal!D:D,'neraca saldo'!C80,Jurnal!G:G) -> 0 | F80: 0 | G80: 0 | H80: 0 | J80: 2.2 | K80: 2.2.99 | L80: 2.2.99.99 | M80: 1
A81: Kredit | B81: =SUBTOTAL(9,$M$11:M81) -> 71 | C81: =COA!C72 -> 3.1.01.01 Penyertaan Modal Desa | D81: =SUMIF(Jurnal!D:D,'neraca saldo'!C81,Jurnal!F:F) -> 0 | E81: =SUMIF(Jurnal!D:D,'neraca saldo'!C81,Jurnal!G:G) -> 0 | F81: 0 | G81: 0 | H81: 0 | J81: 3.1 | K81: 3.1.01 | L81: 3.1.01.01 | M81: 1
A82: Kredit | B82: =SUBTOTAL(9,$M$11:M82) -> 72 | C82: =COA!C73 -> 3.1.01.02 Penyertaan Modal Desa A | D82: =SUMIF(Jurnal!D:D,'neraca saldo'!C82,Jurnal!F:F) -> 0 | E82: =SUMIF(Jurnal!D:D,'neraca saldo'!C82,Jurnal!G:G) -> 0 | F82: 0 | G82: 0 | H82: 0 | J82: 3.1 | K82: 3.1.01 | L82: 3.1.01.02 | M82: 1
A83: Kredit | B83: =SUBTOTAL(9,$M$11:M83) -> 73 | C83: =COA!C74 -> 3.1.01.03 Penyertaan Modal Desa B | D83: =SUMIF(Jurnal!D:D,'neraca saldo'!C83,Jurnal!F:F) -> 0 | E83: =SUMIF(Jurnal!D:D,'neraca saldo'!C83,Jurnal!G:G) -> 0 | F83: 0 | G83: 0 | H83: 0 | J83: 3.1 | K83: 3.1.01 | L83: 3.1.01.03 | M83: 1
A84: Kredit | B84: =SUBTOTAL(9,$M$11:M84) -> 74 | C84: =COA!C75 -> 3.1.01.04 Penyertaan Modal Desa C | D84: =SUMIF(Jurnal!D:D,'neraca saldo'!C84,Jurnal!F:F) -> 0 | E84: =SUMIF(Jurnal!D:D,'neraca saldo'!C84,Jurnal!G:G) -> 0 | F84: 0 | G84: 0 | H84: 0 | J84: 3.1 | K84: 3.1.01 | L84: 3.1.01.04 | M84: 1
A85: Kredit | B85: =SUBTOTAL(9,$M$11:M85) -> 75 | C85: =COA!C76 -> 3.1.01.05 Penyertaan Modal Desa D | D85: =SUMIF(Jurnal!D:D,'neraca saldo'!C85,Jurnal!F:F) -> 0 | E85: =SUMIF(Jurnal!D:D,'neraca saldo'!C85,Jurnal!G:G) -> 0 | F85: 0 | G85: 0 | H85: 0 | J85: 3.1 | K85: 3.1.01 | L85: 3.1.01.05 | M85: 1
A86: Kredit | B86: =SUBTOTAL(9,$M$11:M86) -> 76 | C86: =COA!C77 -> 3.1.01.06 Penyertaan Modal Desa E | D86: =SUMIF(Jurnal!D:D,'neraca saldo'!C86,Jurnal!F:F) -> 0 | E86: =SUMIF(Jurnal!D:D,'neraca saldo'!C86,Jurnal!G:G) -> 0 | F86: 0 | G86: 0 | H86: 0 | J86: 3.1 | K86: 3.1.01 | L86: 3.1.01.06 | M86: 1
A87: Kredit | B87: =SUBTOTAL(9,$M$11:M87) -> 77 | C87: =COA!C78 -> 3.1.01.07 Penyertaan Modal Desa F | D87: =SUMIF(Jurnal!D:D,'neraca saldo'!C87,Jurnal!F:F) -> 0 | E87: =SUMIF(Jurnal!D:D,'neraca saldo'!C87,Jurnal!G:G) -> 0 | F87: 0 | G87: 0 | H87: 0 | J87: 3.1 | K87: 3.1.01 | L87: 3.1.01.07 | M87: 1
A88: Kredit | B88: =SUBTOTAL(9,$M$11:M88) -> 78 | C88: =COA!C79 -> 3.1.01.08 Penyertaan Modal Desa G | D88: =SUMIF(Jurnal!D:D,'neraca saldo'!C88,Jurnal!F:F) -> 0 | E88: =SUMIF(Jurnal!D:D,'neraca saldo'!C88,Jurnal!G:G) -> 0 | F88: 0 | G88: 0 | H88: 0 | J88: 3.1 | K88: 3.1.01 | L88: 3.1.01.08 | M88: 1
A89: Kredit | B89: =SUBTOTAL(9,$M$11:M89) -> 79 | C89: =COA!C80 -> 3.1.01.09 Penyertaan Modal Desa H | D89: =SUMIF(Jurnal!D:D,'neraca saldo'!C89,Jurnal!F:F) -> 0 | E89: =SUMIF(Jurnal!D:D,'neraca saldo'!C89,Jurnal!G:G) -> 0 | F89: 0 | G89: 0 | H89: 0 | J89: 3.1 | K89: 3.1.01 | L89: 3.1.01.09 | M89: 1
A90: Kredit | B90: =SUBTOTAL(9,$M$11:M90) -> 80 | C90: =COA!C81 -> 3.1.01.10 Penyertaan Modal Desa I | D90: =SUMIF(Jurnal!D:D,'neraca saldo'!C90,Jurnal!F:F) -> 0 | E90: =SUMIF(Jurnal!D:D,'neraca saldo'!C90,Jurnal!G:G) -> 0 | F90: 0 | G90: 0 | H90: 0 | J90: 3.1 | K90: 3.1.01 | L90: 3.1.01.10 | M90: 1
A91: Kredit | B91: =SUBTOTAL(9,$M$11:M91) -> 81 | C91: =COA!C82 -> 3.1.01.11 Penyertaan Modal Desa J | D91: =SUMIF(Jurnal!D:D,'neraca saldo'!C91,Jurnal!F:F) -> 0 | E91: =SUMIF(Jurnal!D:D,'neraca saldo'!C91,Jurnal!G:G) -> 0 | F91: 0 | G91: 0 | H91: 0 | J91: 3.1 | K91: 3.1.01 | L91: 3.1.01.11 | M91: 1
A92: Kredit | B92: =SUBTOTAL(9,$M$11:M92) -> 82 | C92: =COA!C83 -> 3.1.02.01 Penyertaan Modal Masyarakat | D92: =SUMIF(Jurnal!D:D,'neraca saldo'!C92,Jurnal!F:F) -> 0 | E92: =SUMIF(Jurnal!D:D,'neraca saldo'!C92,Jurnal!G:G) -> 0 | F92: 0 | G92: 0 | H92: 0 | J92: 3.1 | K92: 3.1.02 | L92: 3.1.02.01 | M92: 1
A93: Kredit | B93: =SUBTOTAL(9,$M$11:M93) -> 83 | C93: =COA!C84 -> 3.1.02.02 Penyertaan Modal Masyarakat Desa A | D93: =SUMIF(Jurnal!D:D,'neraca saldo'!C93,Jurnal!F:F) -> 0 | E93: =SUMIF(Jurnal!D:D,'neraca saldo'!C93,Jurnal!G:G) -> 0 | F93: 0 | G93: 0 | H93: 0 | J93: 3.1 | K93: 3.1.02 | L93: 3.1.02.02 | M93: 1
A94: Kredit | B94: =SUBTOTAL(9,$M$11:M94) -> 84 | C94: =COA!C85 -> 3.1.02.03 Penyertaan Modal Masyarakat Desa B | D94: =SUMIF(Jurnal!D:D,'neraca saldo'!C94,Jurnal!F:F) -> 0 | E94: =SUMIF(Jurnal!D:D,'neraca saldo'!C94,Jurnal!G:G) -> 0 | F94: 0 | G94: 0 | H94: 0 | J94: 3.1 | K94: 3.1.02 | L94: 3.1.02.03 | M94: 1
A95: Kredit | B95: =SUBTOTAL(9,$M$11:M95) -> 85 | C95: =COA!C86 -> 3.1.02.04 Penyertaan Modal Masyarakat Desa C | D95: =SUMIF(Jurnal!D:D,'neraca saldo'!C95,Jurnal!F:F) -> 0 | E95: =SUMIF(Jurnal!D:D,'neraca saldo'!C95,Jurnal!G:G) -> 0 | F95: 0 | G95: 0 | H95: 0 | J95: 3.1 | K95: 3.1.02 | L95: 3.1.02.04 | M95: 1
A96: Kredit | B96: =SUBTOTAL(9,$M$11:M96) -> 86 | C96: =COA!C87 -> 3.1.02.05 Penyertaan Modal Masyarakat Desa D | D96: =SUMIF(Jurnal!D:D,'neraca saldo'!C96,Jurnal!F:F) -> 0 | E96: =SUMIF(Jurnal!D:D,'neraca saldo'!C96,Jurnal!G:G) -> 0 | F96: 0 | G96: 0 | H96: 0 | J96: 3.1 | K96: 3.1.02 | L96: 3.1.02.05 | M96: 1
A97: Kredit | B97: =SUBTOTAL(9,$M$11:M97) -> 87 | C97: =COA!C88 -> 3.1.02.06 Penyertaan Modal Masyarakat Desa E | D97: =SUMIF(Jurnal!D:D,'neraca saldo'!C97,Jurnal!F:F) -> 0 | E97: =SUMIF(Jurnal!D:D,'neraca saldo'!C97,Jurnal!G:G) -> 0 | F97: 0 | G97: 0 | H97: 0 | J97: 3.1 | K97: 3.1.02 | L97: 3.1.02.06 | M97: 1
A98: Kredit | B98: =SUBTOTAL(9,$M$11:M98) -> 88 | C98: =COA!C89 -> 3.1.02.07 Penyertaan Modal Masyarakat Desa F | D98: =SUMIF(Jurnal!D:D,'neraca saldo'!C98,Jurnal!F:F) -> 0 | E98: =SUMIF(Jurnal!D:D,'neraca saldo'!C98,Jurnal!G:G) -> 0 | F98: 0 | G98: 0 | H98: 0 | J98: 3.1 | K98: 3.1.02 | L98: 3.1.02.07 | M98: 1
A99: Kredit | B99: =SUBTOTAL(9,$M$11:M99) -> 89 | C99: =COA!C90 -> 3.1.02.08 Penyertaan Modal Masyarakat Desa G | D99: =SUMIF(Jurnal!D:D,'neraca saldo'!C99,Jurnal!F:F) -> 0 | E99: =SUMIF(Jurnal!D:D,'neraca saldo'!C99,Jurnal!G:G) -> 0 | F99: 0 | G99: 0 | H99: 0 | J99: 3.1 | K99: 3.1.02 | L99: 3.1.02.08 | M99: 1
A100: Kredit | B100: =SUBTOTAL(9,$M$11:M100) -> 90 | C100: =COA!C91 -> 3.1.02.09 Penyertaan Modal Masyarakat Desa H | D100: =SUMIF(Jurnal!D:D,'neraca saldo'!C100,Jurnal!F:F) -> 0 | E100: =SUMIF(Jurnal!D:D,'neraca saldo'!C100,Jurnal!G:G) -> 0 | F100: 0 | G100: 0 | H100: 0 | J100: 3.1 | K100: 3.1.02 | L100: 3.1.02.09 | M100: 1
A101: Kredit | B101: =SUBTOTAL(9,$M$11:M101) -> 91 | C101: =COA!C92 -> 3.1.02.10 Penyertaan Modal Masyarakat Desa I | D101: =SUMIF(Jurnal!D:D,'neraca saldo'!C101,Jurnal!F:F) -> 0 | E101: =SUMIF(Jurnal!D:D,'neraca saldo'!C101,Jurnal!G:G) -> 0 | F101: 0 | G101: 0 | H101: 0 | J101: 3.1 | K101: 3.1.02 | L101: 3.1.02.10 | M101: 1
A102: Kredit | B102: =SUBTOTAL(9,$M$11:M102) -> 92 | C102: =COA!C93 -> 3.1.02.11 Penyertaan Modal Masyarakat Desa J | D102: =SUMIF(Jurnal!D:D,'neraca saldo'!C102,Jurnal!F:F) -> 0 | E102: =SUMIF(Jurnal!D:D,'neraca saldo'!C102,Jurnal!G:G) -> 0 | F102: 0 | G102: 0 | H102: 0 | J102: 3.1 | K102: 3.1.02 | L102: 3.1.02.11 | M102: 1
A103: Kredit | B103: =SUBTOTAL(9,$M$11:M103) -> 93 | C103: =COA!C94 -> 3.1.02.12 Penyertaan Modal Masyarakat Desa (Eks PNPM) | D103: =SUMIF(Jurnal!D:D,'neraca saldo'!C103,Jurnal!F:F) -> 0 | E103: =SUMIF(Jurnal!D:D,'neraca saldo'!C103,Jurnal!G:G) -> 0 | F103: 0 | G103: 0 | H103: 0 | J103: 3.1 | K103: 3.1.02 | L103: 3.1.02.12 | M103: 1
A104: Debit | B104: =SUBTOTAL(9,$M$11:M104) -> 94 | C104: =COA!C95 -> 3.2.01.01 Bagi Hasil Penyertaan Modal Desa | D104: =SUMIF(Jurnal!D:D,'neraca saldo'!C104,Jurnal!F:F) -> 0 | E104: =SUMIF(Jurnal!D:D,'neraca saldo'!C104,Jurnal!G:G) -> 0 | F104: 0 | G104: 0 | H104: 0 | J104: 3.2 | K104: 3.2.01 | L104: 3.2.01.01 | M104: 1
A105: Debit | B105: =SUBTOTAL(9,$M$11:M105) -> 95 | C105: =COA!C96 -> 3.2.01.02 Bagi Hasil Penyertaan Modal Desa A | D105: =SUMIF(Jurnal!D:D,'neraca saldo'!C105,Jurnal!F:F) -> 0 | E105: =SUMIF(Jurnal!D:D,'neraca saldo'!C105,Jurnal!G:G) -> 0 | F105: 0 | G105: 0 | H105: 0 | J105: 3.2 | K105: 3.2.01 | L105: 3.2.01.02 | M105: 1
A106: Debit | B106: =SUBTOTAL(9,$M$11:M106) -> 96 | C106: =COA!C97 -> 3.2.01.03 Bagi Hasil Penyertaan Modal Desa B | D106: =SUMIF(Jurnal!D:D,'neraca saldo'!C106,Jurnal!F:F) -> 0 | E106: =SUMIF(Jurnal!D:D,'neraca saldo'!C106,Jurnal!G:G) -> 0 | F106: 0 | G106: 0 | H106: 0 | J106: 3.2 | K106: 3.2.01 | L106: 3.2.01.03 | M106: 1
A107: Debit | B107: =SUBTOTAL(9,$M$11:M107) -> 97 | C107: =COA!C98 -> 3.2.01.04 Bagi Hasil Penyertaan Modal Desa C | D107: =SUMIF(Jurnal!D:D,'neraca saldo'!C107,Jurnal!F:F) -> 0 | E107: =SUMIF(Jurnal!D:D,'neraca saldo'!C107,Jurnal!G:G) -> 0 | F107: 0 | G107: 0 | H107: 0 | J107: 3.2 | K107: 3.2.01 | L107: 3.2.01.04 | M107: 1
A108: Debit | B108: =SUBTOTAL(9,$M$11:M108) -> 98 | C108: =COA!C99 -> 3.2.01.05 Bagi Hasil Penyertaan Modal Desa D | D108: =SUMIF(Jurnal!D:D,'neraca saldo'!C108,Jurnal!F:F) -> 0 | E108: =SUMIF(Jurnal!D:D,'neraca saldo'!C108,Jurnal!G:G) -> 0 | F108: 0 | G108: 0 | H108: 0 | J108: 3.2 | K108: 3.2.01 | L108: 3.2.01.05 | M108: 1
A109: Debit | B109: =SUBTOTAL(9,$M$11:M109) -> 99 | C109: =COA!C100 -> 3.2.01.06 Bagi Hasil Penyertaan Modal Desa E | D109: =SUMIF(Jurnal!D:D,'neraca saldo'!C109,Jurnal!F:F) -> 0 | E109: =SUMIF(Jurnal!D:D,'neraca saldo'!C109,Jurnal!G:G) -> 0 | F109: 0 | G109: 0 | H109: 0 | J109: 3.2 | K109: 3.2.01 | L109: 3.2.01.06 | M109: 1
A110: Debit | B110: =SUBTOTAL(9,$M$11:M110) -> 100 | C110: =COA!C101 -> 3.2.01.07 Bagi Hasil Penyertaan Modal Desa F | D110: =SUMIF(Jurnal!D:D,'neraca saldo'!C110,Jurnal!F:F) -> 0 | E110: =SUMIF(Jurnal!D:D,'neraca saldo'!C110,Jurnal!G:G) -> 0 | F110: 0 | G110: 0 | H110: 0 | J110: 3.2 | K110: 3.2.01 | L110: 3.2.01.07 | M110: 1
A111: Debit | B111: =SUBTOTAL(9,$M$11:M111) -> 101 | C111: =COA!C102 -> 3.2.01.08 Bagi Hasil Penyertaan Modal Desa G | D111: =SUMIF(Jurnal!D:D,'neraca saldo'!C111,Jurnal!F:F) -> 0 | E111: =SUMIF(Jurnal!D:D,'neraca saldo'!C111,Jurnal!G:G) -> 0 | F111: 0 | G111: 0 | H111: 0 | J111: 3.2 | K111: 3.2.01 | L111: 3.2.01.08 | M111: 1
A112: Debit | B112: =SUBTOTAL(9,$M$11:M112) -> 102 | C112: =COA!C103 -> 3.2.01.09 Bagi Hasil Penyertaan Modal Desa H | D112: =SUMIF(Jurnal!D:D,'neraca saldo'!C112,Jurnal!F:F) -> 0 | E112: =SUMIF(Jurnal!D:D,'neraca saldo'!C112,Jurnal!G:G) -> 0 | F112: 0 | G112: 0 | H112: 0 | J112: 3.2 | K112: 3.2.01 | L112: 3.2.01.09 | M112: 1
A113: Debit | B113: =SUBTOTAL(9,$M$11:M113) -> 103 | C113: =COA!C104 -> 3.2.01.10 Bagi Hasil Penyertaan Modal Desa I | D113: =SUMIF(Jurnal!D:D,'neraca saldo'!C113,Jurnal!F:F) -> 0 | E113: =SUMIF(Jurnal!D:D,'neraca saldo'!C113,Jurnal!G:G) -> 0 | F113: 0 | G113: 0 | H113: 0 | J113: 3.2 | K113: 3.2.01 | L113: 3.2.01.10 | M113: 1
A114: Debit | B114: =SUBTOTAL(9,$M$11:M114) -> 104 | C114: =COA!C105 -> 3.2.01.11 Bagi Hasil Penyertaan Modal Desa J | D114: =SUMIF(Jurnal!D:D,'neraca saldo'!C114,Jurnal!F:F) -> 0 | E114: =SUMIF(Jurnal!D:D,'neraca saldo'!C114,Jurnal!G:G) -> 0 | F114: 0 | G114: 0 | H114: 0 | J114: 3.2 | K114: 3.2.01 | L114: 3.2.01.11 | M114: 1
A115: Debit | B115: =SUBTOTAL(9,$M$11:M115) -> 105 | C115: =COA!C106 -> 3.2.02.01 Bagi Hasil Penyertaan Modal Masyarakat | D115: =SUMIF(Jurnal!D:D,'neraca saldo'!C115,Jurnal!F:F) -> 0 | E115: =SUMIF(Jurnal!D:D,'neraca saldo'!C115,Jurnal!G:G) -> 0 | F115: 0 | G115: 0 | H115: 0 | J115: 3.2 | K115: 3.2.02 | L115: 3.2.02.01 | M115: 1
A116: Debit | B116: =SUBTOTAL(9,$M$11:M116) -> 106 | C116: =COA!C107 -> 3.2.02.02 Bagi Hasil Penyertaan Modal Masyarakat Desa A | D116: =SUMIF(Jurnal!D:D,'neraca saldo'!C116,Jurnal!F:F) -> 0 | E116: =SUMIF(Jurnal!D:D,'neraca saldo'!C116,Jurnal!G:G) -> 0 | F116: 0 | G116: 0 | H116: 0 | J116: 3.2 | K116: 3.2.02 | L116: 3.2.02.02 | M116: 1
A117: Debit | B117: =SUBTOTAL(9,$M$11:M117) -> 107 | C117: =COA!C108 -> 3.2.02.03 Bagi Hasil Penyertaan Modal Masyarakat Desa B | D117: =SUMIF(Jurnal!D:D,'neraca saldo'!C117,Jurnal!F:F) -> 0 | E117: =SUMIF(Jurnal!D:D,'neraca saldo'!C117,Jurnal!G:G) -> 0 | F117: 0 | G117: 0 | H117: 0 | J117: 3.2 | K117: 3.2.02 | L117: 3.2.02.03 | M117: 1
A118: Debit | B118: =SUBTOTAL(9,$M$11:M118) -> 108 | C118: =COA!C109 -> 3.2.02.04 Bagi Hasil Penyertaan Modal Masyarakat Desa C | D118: =SUMIF(Jurnal!D:D,'neraca saldo'!C118,Jurnal!F:F) -> 0 | E118: =SUMIF(Jurnal!D:D,'neraca saldo'!C118,Jurnal!G:G) -> 0 | F118: 0 | G118: 0 | H118: 0 | J118: 3.2 | K118: 3.2.02 | L118: 3.2.02.04 | M118: 1
A119: Debit | B119: =SUBTOTAL(9,$M$11:M119) -> 109 | C119: =COA!C110 -> 3.2.02.05 Bagi Hasil Penyertaan Modal Masyarakat Desa D | D119: =SUMIF(Jurnal!D:D,'neraca saldo'!C119,Jurnal!F:F) -> 0 | E119: =SUMIF(Jurnal!D:D,'neraca saldo'!C119,Jurnal!G:G) -> 0 | F119: 0 | G119: 0 | H119: 0 | J119: 3.2 | K119: 3.2.02 | L119: 3.2.02.05 | M119: 1
A120: Debit | B120: =SUBTOTAL(9,$M$11:M120) -> 110 | C120: =COA!C111 -> 3.2.02.06 Bagi Hasil Penyertaan Modal Masyarakat Desa E | D120: =SUMIF(Jurnal!D:D,'neraca saldo'!C120,Jurnal!F:F) -> 0 | E120: =SUMIF(Jurnal!D:D,'neraca saldo'!C120,Jurnal!G:G) -> 0 | F120: 0 | G120: 0 | H120: 0 | J120: 3.2 | K120: 3.2.02 | L120: 3.2.02.06 | M120: 1
A121: Debit | B121: =SUBTOTAL(9,$M$11:M121) -> 111 | C121: =COA!C112 -> 3.2.02.07 Bagi Hasil Penyertaan Modal Masyarakat Desa F | D121: =SUMIF(Jurnal!D:D,'neraca saldo'!C121,Jurnal!F:F) -> 0 | E121: =SUMIF(Jurnal!D:D,'neraca saldo'!C121,Jurnal!G:G) -> 0 | F121: 0 | G121: 0 | H121: 0 | J121: 3.2 | K121: 3.2.02 | L121: 3.2.02.07 | M121: 1
A122: Debit | B122: =SUBTOTAL(9,$M$11:M122) -> 112 | C122: =COA!C113 -> 3.2.02.08 Bagi Hasil Penyertaan Modal Masyarakat Desa G | D122: =SUMIF(Jurnal!D:D,'neraca saldo'!C122,Jurnal!F:F) -> 0 | E122: =SUMIF(Jurnal!D:D,'neraca saldo'!C122,Jurnal!G:G) -> 0 | F122: 0 | G122: 0 | H122: 0 | J122: 3.2 | K122: 3.2.02 | L122: 3.2.02.08 | M122: 1
A123: Debit | B123: =SUBTOTAL(9,$M$11:M123) -> 113 | C123: =COA!C114 -> 3.2.02.09 Bagi Hasil Penyertaan Modal Masyarakat Desa H | D123: =SUMIF(Jurnal!D:D,'neraca saldo'!C123,Jurnal!F:F) -> 0 | E123: =SUMIF(Jurnal!D:D,'neraca saldo'!C123,Jurnal!G:G) -> 0 | F123: 0 | G123: 0 | H123: 0 | J123: 3.2 | K123: 3.2.02 | L123: 3.2.02.09 | M123: 1
A124: Debit | B124: =SUBTOTAL(9,$M$11:M124) -> 114 | C124: =COA!C115 -> 3.2.02.10 Bagi Hasil Penyertaan Modal Masyarakat Desa I | D124: =SUMIF(Jurnal!D:D,'neraca saldo'!C124,Jurnal!F:F) -> 0 | E124: =SUMIF(Jurnal!D:D,'neraca saldo'!C124,Jurnal!G:G) -> 0 | F124: 0 | G124: 0 | H124: 0 | J124: 3.2 | K124: 3.2.02 | L124: 3.2.02.10 | M124: 1
A125: Debit | B125: =SUBTOTAL(9,$M$11:M125) -> 115 | C125: =COA!C116 -> 3.2.02.11 Bagi Hasil Penyertaan Modal Masyarakat Desa J | D125: =SUMIF(Jurnal!D:D,'neraca saldo'!C125,Jurnal!F:F) -> 0 | E125: =SUMIF(Jurnal!D:D,'neraca saldo'!C125,Jurnal!G:G) -> 0 | F125: 0 | G125: 0 | H125: 0 | J125: 3.2 | K125: 3.2.02 | L125: 3.2.02.11 | M125: 1
A126: Debit | B126: =SUBTOTAL(9,$M$11:M126) -> 116 | C126: =COA!C117 -> 3.2.02.12 Bagi Hasil Penyertaan Modal Masyarakat Desa (Eks PNPM) | D126: =SUMIF(Jurnal!D:D,'neraca saldo'!C126,Jurnal!F:F) -> 0 | E126: =SUMIF(Jurnal!D:D,'neraca saldo'!C126,Jurnal!G:G) -> 0 | F126: 0 | G126: 0 | H126: 0 | J126: 3.2 | K126: 3.2.02 | L126: 3.2.02.12 | M126: 1
A127: Kredit | B127: =SUBTOTAL(9,$M$11:M127) -> 117 | C127: =COA!C118 -> 3.3.01.01 Saldo Laba Tidak Dicadangkan | D127: =SUMIF(Jurnal!D:D,'neraca saldo'!C127,Jurnal!F:F) -> 0 | E127: =SUMIF(Jurnal!D:D,'neraca saldo'!C127,Jurnal!G:G) -> 0 | F127: 0 | G127: 0 | H127: 0 | J127: 3.3 | K127: 3.3.01 | L127: 3.3.01.01 | M127: 1
A128: Kredit | B128: =SUBTOTAL(9,$M$11:M128) -> 118 | C128: =COA!C119 -> 3.3.02.01 Saldo Laba Dicadangkan untuk Pembelian Aset Tetap | D128: =SUMIF(Jurnal!D:D,'neraca saldo'!C128,Jurnal!F:F) -> 0 | E128: =SUMIF(Jurnal!D:D,'neraca saldo'!C128,Jurnal!G:G) -> 0 | F128: 0 | G128: 0 | H128: 0 | J128: 3.3 | K128: 3.3.02 | L128: 3.3.02.01 | M128: 1
A129: Kredit | B129: =SUBTOTAL(9,$M$11:M129) -> 119 | C129: =COA!C120 -> 3.3.01.02 Saldo Laba Dicadangkan untuk Pembayaran Utang Jangka Panjang | D129: =SUMIF(Jurnal!D:D,'neraca saldo'!C129,Jurnal!F:F) -> 0 | E129: =SUMIF(Jurnal!D:D,'neraca saldo'!C129,Jurnal!G:G) -> 0 | F129: 0 | G129: 0 | H129: 0 | J129: 3.3 | K129: 3.3.01 | L129: 3.3.01.02 | M129: 1
A130: Kredit | B130: =SUBTOTAL(9,$M$11:M130) -> 120 | C130: =COA!C121 -> 3.4.01.01 Modal Donasi/Sumbangan | D130: =SUMIF(Jurnal!D:D,'neraca saldo'!C130,Jurnal!F:F) -> 0 | E130: =SUMIF(Jurnal!D:D,'neraca saldo'!C130,Jurnal!G:G) -> 0 | F130: 0 | G130: 0 | H130: 0 | J130: 3.4 | K130: 3.4.01 | L130: 3.4.01.01 | M130: 1
A131: Kredit | B131: =SUBTOTAL(9,$M$11:M131) -> 121 | C131: =COA!C122 -> 3.8.01.01 RK Pusat | D131: =SUMIF(Jurnal!D:D,'neraca saldo'!C131,Jurnal!F:F) -> 0 | E131: =SUMIF(Jurnal!D:D,'neraca saldo'!C131,Jurnal!G:G) -> 0 | F131: 0 | G131: 0 | H131: 0 | J131: 3.8 | K131: 3.8.01 | L131: 3.8.01.01 | M131: 1
A132: Kredit | B132: =SUBTOTAL(9,$M$11:M132) -> 122 | C132: =COA!C123 -> 3.9.01.01 Ikhtisar Laba Rugi | D132: =SUMIF(Jurnal!D:D,'neraca saldo'!C132,Jurnal!F:F) -> 0 | E132: =SUMIF(Jurnal!D:D,'neraca saldo'!C132,Jurnal!G:G) -> 0 | F132: 0 | G132: 0 | H132: 0 | J132: 3.9 | K132: 3.9.01 | L132: 3.9.01.01 | M132: 1
A133: Kredit | B133: =SUBTOTAL(9,$M$11:M133) -> 123 | C133: =COA!C124 -> 4.1.01.01 Pendapatan Tiket | D133: =SUMIF(Jurnal!D:D,'neraca saldo'!C133,Jurnal!F:F) -> 0 | E133: =SUMIF(Jurnal!D:D,'neraca saldo'!C133,Jurnal!G:G) -> 0 | F133: 0 | G133: 0 | H133: 0 | J133: 4.1 | K133: 4.1.01 | L133: 4.1.01.01 | M133: 1
A134: Kredit | B134: =SUBTOTAL(9,$M$11:M134) -> 124 | C134: =COA!C125 -> 4.1.01.02 Pendapatan Wahana | D134: =SUMIF(Jurnal!D:D,'neraca saldo'!C134,Jurnal!F:F) -> 0 | E134: =SUMIF(Jurnal!D:D,'neraca saldo'!C134,Jurnal!G:G) -> 0 | F134: 0 | G134: 0 | H134: 0 | J134: 4.1 | K134: 4.1.01 | L134: 4.1.01.02 | M134: 1
A135: Kredit | B135: =SUBTOTAL(9,$M$11:M135) -> 125 | C135: =COA!C126 -> 4.1.01.03 Pendapatan Paket Wisata | D135: =SUMIF(Jurnal!D:D,'neraca saldo'!C135,Jurnal!F:F) -> 0 | E135: =SUMIF(Jurnal!D:D,'neraca saldo'!C135,Jurnal!G:G) -> 0 | F135: 0 | G135: 0 | H135: 0 | J135: 4.1 | K135: 4.1.01 | L135: 4.1.01.03 | M135: 1
A136: Kredit | B136: =SUBTOTAL(9,$M$11:M136) -> 126 | C136: =COA!C127 -> 4.1.02.01 Pendapatan Pengelolaan Air Bersih | D136: =SUMIF(Jurnal!D:D,'neraca saldo'!C136,Jurnal!F:F) -> 0 | E136: =SUMIF(Jurnal!D:D,'neraca saldo'!C136,Jurnal!G:G) -> 0 | F136: 0 | G136: 0 | H136: 0 | J136: 4.1 | K136: 4.1.02 | L136: 4.1.02.01 | M136: 1
A137: Kredit | B137: =SUBTOTAL(9,$M$11:M137) -> 127 | C137: =COA!C128 -> 4.1.03.01 Pendapatan Pengelolaan Sampah | D137: =SUMIF(Jurnal!D:D,'neraca saldo'!C137,Jurnal!F:F) -> 0 | E137: =SUMIF(Jurnal!D:D,'neraca saldo'!C137,Jurnal!G:G) -> 0 | F137: 0 | G137: 0 | H137: 0 | J137: 4.1 | K137: 4.1.03 | L137: 4.1.03.01 | M137: 1
A138: Kredit | B138: =SUBTOTAL(9,$M$11:M138) -> 128 | C138: =COA!C129 -> 4.1.04.01 Pendapatan Sewa Tempat Outbound | D138: =SUMIF(Jurnal!D:D,'neraca saldo'!C138,Jurnal!F:F) -> 0 | E138: =SUMIF(Jurnal!D:D,'neraca saldo'!C138,Jurnal!G:G) -> 0 | F138: 0 | G138: 0 | H138: 0 | J138: 4.1 | K138: 4.1.04 | L138: 4.1.04.01 | M138: 1
A139: Kredit | B139: =SUBTOTAL(9,$M$11:M139) -> 129 | C139: =COA!C130 -> 4.1.04.02 Pendapatan Sewa Tempat untuk Toko/Kios | D139: =SUMIF(Jurnal!D:D,'neraca saldo'!C139,Jurnal!F:F) -> 0 | E139: =SUMIF(Jurnal!D:D,'neraca saldo'!C139,Jurnal!G:G) -> 0 | F139: 0 | G139: 0 | H139: 0 | J139: 4.1 | K139: 4.1.04 | L139: 4.1.04.02 | M139: 1
A140: Kredit | B140: =SUBTOTAL(9,$M$11:M140) -> 130 | C140: =COA!C131 -> 4.1.04.03 Pendapatan Sewa Gedung | D140: =SUMIF(Jurnal!D:D,'neraca saldo'!C140,Jurnal!F:F) -> 0 | E140: =SUMIF(Jurnal!D:D,'neraca saldo'!C140,Jurnal!G:G) -> 0 | F140: 0 | G140: 0 | H140: 0 | J140: 4.1 | K140: 4.1.04 | L140: 4.1.04.03 | M140: 1
A141: =IFERROR(VLOOKUP(C141,saldonormal,2,0),"") -> Kredit | B141: =SUBTOTAL(9,$M$11:M141) -> 131 | C141: =COA!C132 -> 4.1.04.04 Pendapatan Sewa Mobil | D141: =SUMIF(Jurnal!D:D,'neraca saldo'!C141,Jurnal!F:F) -> 0 | E141: =SUMIF(Jurnal!D:D,'neraca saldo'!C141,Jurnal!G:G) -> 0 | F141: =IF(D141>E141,D141-E141,0) -> 0 | G141: =IF(E141>D141,E141-D141,0) -> 0 | H141: =IF(A141="Debit",F141-G141,G141-F141) -> 0 | I141: =IF(F141=G141,"","V") ->  | J141: =LEFT(C141,3) -> 4.1 | K141: =LEFT(C141,6) -> 4.1.04 | L141: =LEFT(C141,9) -> 4.1.04.04 | M141: 1
A142: Kredit | B142: =SUBTOTAL(9,$M$11:M142) -> 132 | C142: =COA!C133 -> 4.1.04.05 Pendapatan Sewa Peralatan Gedung | D142: =SUMIF(Jurnal!D:D,'neraca saldo'!C142,Jurnal!F:F) -> 0 | E142: =SUMIF(Jurnal!D:D,'neraca saldo'!C142,Jurnal!G:G) -> 0 | F142: 0 | G142: 0 | H142: 0 | J142: 4.1 | K142: 4.1.04 | L142: 4.1.04.05 | M142: 1
A143: Kredit | B143: =SUBTOTAL(9,$M$11:M143) -> 133 | C143: =COA!C134 -> 4.1.04.99 Pendapatan Sewa Lainnya | D143: =SUMIF(Jurnal!D:D,'neraca saldo'!C143,Jurnal!F:F) -> 0 | E143: =SUMIF(Jurnal!D:D,'neraca saldo'!C143,Jurnal!G:G) -> 0 | F143: 0 | G143: 0 | H143: 0 | J143: 4.1 | K143: 4.1.04 | L143: 4.1.04.99 | M143: 1
A144: Kredit | B144: =SUBTOTAL(9,$M$11:M144) -> 134 | C144: =COA!C135 -> 4.1.05.01 Pendapatan Jasa Pembayaran Listrik | D144: =SUMIF(Jurnal!D:D,'neraca saldo'!C144,Jurnal!F:F) -> 0 | E144: =SUMIF(Jurnal!D:D,'neraca saldo'!C144,Jurnal!G:G) -> 0 | F144: 0 | G144: 0 | H144: 0 | J144: 4.1 | K144: 4.1.05 | L144: 4.1.05.01 | M144: 1
A145: Kredit | B145: =SUBTOTAL(9,$M$11:M145) -> 135 | C145: =COA!C136 -> 4.1.05.99 Pendapatan Jasa Pelayanan lainnya | D145: =SUMIF(Jurnal!D:D,'neraca saldo'!C145,Jurnal!F:F) -> 0 | E145: =SUMIF(Jurnal!D:D,'neraca saldo'!C145,Jurnal!G:G) -> 0 | F145: 0 | G145: 0 | H145: 0 | J145: 4.1 | K145: 4.1.05 | L145: 4.1.05.99 | M145: 1
A146: Kredit | B146: =SUBTOTAL(9,$M$11:M146) -> 136 | C146: =COA!C137 -> 4.1.06.01 Pendapatan Transportasi | D146: =SUMIF(Jurnal!D:D,'neraca saldo'!C146,Jurnal!F:F) -> 0 | E146: =SUMIF(Jurnal!D:D,'neraca saldo'!C146,Jurnal!G:G) -> 0 | F146: 0 | G146: 0 | H146: 0 | J146: 4.1 | K146: 4.1.06 | L146: 4.1.06.01 | M146: 1
A147: Kredit | B147: =SUBTOTAL(9,$M$11:M147) -> 137 | C147: =COA!C138 -> 4.1.07.01 Pendapatan Parkir Mobil | D147: =SUMIF(Jurnal!D:D,'neraca saldo'!C147,Jurnal!F:F) -> 0 | E147: =SUMIF(Jurnal!D:D,'neraca saldo'!C147,Jurnal!G:G) -> 0 | F147: 0 | G147: 0 | H147: 0 | J147: 4.1 | K147: 4.1.07 | L147: 4.1.07.01 | M147: 1
A148: Kredit | B148: =SUBTOTAL(9,$M$11:M148) -> 138 | C148: =COA!C139 -> 4.1.07.02 Pendapatan Parkir Motor | D148: =SUMIF(Jurnal!D:D,'neraca saldo'!C148,Jurnal!F:F) -> 0 | E148: =SUMIF(Jurnal!D:D,'neraca saldo'!C148,Jurnal!G:G) -> 0 | F148: 0 | G148: 0 | H148: 0 | J148: 4.1 | K148: 4.1.07 | L148: 4.1.07.02 | M148: 1
A149: Kredit | B149: =SUBTOTAL(9,$M$11:M149) -> 139 | C149: =COA!C140 -> 4.1.08.01 Pendapatan Simpan Pinjam | D149: =SUMIF(Jurnal!D:D,'neraca saldo'!C149,Jurnal!F:F) -> 0 | E149: =SUMIF(Jurnal!D:D,'neraca saldo'!C149,Jurnal!G:G) -> 0 | F149: 0 | G149: 0 | H149: 0 | J149: 4.1 | K149: 4.1.08 | L149: 4.1.08.01 | M149: 1
A150: Kredit | B150: =SUBTOTAL(9,$M$11:M150) -> 140 | C150: =COA!C141 -> 4.1.09.01 Pendapatan Pelatihan | D150: =SUMIF(Jurnal!D:D,'neraca saldo'!C150,Jurnal!F:F) -> 0 | E150: =SUMIF(Jurnal!D:D,'neraca saldo'!C150,Jurnal!G:G) -> 0 | F150: 0 | G150: 0 | H150: 0 | J150: 4.1 | K150: 4.1.09 | L150: 4.1.09.01 | M150: 1
A151: Kredit | B151: =SUBTOTAL(9,$M$11:M151) -> 141 | C151: =COA!C142 -> 4.1.10.01 Pendapatan Homestay | D151: =SUMIF(Jurnal!D:D,'neraca saldo'!C151,Jurnal!F:F) -> 0 | E151: =SUMIF(Jurnal!D:D,'neraca saldo'!C151,Jurnal!G:G) -> 0 | F151: 0 | G151: 0 | H151: 0 | J151: 4.1 | K151: 4.1.10 | L151: 4.1.10.01 | M151: 1
A152: Kredit | B152: =SUBTOTAL(9,$M$11:M152) -> 142 | C152: =COA!C143 -> 4.1.11.01 Pendapata Komisi | D152: =SUMIF(Jurnal!D:D,'neraca saldo'!C152,Jurnal!F:F) -> 0 | E152: =SUMIF(Jurnal!D:D,'neraca saldo'!C152,Jurnal!G:G) -> 0 | F152: 0 | G152: 0 | H152: 0 | J152: 4.1 | K152: 4.1.11 | L152: 4.1.11.01 | M152: 1
A153: Kredit | B153: =SUBTOTAL(9,$M$11:M153) -> 143 | C153: =COA!C144 -> 4.2.01.01 Pendapatan Penjualan Makanan/Minuman | D153: =SUMIF(Jurnal!D:D,'neraca saldo'!C153,Jurnal!F:F) -> 0 | E153: =SUMIF(Jurnal!D:D,'neraca saldo'!C153,Jurnal!G:G) -> 0 | F153: 0 | G153: 0 | H153: 0 | J153: 4.2 | K153: 4.2.01 | L153: 4.2.01.01 | M153: 1
A154: Kredit | B154: =SUBTOTAL(9,$M$11:M154) -> 144 | C154: =COA!C145 -> 4.2.01.02 Pendapatan Penjualan Pakaian/Kaos/Jaket | D154: =SUMIF(Jurnal!D:D,'neraca saldo'!C154,Jurnal!F:F) -> 0 | E154: =SUMIF(Jurnal!D:D,'neraca saldo'!C154,Jurnal!G:G) -> 0 | F154: 0 | G154: 0 | H154: 0 | J154: 4.2 | K154: 4.2.01 | L154: 4.2.01.02 | M154: 1
A155: Kredit | B155: =SUBTOTAL(9,$M$11:M155) -> 145 | C155: =COA!C146 -> 4.2.01.03 Pendapatan Penjualan Hasil Kerajinan/Suvenir | D155: =SUMIF(Jurnal!D:D,'neraca saldo'!C155,Jurnal!F:F) -> 0 | E155: =SUMIF(Jurnal!D:D,'neraca saldo'!C155,Jurnal!G:G) -> 0 | F155: 0 | G155: 0 | H155: 0 | J155: 4.2 | K155: 4.2.01 | L155: 4.2.01.03 | M155: 1
A156: Kredit | B156: =SUBTOTAL(9,$M$11:M156) -> 146 | C156: =COA!C147 -> 4.2.01.04 Pendapatan Penjualan Buku | D156: =SUMIF(Jurnal!D:D,'neraca saldo'!C156,Jurnal!F:F) -> 0 | E156: =SUMIF(Jurnal!D:D,'neraca saldo'!C156,Jurnal!G:G) -> 0 | F156: 0 | G156: 0 | H156: 0 | J156: 4.2 | K156: 4.2.01 | L156: 4.2.01.04 | M156: 1
A157: Kredit | B157: =SUBTOTAL(9,$M$11:M157) -> 147 | C157: =COA!C148 -> 4.2.01.05 Pendapatan Penjualan Biji Kopi | D157: =SUMIF(Jurnal!D:D,'neraca saldo'!C157,Jurnal!F:F) -> 0 | E157: =SUMIF(Jurnal!D:D,'neraca saldo'!C157,Jurnal!G:G) -> 0 | F157: 0 | G157: 0 | H157: 0 | J157: 4.2 | K157: 4.2.01 | L157: 4.2.01.05 | M157: 1
A158: Kredit | B158: =SUBTOTAL(9,$M$11:M158) -> 148 | C158: =COA!C149 -> 4.2.01.06 Pendapatan Penjualan Bensin | D158: =SUMIF(Jurnal!D:D,'neraca saldo'!C158,Jurnal!F:F) -> 0 | E158: =SUMIF(Jurnal!D:D,'neraca saldo'!C158,Jurnal!G:G) -> 0 | F158: 0 | G158: 0 | H158: 0 | J158: 4.2 | K158: 4.2.01 | L158: 4.2.01.06 | M158: 1
A159: Debit | B159: =SUBTOTAL(9,$M$11:M159) -> 149 | C159: =COA!C150 -> 4.2.01.99 Diskon Penjualan Barang Dagangan | D159: =SUMIF(Jurnal!D:D,'neraca saldo'!C159,Jurnal!F:F) -> 0 | E159: =SUMIF(Jurnal!D:D,'neraca saldo'!C159,Jurnal!G:G) -> 0 | F159: 0 | G159: 0 | H159: 0 | J159: 4.2 | K159: 4.2.01 | L159: 4.2.01.99 | M159: 1
A160: Kredit | B160: =SUBTOTAL(9,$M$11:M160) -> 150 | C160: =COA!C151 -> 4.3.01.01 Pendapatan Katering | D160: =SUMIF(Jurnal!D:D,'neraca saldo'!C160,Jurnal!F:F) -> 0 | E160: =SUMIF(Jurnal!D:D,'neraca saldo'!C160,Jurnal!G:G) -> 0 | F160: 0 | G160: 0 | H160: 0 | J160: 4.3 | K160: 4.3.01 | L160: 4.3.01.01 | M160: 1
A161: Kredit | B161: =SUBTOTAL(9,$M$11:M161) -> 151 | C161: =COA!C152 -> 4.3.01.02 Pendapatan Restoran | D161: =SUMIF(Jurnal!D:D,'neraca saldo'!C161,Jurnal!F:F) -> 0 | E161: =SUMIF(Jurnal!D:D,'neraca saldo'!C161,Jurnal!G:G) -> 0 | F161: 0 | G161: 0 | H161: 0 | J161: 4.3 | K161: 4.3.01 | L161: 4.3.01.02 | M161: 1
A162: Kredit | B162: =SUBTOTAL(9,$M$11:M162) -> 152 | C162: =COA!C153 -> 4.3.01.03 Pendapatan Kopi | D162: =SUMIF(Jurnal!D:D,'neraca saldo'!C162,Jurnal!F:F) -> 0 | E162: =SUMIF(Jurnal!D:D,'neraca saldo'!C162,Jurnal!G:G) -> 0 | F162: 0 | G162: 0 | H162: 0 | J162: 4.3 | K162: 4.3.01 | L162: 4.3.01.03 | M162: 1
A163: Debit | B163: =SUBTOTAL(9,$M$11:M163) -> 153 | C163: =COA!C154 -> 4.3.01.04 Diskon Penjualan Barang Jadi | D163: =SUMIF(Jurnal!D:D,'neraca saldo'!C163,Jurnal!F:F) -> 0 | E163: =SUMIF(Jurnal!D:D,'neraca saldo'!C163,Jurnal!G:G) -> 0 | F163: 0 | G163: 0 | H163: 0 | J163: 4.3 | K163: 4.3.01 | L163: 4.3.01.04 | M163: 1
A164: Debit | B164: =SUBTOTAL(9,$M$11:M164) -> 154 | C164: =COA!C155 -> 5.1.01.01 Harga Pokok Penjualan Barang Dagangan | D164: =SUMIF(Jurnal!D:D,'neraca saldo'!C164,Jurnal!F:F) -> 0 | E164: =SUMIF(Jurnal!D:D,'neraca saldo'!C164,Jurnal!G:G) -> 0 | F164: 0 | G164: 0 | H164: 0 | J164: 5.1 | K164: 5.1.01 | L164: 5.1.01.01 | M164: 1
A165: Debit | B165: =SUBTOTAL(9,$M$11:M165) -> 155 | C165: =COA!C156 -> 5.2.01.01 Harga Pokok Penjualan Barang Jadi | D165: =SUMIF(Jurnal!D:D,'neraca saldo'!C165,Jurnal!F:F) -> 0 | E165: =SUMIF(Jurnal!D:D,'neraca saldo'!C165,Jurnal!G:G) -> 0 | F165: 0 | G165: 0 | H165: 0 | J165: 5.2 | K165: 5.2.01 | L165: 5.2.01.01 | M165: 1
A166: Debit | B166: =SUBTOTAL(9,$M$11:M166) -> 156 | C166: =COA!C157 -> 5.3.01.01 Harga Pokok Produksi | D166: =SUMIF(Jurnal!D:D,'neraca saldo'!C166,Jurnal!F:F) -> 0 | E166: =SUMIF(Jurnal!D:D,'neraca saldo'!C166,Jurnal!G:G) -> 0 | F166: 0 | G166: 0 | H166: 0 | J166: 5.3 | K166: 5.3.01 | L166: 5.3.01.01 | M166: 1
A167: Debit | B167: =SUBTOTAL(9,$M$11:M167) -> 157 | C167: =COA!C158 -> 6.1.01.01 Beban Gaji dan Tunjangan Bag. Adum | D167: =SUMIF(Jurnal!D:D,'neraca saldo'!C167,Jurnal!F:F) -> 0 | E167: =SUMIF(Jurnal!D:D,'neraca saldo'!C167,Jurnal!G:G) -> 0 | F167: 0 | G167: 0 | H167: 0 | J167: 6.1 | K167: 6.1.01 | L167: 6.1.01.01 | M167: 1
A168: Debit | B168: =SUBTOTAL(9,$M$11:M168) -> 158 | C168: =COA!C159 -> 6.1.01.02 Beban Honor Lembur Bag. Adum | D168: =SUMIF(Jurnal!D:D,'neraca saldo'!C168,Jurnal!F:F) -> 0 | E168: =SUMIF(Jurnal!D:D,'neraca saldo'!C168,Jurnal!G:G) -> 0 | F168: 0 | G168: 0 | H168: 0 | J168: 6.1 | K168: 6.1.01 | L168: 6.1.01.02 | M168: 1
A169: Debit | B169: =SUBTOTAL(9,$M$11:M169) -> 159 | C169: =COA!C160 -> 6.1.01.03 Beban Honor Narasumber | D169: =SUMIF(Jurnal!D:D,'neraca saldo'!C169,Jurnal!F:F) -> 0 | E169: =SUMIF(Jurnal!D:D,'neraca saldo'!C169,Jurnal!G:G) -> 0 | F169: 0 | G169: 0 | H169: 0 | J169: 6.1 | K169: 6.1.01 | L169: 6.1.01.03 | M169: 1
A170: Debit | B170: =SUBTOTAL(9,$M$11:M170) -> 160 | C170: =COA!C161 -> 6.1.01.04 Beban Insentif (Bonus) Bag. Adum | D170: =SUMIF(Jurnal!D:D,'neraca saldo'!C170,Jurnal!F:F) -> 0 | E170: =SUMIF(Jurnal!D:D,'neraca saldo'!C170,Jurnal!G:G) -> 0 | F170: 0 | G170: 0 | H170: 0 | J170: 6.1 | K170: 6.1.01 | L170: 6.1.01.04 | M170: 1
A171: Debit | B171: =SUBTOTAL(9,$M$11:M171) -> 161 | C171: =COA!C162 -> 6.1.01.05 Beban Komisi Bag. Adum | D171: =SUMIF(Jurnal!D:D,'neraca saldo'!C171,Jurnal!F:F) -> 0 | E171: =SUMIF(Jurnal!D:D,'neraca saldo'!C171,Jurnal!G:G) -> 0 | F171: 0 | G171: 0 | H171: 0 | J171: 6.1 | K171: 6.1.01 | L171: 6.1.01.05 | M171: 1
A172: Debit | B172: =SUBTOTAL(9,$M$11:M172) -> 162 | C172: =COA!C163 -> 6.1.01.06 Beban Seragam Pegawai Bag. Adum | D172: =SUMIF(Jurnal!D:D,'neraca saldo'!C172,Jurnal!F:F) -> 0 | E172: =SUMIF(Jurnal!D:D,'neraca saldo'!C172,Jurnal!G:G) -> 0 | F172: 0 | G172: 0 | H172: 0 | J172: 6.1 | K172: 6.1.01 | L172: 6.1.01.06 | M172: 1
A173: Debit | B173: =SUBTOTAL(9,$M$11:M173) -> 163 | C173: =COA!C164 -> 6.1.01.07 Beban Penguatan SDM | D173: =SUMIF(Jurnal!D:D,'neraca saldo'!C173,Jurnal!F:F) -> 0 | E173: =SUMIF(Jurnal!D:D,'neraca saldo'!C173,Jurnal!G:G) -> 0 | F173: 0 | G173: 0 | H173: 0 | J173: 6.1 | K173: 6.1.01 | L173: 6.1.01.07 | M173: 1
A174: Debit | B174: =SUBTOTAL(9,$M$11:M174) -> 164 | C174: =COA!C165 -> 6.1.01.99 Beban Pegawai Bag. Adum Lainnya | D174: =SUMIF(Jurnal!D:D,'neraca saldo'!C174,Jurnal!F:F) -> 0 | E174: =SUMIF(Jurnal!D:D,'neraca saldo'!C174,Jurnal!G:G) -> 0 | F174: 0 | G174: 0 | H174: 0 | J174: 6.1 | K174: 6.1.01 | L174: 6.1.01.99 | M174: 1
A175: Debit | B175: =SUBTOTAL(9,$M$11:M175) -> 165 | C175: =COA!C166 -> 6.1.02.01 Beban Alat Tulis Kantor (ATK) | D175: =SUMIF(Jurnal!D:D,'neraca saldo'!C175,Jurnal!F:F) -> 0 | E175: =SUMIF(Jurnal!D:D,'neraca saldo'!C175,Jurnal!G:G) -> 0 | F175: 0 | G175: 0 | H175: 0 | J175: 6.1 | K175: 6.1.02 | L175: 6.1.02.01 | M175: 1
A176: Debit | B176: =SUBTOTAL(9,$M$11:M176) -> 166 | C176: =COA!C167 -> 6.1.02.02 Beban Foto Copy | D176: =SUMIF(Jurnal!D:D,'neraca saldo'!C176,Jurnal!F:F) -> 0 | E176: =SUMIF(Jurnal!D:D,'neraca saldo'!C176,Jurnal!G:G) -> 0 | F176: 0 | G176: 0 | H176: 0 | J176: 6.1 | K176: 6.1.02 | L176: 6.1.02.02 | M176: 1
A177: Debit | B177: =SUBTOTAL(9,$M$11:M177) -> 167 | C177: =COA!C168 -> 6.1.02.03 Beban Konsumsi Rapat | D177: =SUMIF(Jurnal!D:D,'neraca saldo'!C177,Jurnal!F:F) -> 0 | E177: =SUMIF(Jurnal!D:D,'neraca saldo'!C177,Jurnal!G:G) -> 0 | F177: 0 | G177: 0 | H177: 0 | J177: 6.1 | K177: 6.1.02 | L177: 6.1.02.03 | M177: 1
A178: Debit | B178: =SUBTOTAL(9,$M$11:M178) -> 168 | C178: =COA!C169 -> 6.1.02.04 Beban Cetak dan Dekorasi | D178: =SUMIF(Jurnal!D:D,'neraca saldo'!C178,Jurnal!F:F) -> 0 | E178: =SUMIF(Jurnal!D:D,'neraca saldo'!C178,Jurnal!G:G) -> 0 | F178: 0 | G178: 0 | H178: 0 | J178: 6.1 | K178: 6.1.02 | L178: 6.1.02.04 | M178: 1
A179: Debit | B179: =SUBTOTAL(9,$M$11:M179) -> 169 | C179: =COA!C170 -> 6.1.02.99 Beban Perlengkapan Lainnya | D179: =SUMIF(Jurnal!D:D,'neraca saldo'!C179,Jurnal!F:F) -> 0 | E179: =SUMIF(Jurnal!D:D,'neraca saldo'!C179,Jurnal!G:G) -> 0 | F179: 0 | G179: 0 | H179: 0 | J179: 6.1 | K179: 6.1.02 | L179: 6.1.02.99 | M179: 1
A180: Debit | B180: =SUBTOTAL(9,$M$11:M180) -> 170 | C180: =COA!C171 -> 6.1.03.01 Beban Pemeliharaan dan Perbaikan | D180: =SUMIF(Jurnal!D:D,'neraca saldo'!C180,Jurnal!F:F) -> 0 | E180: =SUMIF(Jurnal!D:D,'neraca saldo'!C180,Jurnal!G:G) -> 0 | F180: 0 | G180: 0 | H180: 0 | J180: 6.1 | K180: 6.1.03 | L180: 6.1.03.01 | M180: 1
A181: Debit | B181: =SUBTOTAL(9,$M$11:M181) -> 171 | C181: =COA!C172 -> 6.1.04.01 Beban Listrik | D181: =SUMIF(Jurnal!D:D,'neraca saldo'!C181,Jurnal!F:F) -> 0 | E181: =SUMIF(Jurnal!D:D,'neraca saldo'!C181,Jurnal!G:G) -> 0 | F181: 0 | G181: 0 | H181: 0 | J181: 6.1 | K181: 6.1.04 | L181: 6.1.04.01 | M181: 1
A182: Debit | B182: =SUBTOTAL(9,$M$11:M182) -> 172 | C182: =COA!C173 -> 6.1.04.02 Beban Telepon/Internet | D182: =SUMIF(Jurnal!D:D,'neraca saldo'!C182,Jurnal!F:F) -> 0 | E182: =SUMIF(Jurnal!D:D,'neraca saldo'!C182,Jurnal!G:G) -> 0 | F182: 0 | G182: 0 | H182: 0 | J182: 6.1 | K182: 6.1.04 | L182: 6.1.04.02 | M182: 1
A183: Debit | B183: =SUBTOTAL(9,$M$11:M183) -> 173 | C183: =COA!C174 -> 6.1.04.99 Beban Utilitas Lainnya | D183: =SUMIF(Jurnal!D:D,'neraca saldo'!C183,Jurnal!F:F) -> 0 | E183: =SUMIF(Jurnal!D:D,'neraca saldo'!C183,Jurnal!G:G) -> 0 | F183: 0 | G183: 0 | H183: 0 | J183: 6.1 | K183: 6.1.04 | L183: 6.1.04.99 | M183: 1
A184: Debit | B184: =SUBTOTAL(9,$M$11:M184) -> 174 | C184: =COA!C175 -> 6.1.05.01 Beban Sewa | D184: =SUMIF(Jurnal!D:D,'neraca saldo'!C184,Jurnal!F:F) -> 0 | E184: =SUMIF(Jurnal!D:D,'neraca saldo'!C184,Jurnal!G:G) -> 0 | F184: 0 | G184: 0 | H184: 0 | J184: 6.1 | K184: 6.1.05 | L184: 6.1.05.01 | M184: 1
A185: Debit | B185: =SUBTOTAL(9,$M$11:M185) -> 175 | C185: =COA!C176 -> 6.1.05.02 Beban Asuransi | D185: =SUMIF(Jurnal!D:D,'neraca saldo'!C185,Jurnal!F:F) -> 0 | E185: =SUMIF(Jurnal!D:D,'neraca saldo'!C185,Jurnal!G:G) -> 0 | F185: 0 | G185: 0 | H185: 0 | J185: 6.1 | K185: 6.1.05 | L185: 6.1.05.02 | M185: 1
A186: Debit | B186: =SUBTOTAL(9,$M$11:M186) -> 176 | C186: =COA!C177 -> 6.1.06.01 Beban Kebersihan | D186: =SUMIF(Jurnal!D:D,'neraca saldo'!C186,Jurnal!F:F) -> 0 | E186: =SUMIF(Jurnal!D:D,'neraca saldo'!C186,Jurnal!G:G) -> 0 | F186: 0 | G186: 0 | H186: 0 | J186: 6.1 | K186: 6.1.06 | L186: 6.1.06.01 | M186: 1
A187: Debit | B187: =SUBTOTAL(9,$M$11:M187) -> 177 | C187: =COA!C178 -> 6.1.06.02 Beban Keamanan | D187: =SUMIF(Jurnal!D:D,'neraca saldo'!C187,Jurnal!F:F) -> 0 | E187: =SUMIF(Jurnal!D:D,'neraca saldo'!C187,Jurnal!G:G) -> 0 | F187: 0 | G187: 0 | H187: 0 | J187: 6.1 | K187: 6.1.06 | L187: 6.1.06.02 | M187: 1
A188: Debit | B188: =SUBTOTAL(9,$M$11:M188) -> 178 | C188: =COA!C179 -> 6.1.07.01 Beban Penyisihan Piutang Tak Tertagih | D188: =SUMIF(Jurnal!D:D,'neraca saldo'!C188,Jurnal!F:F) -> 0 | E188: =SUMIF(Jurnal!D:D,'neraca saldo'!C188,Jurnal!G:G) -> 0 | F188: 0 | G188: 0 | H188: 0 | J188: 6.1 | K188: 6.1.07 | L188: 6.1.07.01 | M188: 1
A189: Debit | B189: =SUBTOTAL(9,$M$11:M189) -> 179 | C189: =COA!C180 -> 6.1.07.02 Beban Penyusutan Kendaraan | D189: =SUMIF(Jurnal!D:D,'neraca saldo'!C189,Jurnal!F:F) -> 0 | E189: =SUMIF(Jurnal!D:D,'neraca saldo'!C189,Jurnal!G:G) -> 0 | F189: 0 | G189: 0 | H189: 0 | J189: 6.1 | K189: 6.1.07 | L189: 6.1.07.02 | M189: 1
A190: Debit | B190: =SUBTOTAL(9,$M$11:M190) -> 180 | C190: =COA!C181 -> 6.1.07.03 Beban Penyusutan Peralatan dan Mesin | D190: =SUMIF(Jurnal!D:D,'neraca saldo'!C190,Jurnal!F:F) -> 0 | E190: =SUMIF(Jurnal!D:D,'neraca saldo'!C190,Jurnal!G:G) -> 0 | F190: 0 | G190: 0 | H190: 0 | J190: 6.1 | K190: 6.1.07 | L190: 6.1.07.03 | M190: 1
A191: Debit | B191: =SUBTOTAL(9,$M$11:M191) -> 181 | C191: =COA!C182 -> 6.1.07.04 Beban Penyusutan Meubelair | D191: =SUMIF(Jurnal!D:D,'neraca saldo'!C191,Jurnal!F:F) -> 0 | E191: =SUMIF(Jurnal!D:D,'neraca saldo'!C191,Jurnal!G:G) -> 0 | F191: 0 | G191: 0 | H191: 0 | J191: 6.1 | K191: 6.1.07 | L191: 6.1.07.04 | M191: 1
A192: Debit | B192: =SUBTOTAL(9,$M$11:M192) -> 182 | C192: =COA!C183 -> 6.1.07.05 Beban Penyusutan Gedung dan Bangunan | D192: =SUMIF(Jurnal!D:D,'neraca saldo'!C192,Jurnal!F:F) -> 0 | E192: =SUMIF(Jurnal!D:D,'neraca saldo'!C192,Jurnal!G:G) -> 0 | F192: 0 | G192: 0 | H192: 0 | J192: 6.1 | K192: 6.1.07 | L192: 6.1.07.05 | M192: 1
A193: Debit | B193: =SUBTOTAL(9,$M$11:M193) -> 183 | C193: =COA!C184 -> 6.1.07.06 Beban Amortisasi Aset takberwujud | D193: =SUMIF(Jurnal!D:D,'neraca saldo'!C193,Jurnal!F:F) -> 0 | E193: =SUMIF(Jurnal!D:D,'neraca saldo'!C193,Jurnal!G:G) -> 0 | F193: 0 | G193: 0 | H193: 0 | J193: 6.1 | K193: 6.1.07 | L193: 6.1.07.06 | M193: 1
A194: Debit | B194: =SUBTOTAL(9,$M$11:M194) -> 184 | C194: =COA!C185 -> 6.1.99.01 Beban Parkir | D194: =SUMIF(Jurnal!D:D,'neraca saldo'!C194,Jurnal!F:F) -> 0 | E194: =SUMIF(Jurnal!D:D,'neraca saldo'!C194,Jurnal!G:G) -> 0 | F194: 0 | G194: 0 | H194: 0 | J194: 6.1 | K194: 6.1.99 | L194: 6.1.99.01 | M194: 1
A195: Debit | B195: =SUBTOTAL(9,$M$11:M195) -> 185 | C195: =COA!C186 -> 6.1.99.02 Beban Audit | D195: =SUMIF(Jurnal!D:D,'neraca saldo'!C195,Jurnal!F:F) -> 0 | E195: =SUMIF(Jurnal!D:D,'neraca saldo'!C195,Jurnal!G:G) -> 0 | F195: 0 | G195: 0 | H195: 0 | J195: 6.1 | K195: 6.1.99 | L195: 6.1.99.02 | M195: 1
A196: Debit | B196: =SUBTOTAL(9,$M$11:M196) -> 186 | C196: =COA!C187 -> 6.1.99.03 Beban Perjalanan Dinas | D196: =SUMIF(Jurnal!D:D,'neraca saldo'!C196,Jurnal!F:F) -> 0 | E196: =SUMIF(Jurnal!D:D,'neraca saldo'!C196,Jurnal!G:G) -> 0 | F196: 0 | G196: 0 | H196: 0 | J196: 6.1 | K196: 6.1.99 | L196: 6.1.99.03 | M196: 1
A197: Debit | B197: =SUBTOTAL(9,$M$11:M197) -> 187 | C197: =COA!C188 -> 6.1.99.04 Beban Transportasi | D197: =SUMIF(Jurnal!D:D,'neraca saldo'!C197,Jurnal!F:F) -> 0 | E197: =SUMIF(Jurnal!D:D,'neraca saldo'!C197,Jurnal!G:G) -> 0 | F197: 0 | G197: 0 | H197: 0 | J197: 6.1 | K197: 6.1.99 | L197: 6.1.99.04 | M197: 1
A198: Debit | B198: =SUBTOTAL(9,$M$11:M198) -> 188 | C198: =COA!C189 -> 6.1.99.05 Beban Jamuan Tamu | D198: =SUMIF(Jurnal!D:D,'neraca saldo'!C198,Jurnal!F:F) -> 0 | E198: =SUMIF(Jurnal!D:D,'neraca saldo'!C198,Jurnal!G:G) -> 0 | F198: 0 | G198: 0 | H198: 0 | J198: 6.1 | K198: 6.1.99 | L198: 6.1.99.05 | M198: 1
A199: Debit | B199: =SUBTOTAL(9,$M$11:M199) -> 189 | C199: =COA!C190 -> 6.1.99.99 Beban Administrasi dan Umum Lainnya | D199: =SUMIF(Jurnal!D:D,'neraca saldo'!C199,Jurnal!F:F) -> 0 | E199: =SUMIF(Jurnal!D:D,'neraca saldo'!C199,Jurnal!G:G) -> 0 | F199: 0 | G199: 0 | H199: 0 | J199: 6.1 | K199: 6.1.99 | L199: 6.1.99.99 | M199: 1
A200: Debit | B200: =SUBTOTAL(9,$M$11:M200) -> 190 | C200: =COA!C191 -> 6.2.01.01 Beban Gaji/Upah Bag. Operasional | D200: =SUMIF(Jurnal!D:D,'neraca saldo'!C200,Jurnal!F:F) -> 0 | E200: =SUMIF(Jurnal!D:D,'neraca saldo'!C200,Jurnal!G:G) -> 0 | F200: 0 | G200: 0 | H200: 0 | J200: 6.2 | K200: 6.2.01 | L200: 6.2.01.01 | M200: 1
A201: Debit | B201: =SUBTOTAL(9,$M$11:M201) -> 191 | C201: =COA!C192 -> 6.2.01.02 Beban Uang Makan Bag. Operasional | D201: =SUMIF(Jurnal!D:D,'neraca saldo'!C201,Jurnal!F:F) -> 0 | E201: =SUMIF(Jurnal!D:D,'neraca saldo'!C201,Jurnal!G:G) -> 0 | F201: 0 | G201: 0 | H201: 0 | J201: 6.2 | K201: 6.2.01 | L201: 6.2.01.02 | M201: 1
... 43 more rows

Sheet Laba Rugi
B1: aph
G2: 12 | H2: ="<="&G2 -> <=12 | I2: =VLOOKUP(G2,akhirbulan,3,0)&" "&TEXT(Home!C10,"YYYY") -> 31 Desember 1900
C3: =IF(Home!C6="","",Home!C6) -> 
C4: =IF(Home!C8="","",Home!C8) -> 
C5: LAPORAN LABA RUGI
C6: =IF(Home!C10="","","Untuk Periode yang berakhir sampai dengan "&TEXT(I2,"dd mmmm yyyy")) -> 
C7: (dalam rupiah)
A9: Level | C9: Nomor Urut | D9: Uraian | E9: =IF(Home!C10="","",VLOOKUP(G2,akhirbulan,2,0)&" "&TEXT(Home!C10,"YYYY")) ->  | F9: =IF(E9="","","s.d "&I2) -> 
C10: 1 | D10: 2 | E10: 3 | F10: 4
A11: 1 | B11: 4.0.00 | C11: 1 | D11: PENDAPATAN USAHA
A12: 2 | B12: 4.1.00 | C12: =C11+1 -> 2 | D12: Pendapatan Jasa
A13: 3 | B13: 4.1.01 | C13: =C12+1 -> 3 | D13: Pendapatan Wisata | E13: =SUMIFS(Jurnal!V:V,Jurnal!T:T,'Laba Rugi'!$B13,Jurnal!R:R,'Laba Rugi'!$G$2) -> 0 | F13: =SUMIFS(Jurnal!V:V,Jurnal!T:T,'Laba Rugi'!$B13,Jurnal!R:R,'Laba Rugi'!$H$2) -> 0
A14: 3 | B14: 4.1.02 | C14: 4 | D14: Pendapatan Pengelolaan Air Bersih | E14: =SUMIFS(Jurnal!V:V,Jurnal!T:T,'Laba Rugi'!$B14,Jurnal!R:R,'Laba Rugi'!$G$2) -> 0 | F14: =SUMIFS(Jurnal!V:V,Jurnal!T:T,'Laba Rugi'!$B14,Jurnal!R:R,'Laba Rugi'!$H$2) -> 0
